Workbook

Sheet Main
K3: text text text text

Sheet Reports (hidden)

Sheet 1-Alternatives (hidden)
A1: Option Number | B1: Evaluation Group | C1: Include in evaluation? | D1: Description | E1: Example of Fuel Cycle in this group
A2: 1 | B2: EG01 | C2: TRUE | D2: Once-through using enriched-U fuel in thermal critical reactors | E2: PWR with LEU fuel
A3: 2 | B3: EG02 | C3: TRUE | D3: Once-through using enriched-U fuel to high burnup in thermal or fast critical reactors | E3: HTGR with LEU fuel
A4: 3 | B4: EG03 | C4: TRUE | D4: Once-through using natural-U fuel in thermal critical reactors | E4: HWR with NU fuel
A5: 4 | B5: EG04 | C5: TRUE | D5: Once-through using natural-U fuel to very high burnup in fast critical reactors | E5: Breed and Burn TRU/U in SFR without Separation
A6: 5 | B6: EG05 | C6: TRUE | D6: Once-through using enriched-U/Th fuel in thermal or fast critical reactors | E6: High-Conversion HTGR with LEU and Th fuel
A7: 6 | B7: EG06 | C7: TRUE | D7: Once-through using Th fuel to very high burnup in thermal EDS | E7: Breed and Burn U-233/Th in Thermal-spectrum FFH
A8: 7 | B8: EG07 | C8: TRUE | D8: Once-through using natural-U fuel to very high burnup in thermal or fast EDS | E8: ADS for Breed and Burn with NU fuel
A9: 8 | B9: EG08 | C9: TRUE | D9: Once-through using Th fuel to very high burnup in fast EDS | E9: Breed and Burn U-233/Th in Fast-spectrum Fusion-Fission Hybrid (FFH)
A10: 9 | B10: EG09 | C10: TRUE | D10: Limited recycle of U/TRU with new natural-U fuel to very high burnup in fast critical reactors | E10: Breed and Burn TRU/U in SFR
A11: 10 | B11: EG10 | C11: TRUE | D11: Limited recycle of 233U/Th with new Th fuel in fast and/or thermal critical reactors | E11: Limited recycle of U-233/Th in MSR
A12: 11 | B12: EG11 | C12: TRUE | D12: Limited recycle of 233U/Th with new enriched-U/Th fuel in fast or thermal critical reactors | E12: Breed and Burn U-233/Th with LEU Support in SFR with Partial Separation
A13: 12 | B13: EG12 | C13: TRUE | D13: Limited recycle of U/Pu with new natural-U fuel in fast and/or thermal critical reactors | E13: Limited recycle of Pu/U from HWR in PWR
A14: 13 | B14: EG13 | C14: TRUE | D14: Limited recycle of U/Pu with new enriched-U fuel in thermal critical reactors | E14: Limited recycle of Pu/U from PWR in PWR burner
A15: 14 | B15: EG14 | C15: TRUE | D15: Limited recycle of U/Pu with new natural-U fuel in both fast and thermal critical reactors | E15: Limited recycle of U and Pu Bred in SFR in a PWR
A16: 15 | B16: EG15 | C16: TRUE | D16: Limited recycle of U/Pu with new enriched-U fuel in both fast and thermal critical reactors | E16: Limited recycle of Pu/U from PWR in SFR burner
A17: 16 | B17: EG16 | C17: TRUE | D17: Limited recycle of U/Pu with new enriched-U fuel in thermal critical reactors and fast EDS | E17: Limited recycle of Pu from PWR in ADS burner
A18: 17 | B18: EG17 | C18: TRUE | D18: Limited recycle of Pu/Th with new enriched-U/Th fuel in thermal critical reactors | E18: Limited recycle of Pu from PWR in an PWR burner fueled with Thorium
A19: 18 | B19: EG18 | C19: TRUE | D19: Limited recycle of 233U/Th with new enriched-U/Th fuel in thermal critical reactors | E19: Limited recycle of U-233/Th from PWR in a PWR burner
A20: 19 | B20: EG19 | C20: TRUE | D20: Continuous recycle of U/Pu with new natural-U fuel in thermal critical reactors | E20: Continuous recycle of Pu/U in HWR
A21: 20 | B21: EG20 | C21: TRUE | D21: Continuous recycle of U/TRU with new natural-U fuel in thermal critical reactors | E21: Continuous recycle of TRU/U in HWR
A22: 21 | B22: EG21 | C22: TRUE | D22: Continuous recycle of U/Pu with new enriched-U fuel in thermal critical reactors | E22: Continuous recycle of Pu/U in PWR
A23: 22 | B23: EG22 | C23: TRUE | D23: Continuous recycle of U/TRU with new enriched-U fuel in thermal critical reactors | E23: Continuous recycle of TRU/U in PWR
A24: 23 | B24: EG23 | C24: TRUE | D24: Continuous recycle of U/Pu with new natural-U fuel in fast critical reactors | E24: Continuous recycle of Pu/U in SFR
A25: 24 | B25: EG24 | C25: TRUE | D25: Continuous recycle of U/TRU with new natural-U fuel in fast critical reactors | E25: Continuous recycle of TRU/U in SFR
A26: 25 | B26: EG25 | C26: TRUE | D26: Continuous recycle of 233U/Th with new enriched-U/Th fuel in thermal critical reactors | E26: Continuous recycle of U-233/Th in PWR with LEU Support
A27: 26 | B27: EG26 | C27: TRUE | D27: Continuous recycle of 233U/Th with new Th fuel in thermal critical reactors | E27: Continuous recycle of U-233/Th in MSR
A28: 27 | B28: EG27 | C28: TRUE | D28: Continuous recycle of 233U/Th with new enriched-U/Th fuel in fast critical reactors | E28: Continuous recycle of U-233/Th in SFR with LEU Support
A29: 28 | B29: EG28 | C29: TRUE | D29: Continuous recycle of 233U/Th with new Th fuel in fast critical reactors | E29: Continuous recycle of U-233/Th in SFR
A30: 29 | B30: EG29 | C30: TRUE | D30: Continuous recycle of U/Pu with new natural-U fuel in both fast and thermal critical reactors | E30: Pu/U produced in SFR used to operate PWR in continuous recycle strategy
A31: 30 | B31: EG30 | C31: TRUE | D31: Continuous recycle of U/TRU with new natural-U fuel in both fast and thermal critical reactors | E31: TRU/U produced in SFR used to operate PWR in continuous recycle strategy
A32: 31 | B32: EG31 | C32: TRUE | D32: Continuous recycle of U/Pu with new enriched-U fuel in both fast and thermal critical reactors | E32: Continuous recycle of Pu/U from PWR in SFR burner
A33: 32 | B33: EG32 | C33: TRUE | D33: Continuous recycle of U/TRU with new enriched-U fuel in both fast and thermal critical reactors | E33: Continuous recycle of TRU/U from PWR in SFR burner
A34: 33 | B34: EG33 | C34: TRUE | D34: Continuous recycle of U/Pu with new natural-U fuel in both fast EDS and thermal critical reactors | E34: Pu/U produced in ADS used to operate PWR in continuous recycle strategy
A35: 34 | B35: EG34 | C35: TRUE | D35: Continuous recycle of U/TRU with new natural-U fuel in both fast EDS and thermal critical reactors | E35: TRU/U produced in ADS used to operate PWR in continuous recycle strategy
A36: 35 | B36: EG35 | C36: TRUE | D36: Continuous recycle of U/Pu with new enriched-U fuel in both thermal critical reactors and fast EDS | E36: Continuous recycle of Pu/U from PWR in ADS burner using IMF
A37: 36 | B37: EG36 | C37: TRUE | D37: Continuous recycle of U/TRU with new enriched-U fuel in both thermal critical reactors and fast EDS | E37: Continuous recycle of Pu/U in PWR and burning of Minor Actinides in ADS burner using IMF
A38: 37 | B38: EG37 | C38: TRUE | D38: Continuous recycle of 233U/Th with new enriched-U/Th fuel in both fast and thermal critical reactors | E38: Continuous Recycle of TRU/U from PWR in SFR and produce U-233/Th for recycle in Advanced PWR
A39: 38 | B39: EG38 | C39: TRUE | D39: Continuous recycle of 233U/Th with new Th fuel in both fast and thermal critical reactors | E39: Continuous Recycle of U-233/Th produced in SFR in PWR
A40: 39 | B40: EG39 | C40: TRUE | D40: Continuous recycle of 233U/Th with new enriched-U fuel in both thermal critical reactors and fast EDS | E40: Continuous Recycle of U-233 in PWRs and burn TRU in ADS
A41: 40 | B41: EG40 | C41: TRUE | D41: Continuous recycle of 233U/Th with new Th fuel in fast EDS and thermal critical reactors | E41: Produce U-233/Th in ADS and continuously recycle in PWR
A42: 41 | C42: FALSE
A43: 42 | C43: FALSE
A44: 43 | C44: FALSE
A45: 44 | C45: FALSE
A46: 45 | C46: FALSE
A47: 46
A48: 47
A49: 48
A50: 49
A51: 50
A52: 51
A53: 52
A54: 53
A55: 54
A56: 55
A57: 56
A58: 57
A59: 58
A60: 59
A61: 60
A62: 61
A63: 62
A64: 63
A65: 64
A66: 65
A67: 66
A68: 67
A69: 68
A70: 69
A71: 70
A72: 71
A73: 72
A74: 73
A75: 74
A76: 75
A77: 76
A78: 77
A79: 78
A80: 79
A81: 80
A82: 81
A83: 82
A84: 83
A85: 84
A86: 85
A87: 86
A88: 87
A89: 88
A90: 89
A91: 90
A92: 91
A93: 92
A94: 93
A95: 94
A96: 95
A97: 96
A98: 97
A99: 98
A100: 99
A101: 100
A102: 101
A103: 102
A104: 103
A105: 104
A106: 105
A107: 106
A108: 107
A109: 108
A110: 109
A111: 110
A112: 111
A113: 112
A114: 113
A115: 114
A116: 115
A117: 116
A118: 117
A119: 118
A120: 119
A121: 120
A122: 121
A123: 122
A124: 123
A125: 124
A126: 125
A127: 126
A128: 127
A129: 128
A130: 129
A131: 130
A132: 131
A133: 132
A134: 133
A135: 134
A136: 135
A137: 136
A138: 137
A139: 138
A140: 139
A141: 140
A142: 141
A143: 142
A144: 143
A145: 144
A146: 145
A147: 146
A148: 147
A149: 148
A150: 149
A151: 150
A400: TRUE | B400: =COUNTBLANK(B42:B46) -> 5 | C400: =COUNTIF(C2:C151,"=FALSE")-B400 -> 0
A401: FALSE

Sheet 2-Goals_Criteria (hidden)
A1: Criteria Index | B1: Criteria Names | D1: Associated Criteria Index for Each Metric | E1: Metric Index | F1: Metric Names | G1: Metric Trade-off Factor (within each crit) | H1: Associated Criteria Number
A2: 1 | B2: Development and Deployment Risk | C2: =OFFSET(Scenarios!E4,0,($A$40-1)*2) -> 0 | D2: 1 | E2: 1 | F2: Development time (not used by itself, but in combination with dev cost) | G2: =OFFSET(Scenarios!F4,0,($A$40-1)*2) -> 0 | H2: =D2 -> 1 | L2: 1
A3: 2 | B3: Institutional Issues | C3: =OFFSET(Scenarios!E11,0,($A$40-1)*2) -> 0 | D3: 1 | E3: 2 | F3: Development cost (not used by itself, but in combination with dev time) | G3: =OFFSET(Scenarios!F5,0,($A$40-1)*2) -> 0 | H3: =D3 -> 1 | L3: 2
A4: 3 | B4: Financial Risk & Economics | C4: =OFFSET(Scenarios!E14,0,($A$40-1)*2) -> 0 | D4: 1 | E4: 3 | F4: Development time and cost (not a metric, but a combination of 2 metrics) | G4: =OFFSET(Scenarios!F6,0,($A$40-1)*2) -> 0.5 | H4: =D4 -> 1 | L4: 3
A5: 4 | B5: Environmental Impact | C5: =OFFSET(Scenarios!E15,0,($A$40-1)*2) -> 0.25 | D5: 1 | E5: 4 | F5: Deployment cost from prototypic validation to FOAK commercial | G5: =OFFSET(Scenarios!F7,0,($A$40-1)*2) -> 0.25 | H5: 1 | L5: 4
A6: 5 | B6: Nuclear Waste Management | C6: =OFFSET(Scenarios!E19,0,($A$40-1)*2) -> 0.25 | D6: 1 | E6: 5 | F6: Compatibility with the existing infrastructure | G6: =OFFSET(Scenarios!F8,0,($A$40-1)*2) -> 0.1 | H6: 1 | L6: 5
A7: 6 | B7: Proliferation Risk | C7: 0 | D7: 1 | E7: 6 | F7: Existence of regulations for the fuel cycle and familiarity with licensing | G7: =OFFSET(Scenarios!F9,0,($A$40-1)*2) -> 0.1 | H7: 1 | L7: 6
A8: 7 | B8: Nuclear Material Security Risk | C8: 0 | D8: 1 | E8: 7 | F8: Existence of market incentives and/or barriers to commercial implementation | G8: =OFFSET(Scenarios!F10,0,($A$40-1)*2) -> 0.05 | H8: 1 | L8: 7
A9: 8 | B9: Resource Utilization | C9: =OFFSET(Scenarios!E27,0,($A$40-1)*2) -> 0.25 | D9: 2 | E9: 8 | F9: Compatibility with the existing infrastructure | G9: =OFFSET(Scenarios!F11,0,($A$40-1)*2) -> 0 | H9: 2 | L9: 8
A10: 9 | B10: Safety | C10: =OFFSET(Scenarios!E29,0,($A$40-1)*2) -> 0.25 | D10: 2 | E10: 9 | F10: Existence of regulations for the fuel cycle and familiarity with licensing | G10: =OFFSET(Scenarios!F12,0,($A$40-1)*2) -> 0 | H10: 2 | L10: 9
A11: 10 | D11: 2 | E11: 10 | F11: Existence of market incentives and/or barriers to commercial implementation | G11: =OFFSET(Scenarios!F13,0,($A$40-1)*2) -> 0 | H11: 2 | L11: 10
A12: 11 | D12: 3 | E12: 11 | F12: Levelized Cost of Electricity at Equilibrium | G12: =OFFSET(Scenarios!F14,0,($A$40-1)*2) -> 0 | H12: 3
A13: 12 | D13: 4 | E13: 12 | F13: Land Use per energy generated | G13: =OFFSET(Scenarios!F15,0,($A$40-1)*2) -> 0.25 | H13: 4
A14: 13 | D14: 4 | E14: 13 | F14: Water Use per energy generated | G14: =OFFSET(Scenarios!F16,0,($A$40-1)*2) -> 0.25 | H14: 4
A15: 14 | D15: 4 | E15: 14 | F15: Carbon emission - CO2 released per energy generated | G15: =OFFSET(Scenarios!F17,0,($A$40-1)*2) -> 0.25 | H15: 4
A16: 15 | D16: 4 | E16: 15 | F16: Radiological exposure - total estimated worker dose per energy generated | G16: =OFFSET(Scenarios!F18,0,($A$40-1)*2) -> 0.25 | H16: 4
A17: 16 | D17: 5 | E17: 16 | F17: Mass of SNF+HLW disposed per energy generated | G17: =OFFSET(Scenarios!F19,0,($A$40-1)*2) -> 0.5 | H17: 5
A18: 17 | D18: 5 | E18: 17 | F18: Activity of SNF+HLW (@100 years) per energy generated | G18: =OFFSET(Scenarios!F20,0,($A$40-1)*2) -> 0.1 | H18: 5
A19: 18 | D19: 5 | E19: 18 | F19: Activity of SNF+HLW (@100,000 years) per energy generated | G19: =OFFSET(Scenarios!F21,0,($A$40-1)*2) -> 0.1 | H19: 5
A20: 19 | D20: 5 | E20: 19 | F20: Mass of DU+RU+RTh disposed per energy generated | G20: =OFFSET(Scenarios!F22,0,($A$40-1)*2) -> 0.15 | H20: 5
A21: 20 | D21: 5 | E21: 20 | F21: Volume of LLW per energy generated | G21: =OFFSET(Scenarios!F23,0,($A$40-1)*2) -> 0.15 | H21: 5
D22: 6 | E22: 21 | F22: Material Attractiveness - Normal Operating Conditions | G22: =OFFSET(Scenarios!F24,0,($A$40-1)*2) -> 0 | H22: 6
D23: 7 | E23: 22 | F23: Material Attractiveness - Normal Operating Conditions | G23: =OFFSET(Scenarios!F25,0,($A$40-1)*2) -> 0 | H23: 7
D24: 7 | E24: 23 | F24: Activity of SNF+HLW (@10 years) per energy generated | G24: =OFFSET(Scenarios!F26,0,($A$40-1)*2) -> 0 | H24: 7
D25: 8 | E25: 24 | F25: Natural Uranium required per energy generated | G25: =OFFSET(Scenarios!F27,0,($A$40-1)*2) -> 0.8 | H25: 8
D26: 8 | E26: 25 | F26: Natural Thorium required per energy generated | G26: =OFFSET(Scenarios!F28,0,($A$40-1)*2) -> 0.2 | H26: 8
D27: 9 | E27: 26 | F27: Challenges of addressing safety hazards | G27: =OFFSET(Scenarios!F29,0,($A$40-1)*2) -> 1 | H27: 9
D28: 9 | E28: 27 | F28: Safety of the deployed system | G28: =OFFSET(Scenarios!F30,0,($A$40-1)*2) -> 0 | H28: 9
E29: 28
E30: 29
E31: 30
E32: 31
E33: 32
E34: 33
E35: 34
E36: 35
E37: 36
E38: 37
E39: 38
A40: 1 | E40: 39
E41: 40

Sheet BLweights (hidden)
A1: 1. Development time | B1: 0
A2: 2. Development cost | B2: 0
A3: 1 & 2. Development time and cost | B3: 0.25
A4: 3. Deployment cost from prototypic validation to FOAK commercial | B4: 0.45
A5: 4. Compatibility with existing infrastructure | B5: 0.1
A6: 5. Existence of regulations for the fuel cycle and familiarity with licensing | B6: 0.05
A7: 6. Existence of market incentives and/or barriers to commercial implementation of fuel cycle processes | B7: 0.15
A8: 4. Compatibility with existing infrastructure | B8: 0.35
A9: 5. Existence of regulations for the fuel cycle and familiarity with licensing | B9: 0.15
A10: 6. Existence of market incentives and/or barriers to commercial implementation of fuel cycle processes | B10: 0.5
A11: 7. Land Use per energy generated | B11: 0.2
A12: 8. Water Use per energy generated | B12: 0.3
A13: 9. Carbon emission - CO2 released per energy generated | B13: 0.15
A14: 10. Radiological exposure - total estimated worker dose per energy generated (as leading indicator for public dose potential) | B14: 0.35
A15: 12. Mass of SNF+HLW disposed per energy generated | B15: 0.2
A16: 13. Activity of SNF+HLW (@100 years) per energy generated | B16: 0.15
A17: 14. Activity of SNF+HLW (@100,000 years) per energy generated | B17: 0.5
A18: 15. Mass of DU+RU+RTh disposed per energy generated | B18: 0.1
A19: 16. Volume of LLW per energy generated | B19: 0.05
A20: 17. Maximum FOM1 (nominal fuel cycle material) | B20: 0.5
A21: 18. Maximum FOM1 (material with mis-use of technology included in the fuel cycle) | B21: 0
A22: 19. Maximum FOM1 (material with clandestine use of any technology) | B22: 0.5
A23: 20. Ease of Obtaining Attractive Materials | B23: 0
A24: 17. Maximum FOM1 (nominal fuel cycle material) | B24: 0.6
A25: 21. Activity of SNF+HLW (@10 years) per energy generated | B25: 0.4
A26: 22. Natural Uranium required per energy generated | B26: 0.5
A27: 23. Natural Thorium required per energy generated | B27: 0.5
A28: 24. Challenges of addressing safety hazards | B28: 0.5
A29: 25. Safety of the deployed system | B29: 0.5

Sheet Metric_Utility_f (hidden)
GA1: FALSE
A2: =Y7 -> 1 | AB2: The "Data Range" is stored below in this table for each of the metrics | AY2: The Utility Function y values are stored below in this table for each of the metrics
A3: Metric Index #: | B3: =Y7 -> 1 | C3: =INDEX('2-Goals_Criteria'!E2:F41,MATCH(Metric_Utility_f!B3,'2-Goals_Criteria'!E2:E41,0),2) -> Development time (not used by itself, but in combination with dev cost) | AB3: 28 | AC3: 29 | AD3: 30 | AE3: 31 | AF3: 32 | AG3: 33 | AH3: 34 | AI3: 35 | AJ3: 36 | AK3: 37 | AL3: 38 | AM3: 39 | AN3: 40 | AO3: 41 | AP3: 42 | AQ3: 43 | AR3: 44 | AS3: 45 | AT3: 46 | AU3: 47 | AV3: 48 | AW3: 49 | AX3: 50 | AY3: 51 | AZ3: 52 | BA3: 53 | BB3: 54 | BC3: 55 | BD3: 56 | BE3: 57 | BF3: 58 | BG3: 59 | BH3: 60 | BI3: 61 | BJ3: 62 | BK3: 63 | BL3: 64 | BM3: 65 | BN3: 66 | BO3: 67 | BP3: 68 | BQ3: 69 | BR3: 70 | BS3: 71 | BT3: 72 | BU3: 73 | BV3: 74 | BW3: 75 | BX3: 76 | BY3: 77 | BZ3: 78 | CA3: 79 | CB3: 80 | CC3: 81 | CD3: 82 | CE3: 83 | CF3: 84 | CG3: 85 | CH3: 86 | CI3: 87 | CJ3: 88 | CK3: 89 | CL3: 90 | CM3: 91 | CN3: 92 | CO3: 93 | CP3: 94 | CQ3: 95 | CR3: 96 | CS3: 97 | CT3: 98 | CU3: 99 | CV3: 100 | CW3: 101 | CX3: 102 | CY3: 103 | CZ3: 104 | DA3: 105 | DB3: 106 | DC3: 107 | DD3: 108 | DE3: 109 | DF3: 110 | DG3: 111 | DH3: 112 | DI3: 113 | DJ3: 114 | DK3: 115 | DL3: 116 | DM3: 117 | DN3: 118 | DO3: 119 | DP3: 120 | DQ3: 121 | DR3: 122 | DS3: 123 | DT3: 124 | DU3: 125 | DV3: 126 | DW3: 127 | DX3: 128 | DY3: 129 | DZ3: 130 | EA3: 131 | EB3: 132 | EC3: 133 | ED3: 134 | EE3: 135 | EF3: 136 | EG3: 137 | EH3: 138 | EI3: 139 | EJ3: 140 | EL3: 2
AA4: Metric | AB4: Metric data | AD4: Data Set 1 | AW4: Units | AX4: Utility curve | BT4: Polarity | BU4: Data Type | BV4: S-Curve # | BW4: Qualitative Text | CR4: Score as: | CS4: Definitions: | DN4: # of VF | DP4: Utility curve x values
X5: current column | Y5: 22 | AA5: 1 | AB5: -1 | AC5: -0.9 | AD5: -0.8 | AE5: -0.7 | AF5: -0.6 | AG5: -0.5 | AH5: -0.4 | AI5: -0.3 | AJ5: -0.2 | AK5: -0.1 | AL5: 0 | AM5: 0.1 | AN5: 0.2 | AO5: 0.3 | AP5: 0.4 | AQ5: 0.5 | AR5: 0.6 | AS5: 0.7 | AT5: 0.8 | AU5: 0.9 | AV5: 1 | AX5: Custom | AY5: 0 | AZ5: 0 | BA5: 0 | BB5: 0.5 | BC5: 0.5 | BD5: 0.5 | BE5: 0.7667 | BF5: 0.7667 | BG5: 0.7667 | BH5: 0.9 | BI5: 0.9 | BJ5: 0.9 | BK5: 0.9667 | BL5: 0.9667 | BM5: 0.9667 | BN5: 1 | BO5: 1 | BP5: 1 | BQ5: 1 | BR5: 1 | BS5: 1 | BT5: 1 | BU5: 2 | BW5: >50 yrs | BZ5: 25 - 50 yrs | CC5: 10 - 25 yrs | CF5: 5 - 10 yrs | CI5: < 5yrs | CL5: No Development Needed | CR5: 1 | CS5: Very significant R&D required that may require significant technical breakthroughs, new discoveries or extended research, development of long-lead time laboratory experiments before engineering/pilot demonstration. Estimated development time is greater than 50 years | CV5: Significant R&D required that may require more fundamental development at laboratory scale before developing capabilities that can be demonstrated at engineering/pilot scale. Estimated development time is 25-50 years | CY5: R&D required that requires extended development time to arrive at a workable capability and demonstration at the engineering/pilot scale. Estimated development time is 10-25 years | DB5: R&D required, but many of the required capabilities are either already demonstrated or nearly demonstrated. Additional engineering/pilot scale in the near term likely using existing facilities or based on historical experience. Example may be the qualification of a well-established fuel. Estimated development time is 5-10 years | DE5: R&D required, but most of the required capabilities already demonstrated and any additional R&D is limited in scope and can be supported with existing facilities with little or no modifications. Estimated development time is less than 5 years | DH5: No R&D needed. Technology is already at TRL 6 or beyond. Development time is 0 years. | DN5: 2 | DP5: -1 | DQ5: -0.9 | DR5: -0.75 | DS5: -0.74 | DT5: -0.6 | DU5: -0.45 | DV5: -0.44 | DW5: -0.3 | DX5: -0.15 | DY5: -0.14 | DZ5: 0 | EA5: 0.15 | EB5: 0.16 | EC5: 0.3 | ED5: 0.45 | EE5: 0.46 | EF5: 0.6 | EG5: 0.7 | EH5: 0.8 | EI5: 0.9 | EJ5: 1
X6: Polarity | Y6: 1 | AA6: 2 | AB6: -1 | AC6: -0.9 | AD6: -0.8 | AE6: -0.7 | AF6: -0.6 | AG6: -0.5 | AH6: -0.4 | AI6: -0.3 | AJ6: -0.2 | AK6: -0.1 | AL6: 0 | AM6: 0.1 | AN6: 0.2 | AO6: 0.3 | AP6: 0.4 | AQ6: 0.5 | AR6: 0.6 | AS6: 0.7 | AT6: 0.8 | AU6: 0.9 | AV6: 1 | AX6: Linear High | AY6: 0 | AZ6: 0 | BA6: 0 | BB6: 0.5333 | BC6: 0.5333 | BD6: 0.5333 | BE6: 0.84 | BF6: 0.84 | BG6: 0.84 | BH6: 0.9707 | BI6: 0.9707 | BJ6: 0.9707 | BK6: 0.997 | BL6: 0.997 | BM6: 0.997 | BN6: 1 | BO6: 1 | BP6: 1 | BQ6: 1 | BR6: 1 | BS6: 1 | BT6: 1 | BU6: 2 | BW6: > $25B | BZ6: $10B - $25B | CC6: $2B - $10B | CF6: $200M - $2B | CI6: < $200M | CL6: No Development Needed | CR6: 1 | CS6: Very significant R&D required including construction of many new facilities to provide an engineering/pilot scale demonstration of several components of the fuel cycle. May require more than one scale of facility development for particular fuel cycle components. Development cost expected to be greater than $25 billion | CV6: Significant R&D required including construction of several nuclear facilities to provide a engineering/pilot scale demonstration of several components of a fuel cycle. Alternatively, the scale of the facilities required for engineering/pilot scale demonstration is large and results in significantly increased cost. Development costs expected to be between $10 billion and $25 billion | CY6: R&D required including construction of a major nuclear facility to provide a engineering/pilot scale demonstration of one component of a fuel cycle. Development costs expected to be between $2 billion and $10 billion | DB6: R&D required, but can primarily be performed without significant investment in new major nuclear facilities for engineering/pilot scale demonstration. May, for example, just require modification of existing facilities. Development costs expected to be between $200 million and $2 billion. | DE6: R&D required but is limited in scope and can be supported with existing facilities with little or no modifications. Development costs expected to be less than $200 million | DH6: No R&D needed. Technology is already at TRL 6 or beyond. Development cost is $0. | DN6: 2 | DP6: -1 | DQ6: -0.9 | DR6: -0.75 | DS6: -0.74 | DT6: -0.6 | DU6: -0.45 | DV6: -0.44 | DW6: -0.3 | DX6: -0.15 | DY6: -0.14 | DZ6: 0 | EA6: 0.15 | EB6: 0.16 | EC6: 0.3 | ED6: 0.45 | EE6: 0.46 | EF6: 0.6 | EG6: 0.7 | EH6: 0.8 | EI6: 0.9 | EJ6: 1
X7: current Metric | Y7: 1 | AA7: 3 | AB7: 0 | AC7: 0 | AD7: 0.2666666667 | AE7: 0.4088888889 | AF7: 0.42 | AG7: 0.48 | AH7: 0.4853333333 | AI7: 0.4986666667 | AJ7: 0.5155555556 | AK7: 0.644 | AL7: 0.7441777778 | AM7: 0.756 | AN7: 0.7646222222 | AO7: 0.812 | AP7: 0.8736 | AQ7: 0.8976 | AR7: 0.9383111111 | AS7: 0.9640888889 | AT7: 0.9666666667 | AU7: 0.9973333333 | AV7: 1 | AX7: Custom | AY7: 0 | AZ7: 0 | BA7: 0.2666666667 | BB7: 0.4088888889 | BC7: 0.42 | BD7: 0.48 | BE7: 0.4853333333 | BF7: 0.4986666667 | BG7: 0.5155555556 | BH7: 0.644 | BI7: 0.7441777778 | BJ7: 0.756 | BK7: 0.7646222222 | BL7: 0.812 | BM7: 0.8736 | BN7: 0.8976 | BO7: 0.9383111111 | BP7: 0.9640888889 | BQ7: 0.9666666667 | BR7: 0.9973333333 | BS7: 1 | BT7: 1 | BU7: 1 | DN7: 2 | DP7: -1 | DQ7: -0.9 | DR7: -0.8 | DS7: -0.7 | DT7: -0.6 | DU7: -0.5 | DV7: -0.4 | DW7: -0.3 | DX7: -0.2 | DY7: -0.1 | DZ7: 0 | EA7: 0.1 | EB7: 0.2 | EC7: 0.3 | ED7: 0.4 | EE7: 0.5 | EF7: 0.6 | EG7: 0.7 | EH7: 0.8 | EI7: 0.9 | EJ7: 1
X8: Data Type | Y8: 2 | AA8: 4 | AB8: -1 | AC8: -0.9 | AD8: -0.8 | AE8: -0.7 | AF8: -0.6 | AG8: -0.5 | AH8: -0.4 | AI8: -0.3 | AJ8: -0.2 | AK8: -0.1 | AL8: 0 | AM8: 0.1 | AN8: 0.2 | AO8: 0.3 | AP8: 0.4 | AQ8: 0.5 | AR8: 0.6 | AS8: 0.7 | AT8: 0.8 | AU8: 0.9 | AV8: 1 | AX8: Custom | AY8: 0 | AZ8: 0 | BA8: 0 | BB8: 0.5 | BC8: 0.5 | BD8: 0.5 | BE8: 0.77 | BF8: 0.77 | BG8: 0.77 | BH8: 0.92 | BI8: 0.92 | BJ8: 0.92 | BK8: 0.99 | BL8: 0.99 | BM8: 0.99 | BN8: 1 | BO8: 1 | BP8: 1 | BQ8: 1 | BR8: 1 | BS8: 1 | BT8: 1 | BU8: 2 | BW8: > $50B | BZ8: $25B to $50B | CC8: $10B to $25B | CF8: $2B to $10B | CI8: <$2B | CL8: No FOAK Needed | CR8: 1 | CS8: Deployment of a first-of-a-kind (FOAK) commercial system represents a very significant effort to move from engineering/pilot scale to FOAK system that may include several large-scale nuclear facilities that require several stages of deployment representing additional scales of facilities needed to achieve FOAK. Estimated cost to go from an engineering/pilot scale system to FOAK is over $50 billion | CV8: Deployment of a first-of-a-kind (FOAK) commercial system represents a significant effort to move from engineering/pilot scale to first-of-a-kind commercial system (FOAK) that may include several large-scale nuclear facilities. Estimated cost to go from an engineering/pilot scale system to FOAK is between $25 billion and $50 billion | CY8: Deployment of FOAK represents a single large-scale nuclear facility or several medium-scale nuclear facilities. Estimated cost to go from an engineering/pilot scale system to FOAK is between $10 billion and $25 billion | DB8: Deployment of FOAK represents a single nuclear facility or a few small-scale nuclear facilities. Estimated costs to go from an engineering/pilot scale system to FOAK is between $2 billion and $10 billion | DE8: Deployment of FOAK may, for example, require small-scale nuclear facility or modifications to existing nuclear facility. Estimated cost to go from an engineering/pilot scale system to FOAK is less than $2 billion | DH8: Technology already has a FOAK (or beyond) deployment. FOAK deployment cost is $0. | DN8: 2 | DP8: -1 | DQ8: -0.9 | DR8: -0.75 | DS8: -0.74 | DT8: -0.6 | DU8: -0.45 | DV8: -0.44 | DW8: -0.3 | DX8: -0.15 | DY8: -0.14 | DZ8: 0 | EA8: 0.15 | EB8: 0.16 | EC8: 0.3 | ED8: 0.45 | EE8: 0.46 | EF8: 0.6 | EG8: 0.7 | EH8: 0.8 | EI8: 0.9 | EJ8: 1
X9: Score as | Y9: 1 | AA9: 5 | AB9: -1 | AC9: -0.9 | AD9: -0.8 | AE9: -0.7 | AF9: -0.6 | AG9: -0.5 | AH9: -0.4 | AI9: -0.3 | AJ9: -0.2 | AK9: -0.1 | AL9: 0 | AM9: 0.1 | AN9: 0.2 | AO9: 0.3 | AP9: 0.4 | AQ9: 0.5 | AR9: 0.6 | AS9: 0.7 | AT9: 0.8 | AU9: 0.9 | AV9: 1 | AX9: Custom | AY9: 0 | AZ9: 0 | BA9: 0 | BB9: 0.5 | BC9: 0.5 | BD9: 0.5 | BE9: 0.9 | BF9: 0.9 | BG9: 0.9 | BH9: 1 | BI9: 1 | BJ9: 1 | BK9: 1 | BL9: 1 | BM9: 1 | BN9: 1 | BO9: 1 | BP9: 1 | BQ9: 1 | BR9: 1 | BS9: 1 | BT9: 1 | BU9: 2 | BW9: Incompatible - <10% | BZ9: Partly Compatible - < 50% but > 10% | CC9: Mostly Compatible - > 50% but < 90% | CF9: Compatible - >90% | CR9: 1 | CS9: The fuel cycle option utilizes few or none of the components of the existing infrastructure and requires mostly new infrastructure components for deployment. Estimate is that less than 10% of the required infrastructure can be based on existing infrastructure | CV9: The fuel cycle option utilizes some components of the existing infrastructure and requires mostly additional infrastructure components. Estimate is that less than 50% (but more than 10%) of the required infrastructure will be based on existing infrastructure | CY9: The fuel cycle option utilizes most components of the existing infrastructure and may require some additional infrastructure components. The fuel cycle option utilizes mostly components of the existing infrastructure and may require some additional infrastructure components. Estimate is that more than 50% (but less than 90%) of the required infrastructure can be based on existing infrastructure | DB9: The fuel cycle option fully utilizes the existing infrastructure as represented by the fuel cycle basis for comparison, needing very little additional infrastructure to deploy the fuel cycle. Estimate is that 90% or more of the required infrastructure can be based on existing infrastructure | DN9: 2 | DP9: -1 | DQ9: -0.9 | DR9: -0.75 | DS9: -0.74 | DT9: -0.6 | DU9: -0.45 | DV9: -0.44 | DW9: -0.3 | DX9: -0.15 | DY9: -0.14 | DZ9: 0 | EA9: 0.15 | EB9: 0.16 | EC9: 0.3 | ED9: 0.4 | EE9: 0.5 | EF9: 0.6 | EG9: 0.7 | EH9: 0.8 | EI9: 0.9 | EJ9: 1
X10: Criteria | Y10: =INDEX('2-Goals_Criteria'!A2:B21,MATCH(Y11,'2-Goals_Criteria'!A2:A21,0),2) -> Development and Deployment Risk | AA10: 6 | AB10: -1 | AC10: -0.9 | AD10: -0.8 | AE10: -0.7 | AF10: -0.6 | AG10: -0.5 | AH10: -0.4 | AI10: -0.3 | AJ10: -0.2 | AK10: -0.1 | AL10: 0 | AM10: 0.1 | AN10: 0.2 | AO10: 0.3 | AP10: 0.4 | AQ10: 0.5 | AR10: 0.6 | AS10: 0.7 | AT10: 0.8 | AU10: 0.9 | AV10: 1 | AX10: Custom | AY10: 0 | AZ10: 0 | BA10: 0 | BB10: 0.3 | BC10: 0.3 | BD10: 0.3 | BE10: 0.8 | BF10: 0.8 | BG10: 0.8 | BH10: 1 | BI10: 1 | BJ10: 1 | BK10: 1 | BL10: 1 | BM10: 1 | BN10: 1 | BO10: 1 | BP10: 1 | BQ10: 1 | BR10: 1 | BS10: 1 | BT10: 1 | BU10: 2 | BW10: No regulations/ familiarity | BZ10: Non-U.S. Regulations/ Familiarity exists | CC10: U.S. Regulations/ Familiarity exist but not applied | CF10: U.S. Regulations/ Familiarity exists and applied | CR10: 1 | CS10: No regulatory experience exists for key fuel cycle facility types and use | CV10: No U.S. regulatory experience for fuel cycle facility types and use, but international regulatory experience exists through licensing of operating facilities | CY10: U.S. Regulations and regulatory experience exists for fuel cycle facility types but have not been demonstrated through issuing operating licenses. Regulatory authorities have some previous experience with key fuel cycle components, but may not have licensed these facility types | DB10: U.S. Regulations and regulatory experience exists for fuel cycle facility types that have been demonstrated through issuing operating licenses | DN10: 1 | DP10: -1 | DQ10: -0.9 | DR10: -0.75 | DS10: -0.74 | DT10: -0.6 | DU10: -0.45 | DV10: -0.44 | DW10: -0.3 | DX10: -0.15 | DY10: -0.14 | DZ10: 0 | EA10: 0.15 | EB10: 0.16 | EC10: 0.3 | ED10: 0.4 | EE10: 0.5 | EF10: 0.6 | EG10: 0.7 | EH10: 0.8 | EI10: 0.9 | EJ10: 1
X11: Criteria # | Y11: 1 | AA11: 7 | AB11: -1 | AC11: -0.9 | AD11: -0.8 | AE11: -0.7 | AF11: -0.6 | AG11: -0.5 | AH11: -0.4 | AI11: -0.3 | AJ11: -0.2 | AK11: -0.1 | AL11: 0 | AM11: 0.1 | AN11: 0.2 | AO11: 0.3 | AP11: 0.4 | AQ11: 0.5 | AR11: 0.6 | AS11: 0.7 | AT11: 0.8 | AU11: 0.9 | AV11: 1 | AX11: Custom | AY11: 0 | AZ11: 0 | BA11: 0 | BB11: 0 | BC11: 0 | BD11: 0 | BE11: 0.1 | BF11: 0.1 | BG11: 0.1 | BH11: 0.5 | BI11: 0.5 | BJ11: 0.5 | BK11: 0.9 | BL11: 0.9 | BM11: 0.9 | BN11: 1 | BO11: 1 | BP11: 1 | BQ11: 1 | BR11: 1 | BS11: 1 | BT11: 1 | BU11: 2 | BZ11: Markets weak; Significant capital risk; Requires significant government investment | CC11: Markets weak; Requires government investment | CF11: Markets weak; No government investment | CI11: Markets exist; Some capital risk | CL11: Markets exist; Low capital risk; Incentives in place | CR11: 1 | CV11: The fuel cycle type exhibits challenges with respect to the magnitude of capital investment required and payback prospects and is weakened significantly from disincentives related to capital at risk. | CY11: The fuel cycle type exhibits challenges with respect to the magnitude of capital investment required and payback prospects. While incentives exist, the fuel cycle type, on balance, is weakened from disincentives related to capital at risk. | DB11: The fuel cycle type is neutral with respect to the magnitude of capital investment required and payback prospects, exhibiting off-setting incentives and disincentives. | DE11: The fuel cycle type exhibits promise with respect to the magnitude of capital investment required and payback prospects. Although disincentives exist, the fuel cycle type, on balance, benefits from incentives related to capital at risk. | DH11: The fuel cycle type exhibits promise with respect to the magnitude of capital investment required and payback prospects and benefits significantly from incentives related to capital at risk. | DN11: 1 | DP11: -1 | DQ11: -0.9 | DR11: -0.8 | DS11: -0.7 | DT11: -0.6 | DU11: -0.45 | DV11: -0.44 | DW11: -0.3 | DX11: -0.15 | DY11: -0.14 | DZ11: 0 | EA11: 0.15 | EB11: 0.16 | EC11: 0.3 | ED11: 0.45 | EE11: 0.46 | EF11: 0.6 | EG11: 0.7 | EH11: 0.8 | EI11: 0.9 | EJ11: 1
X12: current y value | Y12: =OFFSET(B23,0,Y5-2) -> 1 | AA12: 8 | AB12: -1 | AC12: -0.9 | AD12: -0.8 | AE12: -0.7 | AF12: -0.6 | AG12: -0.5 | AH12: -0.4 | AI12: -0.3 | AJ12: -0.2 | AK12: -0.1 | AL12: 0 | AM12: 0.1 | AN12: 0.2 | AO12: 0.3 | AP12: 0.4 | AQ12: 0.5 | AR12: 0.6 | AS12: 0.7 | AT12: 0.8 | AU12: 0.9 | AV12: 1 | AX12: Custom | AY12: 0 | AZ12: 0 | BA12: 0 | BB12: 0.5 | BC12: 0.5 | BD12: 0.5 | BE12: 0.9 | BF12: 0.9 | BG12: 0.9 | BH12: 1 | BI12: 1 | BJ12: 1 | BK12: 1 | BL12: 1 | BM12: 1 | BN12: 1 | BO12: 1 | BP12: 1 | BQ12: 1 | BR12: 1 | BS12: 1 | BT12: 1 | BU12: 2 | BW12: Incompatible - <10% | BZ12: Partly Compatible - < 50% but > 10% | CC12: Mostly Compatible - > 50% but < 90% | CF12: Compatible - >90% | CR12: 1 | CS12: The fuel cycle option utilizes few or none of the components of the existing infrastructure and requires mostly new infrastructure components for deployment. Estimate is that less than 10% of the required infrastructure can be based on existing infrastructure | CV12: The fuel cycle option utilizes some components of the existing infrastructure and requires mostly additional infrastructure components. Estimate is that less than 50% (but more than 10%) of the required infrastructure will be based on existing infrastructure | CY12: The fuel cycle option utilizes most components of the existing infrastructure and may require some additional infrastructure components. The fuel cycle option utilizes mostly components of the existing infrastructure and may require some additional infrastructure components. Estimate is that more than 50% (but less than 90%) of the required infrastructure can be based on existing infrastructure | DB12: The fuel cycle option fully utilizes the existing infrastructure as represented by the fuel cycle basis for comparison, needing very little additional infrastructure to deploy the fuel cycle. Estimate is that 90% or more of the required infrastructure can be based on existing infrastructure | DN12: 2 | DP12: -1 | DQ12: -0.9 | DR12: -0.75 | DS12: -0.74 | DT12: -0.6 | DU12: -0.45 | DV12: -0.44 | DW12: -0.3 | DX12: -0.15 | DY12: -0.14 | DZ12: 0 | EA12: 0.15 | EB12: 0.16 | EC12: 0.3 | ED12: 0.4 | EE12: 0.5 | EF12: 0.6 | EG12: 0.7 | EH12: 0.8 | EI12: 0.9 | EJ12: 1
X13: curr data set | Y13: 1 | AA13: 9 | AB13: -1 | AC13: -0.9 | AD13: -0.8 | AE13: -0.7 | AF13: -0.6 | AG13: -0.5 | AH13: -0.4 | AI13: -0.3 | AJ13: -0.2 | AK13: -0.1 | AL13: 0 | AM13: 0.1 | AN13: 0.2 | AO13: 0.3 | AP13: 0.4 | AQ13: 0.5 | AR13: 0.6 | AS13: 0.7 | AT13: 0.8 | AU13: 0.9 | AV13: 1 | AX13: Custom | AY13: 0 | AZ13: 0 | BA13: 0 | BB13: 0.3 | BC13: 0.3 | BD13: 0.3 | BE13: 0.8 | BF13: 0.8 | BG13: 0.8 | BH13: 1 | BI13: 1 | BJ13: 1 | BK13: 1 | BL13: 1 | BM13: 1 | BN13: 1 | BO13: 1 | BP13: 1 | BQ13: 1 | BR13: 1 | BS13: 1 | BT13: 1 | BU13: 2 | BW13: No regulations/ familiarity | BZ13: Non-U.S. Regulations/ Familiarity exists | CC13: U.S. Regulations/ Familiarity exist but not applied | CF13: U.S. Regulations/ Familiarity exists and applied | CR13: 1 | CS13: No regulatory experience exists for key fuel cycle facility types and use | CV13: No U.S. regulatory experience for fuel cycle facility types and use, but international regulatory experience exists through licensing of operating facilities | CY13: U.S. Regulations and regulatory experience exists for fuel cycle facility types but have not been demonstrated through issuing operating licenses. Regulatory authorities have some previous experience with key fuel cycle components, but may not have licensed these facility types | DB13: U.S. Regulations and regulatory experience exists for fuel cycle facility types that have been demonstrated through issuing operating licenses | DN13: 1 | DP13: -1 | DQ13: -0.9 | DR13: -0.75 | DS13: -0.74 | DT13: -0.6 | DU13: -0.45 | DV13: -0.44 | DW13: -0.3 | DX13: -0.15 | DY13: -0.14 | DZ13: 0 | EA13: 0.15 | EB13: 0.16 | EC13: 0.3 | ED13: 0.4 | EE13: 0.5 | EF13: 0.6 | EG13: 0.7 | EH13: 0.8 | EI13: 0.9 | EJ13: 1
AA14: 10 | AB14: -1 | AC14: -0.9 | AD14: -0.8 | AE14: -0.7 | AF14: -0.6 | AG14: -0.5 | AH14: -0.4 | AI14: -0.3 | AJ14: -0.2 | AK14: -0.1 | AL14: 0 | AM14: 0.1 | AN14: 0.2 | AO14: 0.3 | AP14: 0.4 | AQ14: 0.5 | AR14: 0.6 | AS14: 0.7 | AT14: 0.8 | AU14: 0.9 | AV14: 1 | AX14: Custom | AY14: 0 | AZ14: 0 | BA14: 0 | BB14: 0 | BC14: 0 | BD14: 0 | BE14: 0.1 | BF14: 0.1 | BG14: 0.1 | BH14: 0.5 | BI14: 0.5 | BJ14: 0.5 | BK14: 0.9 | BL14: 0.9 | BM14: 0.9 | BN14: 1 | BO14: 1 | BP14: 1 | BQ14: 1 | BR14: 1 | BS14: 1 | BT14: 1 | BU14: 2 | BZ14: Markets weak; Significant capital risk; Requires significant government investment | CC14: Markets weak; Requires government investment | CF14: Markets weak; No government investment | CI14: Markets exist; Some capital risk | CL14: Markets exist; Low capital risk; Incentives in place | CR14: 1 | CV14: The fuel cycle type exhibits challenges with respect to the magnitude of capital investment required and payback prospects and is weakened significantly from disincentives related to capital at risk. | CY14: The fuel cycle type exhibits challenges with respect to the magnitude of capital investment required and payback prospects. While incentives exist, the fuel cycle type, on balance, is weakened from disincentives related to capital at risk. | DB14: The fuel cycle type is neutral with respect to the magnitude of capital investment required and payback prospects, exhibiting off-setting incentives and disincentives. | DE14: The fuel cycle type exhibits promise with respect to the magnitude of capital investment required and payback prospects. Although disincentives exist, the fuel cycle type, on balance, benefits from incentives related to capital at risk. | DH14: The fuel cycle type exhibits promise with respect to the magnitude of capital investment required and payback prospects and benefits significantly from incentives related to capital at risk. | DN14: 1 | DP14: -1 | DQ14: -0.9 | DR14: -0.8 | DS14: -0.7 | DT14: -0.6 | DU14: -0.45 | DV14: -0.44 | DW14: -0.3 | DX14: -0.15 | DY14: -0.14 | DZ14: 0 | EA14: 0.15 | EB14: 0.16 | EC14: 0.3 | ED14: 0.45 | EE14: 0.46 | EF14: 0.6 | EG14: 0.7 | EH14: 0.8 | EI14: 0.9 | EJ14: 1
AA15: 11 | AB15: -1 | AC15: -0.9 | AD15: -0.8 | AE15: -0.7 | AF15: -0.6 | AG15: -0.5 | AH15: -0.4 | AI15: -0.3 | AJ15: -0.2 | AK15: -0.1 | AL15: 0 | AM15: 0.1 | AN15: 0.2 | AO15: 0.3 | AP15: 0.4 | AQ15: 0.5 | AR15: 0.6 | AS15: 0.7 | AT15: 0.8 | AU15: 0.9 | AV15: 1 | AX15: Custom | AY15: 0 | AZ15: 0 | BA15: 0 | BB15: 0 | BC15: 0 | BD15: 0 | BE15: 0.25 | BF15: 0.25 | BG15: 0.25 | BH15: 0.5 | BI15: 0.5 | BJ15: 0.5 | BK15: 0.75 | BL15: 0.75 | BM15: 0.75 | BN15: 1 | BO15: 1 | BP15: 1 | BQ15: 1 | BR15: 1 | BS15: 1 | BU15: 2 | BZ15: E. Likely to be Much Higher | CC15: D. Likely to be Higher | CF15: C. Likely to be "Similar" | CI15: B. Likely to be Comparable to Current U.S. Fuel Cycle | CL15: A. Likely to be Lower | CR15: 1 | DN15: 1 | DP15: -1 | DQ15: -0.9 | DR15: -0.8 | DS15: -0.7 | DT15: -0.6 | DU15: -0.45 | DV15: -0.44 | DW15: -0.3 | DX15: -0.15 | DY15: -0.14 | DZ15: 0 | EA15: 0.14 | EB15: 0.15 | EC15: 0.3 | ED15: 0.45 | EE15: 0.46 | EF15: 0.6 | EG15: 0.7 | EH15: 0.8 | EI15: 0.9 | EJ15: 1
AA16: 12 | AB16: 6 | AC16: 5 | AD16: 4 | AE16: 3 | AF16: 2 | AG16: 1 | AH16: 1 | AI16: 0.75 | AJ16: 0.5 | AK16: 0.5 | AL16: 0.35 | AM16: 0.2 | AN16: 0.2 | AO16: 0.15 | AP16: 0.1 | AQ16: 0.1 | AR16: 0.05 | AS16: 0 | AT16: 0 | AU16: 0 | AV16: 0 | AW16: km2/GWe-yr | AX16: Custom | AY16: 0 | AZ16: 0 | BA16: 0 | BB16: 0 | BC16: 0 | BD16: 0 | BE16: 0.52 | BF16: 0.52 | BG16: 0.52 | BH16: 0.79 | BI16: 0.79 | BJ16: 0.79 | BK16: 0.93 | BL16: 0.93 | BM16: 0.93 | BN16: 1 | BO16: 1 | BP16: 1 | BQ16: 1 | BR16: 1 | BS16: 1 | BT16: 1 | BU16: 2 | BV16: 2 | BZ16: > 1.0 km2/GWe-yr | CC16: 0.5 - 1.0 km2/GWe-yr | CF16: 0.2 - 0.5 km2/GWe-yr | CI16: 0.1 - 0.2 km2/GWe-yr | CL16: < 0.1 km2/GWe-yr | CR16: 1 | DN16: 1 | DP16: -1 | DQ16: -0.9 | DR16: -0.8 | DS16: -0.7 | DT16: -0.6 | DU16: -0.45 | DV16: -0.44 | DW16: -0.3 | DX16: -0.15 | DY16: -0.14 | DZ16: 0 | EA16: 0.14 | EB16: 0.15 | EC16: 0.3 | ED16: 0.45 | EE16: 0.46 | EF16: 0.6 | EG16: 0.7 | EH16: 0.8 | EI16: 0.9 | EJ16: 1
AA17: 13 | AB17: 45000 | AC17: 45000 | AD17: 45000 | AE17: 45000 | AF17: 45000 | AG17: 45000 | AH17: 45000 | AI17: 37500 | AJ17: 30000 | AK17: 30000 | AL17: 22500 | AM17: 15000 | AN17: 15000 | AO17: 7500 | AP17: 0 | AQ17: 0 | AR17: 0 | AS17: 0 | AT17: 0 | AU17: 0 | AV17: 0 | AW17: ML/GWe-yr | AX17: Custom | AY17: 0 | AZ17: 0 | BA17: 0 | BB17: 0 | BC17: 0 | BD17: 0 | BE17: 0 | BF17: 0 | BG17: 0 | BH17: 0.5 | BI17: 0.5 | BJ17: 0.5 | BK17: 1 | BL17: 1 | BM17: 1 | BN17: 1 | BO17: 1 | BP17: 1 | BQ17: 1 | BR17: 1 | BS17: 1 | BT17: 1 | BU17: 2 | BV17: 2 | CC17: > 30,000 ML/GWe-yr | CF17: 15,000 - 30,000 ML/GWe-yr | CI17: < 15,000 ML/GWe-yr | CR17: 1 | DN17: 1 | DP17: -1 | DQ17: -0.9 | DR17: -0.8 | DS17: -0.7 | DT17: -0.6 | DU17: -0.5 | DV17: -0.4 | DW17: -0.3 | DX17: -0.15 | DY17: -0.14 | DZ17: 0 | EA17: 0.15 | EB17: 0.16 | EC17: 0.3 | ED17: 0.4 | EE17: 0.5 | EF17: 0.6 | EG17: 0.7 | EH17: 0.8 | EI17: 0.9 | EJ17: 1
AA18: 14 | AB18: 360 | AC18: 360 | AD18: 360 | AE18: 360 | AF18: 300 | AG18: 240 | AH18: 240 | AI18: 180 | AJ18: 120 | AK18: 120 | AL18: 90 | AM18: 60 | AN18: 60 | AO18: 45 | AP18: 30 | AQ18: 30 | AR18: 15 | AS18: 0 | AT18: 0 | AU18: 0 | AV18: 0 | AW18: kt/GWe-yr | AX18: Custom | AY18: 0 | AZ18: 0 | BA18: 0 | BB18: 0 | BC18: 0 | BD18: 0 | BE18: 0.52 | BF18: 0.52 | BG18: 0.52 | BH18: 0.78 | BI18: 0.78 | BJ18: 0.78 | BK18: 0.91 | BL18: 0.91 | BM18: 0.91 | BN18: 1 | BO18: 1 | BP18: 1 | BQ18: 1 | BR18: 1 | BS18: 1 | BT18: 1 | BU18: 2 | BZ18: > 240 kt/GWe-yr | CC18: 120 - 240 kt/GWe-yr | CF18: 60 - 120 kt/GWe-yr | CI18: 30 - 60 kt/GWe-yr | CL18: <30 kt/GWe-yr | CR18: 1 | DN18: 1 | DP18: -1 | DQ18: -0.9 | DR18: -0.8 | DS18: -0.7 | DT18: -0.6 | DU18: -0.45 | DV18: -0.44 | DW18: -0.3 | DX18: -0.15 | DY18: -0.14 | DZ18: 0 | EA18: 0.14 | EB18: 0.15 | EC18: 0.3 | ED18: 0.45 | EE18: 0.46 | EF18: 0.6 | EG18: 0.7 | EH18: 0.8 | EI18: 0.9 | EJ18: 1
AA19: 15 | AB19: 85 | AC19: 75 | AD19: 65 | AE19: 55 | AF19: 45 | AG19: 35 | AH19: 25 | AI19: 15 | AJ19: 5.0000001 | AK19: 5 | AL19: 2.75 | AM19: 0.5 | AN19: 0.49999 | AO19: 0.4 | AP19: 0.3 | AQ19: 0.2 | AR19: 0.1 | AS19: 0 | AT19: 0 | AU19: 0 | AV19: 0 | AW19: Person-Sv/GWe-yr | AX19: Custom | AY19: 0 | AZ19: 0 | BA19: 0 | BB19: 0 | BC19: 0 | BD19: 0 | BE19: 0 | BF19: 0 | BG19: 0 | BH19: 0.9 | BI19: 0.9 | BJ19: 0.9 | BK19: 1 | BL19: 1 | BM19: 1 | BN19: 1 | BO19: 1 | BP19: 1 | BQ19: 1 | BR19: 1 | BS19: 1 | BT19: 1 | BU19: 2 | BV19: 2 | CC19: Total worker dose of > 5.0 person-Sv/Gwe-yr | CF19: Total worker dose of 0.5 – 5.0 person-Sv/Gwe-yr | CI19: Total worker dose of <0.5 person-Sv/Gwe-yr | CR19: 1 | CY19: Total worker dose of > 5.0 person-Sv/Gwe-yr | DB19: Total worker dose of 0.5 – 5.0 person-Sv/Gwe-yr | DE19: Total worker dose of <0.5 person-Sv/Gwe-yr | DN19: 1 | DP19: -1 | DQ19: -0.9 | DR19: -0.8 | DS19: -0.7 | DT19: -0.6 | DU19: -0.5 | DV19: -0.4 | DW19: -0.3 | DX19: -0.15 | DY19: -0.14 | DZ19: 0 | EA19: 0.15 | EB19: 0.16 | EC19: 0.3 | ED19: 0.4 | EE19: 0.5 | EF19: 0.6 | EG19: 0.7 | EH19: 0.8 | EI19: 0.9 | EJ19: 1
W20: Units | AA20: 16 | AB20: 150 | AC20: 93 | AD20: 36.0001 | AE20: 36 | AF20: 24 | AG20: 12.00001 | AH20: 12 | AI20: 9 | AJ20: 6.00001 | AK20: 6 | AL20: 4.5 | AM20: 3.00001 | AN20: 3 | AO20: 2.3 | AP20: 1.650001 | AQ20: 1.65 | AR20: 0.825 | AS20: 0 | AT20: 0 | AU20: 0 | AV20: 0 | AW20: t/GWe-yr | AX20: Custom | AY20: 0 | AZ20: 0 | BA20: 0 | BB20: 0.19 | BC20: 0.19 | BD20: 0.19 | BE20: 0.43 | BF20: 0.43 | BG20: 0.43 | BH20: 0.59 | BI20: 0.59 | BJ20: 0.59 | BK20: 0.75 | BL20: 0.75 | BM20: 0.75 | BN20: 1 | BO20: 1 | BP20: 1 | BQ20: 1 | BR20: 1 | BS20: 1 | BT20: 1 | BU20: 2 | BW20: > 36 t/GWe-yr | BZ20: 12 to 36 t/GWe-yr | CC20: 6 to 12 t/GWe-yr | CF20: 3 to 6 t/GWe-yr | CI20: 1.65 to 3 t/GWe-yr | CL20: < 1.65 t/GWe-yr | CR20: 1 | CS20: SNF+HLW mass ≥ 36 t/GWe-yr | CV20: SNF+HLW mass ≥ 12 t/GWe-yr and < 36 t/GWe-yr; contains the basis of comparison | CY20: SNF+HLW mass ≥ 6 t/GWe-yr and < 12 t/GWe-yr | DB20: SNF+HLW mass ≥ 3 t/GWe-yr and < 6 t/GWe-yr | DE20: SNF+HLW mass ≥ 1.65 t/GWe-yr and < 3 t/GWe-yr | DH20: SNF+HLW mass < 1.65 t/GWe-yr; similar to the HLW mass from processing of LWR SNF to recover all U | DN20: 1 | DP20: -1 | DQ20: -0.9 | DR20: -0.75 | DS20: -0.74 | DT20: -0.6 | DU20: -0.45 | DV20: -0.44 | DW20: -0.3 | DX20: -0.15 | DY20: -0.14 | DZ20: 0 | EA20: 0.14 | EB20: 0.15 | EC20: 0.3 | ED20: 0.45 | EE20: 0.46 | EF20: 0.6 | EG20: 0.7 | EH20: 0.8 | EI20: 0.9 | EJ20: 1
A21: Data Range: | B21: -1 | C21: -0.9 | D21: -0.8 | E21: -0.7 | F21: -0.6 | G21: -0.5 | H21: -0.4 | I21: -0.3 | J21: -0.2 | K21: -0.1 | L21: 0 | M21: 0.1 | N21: 0.2 | O21: 0.3 | P21: 0.4 | Q21: 0.5 | R21: 0.6 | S21: 0.7 | T21: 0.8 | U21: 0.9 | V21: 1 | AA21: 17 | AB21: 2.4 | AC21: 2.4 | AD21: 2.4 | AE21: 2.4 | AF21: 2.2 | AG21: 2 | AH21: 2 | AI21: 1.8 | AJ21: 1.6 | AK21: 1.6 | AL21: 1.375 | AM21: 1.05 | AN21: 1.05 | AO21: 0.86 | AP21: 0.67 | AQ21: 0.67 | AR21: 0.48 | AS21: 0.29 | AT21: 0 | AU21: 0 | AV21: 0 | AW21: MCi/GWe-yr | AX21: Custom | AY21: 0 | AZ21: 0 | BA21: 0 | BB21: 0 | BC21: 0 | BD21: 0 | BE21: 0.45 | BF21: 0.45 | BG21: 0.45 | BH21: 0.63 | BI21: 0.63 | BJ21: 0.63 | BK21: 0.8 | BL21: 0.8 | BM21: 0.8 | BN21: 1 | BO21: 1 | BP21: 1 | BQ21: 1 | BR21: 1 | BS21: 1 | BT21: 1 | BU21: 2 | BZ21: > 2.0 MCi/GWe-yr | CC21: 1.6 to 2.0 MCi/GWe-yr | CF21: 1.05 to 1.6 MCi/GWe-yr | CI21: 0.67 to 1.05 MCi/GWe-yr | CL21: <0.67 MCi/GWe-yr | CR21: 1 | DN21: 1 | DP21: -1 | DQ21: -0.9 | DR21: -0.8 | DS21: -0.7 | DT21: -0.6 | DU21: -0.45 | DV21: -0.44 | DW21: -0.3 | DX21: -0.15 | DY21: -0.14 | DZ21: 0 | EA21: 0.14 | EB21: 0.15 | EC21: 0.3 | ED21: 0.45 | EE21: 0.46 | EF21: 0.6 | EG21: 0.7 | EH21: 0.8 | EI21: 0.9 | EJ21: 1
B22: -1 | C22: -0.9 | D22: -0.75 | E22: -0.74 | F22: -0.6 | G22: -0.45 | H22: -0.44 | I22: -0.3 | J22: -0.15 | K22: -0.14 | L22: 0 | M22: 0.15 | N22: 0.16 | O22: 0.3 | P22: 0.45 | Q22: 0.46 | R22: 0.6 | S22: 0.7 | T22: 0.8 | U22: 0.9 | V22: 1 | AA22: 18 | AB22: 0.015 | AC22: 0.0125 | AD22: 0.01 | AE22: 0.01 | AF22: 0.0075 | AG22: 0.005 | AH22: 0.005 | AI22: 0.00365 | AJ22: 0.0023 | AK22: 0.0023 | AL22: 0.00165 | AM22: 0.001 | AN22: 0.001 | AO22: 0.00075 | AP22: 0.0005 | AQ22: 0.0005 | AR22: 0.00025 | AS22: 0 | AT22: 0 | AU22: 0 | AV22: 0 | AW22: MCi/GWe-yr | AX22: Custom | AY22: 0 | AZ22: 0 | BA22: 0 | BB22: 0.17 | BC22: 0.17 | BD22: 0.17 | BE22: 0.35 | BF22: 0.35 | BG22: 0.35 | BH22: 0.54 | BI22: 0.54 | BJ22: 0.54 | BK22: 0.73 | BL22: 0.73 | BM22: 0.73 | BN22: 1 | BO22: 1 | BP22: 1 | BQ22: 1 | BR22: 1 | BS22: 1 | BT22: 1 | BU22: 2 | BV22: 2 | BW22: > 1.0E-2 MCi/GWe-yr | BZ22: 5.0E-3 to 1.0E-2 MCi/GWe-yr | CC22: 2.3E-3 to 5.0E-3 MCi/GWe-yr | CF22: 1.0E-3 to 2.3E-3 MCi/GWe-yr | CI22: 5.0E-4 to 1.0E-3 MCi/GWe-yr | CL22: < 5.0E-4 MCi/GWe-yr | CR22: 1 | DN22: 1 | DP22: -1 | DQ22: -0.9 | DR22: -0.75 | DS22: -0.74 | DT22: -0.6 | DU22: -0.45 | DV22: -0.44 | DW22: -0.3 | DX22: -0.15 | DY22: -0.14 | DZ22: 0 | EA22: 0.14 | EB22: 0.15 | EC22: 0.3 | ED22: 0.45 | EE22: 0.46 | EF22: 0.6 | EG22: 0.7 | EH22: 0.8 | EI22: 0.9 | EJ22: 1
A23: Custom | B23: 0 | C23: 0 | D23: 0 | E23: 0.5 | F23: 0.5 | G23: 0.5 | H23: 0.7667 | I23: 0.7667 | J23: 0.7667 | K23: 0.9 | L23: 0.9 | M23: 0.9 | N23: 0.9667 | O23: 0.9667 | P23: 0.9667 | Q23: 1 | R23: 1 | S23: 1 | T23: 1 | U23: 1 | V23: 1 | AA23: 19 | AB23: 400 | AC23: 300 | AD23: 200 | AE23: 200 | AF23: 160 | AG23: 120 | AH23: 120 | AI23: 100 | AJ23: 80 | AK23: 80 | AL23: 60 | AM23: 40 | AN23: 40 | AO23: 20.5 | AP23: 1 | AQ23: 1 | AR23: 0.5 | AS23: 0 | AT23: 0 | AU23: 0 | AV23: 0 | AW23: t/GWe-yr | AX23: Custom | AY23: 0 | AZ23: 0 | BA23: 0 | BB23: 0.11 | BC23: 0.11 | BD23: 0.11 | BE23: 0.19 | BF23: 0.19 | BG23: 0.19 | BH23: 0.28 | BI23: 0.28 | BJ23: 0.28 | BK23: 0.47 | BL23: 0.47 | BM23: 0.47 | BN23: 1 | BO23: 1 | BP23: 1 | BQ23: 1 | BR23: 1 | BS23: 1 | BT23: 1 | BU23: 2 | BV23: 2 | BW23: > 200 t/GWe-yr | BZ23: 120 to 200 t/GWe-yr | CC23: 80 to 120 t/GWe-yr | CF23: 40 to 80 t/GWe-yr | CI23: 1 to 40 t/GWe-yr | CL23: < 1 t/GWe-yr | CR23: 1 | DN23: 2 | DP23: -1 | DQ23: -0.9 | DR23: -0.75 | DS23: -0.74 | DT23: -0.6 | DU23: -0.45 | DV23: -0.44 | DW23: -0.3 | DX23: -0.15 | DY23: -0.14 | DZ23: 0 | EA23: 0.14 | EB23: 0.15 | EC23: 0.3 | ED23: 0.45 | EE23: 0.46 | EF23: 0.6 | EG23: 0.7 | EH23: 0.8 | EI23: 0.9 | EJ23: 1
B24: >50 yrs | E24: 25 - 50 yrs | H24: 10 - 25 yrs | K24: 5 - 10 yrs | N24: < 5yrs | Q24: No Development Needed | AA24: 20 | AB24: 4000 | AC24: 4000 | AD24: 4000 | AE24: 4000 | AF24: 2796 | AG24: 1592 | AH24: 1592 | AI24: 1113 | AJ24: 634 | AK24: 634 | AL24: 443 | AM24: 252 | AN24: 252 | AO24: 176 | AP24: 100 | AQ24: 100 | AR24: 70 | AS24: 40 | AT24: 40 | AU24: 40 | AV24: 40 | AW24: m3/GWe-yr | AX24: Custom | AY24: 0 | AZ24: 0 | BA24: 0 | BB24: 0 | BC24: 0 | BD24: 0 | BE24: 0.25 | BF24: 0.25 | BG24: 0.25 | BH24: 0.5 | BI24: 0.5 | BJ24: 0.5 | BK24: 0.75 | BL24: 0.75 | BM24: 0.75 | BN24: 1 | BO24: 1 | BP24: 1 | BQ24: 1 | BR24: 1 | BS24: 1 | BT24: 1 | BU24: 2 | BV24: 2 | BZ24: Greater than 1592 m^3/GWe-yr | CC24: 634 to 1592 m^3/GWe-yr | CF24: 252 to 634 m^3/GWe-yr | CI24: 100 to 252 m^3/GWe-yr | CL24: Less than 100 m^3/GWe-yr | CR24: 1 | DN24: 2 | DP24: -1 | DQ24: -0.9 | DR24: -0.8 | DS24: -0.7 | DT24: -0.6 | DU24: -0.45 | DV24: -0.44 | DW24: -0.3 | DX24: -0.15 | DY24: -0.14 | DZ24: 0 | EA24: 0.14 | EB24: 0.15 | EC24: 0.3 | ED24: 0.45 | EE24: 0.46 | EF24: 0.6 | EG24: 0.7 | EH24: 0.8 | EI24: 0.9 | EJ24: 1
A25: Linear High | B25: 0 | C25: 0.05 | D25: 0.1 | E25: 0.15 | F25: 0.2 | G25: 0.25 | H25: 0.3 | I25: 0.35 | J25: 0.4 | K25: 0.45 | L25: 0.5 | M25: 0.55 | N25: 0.6 | O25: 0.65 | P25: 0.7 | Q25: 0.75 | R25: 0.8 | S25: 0.85 | T25: 0.9 | U25: 0.95 | V25: 1 | AA25: 21 | AB25: 3 | AC25: 2.5 | AD25: 2 | AE25: 1.999 | AF25: 1.5 | AG25: 1 | AH25: 0.999 | AI25: 0.5 | AJ25: 0 | AK25: -0.001 | AL25: -0.5 | AM25: -1 | AN25: -1 | AO25: -1 | AP25: -1 | AQ25: -1 | AR25: -1 | AS25: -1 | AT25: -1 | AU25: -1 | AV25: -1 | AX25: Custom | AY25: 0 | AZ25: 0 | BA25: 0 | BB25: 0 | BC25: 0 | BD25: 0 | BE25: 1 | BF25: 1 | BG25: 1 | BH25: 1 | BI25: 1 | BJ25: 1 | BK25: 1 | BL25: 1 | BM25: 1 | BN25: 1 | BO25: 1 | BP25: 1 | BQ25: 1 | BR25: 1 | BS25: 1 | BT25: 1 | BU25: 2 | BV25: 2 | CR25: 1 | DN25: 2 | DP25: -1 | DQ25: -0.9 | DR25: -0.8 | DS25: -0.7 | DT25: -0.6 | DU25: -0.46 | DV25: -0.45 | DW25: -0.3 | DX25: -0.15 | DY25: -0.14 | DZ25: 0 | EA25: 0.15 | EB25: 0.16 | EC25: 0.3 | ED25: 0.4 | EE25: 0.5 | EF25: 0.6 | EG25: 0.7 | EH25: 0.8 | EI25: 0.9 | EJ25: 1
A26: Linear Low | B26: 1 | C26: 0.95 | D26: 0.9 | E26: 0.85 | F26: 0.8 | G26: 0.75 | H26: 0.7 | I26: 0.65 | J26: 0.6 | K26: 0.55 | L26: 0.5 | M26: 0.45 | N26: 0.4 | O26: 0.35 | P26: 0.3 | Q26: 0.25 | R26: 0.2 | S26: 0.15 | T26: 0.1 | U26: 0.05 | V26: 0 | AA26: 22 | AB26: 3 | AC26: 2.5 | AD26: 2 | AE26: 1.999 | AF26: 1.5 | AG26: 1 | AH26: 0.999 | AI26: 0.5 | AJ26: 0 | AK26: -0.001 | AL26: -0.5 | AM26: -1 | AN26: -1 | AO26: -1 | AP26: -1 | AQ26: -1 | AR26: -1 | AS26: -1 | AT26: -1 | AU26: -1 | AV26: -1 | AX26: Linear High | AY26: 0 | AZ26: 0 | BA26: 0 | BB26: 0 | BC26: 0 | BD26: 0 | BE26: 1 | BF26: 1 | BG26: 1 | BH26: 1 | BI26: 1 | BJ26: 1 | BK26: 1 | BL26: 1 | BM26: 1 | BN26: 1 | BO26: 1 | BP26: 1 | BQ26: 1 | BR26: 1 | BS26: 1 | BT26: 1 | BU26: 2 | CR26: 1 | DN26: 2 | DP26: -1 | DQ26: -0.9 | DR26: -0.8 | DS26: -0.7 | DT26: -0.6 | DU26: -0.46 | DV26: -0.45 | DW26: -0.3 | DX26: -0.15 | DY26: -0.14 | DZ26: 0 | EA26: 0.15 | EB26: 0.16 | EC26: 0.3 | ED26: 0.4 | EE26: 0.5 | EF26: 0.6 | EG26: 0.7 | EH26: 0.8 | EI26: 0.9 | EJ26: 1
AA27: 23 | AB27: 23 | AC27: 23 | AD27: 23 | AE27: 23 | AF27: 21 | AG27: 19 | AH27: 19 | AI27: 17.15 | AJ27: 15.3 | AK27: 15.3 | AL27: 12.65 | AM27: 10 | AN27: 10 | AO27: 8.2 | AP27: 6.4 | AQ27: 6.4 | AR27: 3.2 | AS27: 0 | AT27: 0 | AU27: 0 | AV27: 0 | AX27: Custom | AY27: 0 | AZ27: 0 | BA27: 0 | BB27: 0 | BC27: 0 | BD27: 0 | BE27: 0.45 | BF27: 0.45 | BG27: 0.45 | BH27: 0.63 | BI27: 0.63 | BJ27: 0.63 | BK27: 0.8 | BL27: 0.8 | BM27: 0.8 | BN27: 1 | BO27: 1 | BP27: 1 | BQ27: 1 | BR27: 1 | BS27: 1 | BT27: 1 | BU27: 2 | BV27: 1 | CR27: 1 | DN27: 1 | DP27: -1 | DQ27: -0.9 | DR27: -0.8 | DS27: -0.7 | DT27: -0.6 | DU27: -0.45 | DV27: -0.44 | DW27: -0.3 | DX27: -0.15 | DY27: -0.14 | DZ27: 0 | EA27: 0.14 | EB27: 0.15 | EC27: 0.3 | ED27: 0.45 | EE27: 0.46 | EF27: 0.6 | EG27: 0.7 | EH27: 0.8 | EI27: 0.9 | EJ27: 1
A28: S-Curve 1 High | B28: =IF($B$39=1,B40,IF($B$39=2,B41,IF($B$39=3,B42,B43))) -> 0 | C28: =IF($B$39=1,C40,IF($B$39=2,C41,IF($B$39=3,C42,C43))) ->  | D28: =IF($B$39=1,D40,IF($B$39=2,D41,IF($B$39=3,D42,D43))) ->  | L28: 0.5 | V28: 1 | AA28: 24 | AB28: 310 | AC28: 310 | AD28: 310 | AE28: 255 | AF28: 200 | AG28: 145 | AH28: 145 | AI28: 90 | AJ28: 35 | AK28: 35 | AL28: 19.4 | AM28: 3.8 | AN28: 3.8 | AO28: 1.9 | AP28: 0 | AQ28: 0 | AR28: 0 | AS28: 0 | AT28: 0 | AU28: 0 | AV28: 0 | AW28: t/GWe-yr | AX28: Custom | AY28: 0 | AZ28: 0 | BA28: 0 | BB28: 0 | BC28: 0 | BD28: 0 | BE28: 0.19 | BF28: 0.19 | BG28: 0.19 | BH28: 0.51 | BI28: 0.51 | BJ28: 0.51 | BK28: 1 | BL28: 1 | BM28: 1 | BN28: 1 | BO28: 1 | BP28: 1 | BQ28: 1 | BR28: 1 | BS28: 1 | BT28: 1 | BU28: 2 | BZ28: > 145 t/GWe-yr | CC28: 35 to 145 t/GWe-yr | CF28: 3.8 to 35 t/GWe-yr | CI28: <3.8 t/GWe-yr | CR28: 1 | DN28: 2 | DP28: -1 | DQ28: -0.9 | DR28: -0.8 | DS28: -0.7 | DT28: -0.6 | DU28: -0.45 | DV28: -0.44 | DW28: -0.3 | DX28: -0.15 | DY28: -0.14 | DZ28: 0 | EA28: 0.14 | EB28: 0.15 | EC28: 0.3 | ED28: 0.45 | EE28: 0.46 | EF28: 0.6 | EG28: 0.7 | EH28: 0.8 | EI28: 0.9 | EJ28: 1
A29: S-Curve 1 Low | B29: =IF($B$39=1,B44,IF($B$39=2,B45,IF($B$39=3,B46,B47))) -> 1 | C29: =IF($B$39=1,C44,IF($B$39=2,C45,IF($B$39=3,C46,C47))) ->  | L29: 0.5 | V29: 0 | AA29: 25 | AB29: 310 | AC29: 310 | AD29: 310 | AE29: 255 | AF29: 200 | AG29: 145 | AH29: 145 | AI29: 90 | AJ29: 35 | AK29: 35 | AL29: 19.4 | AM29: 3.8 | AN29: 3.8 | AO29: 1.9 | AP29: 0 | AQ29: 0 | AR29: 0 | AS29: 0 | AT29: 0 | AU29: 0 | AV29: 0 | AW29: t/GWe-yr | AX29: Custom | AY29: 0 | AZ29: 0 | BA29: 0 | BB29: 0 | BC29: 0 | BD29: 0 | BE29: 0.19 | BF29: 0.19 | BG29: 0.19 | BH29: 0.51 | BI29: 0.51 | BJ29: 0.51 | BK29: 1 | BL29: 1 | BM29: 1 | BN29: 1 | BO29: 1 | BP29: 1 | BQ29: 1 | BR29: 1 | BS29: 1 | BT29: 1 | BU29: 2 | BZ29: > 145 t/GWe-yr | CC29: 35 to 145 t/GWe-yr | CF29: 3.8 to 35 t/GWe-yr | CI29: <3.8 t/GWe-yr | CR29: 1 | DN29: 2 | DP29: -1 | DQ29: -0.9 | DR29: -0.8 | DS29: -0.7 | DT29: -0.6 | DU29: -0.45 | DV29: -0.44 | DW29: -0.3 | DX29: -0.15 | DY29: -0.14 | DZ29: 0 | EA29: 0.14 | EB29: 0.15 | EC29: 0.3 | ED29: 0.45 | EE29: 0.46 | EF29: 0.6 | EG29: 0.7 | EH29: 0.8 | EI29: 0.9 | EJ29: 1
AA30: 26 | AB30: -1 | AC30: -0.9 | AD30: -0.8 | AE30: -0.7 | AF30: -0.6 | AG30: -0.5 | AH30: -0.4 | AI30: -0.3 | AJ30: -0.2 | AK30: -0.1 | AL30: 0 | AM30: 0.1 | AN30: 0.2 | AO30: 0.3 | AP30: 0.4 | AQ30: 0.5 | AR30: 0.6 | AS30: 0.7 | AT30: 0.8 | AU30: 0.9 | AV30: 1 | AX30: Custom | AY30: 0 | AZ30: 0 | BA30: 0 | BB30: 0 | BC30: 0 | BD30: 0 | BE30: 0.25 | BF30: 0.25 | BG30: 0.25 | BH30: 0.5 | BI30: 0.5 | BJ30: 0.5 | BK30: 0.75 | BL30: 0.75 | BM30: 0.75 | BN30: 1 | BO30: 1 | BP30: 1 | BQ30: 1 | BR30: 1 | BS30: 1 | BT30: 1 | BU30: 2 | BZ30: Potenitally Significantly more challenging | CC30: Potentially More Challenging | CF30: Potentially Similar in Challenge | CI30: Potentially Less Challenging | CL30: Potentially Much Less Challenging | CR30: 1 | CV30: Identified hazards that are significantly more challenging to address than the hazards that exist in the fuel cycle basis for comparison | CY30: Identified hazards that are more challenging to address than those hazards that exist in the fuel cycle basis for comparison | DB30: Identified hazards that are similar in challenges to address than those hazards that exist in the fuel cycle basis for comparison | DE30: Identified hazards are less challenging to address than those hazards that exist in the fuel cycle basis for comparison | DH30: Identified hazards are much less challenging to address than those hazards that exist in the fuel cycle basis for comparison | DN30: 3 | DP30: -1 | DQ30: -0.9 | DR30: -0.8 | DS30: -0.7 | DT30: -0.6 | DU30: -0.45 | DV30: -0.44 | DW30: -0.3 | DX30: -0.15 | DY30: -0.14 | DZ30: 0 | EA30: 0.14 | EB30: 0.15 | EC30: 0.3 | ED30: 0.45 | EE30: 0.46 | EF30: 0.6 | EG30: 0.7 | EH30: 0.8 | EI30: 0.9 | EJ30: 1
A31: S-Curve 2 High | B31: =IF($B$50=1,B51,IF($B$50=2,B52,B53)) -> 0 | C31: =IF($B$50=1,C51,IF($B$50=2,C52,C53)) ->  | L31: 0.5 | V31: 1 | AA31: 27 | AB31: -1 | AC31: -0.9 | AD31: -0.8 | AE31: -0.7 | AF31: -0.6 | AG31: -0.5 | AH31: -0.4 | AI31: -0.3 | AJ31: -0.2 | AK31: -0.1 | AL31: 0 | AM31: 0.1 | AN31: 0.2 | AO31: 0.3 | AP31: 0.4 | AQ31: 0.5 | AR31: 0.6 | AS31: 0.7 | AT31: 0.8 | AU31: 0.9 | AV31: 1 | AX31: Custom | AY31: 0 | AZ31: 0 | BA31: 0 | BB31: 0 | BC31: 0 | BD31: 0 | BE31: 0 | BF31: 0 | BG31: 0 | BH31: 1 | BI31: 1 | BJ31: 1 | BK31: 1 | BL31: 1 | BM31: 1 | BN31: 1 | BO31: 1 | BP31: 1 | BQ31: 1 | BR31: 1 | BS31: 1 | BT31: 1 | BU31: 2 | CC31: No | CF31: Yes | CR31: 1 | CY31: At least one of the safety hazards poses a challenge that is unable to be addressed, and the corresponding facility or process is not successful in addressing all hazards | DB31: All of the safety hazards can be addressed and the entire fuel cycle can be deployed safely, with all facilities and processes addressing all safety hazards | DN31: 1 | DP31: -1 | DQ31: -0.9 | DR31: -0.8 | DS31: -0.7 | DT31: -0.6 | DU31: -0.5 | DV31: -0.4 | DW31: -0.3 | DX31: -0.15 | DY31: -0.14 | DZ31: 0 | EA31: 0.15 | EB31: 0.16 | EC31: 0.3 | ED31: 0.4 | EE31: 0.5 | EF31: 0.6 | EG31: 0.7 | EH31: 0.8 | EI31: 0.9 | EJ31: 1
A32: S-Curve 2 Low | B32: =IF($B$50=1,B54,IF($B$50=2,B55,B56)) -> 1 | C32: =IF($B$50=1,C54,IF($B$50=2,C55,C56)) ->  | L32: 0.5 | V32: 0 | AA32: 28
AA33: 29
A34: 1 | B34: 2 | C34: 3 | D34: 4 | E34: 5 | F34: 6 | G34: 7 | H34: 8 | I34: 9 | J34: 10 | K34: 11 | L34: 12 | M34: 13 | N34: 14 | O34: 15 | P34: 16 | Q34: 17 | R34: 18 | S34: 19 | T34: 20 | U34: 21 | V34: 22 | AA34: 30
A35: Default scale | B35: -1 | C35: -0.9 | D35: -0.8 | E35: -0.7 | F35: -0.6 | G35: -0.5 | H35: -0.4 | I35: -0.3 | J35: -0.2 | K35: -0.1 | L35: 0 | M35: 0.1 | N35: 0.2 | O35: 0.3 | P35: 0.4 | Q35: 0.5 | R35: 0.6 | S35: 0.7 | T35: 0.8 | U35: 0.9 | V35: 1 | AA35: 31
A36: 7-Point scale x | B36: -1 | C36: -0.9 | D36: -0.75 | E36: -0.74 | F36: -0.6 | G36: -0.45 | H36: -0.44 | I36: -0.3 | J36: -0.15 | K36: -0.14 | L36: 0 | M36: 0.15 | N36: 0.16 | O36: 0.3 | P36: 0.45 | Q36: 0.46 | R36: 0.6 | S36: 0.75 | T36: 0.76 | U36: 0.9 | V36: 1 | AA36: 32
A37: 7-Point scale y | B37: 0 | C37: 0 | D37: 0 | E37: 0.16667 | F37: 0.16667 | G37: 0.16667 | H37: 0.33333 | I37: 0.33333 | J37: 0.33333 | K37: 0.5 | L37: 0.5 | M37: 0.5 | N37: 0.66667 | O37: 0.66667 | P37: 0.66667 | Q37: 0.83333 | R37: 0.83333 | S37: 0.83333 | T37: 1 | U37: 1 | V37: 1 | AA37: 33
AA38: 34
A39: S-Curve 1 value: | B39: 2 | AA39: 35
A40: S-Curve 1 High 1 | B40: =1-Exp_Func1_1(-B$22) ->  | C40: =1-Exp_Func1_1(-C$22) ->  | D40: =1-Exp_Func1_1(-D$22) ->  | L40: 0.5 | M40: =Exp_Func1_1(M$22) ->  | N40: =Exp_Func1_1(N$22) ->  | AA40: 36
A41: S-Curve 1 High 2 | B41: 0 | C41: =1-Exp_Func1_2(-C$22) ->  | D41: =1-Exp_Func1_2(-D$22) ->  | L41: 0.5 | M41: =Exp_Func1_2(M$22) ->  | N41: =Exp_Func1_2(N$22) ->  | V41: 1 | AA41: 37
A42: S-Curve 1 High 3 | B42: 0 | C42: =1-Exp_Func1_3(-C$22) ->  | D42: =1-Exp_Func1_3(-D$22) ->  | L42: 0.5 | M42: =Exp_Func1_3(M$22) ->  | N42: =Exp_Func1_3(N$22) ->  | V42: 1 | AA42: 38
A43: S-Curve 1 High 4 | B43: 0 | C43: =1-Exp_Func1_4(-C$22) ->  | D43: =1-Exp_Func1_4(-D$22) ->  | L43: 0.5 | M43: =Exp_Func1_4(M$22) ->  | N43: =Exp_Func1_4(N$22) ->  | V43: 1 | AA43: 39
A44: S-Curve 1 Low 1 | B44: 1 | C44: =1-C40 ->  | D44: =1-D40 ->  | L44: 0.5 | V44: 0 | AA44: 40
A45: S-Curve 1 Low 2 | B45: 1 | C45: =1-C41 ->  | D45: =1-D41 ->  | L45: 0.5 | V45: 0
A46: S-Curve 1 Low 3 | B46: 1 | C46: =1-C42 ->  | D46: =1-D42 ->  | L46: 0.5 | V46: 0 | AA46: Metric | AB46: Metric data | AD46: Data Set 2 | AW46: Units | AX46: Utility curve | BT46: Polarity | BU46: Data Type | BV46: S-Curve # | BW46: Qualitative Text | CR46: Score as: | CS46: Definitions: | DP46: Utility curve x values
A47: S-Curve 1 Low 4 | B47: 1 | C47: =1-C43 ->  | D47: =1-D43 ->  | L47: 0.5 | V47: 0 | AA47: 1 | AB47: -1 | AC47: -0.9 | AD47: -0.8 | AE47: -0.7 | AF47: -0.6 | AG47: -0.5 | AH47: -0.4 | AI47: -0.3 | AJ47: -0.2 | AK47: -0.1 | AL47: 0 | AM47: 0.1 | AN47: 0.2 | AO47: 0.3 | AP47: 0.4 | AQ47: 0.5 | AR47: 0.6 | AS47: 0.7 | AT47: 0.8 | AU47: 0.9 | AV47: 1 | AX47: Linear High | AY47: 0 | AZ47: 0 | BA47: 0 | BB47: 0.2 | BC47: 0.2 | BD47: 0.2 | BE47: 0.4 | BF47: 0.4 | BG47: 0.4 | BH47: 0.6 | BI47: 0.6 | BJ47: 0.6 | BK47: 0.8 | BL47: 0.8 | BM47: 0.8 | BN47: 1 | BO47: 1 | BP47: 1 | BQ47: 1 | BR47: 1 | BS47: 1 | BT47: 1 | BU47: 2 | BW47: >50 yrs | BZ47: 25 - 50 yrs | CC47: 10 - 25 yrs | CF47: 5 - 10 yrs | CI47: < 5yrs | CL47: No Development Needed | CR47: 1 | CS47: Very significant R&D required that may require significant technical breakthroughs, new discoveries or extended research, development of long-lead time laboratory experiments before engineering/pilot demonstration. Estimated development time is greater than 50 years | CV47: Significant R&D required that may require more fundamental development at laboratory scale before developing capabilities that can be demonstrated at engineering/pilot scale. Estimated development time is 25-50 years | CY47: R&D required that requires extended development time to arrive at a workable capability and demonstration at the engineering/pilot scale. Estimated development time is 10-25 years | DB47: R&D required, but many of the required capabilities are either already demonstrated or nearly demonstrated. Additional engineering/pilot scale in the near term likely using existing facilities or based on historical experience. Example may be the qualification of a well-established fuel. Estimated development time is 5-10 years | DE47: R&D required, but most of the required capabilities already demonstrated and any additional R&D is limited in scope and can be supported with existing facilities with little or no modifications. Estimated development time is less than 5 years | DH47: No R&D needed. Technology is already at TRL 6 or beyond. Development time is 0 years. | DP47: -1 | DQ47: -0.9 | DR47: -0.75 | DS47: -0.74 | DT47: -0.6 | DU47: -0.45 | DV47: -0.44 | DW47: -0.3 | DX47: -0.15 | DY47: -0.14 | DZ47: 0 | EA47: 0.15 | EB47: 0.16 | EC47: 0.3 | ED47: 0.45 | EE47: 0.46 | EF47: 0.6 | EG47: 0.7 | EH47: 0.8 | EI47: 0.9 | EJ47: 1
AA48: 2 | AB48: -1 | AC48: -0.9 | AD48: -0.8 | AE48: -0.7 | AF48: -0.6 | AG48: -0.5 | AH48: -0.4 | AI48: -0.3 | AJ48: -0.2 | AK48: -0.1 | AL48: 0 | AM48: 0.1 | AN48: 0.2 | AO48: 0.3 | AP48: 0.4 | AQ48: 0.5 | AR48: 0.6 | AS48: 0.7 | AT48: 0.8 | AU48: 0.9 | AV48: 1 | AX48: Custom | AY48: 0 | AZ48: 0 | BA48: 0 | BB48: 0.2 | BC48: 0.2 | BD48: 0.2 | BE48: 0.4 | BF48: 0.4 | BG48: 0.4 | BH48: 0.6 | BI48: 0.6 | BJ48: 0.6 | BK48: 0.8 | BL48: 0.8 | BM48: 0.8 | BN48: 1 | BO48: 1 | BP48: 1 | BQ48: 1 | BR48: 1 | BS48: 1 | BT48: 1 | BU48: 2 | BW48: > $25B | BZ48: $10B - $25B | CC48: $2B - $10B | CF48: $200M - $2B | CI48: < $200M | CL48: No Development Needed | CR48: 1 | CS48: Very significant R&D required including construction of many new facilities to provide an engineering/pilot scale demonstration of several components of the fuel cycle. May require more than one scale of facility development for particular fuel cycle components. Development cost expected to be greater than $25 billion | CV48: Significant R&D required including construction of several nuclear facilities to provide a engineering/pilot scale demonstration of several components of a fuel cycle. Alternatively, the scale of the facilities required for engineering/pilot scale demonstration is large and results in significantly increased cost. Development costs expected to be between $10 billion and $25 billion | CY48: R&D required including construction of a major nuclear facility to provide a engineering/pilot scale demonstration of one component of a fuel cycle. Development costs expected to be between $2 billion and $10 billion | DB48: R&D required, but can primarily be performed without significant investment in new major nuclear facilities for engineering/pilot scale demonstration. May, for example, just require modification of existing facilities. Development costs expected to be between $200 million and $2 billion. | DE48: R&D required but is limited in scope and can be supported with existing facilities with little or no modifications. Development costs expected to be less than $200 million | DH48: No R&D needed. Technology is already at TRL 6 or beyond. Development cost is $0. | DP48: -1 | DQ48: -0.9 | DR48: -0.75 | DS48: -0.74 | DT48: -0.6 | DU48: -0.45 | DV48: -0.44 | DW48: -0.3 | DX48: -0.15 | DY48: -0.14 | DZ48: 0 | EA48: 0.15 | EB48: 0.16 | EC48: 0.3 | ED48: 0.45 | EE48: 0.46 | EF48: 0.6 | EG48: 0.7 | EH48: 0.8 | EI48: 0.9 | EJ48: 1
AA49: 3 | AB49: 0 | AC49: 0 | AD49: 0.04 | AE49: 0.08 | AF49: 0.08 | AG49: 0.12 | AH49: 0.12 | AI49: 0.16 | AJ49: 0.16 | AK49: 0.16 | AL49: 0.24 | AM49: 0.24 | AN49: 0.32 | AO49: 0.32 | AP49: 0.36 | AQ49: 0.48 | AR49: 0.48 | AS49: 0.64 | AT49: 0.8 | AU49: 0.8 | AV49: 1 | AX49: Custom | AY49: 0 | AZ49: 0 | BA49: 0.04 | BB49: 0.08 | BC49: 0.08 | BD49: 0.12 | BE49: 0.12 | BF49: 0.16 | BG49: 0.16 | BH49: 0.16 | BI49: 0.24 | BJ49: 0.24 | BK49: 0.32 | BL49: 0.32 | BM49: 0.36 | BN49: 0.48 | BO49: 0.48 | BP49: 0.64 | BQ49: 0.8 | BR49: 0.8 | BS49: 1 | BT49: 1 | BU49: 1 | DP49: -1 | DQ49: -0.9 | DR49: -0.8 | DS49: -0.7 | DT49: -0.6 | DU49: -0.5 | DV49: -0.4 | DW49: -0.3 | DX49: -0.2 | DY49: -0.1 | DZ49: 0 | EA49: 0.1 | EB49: 0.2 | EC49: 0.3 | ED49: 0.4 | EE49: 0.5 | EF49: 0.6 | EG49: 0.7 | EH49: 0.8 | EI49: 0.9 | EJ49: 1
A50: S-Curve 2 value: | B50: 2 | AA50: 4 | AB50: -1 | AC50: -0.9 | AD50: -0.8 | AE50: -0.7 | AF50: -0.6 | AG50: -0.5 | AH50: -0.4 | AI50: -0.3 | AJ50: -0.2 | AK50: -0.1 | AL50: 0 | AM50: 0.1 | AN50: 0.2 | AO50: 0.3 | AP50: 0.4 | AQ50: 0.5 | AR50: 0.6 | AS50: 0.7 | AT50: 0.8 | AU50: 0.9 | AV50: 1 | AX50: Custom | AY50: 0 | AZ50: 0 | BA50: 0 | BB50: 0.2 | BC50: 0.2 | BD50: 0.2 | BE50: 0.4 | BF50: 0.4 | BG50: 0.4 | BH50: 0.6 | BI50: 0.6 | BJ50: 0.6 | BK50: 0.8 | BL50: 0.8 | BM50: 0.8 | BN50: 1 | BO50: 1 | BP50: 1 | BQ50: 1 | BR50: 1 | BS50: 1 | BT50: 1 | BU50: 2 | BW50: > $50B | BZ50: $25B to $50B | CC50: $10B to $25B | CF50: $2B to $10B | CI50: <$2B | CL50: No FOAK Needed | CR50: 1 | CS50: Deployment of a first-of-a-kind (FOAK) commercial system represents a very significant effort to move from engineering/pilot scale to FOAK system that may include several large-scale nuclear facilities that require several stages of deployment representing additional scales of facilities needed to achieve FOAK. Estimated cost to go from an engineering/pilot scale system to FOAK is over $50 billion | CV50: Deployment of a first-of-a-kind (FOAK) commercial system represents a significant effort to move from engineering/pilot scale to first-of-a-kind commercial system (FOAK) that may include several large-scale nuclear facilities. Estimated cost to go from an engineering/pilot scale system to FOAK is between $25 billion and $50 billion | CY50: Deployment of FOAK represents a single large-scale nuclear facility or several medium-scale nuclear facilities. Estimated cost to go from an engineering/pilot scale system to FOAK is between $10 billion and $25 billion | DB50: Deployment of FOAK represents a single nuclear facility or a few small-scale nuclear facilities. Estimated costs to go from an engineering/pilot scale system to FOAK is between $2 billion and $10 billion | DE50: Deployment of FOAK may, for example, require small-scale nuclear facility or modifications to existing nuclear facility. Estimated cost to go from an engineering/pilot scale system to FOAK is less than $2 billion | DH50: Technology already has a FOAK (or beyond) deployment. FOAK deployment cost is $0. | DP50: -1 | DQ50: -0.9 | DR50: -0.75 | DS50: -0.74 | DT50: -0.6 | DU50: -0.45 | DV50: -0.44 | DW50: -0.3 | DX50: -0.15 | DY50: -0.14 | DZ50: 0 | EA50: 0.15 | EB50: 0.16 | EC50: 0.3 | ED50: 0.45 | EE50: 0.46 | EF50: 0.6 | EG50: 0.7 | EH50: 0.8 | EI50: 0.9 | EJ50: 1
A51: S-Curve 2 High 1 | B51: 0 | C51: =1-Exp_Func2_1(-C$22) ->  | D51: =1-Exp_Func2_1(-D$22) ->  | L51: 0.5 | M51: =Exp_Func2_1(M$22) ->  | N51: =Exp_Func2_1(N$22) ->  | V51: 1 | AA51: 5 | AB51: -1 | AC51: -0.9 | AD51: -0.8 | AE51: -0.7 | AF51: -0.6 | AG51: -0.5 | AH51: -0.4 | AI51: -0.3 | AJ51: -0.2 | AK51: -0.1 | AL51: 0 | AM51: 0.1 | AN51: 0.2 | AO51: 0.3 | AP51: 0.4 | AQ51: 0.5 | AR51: 0.6 | AS51: 0.7 | AT51: 0.8 | AU51: 0.9 | AV51: 1 | AX51: Custom | AY51: 0 | AZ51: 0 | BA51: 0 | BB51: 0.1 | BC51: 0.1 | BD51: 0.1 | BE51: 0.5 | BF51: 0.5 | BG51: 0.5 | BH51: 1 | BI51: 1 | BJ51: 1 | BK51: 1 | BL51: 1 | BM51: 1 | BN51: 1 | BO51: 1 | BP51: 1 | BQ51: 1 | BR51: 1 | BS51: 1 | BT51: 1 | BU51: 2 | BW51: Incompatible - <10% | BZ51: Partly Compatible - < 50% but > 10% | CC51: Mostly Compatible - > 50% but < 90% | CF51: Compatible - >90% | CR51: 1 | CS51: The fuel cycle option utilizes few or none of the components of the existing infrastructure and requires mostly new infrastructure components for deployment. Estimate is that less than 10% of the required infrastructure can be based on existing infrastructure | CV51: The fuel cycle option utilizes some components of the existing infrastructure and requires mostly additional infrastructure components. Estimate is that less than 50% (but more than 10%) of the required infrastructure will be based on existing infrastructure | CY51: The fuel cycle option utilizes most components of the existing infrastructure and may require some additional infrastructure components. The fuel cycle option utilizes mostly components of the existing infrastructure and may require some additional infrastructure components. Estimate is that more than 50% (but less than 90%) of the required infrastructure can be based on existing infrastructure | DB51: The fuel cycle option fully utilizes the existing infrastructure as represented by the fuel cycle basis for comparison, needing very little additional infrastructure to deploy the fuel cycle. Estimate is that 90% or more of the required infrastructure can be based on existing infrastructure | DP51: -1 | DQ51: -0.9 | DR51: -0.75 | DS51: -0.74 | DT51: -0.6 | DU51: -0.45 | DV51: -0.44 | DW51: -0.3 | DX51: -0.15 | DY51: -0.14 | DZ51: 0 | EA51: 0.15 | EB51: 0.16 | EC51: 0.3 | ED51: 0.4 | EE51: 0.5 | EF51: 0.6 | EG51: 0.7 | EH51: 0.8 | EI51: 0.9 | EJ51: 1
A52: S-Curve 2 High 2 | B52: 0 | C52: =1-Exp_Func2_2(-C$22) ->  | D52: =1-Exp_Func2_2(-D$22) ->  | L52: 0.5 | M52: =Exp_Func2_2(M$22) ->  | N52: =Exp_Func2_2(N$22) ->  | V52: 1 | AA52: 6 | AB52: -1 | AC52: -0.9 | AD52: -0.8 | AE52: -0.7 | AF52: -0.6 | AG52: -0.5 | AH52: -0.4 | AI52: -0.3 | AJ52: -0.2 | AK52: -0.1 | AL52: 0 | AM52: 0.1 | AN52: 0.2 | AO52: 0.3 | AP52: 0.4 | AQ52: 0.5 | AR52: 0.6 | AS52: 0.7 | AT52: 0.8 | AU52: 0.9 | AV52: 1 | AX52: Custom | AY52: 0 | AZ52: 0 | BA52: 0 | BB52: 0.6 | BC52: 0.6 | BD52: 0.6 | BE52: 0.8 | BF52: 0.8 | BG52: 0.8 | BH52: 1 | BI52: 1 | BJ52: 1 | BK52: 1 | BL52: 1 | BM52: 1 | BN52: 1 | BO52: 1 | BP52: 1 | BQ52: 1 | BR52: 1 | BS52: 1 | BT52: 1 | BU52: 2 | BW52: No regulations/ familiarity | BZ52: Non-U.S. Regulations/ Familiarity exists | CC52: U.S. Regulations/ Familiarity exist but not applied | CF52: U.S. Regulations/ Familiarity exists and applied | CR52: 1 | CS52: No regulatory experience exists for key fuel cycle facility types and use | CV52: No U.S. regulatory experience for fuel cycle facility types and use, but international regulatory experience exists through licensing of operating facilities | CY52: U.S. Regulations and regulatory experience exists for fuel cycle facility types but have not been demonstrated through issuing operating licenses. Regulatory authorities have some previous experience with key fuel cycle components, but may not have licensed these facility types | DB52: U.S. Regulations and regulatory experience exists for fuel cycle facility types that have been demonstrated through issuing operating licenses | DP52: -1 | DQ52: -0.9 | DR52: -0.75 | DS52: -0.74 | DT52: -0.6 | DU52: -0.45 | DV52: -0.44 | DW52: -0.3 | DX52: -0.15 | DY52: -0.14 | DZ52: 0 | EA52: 0.15 | EB52: 0.16 | EC52: 0.3 | ED52: 0.4 | EE52: 0.5 | EF52: 0.6 | EG52: 0.7 | EH52: 0.8 | EI52: 0.9 | EJ52: 1
A53: S-Curve 2 High 3 | B53: 0 | C53: =1-Exp_Func2_3(-C$22) ->  | D53: =1-Exp_Func2_3(-D$22) ->  | L53: 0.5 | M53: =Exp_Func2_3(M$22) ->  | N53: =Exp_Func2_3(N$22) ->  | V53: 1 | AA53: 7 | AB53: -1 | AC53: -0.9 | AD53: -0.8 | AE53: -0.7 | AF53: -0.6 | AG53: -0.5 | AH53: -0.4 | AI53: -0.3 | AJ53: -0.2 | AK53: -0.1 | AL53: 0 | AM53: 0.1 | AN53: 0.2 | AO53: 0.3 | AP53: 0.4 | AQ53: 0.5 | AR53: 0.6 | AS53: 0.7 | AT53: 0.8 | AU53: 0.9 | AV53: 1 | AX53: Custom | AY53: 0 | AZ53: 0 | BA53: 0 | BB53: 0 | BC53: 0 | BD53: 0 | BE53: 0.25 | BF53: 0.25 | BG53: 0.25 | BH53: 0.5 | BI53: 0.5 | BJ53: 0.5 | BK53: 0.75 | BL53: 0.75 | BM53: 0.75 | BN53: 1 | BO53: 1 | BP53: 1 | BQ53: 1 | BR53: 1 | BS53: 1 | BT53: 1 | BU53: 2 | BZ53: Markets weak; Significant capital risk; Requires significant government investment | CC53: Markets weak; Low capital risk; Requires government investment | CF53: Markets weak; Low capital risk; Requires government investment | CI53: Markets exist; Some capital risk | CL53: Markets exist; Low capital risk; Incentives in place | CR53: 1 | CV53: The fuel cycle type exhibits challenges with respect to the magnitude of capital investment required and payback prospects and is weakened significantly from disincentives related to capital at risk. | CY53: The fuel cycle type exhibits challenges with respect to the magnitude of capital investment required and payback prospects. While incentives exist, the fuel cycle type, on balance, is weakened from disincentives related to capital at risk. | DB53: The fuel cycle type is neutral with respect to the magnitude of capital investment required and payback prospects, exhibiting off-setting incentives and disincentives. | DE53: The fuel cycle type exhibits promise with respect to the magnitude of capital investment required and payback prospects. Although disincentives exist, the fuel cycle type, on balance, benefits from incentives related to capital at risk. | DH53: The fuel cycle type exhibits promise with respect to the magnitude of capital investment required and payback prospects and benefits significantly from incentives related to capital at risk. | DP53: -1 | DQ53: -0.9 | DR53: -0.8 | DS53: -0.7 | DT53: -0.6 | DU53: -0.45 | DV53: -0.44 | DW53: -0.3 | DX53: -0.15 | DY53: -0.14 | DZ53: 0 | EA53: 0.15 | EB53: 0.16 | EC53: 0.3 | ED53: 0.45 | EE53: 0.46 | EF53: 0.6 | EG53: 0.7 | EH53: 0.8 | EI53: 0.9 | EJ53: 1
A54: S-Curve 2 Low 1 | B54: 1 | C54: =1-C51 ->  | D54: =1-D51 ->  | L54: 0.5 | V54: 0 | AA54: 8 | AB54: -1 | AC54: -0.9 | AD54: -0.8 | AE54: -0.7 | AF54: -0.6 | AG54: -0.5 | AH54: -0.4 | AI54: -0.3 | AJ54: -0.2 | AK54: -0.1 | AL54: 0 | AM54: 0.1 | AN54: 0.2 | AO54: 0.3 | AP54: 0.4 | AQ54: 0.5 | AR54: 0.6 | AS54: 0.7 | AT54: 0.8 | AU54: 0.9 | AV54: 1 | AX54: Custom | AY54: 0 | AZ54: 0 | BA54: 0 | BB54: 0.1 | BC54: 0.1 | BD54: 0.1 | BE54: 0.5 | BF54: 0.5 | BG54: 0.5 | BH54: 1 | BI54: 1 | BJ54: 1 | BK54: 1 | BL54: 1 | BM54: 1 | BN54: 1 | BO54: 1 | BP54: 1 | BQ54: 1 | BR54: 1 | BS54: 1 | BT54: 1 | BU54: 2 | BW54: Incompatible - <10% | BZ54: Partly Compatible - < 50% but > 10% | CC54: Mostly Compatible - > 50% but < 90% | CF54: Compatible - >90% | CR54: 1 | CS54: The fuel cycle option utilizes few or none of the components of the existing infrastructure and requires mostly new infrastructure components for deployment. Estimate is that less than 10% of the required infrastructure can be based on existing infrastructure | CV54: The fuel cycle option utilizes some components of the existing infrastructure and requires mostly additional infrastructure components. Estimate is that less than 50% (but more than 10%) of the required infrastructure will be based on existing infrastructure | CY54: The fuel cycle option utilizes most components of the existing infrastructure and may require some additional infrastructure components. The fuel cycle option utilizes mostly components of the existing infrastructure and may require some additional infrastructure components. Estimate is that more than 50% (but less than 90%) of the required infrastructure can be based on existing infrastructure | DB54: The fuel cycle option fully utilizes the existing infrastructure as represented by the fuel cycle basis for comparison, needing very little additional infrastructure to deploy the fuel cycle. Estimate is that 90% or more of the required infrastructure can be based on existing infrastructure | DP54: -1 | DQ54: -0.9 | DR54: -0.75 | DS54: -0.74 | DT54: -0.6 | DU54: -0.45 | DV54: -0.44 | DW54: -0.3 | DX54: -0.15 | DY54: -0.14 | DZ54: 0 | EA54: 0.15 | EB54: 0.16 | EC54: 0.3 | ED54: 0.4 | EE54: 0.5 | EF54: 0.6 | EG54: 0.7 | EH54: 0.8 | EI54: 0.9 | EJ54: 1
A55: S-Curve 2 Low 2 | B55: 1 | C55: =1-C52 ->  | D55: =1-D52 ->  | E55: =1-E52 ->  | L55: 0.5 | V55: 0 | AA55: 9 | AB55: -1 | AC55: -0.9 | AD55: -0.8 | AE55: -0.7 | AF55: -0.6 | AG55: -0.5 | AH55: -0.4 | AI55: -0.3 | AJ55: -0.2 | AK55: -0.1 | AL55: 0 | AM55: 0.1 | AN55: 0.2 | AO55: 0.3 | AP55: 0.4 | AQ55: 0.5 | AR55: 0.6 | AS55: 0.7 | AT55: 0.8 | AU55: 0.9 | AV55: 1 | AX55: Custom | AY55: 0 | AZ55: 0 | BA55: 0 | BB55: 0.6 | BC55: 0.6 | BD55: 0.6 | BE55: 0.8 | BF55: 0.8 | BG55: 0.8 | BH55: 1 | BI55: 1 | BJ55: 1 | BK55: 1 | BL55: 1 | BM55: 1 | BN55: 1 | BO55: 1 | BP55: 1 | BQ55: 1 | BR55: 1 | BS55: 1 | BT55: 1 | BU55: 2 | BW55: No regulations/ familiarity | BZ55: Non-U.S. Regulations/ Familiarity exists | CC55: U.S. Regulations/ Familiarity exist but not applied | CF55: U.S. Regulations/ Familiarity exists and applied | CR55: 1 | CS55: No regulatory experience exists for key fuel cycle facility types and use | CV55: No U.S. regulatory experience for fuel cycle facility types and use, but international regulatory experience exists through licensing of operating facilities | CY55: U.S. Regulations and regulatory experience exists for fuel cycle facility types but have not been demonstrated through issuing operating licenses. Regulatory authorities have some previous experience with key fuel cycle components, but may not have licensed these facility types | DB55: U.S. Regulations and regulatory experience exists for fuel cycle facility types that have been demonstrated through issuing operating licenses | DP55: -1 | DQ55: -0.9 | DR55: -0.75 | DS55: -0.74 | DT55: -0.6 | DU55: -0.45 | DV55: -0.44 | DW55: -0.3 | DX55: -0.15 | DY55: -0.14 | DZ55: 0 | EA55: 0.15 | EB55: 0.16 | EC55: 0.3 | ED55: 0.4 | EE55: 0.5 | EF55: 0.6 | EG55: 0.7 | EH55: 0.8 | EI55: 0.9 | EJ55: 1
A56: S-Curve 2 Low 3 | B56: 1 | C56: =1-C53 ->  | D56: =1-D53 ->  | L56: 0.5 | V56: 0 | AA56: 10 | AB56: -1 | AC56: -0.9 | AD56: -0.8 | AE56: -0.7 | AF56: -0.6 | AG56: -0.5 | AH56: -0.4 | AI56: -0.3 | AJ56: -0.2 | AK56: -0.1 | AL56: 0 | AM56: 0.1 | AN56: 0.2 | AO56: 0.3 | AP56: 0.4 | AQ56: 0.5 | AR56: 0.6 | AS56: 0.7 | AT56: 0.8 | AU56: 0.9 | AV56: 1 | AX56: Custom | AY56: 0 | AZ56: 0 | BA56: 0 | BB56: 0 | BC56: 0 | BD56: 0 | BE56: 0.25 | BF56: 0.25 | BG56: 0.25 | BH56: 0.5 | BI56: 0.5 | BJ56: 0.5 | BK56: 0.75 | BL56: 0.75 | BM56: 0.75 | BN56: 1 | BO56: 1 | BP56: 1 | BQ56: 1 | BR56: 1 | BS56: 1 | BT56: 1 | BU56: 2 | BZ56: Markets weak; Significant capital risk; Requires significant government investment | CC56: Markets weak; Low capital risk; Requires government investment | CF56: Markets weak; Low capital risk; Requires government investment | CI56: Markets exist; Some capital risk | CL56: Markets exist; Low capital risk; Incentives in place | CR56: 1 | CV56: The fuel cycle type exhibits challenges with respect to the magnitude of capital investment required and payback prospects and is weakened significantly from disincentives related to capital at risk. | CY56: The fuel cycle type exhibits challenges with respect to the magnitude of capital investment required and payback prospects. While incentives exist, the fuel cycle type, on balance, is weakened from disincentives related to capital at risk. | DB56: The fuel cycle type is neutral with respect to the magnitude of capital investment required and payback prospects, exhibiting off-setting incentives and disincentives. | DE56: The fuel cycle type exhibits promise with respect to the magnitude of capital investment required and payback prospects. Although disincentives exist, the fuel cycle type, on balance, benefits from incentives related to capital at risk. | DH56: The fuel cycle type exhibits promise with respect to the magnitude of capital investment required and payback prospects and benefits significantly from incentives related to capital at risk. | DP56: -1 | DQ56: -0.9 | DR56: -0.8 | DS56: -0.7 | DT56: -0.6 | DU56: -0.45 | DV56: -0.44 | DW56: -0.3 | DX56: -0.15 | DY56: -0.14 | DZ56: 0 | EA56: 0.15 | EB56: 0.16 | EC56: 0.3 | ED56: 0.45 | EE56: 0.46 | EF56: 0.6 | EG56: 0.7 | EH56: 0.8 | EI56: 0.9 | EJ56: 1
AA57: 11 | AB57: -1 | AC57: -0.9 | AD57: -0.8 | AE57: -0.7 | AF57: -0.6 | AG57: -0.5 | AH57: -0.4 | AI57: -0.3 | AJ57: -0.2 | AK57: -0.1 | AL57: 0 | AM57: 0.1 | AN57: 0.2 | AO57: 0.3 | AP57: 0.4 | AQ57: 0.5 | AR57: 0.6 | AS57: 0.7 | AT57: 0.8 | AU57: 0.9 | AV57: 1 | AX57: Custom | AY57: 0 | AZ57: 0 | BA57: 0 | BB57: 0 | BC57: 0 | BD57: 0 | BE57: 0.25 | BF57: 0.25 | BG57: 0.25 | BH57: 0.5 | BI57: 0.5 | BJ57: 0.5 | BK57: 0.75 | BL57: 0.75 | BM57: 0.75 | BN57: 1 | BO57: 1 | BP57: 1 | BQ57: 1 | BR57: 1 | BS57: 1 | BU57: 2 | BZ57: E. Likely to be Much Higher | CC57: D. Likely to be Higher | CF57: C. Likely to be "Similar" | CI57: B. Likely to be Comparable to Current U.S. Fuel Cycle | CL57: A. Likely to be Lower | CR57: 1 | DP57: -1 | DQ57: -0.9 | DR57: -0.8 | DS57: -0.7 | DT57: -0.6 | DU57: -0.45 | DV57: -0.44 | DW57: -0.3 | DX57: -0.15 | DY57: -0.14 | DZ57: 0 | EA57: 0.14 | EB57: 0.15 | EC57: 0.3 | ED57: 0.45 | EE57: 0.46 | EF57: 0.6 | EG57: 0.7 | EH57: 0.8 | EI57: 0.9 | EJ57: 1
B58: Definitions: | AA58: 12 | AB58: 6 | AC58: 5 | AD58: 4 | AE58: 3 | AF58: 2 | AG58: 1 | AH58: 1 | AI58: 0.75 | AJ58: 0.5 | AK58: 0.5 | AL58: 0.35 | AM58: 0.2 | AN58: 0.2 | AO58: 0.15 | AP58: 0.1 | AQ58: 0.1 | AR58: 0.05 | AS58: 0 | AT58: 0 | AU58: 0 | AV58: 0 | AW58: km2/GWe-yr | AX58: Custom | AY58: 0 | AZ58: 0 | BA58: 0 | BB58: 0 | BC58: 0 | BD58: 0 | BE58: 0.52 | BF58: 0.52 | BG58: 0.52 | BH58: 0.79 | BI58: 0.79 | BJ58: 0.79 | BK58: 0.93 | BL58: 0.93 | BM58: 0.93 | BN58: 1 | BO58: 1 | BP58: 1 | BQ58: 1 | BR58: 1 | BS58: 1 | BT58: 1 | BU58: 2 | BV58: 2 | BZ58: > 1.0 km2/GWe-yr | CC58: 0.5 - 1.0 km2/GWe-yr | CF58: 0.2 - 0.5 km2/GWe-yr | CI58: 0.1 - 0.2 km2/GWe-yr | CL58: < 0.1 km2/GWe-yr | CR58: 1 | DP58: -1 | DQ58: -0.9 | DR58: -0.8 | DS58: -0.7 | DT58: -0.6 | DU58: -0.45 | DV58: -0.44 | DW58: -0.3 | DX58: -0.15 | DY58: -0.14 | DZ58: 0 | EA58: 0.14 | EB58: 0.15 | EC58: 0.3 | ED58: 0.45 | EE58: 0.46 | EF58: 0.6 | EG58: 0.7 | EH58: 0.8 | EI58: 0.9 | EJ58: 1
B59: Very significant R&D required that may require significant technical breakthroughs, new discoveries or extended research, development of long-lead time laboratory experiments before engineering/pilot demonstration. Estimated development time is greater than 50 years | E59: Significant R&D required that may require more fundamental development at laboratory scale before developing capabilities that can be demonstrated at engineering/pilot scale. Estimated development time is 25-50 years | H59: R&D required that requires extended development time to arrive at a workable capability and demonstration at the engineering/pilot scale. Estimated development time is 10-25 years | K59: R&D required, but many of the required capabilities are either already demonstrated or nearly demonstrated. Additional engineering/pilot scale in the near term likely using existing facilities or based on historical experience. Example may be the qualification of a well-established fuel. Estimated development time is 5-10 years | N59: R&D required, but most of the required capabilities already demonstrated and any additional R&D is limited in scope and can be supported with existing facilities with little or no modifications. Estimated development time is less than 5 years | Q59: No R&D needed. Technology is already at TRL 6 or beyond. Development time is 0 years. | AA59: 13 | AB59: 45000 | AC59: 45000 | AD59: 45000 | AE59: 45000 | AF59: 45000 | AG59: 45000 | AH59: 45000 | AI59: 37500 | AJ59: 30000 | AK59: 30000 | AL59: 22500 | AM59: 15000 | AN59: 15000 | AO59: 7500 | AP59: 0 | AQ59: 0 | AR59: 0 | AS59: 0 | AT59: 0 | AU59: 0 | AV59: 0 | AW59: ML/GWe-yr | AX59: Custom | AY59: 0 | AZ59: 0 | BA59: 0 | BB59: 0 | BC59: 0 | BD59: 0 | BE59: 0 | BF59: 0 | BG59: 0 | BH59: 0.5 | BI59: 0.5 | BJ59: 0.5 | BK59: 1 | BL59: 1 | BM59: 1 | BN59: 1 | BO59: 1 | BP59: 1 | BQ59: 1 | BR59: 1 | BS59: 1 | BT59: 1 | BU59: 2 | BV59: 2 | CC59: > 30,000 ML/GWe-yr | CF59: 15,000 - 30,000 ML/GWe-yr | CI59: < 15,000 ML/GWe-yr | CR59: 1 | DP59: -1 | DQ59: -0.9 | DR59: -0.8 | DS59: -0.7 | DT59: -0.6 | DU59: -0.5 | DV59: -0.4 | DW59: -0.3 | DX59: -0.15 | DY59: -0.14 | DZ59: 0 | EA59: 0.15 | EB59: 0.16 | EC59: 0.3 | ED59: 0.4 | EE59: 0.5 | EF59: 0.6 | EG59: 0.7 | EH59: 0.8 | EI59: 0.9 | EJ59: 1
AA60: 14 | AB60: 360 | AC60: 360 | AD60: 360 | AE60: 360 | AF60: 300 | AG60: 240 | AH60: 240 | AI60: 180 | AJ60: 120 | AK60: 120 | AL60: 90 | AM60: 60 | AN60: 60 | AO60: 45 | AP60: 30 | AQ60: 30 | AR60: 15 | AS60: 0 | AT60: 0 | AU60: 0 | AV60: 0 | AW60: kt/GWe-yr | AX60: Custom | AY60: 0 | AZ60: 0 | BA60: 0 | BB60: 0 | BC60: 0 | BD60: 0 | BE60: 0.52 | BF60: 0.52 | BG60: 0.52 | BH60: 0.78 | BI60: 0.78 | BJ60: 0.78 | BK60: 0.91 | BL60: 0.91 | BM60: 0.91 | BN60: 1 | BO60: 1 | BP60: 1 | BQ60: 1 | BR60: 1 | BS60: 1 | BT60: 1 | BU60: 2 | BZ60: > 240 kt/GWe-yr | CC60: 120 - 240 kt/GWe-yr | CF60: 60 - 120 kt/GWe-yr | CI60: 30 - 60 kt/GWe-yr | CL60: <30 kt/GWe-yr | CR60: 1 | DP60: -1 | DQ60: -0.9 | DR60: -0.8 | DS60: -0.7 | DT60: -0.6 | DU60: -0.45 | DV60: -0.44 | DW60: -0.3 | DX60: -0.15 | DY60: -0.14 | DZ60: 0 | EA60: 0.14 | EB60: 0.15 | EC60: 0.3 | ED60: 0.45 | EE60: 0.46 | EF60: 0.6 | EG60: 0.7 | EH60: 0.8 | EI60: 0.9 | EJ60: 1
AA61: 15 | AB61: 85 | AC61: 75 | AD61: 65 | AE61: 55 | AF61: 45 | AG61: 35 | AH61: 25 | AI61: 15 | AJ61: 5.0000001 | AK61: 5 | AL61: 2.75 | AM61: 0.5 | AN61: 0.49999 | AO61: 0.4 | AP61: 0.3 | AQ61: 0.2 | AR61: 0.1 | AS61: 0 | AT61: 0 | AU61: 0 | AV61: 0 | AW61: Person-Sv/GWe-yr | AX61: Custom | AY61: 0 | AZ61: 0 | BA61: 0 | BB61: 0 | BC61: 0 | BD61: 0 | BE61: 0 | BF61: 0 | BG61: 0 | BH61: 0.9 | BI61: 0.9 | BJ61: 0.9 | BK61: 1 | BL61: 1 | BM61: 1 | BN61: 1 | BO61: 1 | BP61: 1 | BQ61: 1 | BR61: 1 | BS61: 1 | BT61: 1 | BU61: 2 | BV61: 2 | CC61: Total worker dose of > 5.0 person-Sv/Gwe-yr | CF61: Total worker dose of 0.5 – 5.0 person-Sv/Gwe-yr | CI61: Total worker dose of <0.5 person-Sv/Gwe-yr | CR61: 1 | CY61: Total worker dose of > 5.0 person-Sv/Gwe-yr | DB61: Total worker dose of 0.5 – 5.0 person-Sv/Gwe-yr | DE61: Total worker dose of <0.5 person-Sv/Gwe-yr | DP61: -1 | DQ61: -0.9 | DR61: -0.8 | DS61: -0.7 | DT61: -0.6 | DU61: -0.5 | DV61: -0.4 | DW61: -0.3 | DX61: -0.15 | DY61: -0.14 | DZ61: 0 | EA61: 0.15 | EB61: 0.16 | EC61: 0.3 | ED61: 0.4 | EE61: 0.5 | EF61: 0.6 | EG61: 0.7 | EH61: 0.8 | EI61: 0.9 | EJ61: 1
AA62: 16 | AB62: 150 | AC62: 93 | AD62: 36.0001 | AE62: 36 | AF62: 24 | AG62: 12.00001 | AH62: 12 | AI62: 9 | AJ62: 6.00001 | AK62: 6 | AL62: 4.5 | AM62: 3.00001 | AN62: 3 | AO62: 2.3 | AP62: 1.650001 | AQ62: 1.65 | AR62: 0.825 | AS62: 0 | AT62: 0 | AU62: 0 | AV62: 0 | AW62: t/GWe-yr | AX62: Custom | AY62: 0 | AZ62: 0 | BA62: 0 | BB62: 0.19 | BC62: 0.19 | BD62: 0.19 | BE62: 0.43 | BF62: 0.43 | BG62: 0.43 | BH62: 0.59 | BI62: 0.59 | BJ62: 0.59 | BK62: 0.75 | BL62: 0.75 | BM62: 0.75 | BN62: 1 | BO62: 1 | BP62: 1 | BQ62: 1 | BR62: 1 | BS62: 1 | BT62: 1 | BU62: 2 | BW62: > 36 t/GWe-yr | BZ62: 12 to 36 t/GWe-yr | CC62: 6 to 12 t/GWe-yr | CF62: 3 to 6 t/GWe-yr | CI62: 1.65 to 3 t/GWe-yr | CL62: < 1.65 t/GWe-yr | CR62: 1 | CS62: SNF+HLW mass ≥ 36 t/GWe-yr | CV62: SNF+HLW mass ≥ 12 t/GWe-yr and < 36 t/GWe-yr; contains the basis of comparison | CY62: SNF+HLW mass ≥ 6 t/GWe-yr and < 12 t/GWe-yr | DB62: SNF+HLW mass ≥ 3 t/GWe-yr and < 6 t/GWe-yr | DE62: SNF+HLW mass ≥ 1.65 t/GWe-yr and < 3 t/GWe-yr | DH62: SNF+HLW mass < 1.65 t/GWe-yr; similar to the HLW mass from processing of LWR SNF to recover all U | DP62: -1 | DQ62: -0.9 | DR62: -0.75 | DS62: -0.74 | DT62: -0.6 | DU62: -0.45 | DV62: -0.44 | DW62: -0.3 | DX62: -0.15 | DY62: -0.14 | DZ62: 0 | EA62: 0.14 | EB62: 0.15 | EC62: 0.3 | ED62: 0.45 | EE62: 0.46 | EF62: 0.6 | EG62: 0.7 | EH62: 0.8 | EI62: 0.9 | EJ62: 1
AA63: 17 | AB63: 2.4 | AC63: 2.4 | AD63: 2.4 | AE63: 2.4 | AF63: 2.2 | AG63: 2 | AH63: 2 | AI63: 1.8 | AJ63: 1.6 | AK63: 1.6 | AL63: 1.375 | AM63: 1.05 | AN63: 1.05 | AO63: 0.86 | AP63: 0.67 | AQ63: 0.67 | AR63: 0.48 | AS63: 0.29 | AT63: 0 | AU63: 0 | AV63: 0 | AW63: MCi/GWe-yr | AX63: Custom | AY63: 0 | AZ63: 0 | BA63: 0 | BB63: 0 | BC63: 0 | BD63: 0 | BE63: 0.23 | BF63: 0.23 | BG63: 0.23 | BH63: 0.37 | BI63: 0.37 | BJ63: 0.37 | BK63: 0.57 | BL63: 0.57 | BM63: 0.57 | BN63: 1 | BO63: 1 | BP63: 1 | BQ63: 1 | BR63: 1 | BS63: 1 | BT63: 1 | BU63: 2 | BZ63: > 2.0 MCi/GWe-yr | CC63: 1.6 to 2.0 MCi/GWe-yr | CF63: 1.05 to 1.6 MCi/GWe-yr | CI63: 0.67 to 1.05 MCi/GWe-yr | CL63: <0.67 MCi/GWe-yr | CR63: 1 | DP63: -1 | DQ63: -0.9 | DR63: -0.8 | DS63: -0.7 | DT63: -0.6 | DU63: -0.45 | DV63: -0.44 | DW63: -0.3 | DX63: -0.15 | DY63: -0.14 | DZ63: 0 | EA63: 0.14 | EB63: 0.15 | EC63: 0.3 | ED63: 0.45 | EE63: 0.46 | EF63: 0.6 | EG63: 0.7 | EH63: 0.8 | EI63: 0.9 | EJ63: 1
AA64: 18 | AB64: 0.015 | AC64: 0.0125 | AD64: 0.01 | AE64: 0.01 | AF64: 0.0075 | AG64: 0.005 | AH64: 0.005 | AI64: 0.00365 | AJ64: 0.0023 | AK64: 0.0023 | AL64: 0.00165 | AM64: 0.001 | AN64: 0.001 | AO64: 0.00075 | AP64: 0.0005 | AQ64: 0.0005 | AR64: 0.00025 | AS64: 0 | AT64: 0 | AU64: 0 | AV64: 0 | AW64: MCi/GWe-yr | AX64: Custom | AY64: 0 | AZ64: 0 | BA64: 0 | BB64: 0.17 | BC64: 0.17 | BD64: 0.17 | BE64: 0.35 | BF64: 0.35 | BG64: 0.35 | BH64: 0.54 | BI64: 0.54 | BJ64: 0.54 | BK64: 0.73 | BL64: 0.73 | BM64: 0.73 | BN64: 1 | BO64: 1 | BP64: 1 | BQ64: 1 | BR64: 1 | BS64: 1 | BT64: 1 | BU64: 2 | BV64: 2 | BW64: > 1.0E-2 MCi/GWe-yr | BZ64: 5.0E-3 to 1.0E-2 MCi/GWe-yr | CC64: 2.3E-3 to 5.0E-3 MCi/GWe-yr | CF64: 1.0E-3 to 2.3E-3 MCi/GWe-yr | CI64: 5.0E-4 to 1.0E-3 MCi/GWe-yr | CL64: < 5.0E-4 MCi/GWe-yr | CR64: 1 | DP64: -1 | DQ64: -0.9 | DR64: -0.75 | DS64: -0.74 | DT64: -0.6 | DU64: -0.45 | DV64: -0.44 | DW64: -0.3 | DX64: -0.15 | DY64: -0.14 | DZ64: 0 | EA64: 0.14 | EB64: 0.15 | EC64: 0.3 | ED64: 0.45 | EE64: 0.46 | EF64: 0.6 | EG64: 0.7 | EH64: 0.8 | EI64: 0.9 | EJ64: 1
AA65: 19 | AB65: 400 | AC65: 300 | AD65: 200 | AE65: 200 | AF65: 160 | AG65: 120 | AH65: 120 | AI65: 100 | AJ65: 80 | AK65: 80 | AL65: 60 | AM65: 40 | AN65: 40 | AO65: 20.5 | AP65: 1 | AQ65: 1 | AR65: 0.5 | AS65: 0 | AT65: 0 | AU65: 0 | AV65: 0 | AW65: t/GWe-yr | AX65: Custom | AY65: 0 | AZ65: 0 | BA65: 0 | BB65: 0.47 | BC65: 0.47 | BD65: 0.47 | BE65: 0.67 | BF65: 0.67 | BG65: 0.67 | BH65: 0.8 | BI65: 0.8 | BJ65: 0.8 | BK65: 0.93 | BL65: 0.93 | BM65: 0.93 | BN65: 1 | BO65: 1 | BP65: 1 | BQ65: 1 | BR65: 1 | BS65: 1 | BT65: 1 | BU65: 2 | BV65: 2 | BW65: > 200 t/GWe-yr | BZ65: 120 to 200 t/GWe-yr | CC65: 80 to 120 t/GWe-yr | CF65: 40 to 80 t/GWe-yr | CI65: 1 to 40 t/GWe-yr | CL65: < 1 t/GWe-yr | CR65: 1 | DP65: -1 | DQ65: -0.9 | DR65: -0.75 | DS65: -0.74 | DT65: -0.6 | DU65: -0.45 | DV65: -0.44 | DW65: -0.3 | DX65: -0.15 | DY65: -0.14 | DZ65: 0 | EA65: 0.14 | EB65: 0.15 | EC65: 0.3 | ED65: 0.45 | EE65: 0.46 | EF65: 0.6 | EG65: 0.7 | EH65: 0.8 | EI65: 0.9 | EJ65: 1
AA66: 20 | AB66: 4000 | AC66: 4000 | AD66: 4000 | AE66: 4000 | AF66: 2796 | AG66: 1592 | AH66: 1592 | AI66: 1113 | AJ66: 634 | AK66: 634 | AL66: 443 | AM66: 252 | AN66: 252 | AO66: 176 | AP66: 100 | AQ66: 100 | AR66: 70 | AS66: 40 | AT66: 40 | AU66: 40 | AV66: 40 | AW66: m3/GWe-yr | AX66: Custom | AY66: 0 | AZ66: 0 | BA66: 0 | BB66: 0 | BC66: 0 | BD66: 0 | BE66: 0.62 | BF66: 0.62 | BG66: 0.62 | BH66: 0.86 | BI66: 0.86 | BJ66: 0.86 | BK66: 0.96 | BL66: 0.96 | BM66: 0.96 | BN66: 1 | BO66: 1 | BP66: 1 | BQ66: 1 | BR66: 1 | BS66: 1 | BT66: 1 | BU66: 2 | BV66: 2 | BZ66: Greater than 1592 m^3/GWe-yr | CC66: 634 to 1592 m^3/GWe-yr | CF66: 252 to 634 m^3/GWe-yr | CI66: 100 to 252 m^3/GWe-yr | CL66: Less than 100 m^3/GWe-yr | CR66: 1 | DP66: -1 | DQ66: -0.9 | DR66: -0.8 | DS66: -0.7 | DT66: -0.6 | DU66: -0.45 | DV66: -0.44 | DW66: -0.3 | DX66: -0.15 | DY66: -0.14 | DZ66: 0 | EA66: 0.14 | EB66: 0.15 | EC66: 0.3 | ED66: 0.45 | EE66: 0.46 | EF66: 0.6 | EG66: 0.7 | EH66: 0.8 | EI66: 0.9 | EJ66: 1
AA67: 21 | AB67: 3 | AC67: 2.5 | AD67: 2 | AE67: 1.999 | AF67: 1.5 | AG67: 1 | AH67: 0.999 | AI67: 0.5 | AJ67: 0 | AK67: -0.001 | AL67: -0.5 | AM67: -1 | AN67: -1 | AO67: -1 | AP67: -1 | AQ67: -1 | AR67: -1 | AS67: -1 | AT67: -1 | AU67: -1 | AV67: -1 | AX67: Custom | AY67: 0 | AZ67: 0 | BA67: 0 | BB67: 0.25 | BC67: 0.25 | BD67: 0.25 | BE67: 0.9 | BF67: 0.9 | BG67: 0.9 | BH67: 1 | BI67: 1 | BJ67: 1 | BK67: 1 | BL67: 1 | BM67: 1 | BN67: 1 | BO67: 1 | BP67: 1 | BQ67: 1 | BR67: 1 | BS67: 1 | BT67: 1 | BU67: 2 | BV67: 2 | BW67: Max FOM1 is > 2 | BZ67: Max FOM1 is between 1 and 2 | CC67: Max FOM1 is between 0 and 1 | CF67: Max FOM1 is < 0 | CR67: 1 | DP67: -1 | DQ67: -0.9 | DR67: -0.76 | DS67: -0.75 | DT67: -0.6 | DU67: -0.46 | DV67: -0.45 | DW67: -0.3 | DX67: -0.15 | DY67: -0.14 | DZ67: 0 | EA67: 0.15 | EB67: 0.16 | EC67: 0.3 | ED67: 0.4 | EE67: 0.5 | EF67: 0.6 | EG67: 0.7 | EH67: 0.8 | EI67: 0.9 | EJ67: 1
AA68: 22 | AB68: 3 | AC68: 2.5 | AD68: 2 | AE68: 1.999 | AF68: 1.5 | AG68: 1 | AH68: 0.999 | AI68: 0.5 | AJ68: 0 | AK68: -0.001 | AL68: -0.5 | AM68: -1 | AN68: -1 | AO68: -1 | AP68: -1 | AQ68: -1 | AR68: -1 | AS68: -1 | AT68: -1 | AU68: -1 | AV68: -1 | AX68: Linear High | AY68: 0 | AZ68: 0 | BA68: 0 | BB68: 0.25 | BC68: 0.25 | BD68: 0.25 | BE68: 0.9 | BF68: 0.9 | BG68: 0.9 | BH68: 1 | BI68: 1 | BJ68: 1 | BK68: 1 | BL68: 1 | BM68: 1 | BN68: 1 | BO68: 1 | BP68: 1 | BQ68: 1 | BR68: 1 | BS68: 1 | BT68: 1 | BU68: 2 | BW68: Max FOM1 is > 2 | BZ68: Max FOM1 is between 1 and 2 | CC68: Max FOM1 is between 0 and 1 | CF68: Max FOM1 is < 0 | CR68: 1 | DP68: -1 | DQ68: -0.9 | DR68: -0.76 | DS68: -0.75 | DT68: -0.6 | DU68: -0.46 | DV68: -0.45 | DW68: -0.3 | DX68: -0.15 | DY68: -0.14 | DZ68: 0 | EA68: 0.15 | EB68: 0.16 | EC68: 0.3 | ED68: 0.4 | EE68: 0.5 | EF68: 0.6 | EG68: 0.7 | EH68: 0.8 | EI68: 0.9 | EJ68: 1
AA69: 23 | AB69: 23 | AC69: 23 | AD69: 23 | AE69: 23 | AF69: 21 | AG69: 19 | AH69: 19 | AI69: 17.15 | AJ69: 15.3 | AK69: 15.3 | AL69: 12.65 | AM69: 10 | AN69: 10 | AO69: 8.2 | AP69: 6.4 | AQ69: 6.4 | AR69: 3.2 | AS69: 0 | AT69: 0 | AU69: 0 | AV69: 0 | AW69: MCi/MWe-yr | AX69: Custom | AY69: 0 | AZ69: 0 | BA69: 0 | BB69: 0 | BC69: 0 | BD69: 0 | BE69: 0.45 | BF69: 0.45 | BG69: 0.45 | BH69: 0.63 | BI69: 0.63 | BJ69: 0.63 | BK69: 0.8 | BL69: 0.8 | BM69: 0.8 | BN69: 1 | BO69: 1 | BP69: 1 | BQ69: 1 | BR69: 1 | BS69: 1 | BT69: 1 | BU69: 2 | BV69: 1 | BZ69: > 19.0 MCi/GWe-yr | CC69: 15.3 to 19.0 MCi/GWe-yr | CF69: 10.0 to 15.3 MCi/GWe-yr | CI69: 6.4 to 10.0 MCi/GWe-yr | CL69: <6.4 MCi/GWe-yr | CR69: 1 | DP69: -1 | DQ69: -0.9 | DR69: -0.8 | DS69: -0.7 | DT69: -0.6 | DU69: -0.45 | DV69: -0.44 | DW69: -0.3 | DX69: -0.15 | DY69: -0.14 | DZ69: 0 | EA69: 0.14 | EB69: 0.15 | EC69: 0.3 | ED69: 0.45 | EE69: 0.46 | EF69: 0.6 | EG69: 0.7 | EH69: 0.8 | EI69: 0.9 | EJ69: 1
AA70: 24 | AB70: 310 | AC70: 310 | AD70: 310 | AE70: 255 | AF70: 200 | AG70: 145 | AH70: 145 | AI70: 90 | AJ70: 35 | AK70: 35 | AL70: 19.4 | AM70: 3.8 | AN70: 3.8 | AO70: 1.9 | AP70: 0 | AQ70: 0 | AR70: 0 | AS70: 0 | AT70: 0 | AU70: 0 | AV70: 0 | AW70: t/GWe-yr | AX70: Custom | AY70: 0 | AZ70: 0 | BA70: 0 | BB70: 0 | BC70: 0 | BD70: 0 | BE70: 0.59 | BF70: 0.59 | BG70: 0.59 | BH70: 0.92 | BI70: 0.92 | BJ70: 0.92 | BK70: 1 | BL70: 1 | BM70: 1 | BN70: 1 | BO70: 1 | BP70: 1 | BQ70: 1 | BR70: 1 | BS70: 1 | BT70: 1 | BU70: 2 | BZ70: > 145 t/GWe-yr | CC70: 35 to 145 t/GWe-yr | CF70: 3.8 to 35 t/GWe-yr | CI70: <3.8 t/GWe-yr | CR70: 1 | DP70: -1 | DQ70: -0.9 | DR70: -0.8 | DS70: -0.7 | DT70: -0.6 | DU70: -0.45 | DV70: -0.44 | DW70: -0.3 | DX70: -0.15 | DY70: -0.14 | DZ70: 0 | EA70: 0.14 | EB70: 0.15 | EC70: 0.3 | ED70: 0.45 | EE70: 0.46 | EF70: 0.6 | EG70: 0.7 | EH70: 0.8 | EI70: 0.9 | EJ70: 1
AA71: 25 | AB71: 310 | AC71: 310 | AD71: 310 | AE71: 255 | AF71: 200 | AG71: 145 | AH71: 145 | AI71: 90 | AJ71: 35 | AK71: 35 | AL71: 19.4 | AM71: 3.8 | AN71: 3.8 | AO71: 1.9 | AP71: 0 | AQ71: 0 | AR71: 0 | AS71: 0 | AT71: 0 | AU71: 0 | AV71: 0 | AW71: t/GWe-yr | AX71: Custom | AY71: 0 | AZ71: 0 | BA71: 0 | BB71: 0 | BC71: 0 | BD71: 0 | BE71: 0.59 | BF71: 0.59 | BG71: 0.59 | BH71: 0.92 | BI71: 0.92 | BJ71: 0.92 | BK71: 1 | BL71: 1 | BM71: 1 | BN71: 1 | BO71: 1 | BP71: 1 | BQ71: 1 | BR71: 1 | BS71: 1 | BT71: 1 | BU71: 2 | BZ71: > 145 t/GWe-yr | CC71: 35 to 145 t/GWe-yr | CF71: 3.8 to 35 t/GWe-yr | CI71: <3.8 t/GWe-yr | CR71: 1 | DP71: -1 | DQ71: -0.9 | DR71: -0.8 | DS71: -0.7 | DT71: -0.6 | DU71: -0.45 | DV71: -0.44 | DW71: -0.3 | DX71: -0.15 | DY71: -0.14 | DZ71: 0 | EA71: 0.14 | EB71: 0.15 | EC71: 0.3 | ED71: 0.45 | EE71: 0.46 | EF71: 0.6 | EG71: 0.7 | EH71: 0.8 | EI71: 0.9 | EJ71: 1
AA72: 26 | AB72: -1 | AC72: -0.9 | AD72: -0.8 | AE72: -0.7 | AF72: -0.6 | AG72: -0.5 | AH72: -0.4 | AI72: -0.3 | AJ72: -0.2 | AK72: -0.1 | AL72: 0 | AM72: 0.1 | AN72: 0.2 | AO72: 0.3 | AP72: 0.4 | AQ72: 0.5 | AR72: 0.6 | AS72: 0.7 | AT72: 0.8 | AU72: 0.9 | AV72: 1 | AX72: Custom | AY72: 0 | AZ72: 0 | BA72: 0 | BB72: 0 | BC72: 0 | BD72: 0 | BE72: 0.6 | BF72: 0.6 | BG72: 0.6 | BH72: 0.8 | BI72: 0.8 | BJ72: 0.8 | BK72: 0.9 | BL72: 0.9 | BM72: 0.9 | BN72: 1 | BO72: 1 | BP72: 1 | BQ72: 1 | BR72: 1 | BS72: 1 | BT72: 1 | BU72: 2 | BZ72: Potenitally Significantly more challenging | CC72: Potentially More Challenging | CF72: Potentially Similar in Challenge | CI72: Potentially Less Challenging | CL72: Potentially Much Less Challenging | CR72: 1 | CV72: Identified hazards that are significantly more challenging to address than the hazards that exist in the fuel cycle basis for comparison | CY72: Identified hazards that are more challenging to address than those hazards that exist in the fuel cycle basis for comparison | DB72: Identified hazards that are similar in challenges to address than those hazards that exist in the fuel cycle basis for comparison | DE72: Identified hazards are less challenging to address than those hazards that exist in the fuel cycle basis for comparison | DH72: Identified hazards are much less challenging to address than those hazards that exist in the fuel cycle basis for comparison | DP72: -1 | DQ72: -0.9 | DR72: -0.8 | DS72: -0.7 | DT72: -0.6 | DU72: -0.45 | DV72: -0.44 | DW72: -0.3 | DX72: -0.15 | DY72: -0.14 | DZ72: 0 | EA72: 0.14 | EB72: 0.15 | EC72: 0.3 | ED72: 0.45 | EE72: 0.46 | EF72: 0.6 | EG72: 0.7 | EH72: 0.8 | EI72: 0.9 | EJ72: 1
AA73: 27 | AB73: -1 | AC73: -0.9 | AD73: -0.8 | AE73: -0.7 | AF73: -0.6 | AG73: -0.5 | AH73: -0.4 | AI73: -0.3 | AJ73: -0.2 | AK73: -0.1 | AL73: 0 | AM73: 0.1 | AN73: 0.2 | AO73: 0.3 | AP73: 0.4 | AQ73: 0.5 | AR73: 0.6 | AS73: 0.7 | AT73: 0.8 | AU73: 0.9 | AV73: 1 | AX73: Custom | AY73: 0 | AZ73: 0 | BA73: 0 | BB73: 0 | BC73: 0 | BD73: 0 | BE73: 0 | BF73: 0 | BG73: 0 | BH73: 1 | BI73: 1 | BJ73: 1 | BK73: 1 | BL73: 1 | BM73: 1 | BN73: 1 | BO73: 1 | BP73: 1 | BQ73: 1 | BR73: 1 | BS73: 1 | BT73: 1 | BU73: 2 | CC73: No | CF73: Yes | CR73: 1 | CY73: At least one of the safety hazards poses a challenge that is unable to be addressed, and the corresponding facility or process is not successful in addressing all hazards | DB73: All of the safety hazards can be addressed and the entire fuel cycle can be deployed safely, with all facilities and processes addressing all safety hazards | DP73: -1 | DQ73: -0.9 | DR73: -0.8 | DS73: -0.7 | DT73: -0.6 | DU73: -0.5 | DV73: -0.4 | DW73: -0.3 | DX73: -0.15 | DY73: -0.14 | DZ73: 0 | EA73: 0.15 | EB73: 0.16 | EC73: 0.3 | ED73: 0.4 | EE73: 0.5 | EF73: 0.6 | EG73: 0.7 | EH73: 0.8 | EI73: 0.9 | EJ73: 1
AA74: 28
AA75: 29
AA76: 30
AA77: 31
AA78: 32
AA79: 33
AA80: 34
AA81: 35
AA82: 36
AA83: 37
AA84: 38
AA85: 39
AA86: 40
AA88: Metric | AB88: Metric data | AD88: Data Set 3 | AW88: Units | AX88: Utility curve | BT88: Polarity | BU88: Data Type | BV88: S-Curve # | BW88: Qualitative Text | CR88: Score as: | CS88: Definitions: | DP88: Utility curve x values
AA89: 1 | AB89: -1 | AC89: -0.9 | AD89: -0.8 | AE89: -0.7 | AF89: -0.6 | AG89: -0.5 | AH89: -0.4 | AI89: -0.3 | AJ89: -0.2 | AK89: -0.1 | AL89: 0 | AM89: 0.1 | AN89: 0.2 | AO89: 0.3 | AP89: 0.4 | AQ89: 0.5 | AR89: 0.6 | AS89: 0.7 | AT89: 0.8 | AU89: 0.9 | AV89: 1 | AX89: Linear High | AY89: 0 | AZ89: 0 | BA89: 0 | BB89: 0.5 | BC89: 0.5 | BD89: 0.5 | BE89: 0.77 | BF89: 0.77 | BG89: 0.77 | BH89: 0.9 | BI89: 0.9 | BJ89: 0.9 | BK89: 0.97 | BL89: 0.97 | BM89: 0.97 | BN89: 1 | BO89: 1 | BP89: 1 | BQ89: 1 | BR89: 1 | BS89: 1 | BT89: 1 | BU89: 2 | BW89: >50 yrs | BZ89: 25 - 50 yrs | CC89: 10 - 25 yrs | CF89: 5 - 10 yrs | CI89: < 5yrs | CL89: No Development Needed | CR89: 1 | CS89: Very significant R&D required that may require significant technical breakthroughs, new discoveries or extended research, development of long-lead time laboratory experiments before engineering/pilot demonstration. Estimated development time is greater than 50 years | CV89: Significant R&D required that may require more fundamental development at laboratory scale before developing capabilities that can be demonstrated at engineering/pilot scale. Estimated development time is 25-50 years | CY89: R&D required that requires extended development time to arrive at a workable capability and demonstration at the engineering/pilot scale. Estimated development time is 10-25 years | DB89: R&D required, but many of the required capabilities are either already demonstrated or nearly demonstrated. Additional engineering/pilot scale in the near term likely using existing facilities or based on historical experience. Example may be the qualification of a well-established fuel. Estimated development time is 5-10 years | DE89: R&D required, but most of the required capabilities already demonstrated and any additional R&D is limited in scope and can be supported with existing facilities with little or no modifications. Estimated development time is less than 5 years | DH89: No R&D needed. Technology is already at TRL 6 or beyond. Development time is 0 years. | DP89: -1 | DQ89: -0.9 | DR89: -0.75 | DS89: -0.74 | DT89: -0.6 | DU89: -0.45 | DV89: -0.44 | DW89: -0.3 | DX89: -0.15 | DY89: -0.14 | DZ89: 0 | EA89: 0.15 | EB89: 0.16 | EC89: 0.3 | ED89: 0.45 | EE89: 0.46 | EF89: 0.6 | EG89: 0.7 | EH89: 0.8 | EI89: 0.9 | EJ89: 1
AA90: 2 | AB90: -1 | AC90: -0.9 | AD90: -0.8 | AE90: -0.7 | AF90: -0.6 | AG90: -0.5 | AH90: -0.4 | AI90: -0.3 | AJ90: -0.2 | AK90: -0.1 | AL90: 0 | AM90: 0.1 | AN90: 0.2 | AO90: 0.3 | AP90: 0.4 | AQ90: 0.5 | AR90: 0.6 | AS90: 0.7 | AT90: 0.8 | AU90: 0.9 | AV90: 1 | AX90: Custom | AY90: 0 | AZ90: 0 | BA90: 0 | BB90: 0.53 | BC90: 0.53 | BD90: 0.53 | BE90: 0.84 | BF90: 0.84 | BG90: 0.84 | BH90: 0.97 | BI90: 0.97 | BJ90: 0.97 | BK90: 0.997 | BL90: 0.997 | BM90: 0.997 | BN90: 1 | BO90: 1 | BP90: 1 | BQ90: 1 | BR90: 1 | BS90: 1 | BT90: 1 | BU90: 2 | BW90: > $25B | BZ90: $10B - $25B | CC90: $2B - $10B | CF90: $200M - $2B | CI90: < $200M | CL90: No Development Needed | CR90: 1 | CS90: Very significant R&D required including construction of many new facilities to provide an engineering/pilot scale demonstration of several components of the fuel cycle. May require more than one scale of facility development for particular fuel cycle components. Development cost expected to be greater than $25 billion | CV90: Significant R&D required including construction of several nuclear facilities to provide a engineering/pilot scale demonstration of several components of a fuel cycle. Alternatively, the scale of the facilities required for engineering/pilot scale demonstration is large and results in significantly increased cost. Development costs expected to be between $10 billion and $25 billion | CY90: R&D required including construction of a major nuclear facility to provide a engineering/pilot scale demonstration of one component of a fuel cycle. Development costs expected to be between $2 billion and $10 billion | DB90: R&D required, but can primarily be performed without significant investment in new major nuclear facilities for engineering/pilot scale demonstration. May, for example, just require modification of existing facilities. Development costs expected to be between $200 million and $2 billion. | DE90: R&D required but is limited in scope and can be supported with existing facilities with little or no modifications. Development costs expected to be less than $200 million | DH90: No R&D needed. Technology is already at TRL 6 or beyond. Development cost is $0. | DP90: -1 | DQ90: -0.9 | DR90: -0.75 | DS90: -0.74 | DT90: -0.6 | DU90: -0.45 | DV90: -0.44 | DW90: -0.3 | DX90: -0.15 | DY90: -0.14 | DZ90: 0 | EA90: 0.15 | EB90: 0.16 | EC90: 0.3 | ED90: 0.45 | EE90: 0.46 | EF90: 0.6 | EG90: 0.7 | EH90: 0.8 | EI90: 0.9 | EJ90: 1
AA91: 3 | AB91: 0 | AC91: 0 | AD91: 0.2666666667 | AE91: 0.4088888889 | AF91: 0.42 | AG91: 0.48 | AH91: 0.4853333333 | AI91: 0.4986666667 | AJ91: 0.5155555556 | AK91: 0.644 | AL91: 0.7441777778 | AM91: 0.756 | AN91: 0.7646222222 | AO91: 0.812 | AP91: 0.8736 | AQ91: 0.8976 | AR91: 0.9383111111 | AS91: 0.9640888889 | AT91: 0.9666666667 | AU91: 0.9973333333 | AV91: 1 | AX91: Custom | AY91: 0 | AZ91: 0 | BA91: 0.2666666667 | BB91: 0.4088888889 | BC91: 0.42 | BD91: 0.48 | BE91: 0.4853333333 | BF91: 0.4986666667 | BG91: 0.5155555556 | BH91: 0.644 | BI91: 0.7441777778 | BJ91: 0.756 | BK91: 0.7646222222 | BL91: 0.812 | BM91: 0.8736 | BN91: 0.8976 | BO91: 0.9383111111 | BP91: 0.9640888889 | BQ91: 0.9666666667 | BR91: 0.9973333333 | BS91: 1 | BT91: 1 | BU91: 1 | DP91: -1 | DQ91: -0.9 | DR91: -0.8 | DS91: -0.7 | DT91: -0.6 | DU91: -0.5 | DV91: -0.4 | DW91: -0.3 | DX91: -0.2 | DY91: -0.1 | DZ91: 0 | EA91: 0.1 | EB91: 0.2 | EC91: 0.3 | ED91: 0.4 | EE91: 0.5 | EF91: 0.6 | EG91: 0.7 | EH91: 0.8 | EI91: 0.9 | EJ91: 1
AA92: 4 | AB92: -1 | AC92: -0.9 | AD92: -0.8 | AE92: -0.7 | AF92: -0.6 | AG92: -0.5 | AH92: -0.4 | AI92: -0.3 | AJ92: -0.2 | AK92: -0.1 | AL92: 0 | AM92: 0.1 | AN92: 0.2 | AO92: 0.3 | AP92: 0.4 | AQ92: 0.5 | AR92: 0.6 | AS92: 0.7 | AT92: 0.8 | AU92: 0.9 | AV92: 1 | AX92: Custom | AY92: 0 | AZ92: 0 | BA92: 0 | BB92: 0 | BC92: 0 | BD92: 0 | BE92: 0.25 | BF92: 0.25 | BG92: 0.25 | BH92: 0.5 | BI92: 0.5 | BJ92: 0.5 | BK92: 0.75 | BL92: 0.75 | BM92: 0.75 | BN92: 1 | BO92: 1 | BP92: 1 | BQ92: 1 | BR92: 1 | BS92: 1 | BT92: 1 | BU92: 2 | BW92: > $50B | BZ92: $25B to $50B | CC92: $10B to $25B | CF92: $2B to $10B | CI92: <$2B | CL92: No FOAK Needed | CR92: 1 | CS92: Deployment of a first-of-a-kind (FOAK) commercial system represents a very significant effort to move from engineering/pilot scale to FOAK system that may include several large-scale nuclear facilities that require several stages of deployment representing additional scales of facilities needed to achieve FOAK. Estimated cost to go from an engineering/pilot scale system to FOAK is over $50 billion | CV92: Deployment of a first-of-a-kind (FOAK) commercial system represents a significant effort to move from engineering/pilot scale to first-of-a-kind commercial system (FOAK) that may include several large-scale nuclear facilities. Estimated cost to go from an engineering/pilot scale system to FOAK is between $25 billion and $50 billion | CY92: Deployment of FOAK represents a single large-scale nuclear facility or several medium-scale nuclear facilities. Estimated cost to go from an engineering/pilot scale system to FOAK is between $10 billion and $25 billion | DB92: Deployment of FOAK represents a single nuclear facility or a few small-scale nuclear facilities. Estimated costs to go from an engineering/pilot scale system to FOAK is between $2 billion and $10 billion | DE92: Deployment of FOAK may, for example, require small-scale nuclear facility or modifications to existing nuclear facility. Estimated cost to go from an engineering/pilot scale system to FOAK is less than $2 billion | DH92: Technology already has a FOAK (or beyond) deployment. FOAK deployment cost is $0. | DP92: -1 | DQ92: -0.9 | DR92: -0.8 | DS92: -0.7 | DT92: -0.6 | DU92: -0.45 | DV92: -0.44 | DW92: -0.3 | DX92: -0.15 | DY92: -0.14 | DZ92: 0 | EA92: 0.15 | EB92: 0.16 | EC92: 0.3 | ED92: 0.45 | EE92: 0.46 | EF92: 0.6 | EG92: 0.7 | EH92: 0.8 | EI92: 0.9 | EJ92: 1
AA93: 5 | AB93: -1 | AC93: -0.9 | AD93: -0.8 | AE93: -0.7 | AF93: -0.6 | AG93: -0.5 | AH93: -0.4 | AI93: -0.3 | AJ93: -0.2 | AK93: -0.1 | AL93: 0 | AM93: 0.1 | AN93: 0.2 | AO93: 0.3 | AP93: 0.4 | AQ93: 0.5 | AR93: 0.6 | AS93: 0.7 | AT93: 0.8 | AU93: 0.9 | AV93: 1 | AX93: Custom | AY93: 0 | AZ93: 0 | BA93: 0 | BB93: 0.33 | BC93: 0.33 | BD93: 0.33 | BE93: 0.67 | BF93: 0.67 | BG93: 0.67 | BH93: 1 | BI93: 1 | BJ93: 1 | BK93: 1 | BL93: 1 | BM93: 1 | BN93: 1 | BO93: 1 | BP93: 1 | BQ93: 1 | BR93: 1 | BS93: 1 | BT93: 1 | BU93: 2 | BW93: Incompatible - <10% | BZ93: Partly Compatible - < 50% but > 10% | CC93: Mostly Compatible - > 50% but < 90% | CF93: Compatible - >90% | CR93: 1 | CS93: The fuel cycle option utilizes few or none of the components of the existing infrastructure and requires mostly new infrastructure components for deployment. Estimate is that less than 10% of the required infrastructure can be based on existing infrastructure | CV93: The fuel cycle option utilizes some components of the existing infrastructure and requires mostly additional infrastructure components. Estimate is that less than 50% (but more than 10%) of the required infrastructure will be based on existing infrastructure | CY93: The fuel cycle option utilizes most components of the existing infrastructure and may require some additional infrastructure components. The fuel cycle option utilizes mostly components of the existing infrastructure and may require some additional infrastructure components. Estimate is that more than 50% (but less than 90%) of the required infrastructure can be based on existing infrastructure | DB93: The fuel cycle option fully utilizes the existing infrastructure as represented by the fuel cycle basis for comparison, needing very little additional infrastructure to deploy the fuel cycle. Estimate is that 90% or more of the required infrastructure can be based on existing infrastructure | DP93: -1 | DQ93: -0.9 | DR93: -0.75 | DS93: -0.74 | DT93: -0.6 | DU93: -0.45 | DV93: -0.44 | DW93: -0.3 | DX93: -0.15 | DY93: -0.14 | DZ93: 0 | EA93: 0.15 | EB93: 0.16 | EC93: 0.3 | ED93: 0.4 | EE93: 0.5 | EF93: 0.6 | EG93: 0.7 | EH93: 0.8 | EI93: 0.9 | EJ93: 1
AA94: 6 | AB94: -1 | AC94: -0.9 | AD94: -0.8 | AE94: -0.7 | AF94: -0.6 | AG94: -0.5 | AH94: -0.4 | AI94: -0.3 | AJ94: -0.2 | AK94: -0.1 | AL94: 0 | AM94: 0.1 | AN94: 0.2 | AO94: 0.3 | AP94: 0.4 | AQ94: 0.5 | AR94: 0.6 | AS94: 0.7 | AT94: 0.8 | AU94: 0.9 | AV94: 1 | AX94: Custom | AY94: 0 | AZ94: 0 | BA94: 0 | BB94: 0.3 | BC94: 0.3 | BD94: 0.3 | BE94: 0.8 | BF94: 0.8 | BG94: 0.8 | BH94: 1 | BI94: 1 | BJ94: 1 | BK94: 1 | BL94: 1 | BM94: 1 | BN94: 1 | BO94: 1 | BP94: 1 | BQ94: 1 | BR94: 1 | BS94: 1 | BT94: 1 | BU94: 2 | BW94: No regulations/ familiarity | BZ94: Non-U.S. Regulations/ Familiarity exists | CC94: U.S. Regulations/ Familiarity exist but not applied | CF94: U.S. Regulations/ Familiarity exists and applied | CR94: 1 | CS94: No regulatory experience exists for key fuel cycle facility types and use | CV94: No U.S. regulatory experience for fuel cycle facility types and use, but international regulatory experience exists through licensing of operating facilities | CY94: U.S. Regulations and regulatory experience exists for fuel cycle facility types but have not been demonstrated through issuing operating licenses. Regulatory authorities have some previous experience with key fuel cycle components, but may not have licensed these facility types | DB94: U.S. Regulations and regulatory experience exists for fuel cycle facility types that have been demonstrated through issuing operating licenses | DP94: -1 | DQ94: -0.9 | DR94: -0.75 | DS94: -0.74 | DT94: -0.6 | DU94: -0.45 | DV94: -0.44 | DW94: -0.3 | DX94: -0.15 | DY94: -0.14 | DZ94: 0 | EA94: 0.15 | EB94: 0.16 | EC94: 0.3 | ED94: 0.4 | EE94: 0.5 | EF94: 0.6 | EG94: 0.7 | EH94: 0.8 | EI94: 0.9 | EJ94: 1
AA95: 7 | AB95: -1 | AC95: -0.9 | AD95: -0.8 | AE95: -0.7 | AF95: -0.6 | AG95: -0.5 | AH95: -0.4 | AI95: -0.3 | AJ95: -0.2 | AK95: -0.1 | AL95: 0 | AM95: 0.1 | AN95: 0.2 | AO95: 0.3 | AP95: 0.4 | AQ95: 0.5 | AR95: 0.6 | AS95: 0.7 | AT95: 0.8 | AU95: 0.9 | AV95: 1 | AX95: Custom | AY95: 0 | AZ95: 0 | BA95: 0 | BB95: 0 | BC95: 0 | BD95: 0 | BE95: 0.1 | BF95: 0.1 | BG95: 0.1 | BH95: 0.5 | BI95: 0.5 | BJ95: 0.5 | BK95: 0.9 | BL95: 0.9 | BM95: 0.9 | BN95: 1 | BO95: 1 | BP95: 1 | BQ95: 1 | BR95: 1 | BS95: 1 | BT95: 1 | BU95: 2 | BZ95: Markets weak; Significant capital risk; Requires significant government investment | CC95: Markets weak; Low capital risk; Requires government investment | CF95: Markets weak; Low capital risk; Requires government investment | CI95: Markets exist; Some capital risk | CL95: Markets exist; Low capital risk; Incentives in place | CR95: 1 | CV95: The fuel cycle type exhibits challenges with respect to the magnitude of capital investment required and payback prospects and is weakened significantly from disincentives related to capital at risk. | CY95: The fuel cycle type exhibits challenges with respect to the magnitude of capital investment required and payback prospects. While incentives exist, the fuel cycle type, on balance, is weakened from disincentives related to capital at risk. | DB95: The fuel cycle type is neutral with respect to the magnitude of capital investment required and payback prospects, exhibiting off-setting incentives and disincentives. | DE95: The fuel cycle type exhibits promise with respect to the magnitude of capital investment required and payback prospects. Although disincentives exist, the fuel cycle type, on balance, benefits from incentives related to capital at risk. | DH95: The fuel cycle type exhibits promise with respect to the magnitude of capital investment required and payback prospects and benefits significantly from incentives related to capital at risk. | DP95: -1 | DQ95: -0.9 | DR95: -0.8 | DS95: -0.7 | DT95: -0.6 | DU95: -0.45 | DV95: -0.44 | DW95: -0.3 | DX95: -0.15 | DY95: -0.14 | DZ95: 0 | EA95: 0.15 | EB95: 0.16 | EC95: 0.3 | ED95: 0.45 | EE95: 0.46 | EF95: 0.6 | EG95: 0.7 | EH95: 0.8 | EI95: 0.9 | EJ95: 1
AA96: 8 | AB96: -1 | AC96: -0.9 | AD96: -0.8 | AE96: -0.7 | AF96: -0.6 | AG96: -0.5 | AH96: -0.4 | AI96: -0.3 | AJ96: -0.2 | AK96: -0.1 | AL96: 0 | AM96: 0.1 | AN96: 0.2 | AO96: 0.3 | AP96: 0.4 | AQ96: 0.5 | AR96: 0.6 | AS96: 0.7 | AT96: 0.8 | AU96: 0.9 | AV96: 1 | AX96: Custom | AY96: 0 | AZ96: 0 | BA96: 0 | BB96: 0.33 | BC96: 0.33 | BD96: 0.33 | BE96: 0.67 | BF96: 0.67 | BG96: 0.67 | BH96: 1 | BI96: 1 | BJ96: 1 | BK96: 1 | BL96: 1 | BM96: 1 | BN96: 1 | BO96: 1 | BP96: 1 | BQ96: 1 | BR96: 1 | BS96: 1 | BT96: 1 | BU96: 2 | BW96: Incompatible - <10% | BZ96: Partly Compatible - < 50% but > 10% | CC96: Mostly Compatible - > 50% but < 90% | CF96: Compatible - >90% | CR96: 1 | CS96: The fuel cycle option utilizes few or none of the components of the existing infrastructure and requires mostly new infrastructure components for deployment. Estimate is that less than 10% of the required infrastructure can be based on existing infrastructure | CV96: The fuel cycle option utilizes some components of the existing infrastructure and requires mostly additional infrastructure components. Estimate is that less than 50% (but more than 10%) of the required infrastructure will be based on existing infrastructure | CY96: The fuel cycle option utilizes most components of the existing infrastructure and may require some additional infrastructure components. The fuel cycle option utilizes mostly components of the existing infrastructure and may require some additional infrastructure components. Estimate is that more than 50% (but less than 90%) of the required infrastructure can be based on existing infrastructure | DB96: The fuel cycle option fully utilizes the existing infrastructure as represented by the fuel cycle basis for comparison, needing very little additional infrastructure to deploy the fuel cycle. Estimate is that 90% or more of the required infrastructure can be based on existing infrastructure | DP96: -1 | DQ96: -0.9 | DR96: -0.75 | DS96: -0.74 | DT96: -0.6 | DU96: -0.45 | DV96: -0.44 | DW96: -0.3 | DX96: -0.15 | DY96: -0.14 | DZ96: 0 | EA96: 0.15 | EB96: 0.16 | EC96: 0.3 | ED96: 0.4 | EE96: 0.5 | EF96: 0.6 | EG96: 0.7 | EH96: 0.8 | EI96: 0.9 | EJ96: 1
AA97: 9 | AB97: -1 | AC97: -0.9 | AD97: -0.8 | AE97: -0.7 | AF97: -0.6 | AG97: -0.5 | AH97: -0.4 | AI97: -0.3 | AJ97: -0.2 | AK97: -0.1 | AL97: 0 | AM97: 0.1 | AN97: 0.2 | AO97: 0.3 | AP97: 0.4 | AQ97: 0.5 | AR97: 0.6 | AS97: 0.7 | AT97: 0.8 | AU97: 0.9 | AV97: 1 | AX97: Custom | AY97: 0 | AZ97: 0 | BA97: 0 | BB97: 0.3 | BC97: 0.3 | BD97: 0.3 | BE97: 0.8 | BF97: 0.8 | BG97: 0.8 | BH97: 1 | BI97: 1 | BJ97: 1 | BK97: 1 | BL97: 1 | BM97: 1 | BN97: 1 | BO97: 1 | BP97: 1 | BQ97: 1 | BR97: 1 | BS97: 1 | BT97: 1 | BU97: 2 | BW97: No regulations/ familiarity | BZ97: Non-U.S. Regulations/ Familiarity exists | CC97: U.S. Regulations/ Familiarity exist but not applied | CF97: U.S. Regulations/ Familiarity exists and applied | CR97: 1 | CS97: No regulatory experience exists for key fuel cycle facility types and use | CV97: No U.S. regulatory experience for fuel cycle facility types and use, but international regulatory experience exists through licensing of operating facilities | CY97: U.S. Regulations and regulatory experience exists for fuel cycle facility types but have not been demonstrated through issuing operating licenses. Regulatory authorities have some previous experience with key fuel cycle components, but may not have licensed these facility types | DB97: U.S. Regulations and regulatory experience exists for fuel cycle facility types that have been demonstrated through issuing operating licenses | DP97: -1 | DQ97: -0.9 | DR97: -0.75 | DS97: -0.74 | DT97: -0.6 | DU97: -0.45 | DV97: -0.44 | DW97: -0.3 | DX97: -0.15 | DY97: -0.14 | DZ97: 0 | EA97: 0.15 | EB97: 0.16 | EC97: 0.3 | ED97: 0.4 | EE97: 0.5 | EF97: 0.6 | EG97: 0.7 | EH97: 0.8 | EI97: 0.9 | EJ97: 1
AA98: 10 | AB98: -1 | AC98: -0.9 | AD98: -0.8 | AE98: -0.7 | AF98: -0.6 | AG98: -0.5 | AH98: -0.4 | AI98: -0.3 | AJ98: -0.2 | AK98: -0.1 | AL98: 0 | AM98: 0.1 | AN98: 0.2 | AO98: 0.3 | AP98: 0.4 | AQ98: 0.5 | AR98: 0.6 | AS98: 0.7 | AT98: 0.8 | AU98: 0.9 | AV98: 1 | AX98: Custom | AY98: 0 | AZ98: 0 | BA98: 0 | BB98: 0 | BC98: 0 | BD98: 0 | BE98: 0.1 | BF98: 0.1 | BG98: 0.1 | BH98: 0.5 | BI98: 0.5 | BJ98: 0.5 | BK98: 0.9 | BL98: 0.9 | BM98: 0.9 | BN98: 1 | BO98: 1 | BP98: 1 | BQ98: 1 | BR98: 1 | BS98: 1 | BT98: 1 | BU98: 2 | BZ98: Markets weak; Significant capital risk; Requires significant government investment | CC98: Markets weak; Low capital risk; Requires government investment | CF98: Markets weak; Low capital risk; Requires government investment | CI98: Markets exist; Some capital risk | CL98: Markets exist; Low capital risk; Incentives in place | CR98: 1 | CV98: The fuel cycle type exhibits challenges with respect to the magnitude of capital investment required and payback prospects and is weakened significantly from disincentives related to capital at risk. | CY98: The fuel cycle type exhibits challenges with respect to the magnitude of capital investment required and payback prospects. While incentives exist, the fuel cycle type, on balance, is weakened from disincentives related to capital at risk. | DB98: The fuel cycle type is neutral with respect to the magnitude of capital investment required and payback prospects, exhibiting off-setting incentives and disincentives. | DE98: The fuel cycle type exhibits promise with respect to the magnitude of capital investment required and payback prospects. Although disincentives exist, the fuel cycle type, on balance, benefits from incentives related to capital at risk. | DH98: The fuel cycle type exhibits promise with respect to the magnitude of capital investment required and payback prospects and benefits significantly from incentives related to capital at risk. | DP98: -1 | DQ98: -0.9 | DR98: -0.8 | DS98: -0.7 | DT98: -0.6 | DU98: -0.45 | DV98: -0.44 | DW98: -0.3 | DX98: -0.15 | DY98: -0.14 | DZ98: 0 | EA98: 0.15 | EB98: 0.16 | EC98: 0.3 | ED98: 0.45 | EE98: 0.46 | EF98: 0.6 | EG98: 0.7 | EH98: 0.8 | EI98: 0.9 | EJ98: 1
A99: -1 to 1 scale data: | AA99: 11 | AB99: -1 | AC99: -0.9 | AD99: -0.8 | AE99: -0.7 | AF99: -0.6 | AG99: -0.5 | AH99: -0.4 | AI99: -0.3 | AJ99: -0.2 | AK99: -0.1 | AL99: 0 | AM99: 0.1 | AN99: 0.2 | AO99: 0.3 | AP99: 0.4 | AQ99: 0.5 | AR99: 0.6 | AS99: 0.7 | AT99: 0.8 | AU99: 0.9 | AV99: 1 | AX99: Custom | AY99: 0 | AZ99: 0 | BA99: 0 | BB99: 0 | BC99: 0 | BD99: 0 | BE99: 0.25 | BF99: 0.25 | BG99: 0.25 | BH99: 0.5 | BI99: 0.5 | BJ99: 0.5 | BK99: 0.75 | BL99: 0.75 | BM99: 0.75 | BN99: 1 | BO99: 1 | BP99: 1 | BQ99: 1 | BR99: 1 | BS99: 1 | BU99: 2 | BZ99: E. Likely to be Much Higher | CC99: D. Likely to be Higher | CF99: C. Likely to be "Similar" | CI99: B. Likely to be Comparable to Current U.S. Fuel Cycle | CL99: A. Likely to be Lower | CR99: 1 | DP99: -1 | DQ99: -0.9 | DR99: -0.8 | DS99: -0.7 | DT99: -0.6 | DU99: -0.45 | DV99: -0.44 | DW99: -0.3 | DX99: -0.15 | DY99: -0.14 | DZ99: 0 | EA99: 0.14 | EB99: 0.15 | EC99: 0.3 | ED99: 0.45 | EE99: 0.46 | EF99: 0.6 | EG99: 0.7 | EH99: 0.8 | EI99: 0.9 | EJ99: 1
A100: 5-Point scale x | B100: -1 | C100: -0.9 | D100: -0.8 | E100: -0.7 | F100: -0.6 | G100: -0.45 | H100: -0.44 | I100: -0.3 | J100: -0.15 | K100: -0.14 | L100: 0 | M100: 0.14 | N100: 0.15 | O100: 0.3 | P100: 0.45 | Q100: 0.46 | R100: 0.6 | S100: 0.7 | T100: 0.8 | U100: 0.9 | V100: 1 | AA100: 12 | AB100: 6 | AC100: 5 | AD100: 4 | AE100: 3 | AF100: 2 | AG100: 1 | AH100: 1 | AI100: 0.75 | AJ100: 0.5 | AK100: 0.5 | AL100: 0.35 | AM100: 0.2 | AN100: 0.2 | AO100: 0.15 | AP100: 0.1 | AQ100: 0.1 | AR100: 0.05 | AS100: 0 | AT100: 0 | AU100: 0 | AV100: 0 | AW100: km2/GWe-yr | AX100: Custom | AY100: 0 | AZ100: 0 | BA100: 0 | BB100: 0 | BC100: 0 | BD100: 0 | BE100: 0.52 | BF100: 0.52 | BG100: 0.52 | BH100: 0.79 | BI100: 0.79 | BJ100: 0.79 | BK100: 0.93 | BL100: 0.93 | BM100: 0.93 | BN100: 1 | BO100: 1 | BP100: 1 | BQ100: 1 | BR100: 1 | BS100: 1 | BT100: 1 | BU100: 2 | BV100: 2 | BZ100: > 1.0 km2/GWe-yr | CC100: 0.5 - 1.0 km2/GWe-yr | CF100: 0.2 - 0.5 km2/GWe-yr | CI100: 0.1 - 0.2 km2/GWe-yr | CL100: < 0.1 km2/GWe-yr | CR100: 1 | DP100: -1 | DQ100: -0.9 | DR100: -0.8 | DS100: -0.7 | DT100: -0.6 | DU100: -0.45 | DV100: -0.44 | DW100: -0.3 | DX100: -0.15 | DY100: -0.14 | DZ100: 0 | EA100: 0.14 | EB100: 0.15 | EC100: 0.3 | ED100: 0.45 | EE100: 0.46 | EF100: 0.6 | EG100: 0.7 | EH100: 0.8 | EI100: 0.9 | EJ100: 1
A101: 5-Point scale y | B101: 0 | C101: 0 | D101: 0 | E101: 0 | F101: 0 | G101: 0 | H101: =0.25*Flags!$C$23 -> 0.25 | I101: =0.25*Flags!$C$23 -> 0.25 | J101: =0.25*Flags!$C$23 -> 0.25 | K101: =0.5*Flags!$C$23 -> 0.5 | L101: =0.5*Flags!$C$23 -> 0.5 | M101: =0.5*Flags!$C$23 -> 0.5 | N101: =0.75*Flags!$C$23 -> 0.75 | O101: =0.75*Flags!$C$23 -> 0.75 | P101: =0.75*Flags!$C$23 -> 0.75 | Q101: =1*Flags!$C$23 -> 1 | R101: =1*Flags!$C$23 -> 1 | S101: =1*Flags!$C$23 -> 1 | T101: =1*Flags!$C$23 -> 1 | U101: =1*Flags!$C$23 -> 1 | V101: =1*Flags!$C$23 -> 1 | AA101: 13 | AB101: 45000 | AC101: 45000 | AD101: 45000 | AE101: 45000 | AF101: 45000 | AG101: 45000 | AH101: 45000 | AI101: 37500 | AJ101: 30000 | AK101: 30000 | AL101: 22500 | AM101: 15000 | AN101: 15000 | AO101: 7500 | AP101: 0 | AQ101: 0 | AR101: 0 | AS101: 0 | AT101: 0 | AU101: 0 | AV101: 0 | AW101: ML/GWe-yr | AX101: Custom | AY101: 0 | AZ101: 0 | BA101: 0 | BB101: 0 | BC101: 0 | BD101: 0 | BE101: 0 | BF101: 0 | BG101: 0 | BH101: 0.5 | BI101: 0.5 | BJ101: 0.5 | BK101: 1 | BL101: 1 | BM101: 1 | BN101: 1 | BO101: 1 | BP101: 1 | BQ101: 1 | BR101: 1 | BS101: 1 | BT101: 1 | BU101: 2 | BV101: 2 | CC101: > 30,000 ML/GWe-yr | CF101: 15,000 - 30,000 ML/GWe-yr | CI101: < 15,000 ML/GWe-yr | CR101: 1 | DP101: -1 | DQ101: -0.9 | DR101: -0.8 | DS101: -0.7 | DT101: -0.6 | DU101: -0.5 | DV101: -0.4 | DW101: -0.3 | DX101: -0.15 | DY101: -0.14 | DZ101: 0 | EA101: 0.15 | EB101: 0.16 | EC101: 0.3 | ED101: 0.4 | EE101: 0.5 | EF101: 0.6 | EG101: 0.7 | EH101: 0.8 | EI101: 0.9 | EJ101: 1
AA102: 14 | AB102: 360 | AC102: 360 | AD102: 360 | AE102: 360 | AF102: 300 | AG102: 240 | AH102: 240 | AI102: 180 | AJ102: 120 | AK102: 120 | AL102: 90 | AM102: 60 | AN102: 60 | AO102: 45 | AP102: 30 | AQ102: 30 | AR102: 15 | AS102: 0 | AT102: 0 | AU102: 0 | AV102: 0 | AW102: kt/GWe-yr | AX102: Custom | AY102: 0 | AZ102: 0 | BA102: 0 | BB102: 0 | BC102: 0 | BD102: 0 | BE102: 0.52 | BF102: 0.52 | BG102: 0.52 | BH102: 0.78 | BI102: 0.78 | BJ102: 0.78 | BK102: 0.91 | BL102: 0.91 | BM102: 0.91 | BN102: 1 | BO102: 1 | BP102: 1 | BQ102: 1 | BR102: 1 | BS102: 1 | BT102: 1 | BU102: 2 | BZ102: > 240 kt/GWe-yr | CC102: 120 - 240 kt/GWe-yr | CF102: 60 - 120 kt/GWe-yr | CI102: 30 - 60 kt/GWe-yr | CL102: <30 kt/GWe-yr | CR102: 1 | DP102: -1 | DQ102: -0.9 | DR102: -0.8 | DS102: -0.7 | DT102: -0.6 | DU102: -0.45 | DV102: -0.44 | DW102: -0.3 | DX102: -0.15 | DY102: -0.14 | DZ102: 0 | EA102: 0.14 | EB102: 0.15 | EC102: 0.3 | ED102: 0.45 | EE102: 0.46 | EF102: 0.6 | EG102: 0.7 | EH102: 0.8 | EI102: 0.9 | EJ102: 1
A103: 3-Point scale x | B103: -1 | C103: -0.9 | D103: -0.8 | E103: -0.7 | F103: -0.6 | G103: -0.5 | H103: -0.4 | I103: -0.3 | J103: -0.15 | K103: -0.14 | L103: 0 | M103: 0.15 | N103: 0.16 | O103: 0.3 | P103: 0.4 | Q103: 0.5 | R103: 0.6 | S103: 0.7 | T103: 0.8 | U103: 0.9 | V103: 1 | AA103: 15 | AB103: 85 | AC103: 75 | AD103: 65 | AE103: 55 | AF103: 45 | AG103: 35 | AH103: 25 | AI103: 15 | AJ103: 5.0000001 | AK103: 5 | AL103: 2.75 | AM103: 0.5 | AN103: 0.49999 | AO103: 0.4 | AP103: 0.3 | AQ103: 0.2 | AR103: 0.1 | AS103: 0 | AT103: 0 | AU103: 0 | AV103: 0 | AW103: Person-Sv/GWe-yr | AX103: Custom | AY103: 0 | AZ103: 0 | BA103: 0 | BB103: 0 | BC103: 0 | BD103: 0 | BE103: 0 | BF103: 0 | BG103: 0 | BH103: 0.9 | BI103: 0.9 | BJ103: 0.9 | BK103: 1 | BL103: 1 | BM103: 1 | BN103: 1 | BO103: 1 | BP103: 1 | BQ103: 1 | BR103: 1 | BS103: 1 | BT103: 1 | BU103: 2 | BV103: 2 | CC103: Total worker dose of > 5.0 person-Sv/Gwe-yr | CF103: Total worker dose of 0.5 – 5.0 person-Sv/Gwe-yr | CI103: Total worker dose of <0.5 person-Sv/Gwe-yr | CR103: 1 | CY103: Total worker dose of > 5.0 person-Sv/Gwe-yr | DB103: Total worker dose of 0.5 – 5.0 person-Sv/Gwe-yr | DE103: Total worker dose of <0.5 person-Sv/Gwe-yr | DP103: -1 | DQ103: -0.9 | DR103: -0.8 | DS103: -0.7 | DT103: -0.6 | DU103: -0.5 | DV103: -0.4 | DW103: -0.3 | DX103: -0.15 | DY103: -0.14 | DZ103: 0 | EA103: 0.15 | EB103: 0.16 | EC103: 0.3 | ED103: 0.4 | EE103: 0.5 | EF103: 0.6 | EG103: 0.7 | EH103: 0.8 | EI103: 0.9 | EJ103: 1
A104: 3-Point scale y | B104: 0 | C104: 0 | D104: 0 | E104: 0 | F104: 0 | G104: 0 | H104: 0 | I104: 0 | J104: 0 | K104: =0.5*Flags!$C$23 -> 0.5 | L104: =0.5*Flags!$C$23 -> 0.5 | M104: =0.5*Flags!$C$23 -> 0.5 | N104: =1*Flags!$C$23 -> 1 | O104: =1*Flags!$C$23 -> 1 | P104: =1*Flags!$C$23 -> 1 | Q104: =1*Flags!$C$23 -> 1 | R104: =1*Flags!$C$23 -> 1 | S104: =1*Flags!$C$23 -> 1 | T104: =1*Flags!$C$23 -> 1 | U104: =1*Flags!$C$23 -> 1 | V104: =1*Flags!$C$23 -> 1 | AA104: 16 | AB104: 150 | AC104: 93 | AD104: 36.0001 | AE104: 36 | AF104: 24 | AG104: 12.00001 | AH104: 12 | AI104: 9 | AJ104: 6.00001 | AK104: 6 | AL104: 4.5 | AM104: 3.00001 | AN104: 3 | AO104: 2.3 | AP104: 1.650001 | AQ104: 1.65 | AR104: 0.825 | AS104: 0 | AT104: 0 | AU104: 0 | AV104: 0 | AW104: t/GWe-yr | AX104: Custom | AY104: 0 | AZ104: 0 | BA104: 0 | BB104: 0.19 | BC104: 0.19 | BD104: 0.19 | BE104: 0.43 | BF104: 0.43 | BG104: 0.43 | BH104: 0.59 | BI104: 0.59 | BJ104: 0.59 | BK104: 0.75 | BL104: 0.75 | BM104: 0.75 | BN104: 1 | BO104: 1 | BP104: 1 | BQ104: 1 | BR104: 1 | BS104: 1 | BT104: 1 | BU104: 2 | BW104: > 36 t/GWe-yr | BZ104: 12 to 36 t/GWe-yr | CC104: 6 to 12 t/GWe-yr | CF104: 3 to 6 t/GWe-yr | CI104: 1.65 to 3 t/GWe-yr | CL104: < 1.65 t/GWe-yr | CR104: 1 | CS104: SNF+HLW mass ≥ 36 t/GWe-yr | CV104: SNF+HLW mass ≥ 12 t/GWe-yr and < 36 t/GWe-yr; contains the basis of comparison | CY104: SNF+HLW mass ≥ 6 t/GWe-yr and < 12 t/GWe-yr | DB104: SNF+HLW mass ≥ 3 t/GWe-yr and < 6 t/GWe-yr | DE104: SNF+HLW mass ≥ 1.65 t/GWe-yr and < 3 t/GWe-yr | DH104: SNF+HLW mass < 1.65 t/GWe-yr; similar to the HLW mass from processing of LWR SNF to recover all U | DP104: -1 | DQ104: -0.9 | DR104: -0.75 | DS104: -0.74 | DT104: -0.6 | DU104: -0.45 | DV104: -0.44 | DW104: -0.3 | DX104: -0.15 | DY104: -0.14 | DZ104: 0 | EA104: 0.14 | EB104: 0.15 | EC104: 0.3 | ED104: 0.45 | EE104: 0.46 | EF104: 0.6 | EG104: 0.7 | EH104: 0.8 | EI104: 0.9 | EJ104: 1
AA105: 17 | AB105: 2.4 | AC105: 2.4 | AD105: 2.4 | AE105: 2.4 | AF105: 2.2 | AG105: 2 | AH105: 2 | AI105: 1.8 | AJ105: 1.6 | AK105: 1.6 | AL105: 1.375 | AM105: 1.05 | AN105: 1.05 | AO105: 0.86 | AP105: 0.67 | AQ105: 0.67 | AR105: 0.48 | AS105: 0.29 | AT105: 0 | AU105: 0 | AV105: 0 | AW105: MCi/GWe-yr | AX105: Custom | AY105: 0 | AZ105: 0 | BA105: 0 | BB105: 0 | BC105: 0 | BD105: 0 | BE105: 0.45 | BF105: 0.45 | BG105: 0.45 | BH105: 0.63 | BI105: 0.63 | BJ105: 0.63 | BK105: 0.8 | BL105: 0.8 | BM105: 0.8 | BN105: 1 | BO105: 1 | BP105: 1 | BQ105: 1 | BR105: 1 | BS105: 1 | BT105: 1 | BU105: 2 | BZ105: > 2.0 MCi/GWe-yr | CC105: 1.6 to 2.0 MCi/GWe-yr | CF105: 1.05 to 1.6 MCi/GWe-yr | CI105: 0.67 to 1.05 MCi/GWe-yr | CL105: <0.67 MCi/GWe-yr | CR105: 1 | DP105: -1 | DQ105: -0.9 | DR105: -0.8 | DS105: -0.7 | DT105: -0.6 | DU105: -0.45 | DV105: -0.44 | DW105: -0.3 | DX105: -0.15 | DY105: -0.14 | DZ105: 0 | EA105: 0.14 | EB105: 0.15 | EC105: 0.3 | ED105: 0.45 | EE105: 0.46 | EF105: 0.6 | EG105: 0.7 | EH105: 0.8 | EI105: 0.9 | EJ105: 1
AA106: 18 | AB106: 0.015 | AC106: 0.0125 | AD106: 0.01 | AE106: 0.01 | AF106: 0.0075 | AG106: 0.005 | AH106: 0.005 | AI106: 0.00365 | AJ106: 0.0023 | AK106: 0.0023 | AL106: 0.00165 | AM106: 0.001 | AN106: 0.001 | AO106: 0.00075 | AP106: 0.0005 | AQ106: 0.0005 | AR106: 0.00025 | AS106: 0 | AT106: 0 | AU106: 0 | AV106: 0 | AW106: MCi/GWe-yr | AX106: Custom | AY106: 0 | AZ106: 0 | BA106: 0 | BB106: 0.17 | BC106: 0.17 | BD106: 0.17 | BE106: 0.35 | BF106: 0.35 | BG106: 0.35 | BH106: 0.54 | BI106: 0.54 | BJ106: 0.54 | BK106: 0.73 | BL106: 0.73 | BM106: 0.73 | BN106: 1 | BO106: 1 | BP106: 1 | BQ106: 1 | BR106: 1 | BS106: 1 | BT106: 1 | BU106: 2 | BV106: 2 | BW106: > 1.0E-2 MCi/GWe-yr | BZ106: 5.0E-3 to 1.0E-2 MCi/GWe-yr | CC106: 2.3E-3 to 5.0E-3 MCi/GWe-yr | CF106: 1.0E-3 to 2.3E-3 MCi/GWe-yr | CI106: 5.0E-4 to 1.0E-3 MCi/GWe-yr | CL106: < 5.0E-4 MCi/GWe-yr | CR106: 1 | DP106: -1 | DQ106: -0.9 | DR106: -0.75 | DS106: -0.74 | DT106: -0.6 | DU106: -0.45 | DV106: -0.44 | DW106: -0.3 | DX106: -0.15 | DY106: -0.14 | DZ106: 0 | EA106: 0.14 | EB106: 0.15 | EC106: 0.3 | ED106: 0.45 | EE106: 0.46 | EF106: 0.6 | EG106: 0.7 | EH106: 0.8 | EI106: 0.9 | EJ106: 1
AA107: 19 | AB107: 400 | AC107: 300 | AD107: 200 | AE107: 200 | AF107: 160 | AG107: 120 | AH107: 120 | AI107: 100 | AJ107: 80 | AK107: 80 | AL107: 60 | AM107: 40 | AN107: 40 | AO107: 20.5 | AP107: 1 | AQ107: 1 | AR107: 0.5 | AS107: 0 | AT107: 0 | AU107: 0 | AV107: 0 | AW107: t/GWe-yr | AX107: Custom | AY107: 0 | AZ107: 0 | BA107: 0 | BB107: 0.11 | BC107: 0.11 | BD107: 0.11 | BE107: 0.19 | BF107: 0.19 | BG107: 0.19 | BH107: 0.28 | BI107: 0.28 | BJ107: 0.28 | BK107: 0.47 | BL107: 0.47 | BM107: 0.47 | BN107: 1 | BO107: 1 | BP107: 1 | BQ107: 1 | BR107: 1 | BS107: 1 | BT107: 1 | BU107: 2 | BV107: 2 | BW107: > 200 t/GWe-yr | BZ107: 120 to 200 t/GWe-yr | CC107: 80 to 120 t/GWe-yr | CF107: 40 to 80 t/GWe-yr | CI107: 1 to 40 t/GWe-yr | CL107: < 1 t/GWe-yr | CR107: 1 | DP107: -1 | DQ107: -0.9 | DR107: -0.75 | DS107: -0.74 | DT107: -0.6 | DU107: -0.45 | DV107: -0.44 | DW107: -0.3 | DX107: -0.15 | DY107: -0.14 | DZ107: 0 | EA107: 0.14 | EB107: 0.15 | EC107: 0.3 | ED107: 0.45 | EE107: 0.46 | EF107: 0.6 | EG107: 0.7 | EH107: 0.8 | EI107: 0.9 | EJ107: 1
AA108: 20 | AB108: 4000 | AC108: 4000 | AD108: 4000 | AE108: 4000 | AF108: 2796 | AG108: 1592 | AH108: 1592 | AI108: 1113 | AJ108: 634 | AK108: 634 | AL108: 443 | AM108: 252 | AN108: 252 | AO108: 176 | AP108: 100 | AQ108: 100 | AR108: 70 | AS108: 40 | AT108: 40 | AU108: 40 | AV108: 40 | AW108: m3/GWe-yr | AX108: Custom | AY108: 0 | AZ108: 0 | BA108: 0 | BB108: 0 | BC108: 0 | BD108: 0 | BE108: 0.25 | BF108: 0.25 | BG108: 0.25 | BH108: 0.5 | BI108: 0.5 | BJ108: 0.5 | BK108: 0.75 | BL108: 0.75 | BM108: 0.75 | BN108: 1 | BO108: 1 | BP108: 1 | BQ108: 1 | BR108: 1 | BS108: 1 | BT108: 1 | BU108: 2 | BV108: 2 | BZ108: Greater than 1592 m^3/GWe-yr | CC108: 634 to 1592 m^3/GWe-yr | CF108: 252 to 634 m^3/GWe-yr | CI108: 100 to 252 m^3/GWe-yr | CL108: Less than 100 m^3/GWe-yr | CR108: 1 | DP108: -1 | DQ108: -0.9 | DR108: -0.8 | DS108: -0.7 | DT108: -0.6 | DU108: -0.45 | DV108: -0.44 | DW108: -0.3 | DX108: -0.15 | DY108: -0.14 | DZ108: 0 | EA108: 0.14 | EB108: 0.15 | EC108: 0.3 | ED108: 0.45 | EE108: 0.46 | EF108: 0.6 | EG108: 0.7 | EH108: 0.8 | EI108: 0.9 | EJ108: 1
AA109: 21 | AB109: 3 | AC109: 2.5 | AD109: 2 | AE109: 1.999 | AF109: 1.5 | AG109: 1 | AH109: 0.999 | AI109: 0.5 | AJ109: 0 | AK109: -0.001 | AL109: -0.5 | AM109: -1 | AN109: -1 | AO109: -1 | AP109: -1 | AQ109: -1 | AR109: -1 | AS109: -1 | AT109: -1 | AU109: -1 | AV109: -1 | AX109: Custom | AY109: 0 | AZ109: 0 | BA109: 0 | BB109: 0 | BC109: 0 | BD109: 0 | BE109: 1 | BF109: 1 | BG109: 1 | BH109: 1 | BI109: 1 | BJ109: 1 | BK109: 1 | BL109: 1 | BM109: 1 | BN109: 1 | BO109: 1 | BP109: 1 | BQ109: 1 | BR109: 1 | BS109: 1 | BT109: 1 | BU109: 2 | BV109: 2 | BW109: Max FOM1 is > 2 | BZ109: Max FOM1 is between 1 and 2 | CC109: Max FOM1 is between 0 and 1 | CF109: Max FOM1 is < 0 | CR109: 1 | DP109: -1 | DQ109: -0.9 | DR109: -0.8 | DS109: -0.7 | DT109: -0.6 | DU109: -0.46 | DV109: -0.45 | DW109: -0.3 | DX109: -0.15 | DY109: -0.14 | DZ109: 0 | EA109: 0.15 | EB109: 0.16 | EC109: 0.3 | ED109: 0.4 | EE109: 0.5 | EF109: 0.6 | EG109: 0.7 | EH109: 0.8 | EI109: 0.9 | EJ109: 1
A110: Linear High | B110: =-1*Flags!$C$23 -> -1 | C110: =-0.9*Flags!$C$23 -> -0.9 | D110: =-0.8*Flags!$C$23 -> -0.8 | E110: =-0.7*Flags!$C$23 -> -0.7 | F110: =-0.6*Flags!$C$23 -> -0.6 | G110: =-0.5*Flags!$C$23 -> -0.5 | H110: =-0.4*Flags!$C$23 -> -0.4 | I110: =-0.3*Flags!$C$23 -> -0.3 | J110: =-0.2*Flags!$C$23 -> -0.2 | K110: =-0.1*Flags!$C$23 -> -0.1 | L110: 0 | M110: =0.1*Flags!$C$23 -> 0.1 | N110: =0.2*Flags!$C$23 -> 0.2 | O110: =0.3*Flags!$C$23 -> 0.3 | P110: =0.4*Flags!$C$23 -> 0.4 | Q110: =0.5*Flags!$C$23 -> 0.5 | R110: =0.6*Flags!$C$23 -> 0.6 | S110: =0.7*Flags!$C$23 -> 0.7 | T110: =0.8*Flags!$C$23 -> 0.8 | U110: =0.9*Flags!$C$23 -> 0.9 | V110: =1*Flags!$C$23 -> 1 | AA110: 22 | AB110: 3 | AC110: 2.5 | AD110: 2 | AE110: 1.999 | AF110: 1.5 | AG110: 1 | AH110: 0.999 | AI110: 0.5 | AJ110: 0 | AK110: -0.001 | AL110: -0.5 | AM110: -1 | AN110: -1 | AO110: -1 | AP110: -1 | AQ110: -1 | AR110: -1 | AS110: -1 | AT110: -1 | AU110: -1 | AV110: -1 | AX110: Linear High | AY110: 0 | AZ110: 0 | BA110: 0 | BB110: 0 | BC110: 0 | BD110: 0 | BE110: 1 | BF110: 1 | BG110: 11 | BH110: 1 | BI110: 1 | BJ110: 1 | BK110: 1 | BL110: 1 | BM110: 1 | BN110: 1 | BO110: 1 | BP110: 1 | BQ110: 1 | BR110: 1 | BS110: 1 | BT110: 1 | BU110: 2 | BW110: Max FOM1 is > 2 | BZ110: Max FOM1 is between 1 and 2 | CC110: Max FOM1 is between 0 and 1 | CF110: Max FOM1 is < 0 | CR110: 1 | DP110: -1 | DQ110: -0.9 | DR110: -0.8 | DS110: -0.7 | DT110: -0.6 | DU110: -0.46 | DV110: -0.45 | DW110: -0.3 | DX110: -0.15 | DY110: -0.14 | DZ110: 0 | EA110: 0.15 | EB110: 0.16 | EC110: 0.3 | ED110: 0.4 | EE110: 0.5 | EF110: 0.6 | EG110: 0.7 | EH110: 0.8 | EI110: 0.9 | EJ110: 1
A111: Linear Low | B111: =1*Flags!$C$23 -> 1 | C111: =0.9*Flags!$C$23 -> 0.9 | D111: =0.8*Flags!$C$23 -> 0.8 | E111: =0.7*Flags!$C$23 -> 0.7 | F111: =0.6*Flags!$C$23 -> 0.6 | G111: =0.5*Flags!$C$23 -> 0.5 | H111: =0.4*Flags!$C$23 -> 0.4 | I111: =0.3*Flags!$C$23 -> 0.3 | J111: =0.2*Flags!$C$23 -> 0.2 | K111: =0.1*Flags!$C$23 -> 0.1 | L111: 0 | M111: =-0.1*Flags!$C$23 -> -0.1 | N111: =-0.2*Flags!$C$23 -> -0.2 | O111: =-0.3*Flags!$C$23 -> -0.3 | P111: =-0.4*Flags!$C$23 -> -0.4 | Q111: =-0.5*Flags!$C$23 -> -0.5 | R111: =-0.6*Flags!$C$23 -> -0.6 | S111: =-0.7*Flags!$C$23 -> -0.7 | T111: =-0.8*Flags!$C$23 -> -0.8 | U111: =-0.9*Flags!$C$23 -> -0.9 | V111: =-1*Flags!$C$23 -> -1 | AA111: 23 | AB111: 23 | AC111: 23 | AD111: 23 | AE111: 23 | AF111: 21 | AG111: 19 | AH111: 19 | AI111: 17.15 | AJ111: 15.3 | AK111: 15.3 | AL111: 12.65 | AM111: 10 | AN111: 10 | AO111: 8.2 | AP111: 6.4 | AQ111: 6.4 | AR111: 3.2 | AS111: 0 | AT111: 0 | AU111: 0 | AV111: 0 | AW111: MCi/MWe-yr | AX111: Custom | AY111: 0 | AZ111: 0 | BA111: 0 | BB111: 0 | BC111: 0 | BD111: 0 | BE111: 0.45 | BF111: 0.45 | BG111: 0.45 | BH111: 0.63 | BI111: 0.63 | BJ111: 0.63 | BK111: 0.8 | BL111: 0.8 | BM111: 0.8 | BN111: 1 | BO111: 1 | BP111: 1 | BQ111: 1 | BR111: 1 | BS111: 1 | BT111: 1 | BU111: 2 | BV111: 1 | BZ111: > 19.0 MCi/GWe-yr | CC111: 15.3 to 19.0 MCi/GWe-yr | CF111: 10.0 to 15.3 MCi/GWe-yr | CI111: 6.4 to 10.0 MCi/GWe-yr | CL111: <6.4 MCi/GWe-yr | CR111: 1 | DP111: -1 | DQ111: -0.9 | DR111: -0.8 | DS111: -0.7 | DT111: -0.6 | DU111: -0.45 | DV111: -0.44 | DW111: -0.3 | DX111: -0.15 | DY111: -0.14 | DZ111: 0 | EA111: 0.14 | EB111: 0.15 | EC111: 0.3 | ED111: 0.45 | EE111: 0.46 | EF111: 0.6 | EG111: 0.7 | EH111: 0.8 | EI111: 0.9 | EJ111: 1
AA112: 24 | AB112: 310 | AC112: 310 | AD112: 310 | AE112: 255 | AF112: 200 | AG112: 145 | AH112: 145 | AI112: 90 | AJ112: 35 | AK112: 35 | AL112: 19.4 | AM112: 3.8 | AN112: 3.8 | AO112: 1.9 | AP112: 0 | AQ112: 0 | AR112: 0 | AS112: 0 | AT112: 0 | AU112: 0 | AV112: 0 | AW112: t/GWe-yr | AX112: Custom | AY112: 0 | AZ112: 0 | BA112: 0 | BB112: 0 | BC112: 0 | BD112: 0 | BE112: 0.19 | BF112: 0.19 | BG112: 0.19 | BH112: 0.51 | BI112: 0.51 | BJ112: 0.51 | BK112: 1 | BL112: 1 | BM112: 1 | BN112: 1 | BO112: 1 | BP112: 1 | BQ112: 1 | BR112: 1 | BS112: 1 | BT112: 1 | BU112: 2 | BZ112: > 145 t/GWe-yr | CC112: 35 to 145 t/GWe-yr | CF112: 3.8 to 35 t/GWe-yr | CI112: <3.8 t/GWe-yr | CR112: 1 | DP112: -1 | DQ112: -0.9 | DR112: -0.8 | DS112: -0.7 | DT112: -0.6 | DU112: -0.45 | DV112: -0.44 | DW112: -0.3 | DX112: -0.15 | DY112: -0.14 | DZ112: 0 | EA112: 0.14 | EB112: 0.15 | EC112: 0.3 | ED112: 0.45 | EE112: 0.46 | EF112: 0.6 | EG112: 0.7 | EH112: 0.8 | EI112: 0.9 | EJ112: 1
A113: S-Curve 1 High | B113: =IF($B$39=1,B125,IF($B$39=2,B126,IF($B$39=3,B127,B128))) -> -1 | C113: =IF($B$39=1,C125,IF($B$39=2,C126,IF($B$39=3,C127,C128))) ->  | D113: =IF($B$39=1,D125,IF($B$39=2,D126,IF($B$39=3,D127,D128))) ->  | L113: 0 | V113: 1 | AA113: 25 | AB113: 310 | AC113: 310 | AD113: 310 | AE113: 255 | AF113: 200 | AG113: 145 | AH113: 145 | AI113: 90 | AJ113: 35 | AK113: 35 | AL113: 19.4 | AM113: 3.8 | AN113: 3.8 | AO113: 1.9 | AP113: 0 | AQ113: 0 | AR113: 0 | AS113: 0 | AT113: 0 | AU113: 0 | AV113: 0 | AW113: t/GWe-yr | AX113: Custom | AY113: 0 | AZ113: 0 | BA113: 0 | BB113: 0 | BC113: 0 | BD113: 0 | BE113: 0.19 | BF113: 0.19 | BG113: 0.19 | BH113: 0.51 | BI113: 0.51 | BJ113: 0.51 | BK113: 1 | BL113: 1 | BM113: 1 | BN113: 1 | BO113: 1 | BP113: 1 | BQ113: 1 | BR113: 1 | BS113: 1 | BT113: 1 | BU113: 2 | BZ113: > 145 t/GWe-yr | CC113: 35 to 145 t/GWe-yr | CF113: 3.8 to 35 t/GWe-yr | CI113: <3.8 t/GWe-yr | CR113: 1 | DP113: -1 | DQ113: -0.9 | DR113: -0.8 | DS113: -0.7 | DT113: -0.6 | DU113: -0.45 | DV113: -0.44 | DW113: -0.3 | DX113: -0.15 | DY113: -0.14 | DZ113: 0 | EA113: 0.14 | EB113: 0.15 | EC113: 0.3 | ED113: 0.45 | EE113: 0.46 | EF113: 0.6 | EG113: 0.7 | EH113: 0.8 | EI113: 0.9 | EJ113: 1
A114: S-Curve 1 Low | B114: =IF($B$39=1,B129,IF($B$39=2,B130,IF($B$39=3,B131,B132))) -> 1 | C114: =IF($B$39=1,C129,IF($B$39=2,C130,IF($B$39=3,C131,C132))) ->  | L114: 0 | V114: -1 | AA114: 26 | AB114: -1 | AC114: -0.9 | AD114: -0.8 | AE114: -0.7 | AF114: -0.6 | AG114: -0.5 | AH114: -0.4 | AI114: -0.3 | AJ114: -0.2 | AK114: -0.1 | AL114: 0 | AM114: 0.1 | AN114: 0.2 | AO114: 0.3 | AP114: 0.4 | AQ114: 0.5 | AR114: 0.6 | AS114: 0.7 | AT114: 0.8 | AU114: 0.9 | AV114: 1 | AX114: Custom | AY114: 0 | AZ114: 0 | BA114: 0 | BB114: 0 | BC114: 0 | BD114: 0 | BE114: 0.1 | BF114: 0.1 | BG114: 0.1 | BH114: 0.2 | BI114: 0.2 | BJ114: 0.2 | BK114: 0.6 | BL114: 0.6 | BM114: 0.6 | BN114: 1 | BO114: 1 | BP114: 1 | BQ114: 1 | BR114: 1 | BS114: 1 | BT114: 1 | BU114: 2 | BZ114: Potenitally Significantly more challenging | CC114: Potentially More Challenging | CF114: Potentially Similar in Challenge | CI114: Potentially Less Challenging | CL114: Potentially Much Less Challenging | CR114: 1 | CV114: Identified hazards that are significantly more challenging to address than the hazards that exist in the fuel cycle basis for comparison | CY114: Identified hazards that are more challenging to address than those hazards that exist in the fuel cycle basis for comparison | DB114: Identified hazards that are similar in challenges to address than those hazards that exist in the fuel cycle basis for comparison | DE114: Identified hazards are less challenging to address than those hazards that exist in the fuel cycle basis for comparison | DH114: Identified hazards are much less challenging to address than those hazards that exist in the fuel cycle basis for comparison | DP114: -1 | DQ114: -0.9 | DR114: -0.8 | DS114: -0.7 | DT114: -0.6 | DU114: -0.45 | DV114: -0.44 | DW114: -0.3 | DX114: -0.15 | DY114: -0.14 | DZ114: 0 | EA114: 0.14 | EB114: 0.16 | EC114: 0.3 | ED114: 0.45 | EE114: 0.46 | EF114: 0.6 | EG114: 0.7 | EH114: 0.8 | EI114: 0.9 | EJ114: 1
AA115: 27 | AB115: -1 | AC115: -0.9 | AD115: -0.8 | AE115: -0.7 | AF115: -0.6 | AG115: -0.5 | AH115: -0.4 | AI115: -0.3 | AJ115: -0.2 | AK115: -0.1 | AL115: 0 | AM115: 0.1 | AN115: 0.2 | AO115: 0.3 | AP115: 0.4 | AQ115: 0.5 | AR115: 0.6 | AS115: 0.7 | AT115: 0.8 | AU115: 0.9 | AV115: 1 | AX115: Custom | AY115: 0 | AZ115: 0 | BA115: 0 | BB115: 0 | BC115: 0 | BD115: 0 | BE115: 0 | BF115: 0 | BG115: 0 | BH115: 1 | BI115: 1 | BJ115: 1 | BK115: 1 | BL115: 1 | BM115: 1 | BN115: 1 | BO115: 1 | BP115: 1 | BQ115: 1 | BR115: 1 | BS115: 1 | BT115: 1 | BU115: 2 | CC115: No | CF115: Yes | CR115: 1 | CY115: At least one of the safety hazards poses a challenge that is unable to be addressed, and the corresponding facility or process is not successful in addressing all hazards | DB115: All of the safety hazards can be addressed and the entire fuel cycle can be deployed safely, with all facilities and processes addressing all safety hazards | DP115: -1 | DQ115: -0.9 | DR115: -0.8 | DS115: -0.7 | DT115: -0.6 | DU115: -0.5 | DV115: -0.4 | DW115: -0.3 | DX115: -0.15 | DY115: -0.14 | DZ115: 0 | EA115: 0.15 | EB115: 0.16 | EC115: 0.3 | ED115: 0.4 | EE115: 0.5 | EF115: 0.6 | EG115: 0.7 | EH115: 0.8 | EI115: 0.9 | EJ115: 1
A116: S-Curve 2 High | B116: =IF($B$50=1,B136,IF($B$50=2,B137,B138)) -> -1 | C116: =IF($B$50=1,C136,IF($B$50=2,C137,C138)) ->  | L116: 0 | V116: 1 | AA116: 28
A117: S-Curve 2 Low | B117: =IF($B$50=1,B139,IF($B$50=2,B140,B141)) -> 1 | C117: =IF($B$50=1,C139,IF($B$50=2,C140,C141)) ->  | L117: 0 | V117: -1 | AA117: 29
AA118: 30
A119: 1 | B119: 2 | C119: 3 | D119: 4 | E119: 5 | F119: 6 | G119: 7 | H119: 8 | I119: 9 | J119: 10 | K119: 11 | L119: 12 | M119: 13 | N119: 14 | O119: 15 | P119: 16 | Q119: 17 | R119: 18 | S119: 19 | T119: 20 | U119: 21 | V119: 22 | AA119: 31
A120: Default scale | B120: -1 | C120: -0.9 | D120: -0.8 | E120: -0.7 | F120: -0.6 | G120: -0.5 | H120: -0.4 | I120: -0.3 | J120: -0.2 | K120: -0.1 | L120: 0 | M120: 0.1 | N120: 0.2 | O120: 0.3 | P120: 0.4 | Q120: 0.5 | R120: 0.6 | S120: 0.7 | T120: 0.8 | U120: 0.9 | V120: 1 | AA120: 32
A121: 7-Point scale x | B121: -1 | C121: -0.9 | D121: -0.75 | E121: -0.74 | F121: -0.6 | G121: -0.45 | H121: -0.44 | I121: -0.3 | J121: -0.15 | K121: -0.14 | L121: 0 | M121: 0.15 | N121: 0.16 | O121: 0.3 | P121: 0.45 | Q121: 0.46 | R121: 0.6 | S121: 0.75 | T121: 0.76 | U121: 0.9 | V121: 1 | AA121: 33
A122: 7-Point scale y | B122: =-1*Flags!$C$23 -> -1 | C122: =-1*Flags!$C$23 -> -1 | D122: =-1*Flags!$C$23 -> -1 | E122: =-0.66667*Flags!$C$23 -> -0.66667 | F122: =-0.66667*Flags!$C$23 -> -0.66667 | G122: =-0.66667*Flags!$C$23 -> -0.66667 | H122: =-0.33333*Flags!$C$23 -> -0.33333 | I122: =-0.33333*Flags!$C$23 -> -0.33333 | J122: =-0.33333*Flags!$C$23 -> -0.33333 | K122: 0 | L122: 0 | M122: 0 | N122: =0.3333*Flags!$C$23 -> 0.3333 | O122: =0.3333*Flags!$C$23 -> 0.3333 | P122: =0.3333*Flags!$C$23 -> 0.3333 | Q122: =0.66667*Flags!$C$23 -> 0.66667 | R122: =0.66667*Flags!$C$23 -> 0.66667 | S122: =0.66667*Flags!$C$23 -> 0.66667 | T122: =1*Flags!$C$23 -> 1 | U122: =1*Flags!$C$23 -> 1 | V122: =1*Flags!$C$23 -> 1 | AA122: 34
AA123: 35
A124: S-Curve 1 value: | B124: =B39 -> 2 | AA124: 36
A125: S-Curve 1 High 1 | B125: =((1-Exp_Func1_1Neg(-B$22))-0.5)*Flags!$C$23 ->  | C125: =((1-Exp_Func1_1Neg(-C$22))-0.5)*Flags!$C$23 ->  | D125: =((1-Exp_Func1_1Neg(-D$22))-0.5)*Flags!$C$23 ->  | E125: =((1-Exp_Func1_1Neg(-E$22))-0.5)*Flags!$C$23 ->  | F125: =((1-Exp_Func1_1Neg(-F$22))-0.5)*Flags!$C$23 ->  | G125: =((1-Exp_Func1_1Neg(-G$22))-0.5)*Flags!$C$23 ->  | H125: =((1-Exp_Func1_1Neg(-H$22))-0.5)*Flags!$C$23 ->  | I125: =((1-Exp_Func1_1Neg(-I$22))-0.5)*Flags!$C$23 ->  | J125: =((1-Exp_Func1_1Neg(-J$22))-0.5)*Flags!$C$23 ->  | K125: =((1-Exp_Func1_1Neg(-K$22))-0.5)*Flags!$C$23 ->  | L125: 0 | M125: =(Exp_Func1_1Neg(M$22)-0.5)*Flags!$C$23 ->  | N125: =(Exp_Func1_1Neg(N$22)-0.5)*Flags!$C$23 ->  | O125: =(Exp_Func1_1Neg(O$22)-0.5)*Flags!$C$23 ->  | P125: =(Exp_Func1_1Neg(P$22)-0.5)*Flags!$C$23 ->  | Q125: =(Exp_Func1_1Neg(Q$22)-0.5)*Flags!$C$23 ->  | R125: =(Exp_Func1_1Neg(R$22)-0.5)*Flags!$C$23 ->  | S125: =(Exp_Func1_1Neg(S$22)-0.5)*Flags!$C$23 ->  | T125: =(Exp_Func1_1Neg(T$22)-0.5)*Flags!$C$23 ->  | U125: =(Exp_Func1_1Neg(U$22)-0.5)*Flags!$C$23 ->  | V125: =(Exp_Func1_1Neg(V$22)-0.5)*Flags!$C$23 ->  | AA125: 37
A126: S-Curve 1 High 2 | B126: =-1*Flags!$C$23 -> -1 | C126: =((1-Exp_Func1_2Neg(-C$22))-0.5)*Flags!$C$23 ->  | D126: =((1-Exp_Func1_2Neg(-D$22))-0.5)*Flags!$C$23 ->  | E126: =((1-Exp_Func1_2Neg(-E$22))-0.5)*Flags!$C$23 ->  | F126: =((1-Exp_Func1_2Neg(-F$22))-0.5)*Flags!$C$23 ->  | G126: =((1-Exp_Func1_2Neg(-G$22))-0.5)*Flags!$C$23 ->  | H126: =((1-Exp_Func1_2Neg(-H$22))-0.5)*Flags!$C$23 ->  | I126: =((1-Exp_Func1_2Neg(-I$22))-0.5)*Flags!$C$23 ->  | J126: =((1-Exp_Func1_2Neg(-J$22))-0.5)*Flags!$C$23 ->  | K126: =((1-Exp_Func1_2Neg(-K$22))-0.5)*Flags!$C$23 ->  | L126: 0 | M126: =(Exp_Func1_2Neg(M$22)-0.5)*Flags!$C$23 ->  | N126: =(Exp_Func1_2Neg(N$22)-0.5)*Flags!$C$23 ->  | O126: =(Exp_Func1_2Neg(O$22)-0.5)*Flags!$C$23 ->  | P126: =(Exp_Func1_2Neg(P$22)-0.5)*Flags!$C$23 ->  | Q126: =(Exp_Func1_2Neg(Q$22)-0.5)*Flags!$C$23 ->  | R126: =(Exp_Func1_2Neg(R$22)-0.5)*Flags!$C$23 ->  | S126: =(Exp_Func1_2Neg(S$22)-0.5)*Flags!$C$23 ->  | T126: =(Exp_Func1_2Neg(T$22)-0.5)*Flags!$C$23 ->  | U126: =(Exp_Func1_2Neg(U$22)-0.5)*Flags!$C$23 ->  | V126: =1*Flags!$C$23 -> 1 | AA126: 38
A127: S-Curve 1 High 3 | B127: =-1*Flags!$C$23 -> -1 | C127: =((1-Exp_Func1_3Neg(-C$22))-0.5)*Flags!$C$23 ->  | D127: =((1-Exp_Func1_3Neg(-D$22))-0.5)*Flags!$C$23 ->  | E127: =((1-Exp_Func1_3Neg(-E$22))-0.5)*Flags!$C$23 ->  | F127: =((1-Exp_Func1_3Neg(-F$22))-0.5)*Flags!$C$23 ->  | G127: =((1-Exp_Func1_3Neg(-G$22))-0.5)*Flags!$C$23 ->  | H127: =((1-Exp_Func1_3Neg(-H$22))-0.5)*Flags!$C$23 ->  | I127: =((1-Exp_Func1_3Neg(-I$22))-0.5)*Flags!$C$23 ->  | J127: =((1-Exp_Func1_3Neg(-J$22))-0.5)*Flags!$C$23 ->  | K127: =((1-Exp_Func1_3Neg(-K$22))-0.5)*Flags!$C$23 ->  | L127: 0 | M127: =(Exp_Func1_3Neg(M$22)-0.5)*Flags!$C$23 ->  | N127: =(Exp_Func1_3Neg(N$22)-0.5)*Flags!$C$23 ->  | O127: =(Exp_Func1_3Neg(O$22)-0.5)*Flags!$C$23 ->  | P127: =(Exp_Func1_3Neg(P$22)-0.5)*Flags!$C$23 ->  | Q127: =(Exp_Func1_3Neg(Q$22)-0.5)*Flags!$C$23 ->  | R127: =(Exp_Func1_3Neg(R$22)-0.5)*Flags!$C$23 ->  | S127: =(Exp_Func1_3Neg(S$22)-0.5)*Flags!$C$23 ->  | T127: =(Exp_Func1_3Neg(T$22)-0.5)*Flags!$C$23 ->  | U127: =(Exp_Func1_3Neg(U$22)-0.5)*Flags!$C$23 ->  | V127: =1*Flags!$C$23 -> 1 | AA127: 39
A128: S-Curve 1 High 4 | B128: =-1*Flags!$C$23 -> -1 | C128: =((1-Exp_Func1_4Neg(-C$22))-0.5)*Flags!$C$23 ->  | D128: =((1-Exp_Func1_4Neg(-D$22))-0.5)*Flags!$C$23 ->  | E128: =((1-Exp_Func1_4Neg(-E$22))-0.5)*Flags!$C$23 ->  | F128: =((1-Exp_Func1_4Neg(-F$22))-0.5)*Flags!$C$23 ->  | G128: =((1-Exp_Func1_4Neg(-G$22))-0.5)*Flags!$C$23 ->  | H128: =((1-Exp_Func1_4Neg(-H$22))-0.5)*Flags!$C$23 ->  | I128: =((1-Exp_Func1_4Neg(-I$22))-0.5)*Flags!$C$23 ->  | J128: =((1-Exp_Func1_4Neg(-J$22))-0.5)*Flags!$C$23 ->  | K128: =((1-Exp_Func1_4Neg(-K$22))-0.5)*Flags!$C$23 ->  | L128: 0 | M128: =((Exp_Func1_4Neg(M$22))-0.5)*Flags!$C$23 ->  | N128: =((Exp_Func1_4Neg(N$22))-0.5)*Flags!$C$23 ->  | O128: =((Exp_Func1_4Neg(O$22))-0.5)*Flags!$C$23 ->  | P128: =((Exp_Func1_4Neg(P$22))-0.5)*Flags!$C$23 ->  | Q128: =((Exp_Func1_4Neg(Q$22))-0.5)*Flags!$C$23 ->  | R128: =((Exp_Func1_4Neg(R$22))-0.5)*Flags!$C$23 ->  | S128: =((Exp_Func1_4Neg(S$22))-0.5)*Flags!$C$23 ->  | T128: =((Exp_Func1_4Neg(T$22))-0.5)*Flags!$C$23 ->  | U128: =((Exp_Func1_4Neg(U$22))-0.5)*Flags!$C$23 ->  | V128: =((Exp_Func1_4Neg(V$22))-0.5)*Flags!$C$23 ->  | AA128: 40
A129: S-Curve 1 Low 1 | B129: =V125 ->  | C129: =U125 ->  | D129: =T125 ->  | E129: =S125 ->  | F129: =R125 ->  | G129: =Q125 ->  | H129: =P125 ->  | I129: =O125 ->  | J129: =N125 ->  | K129: =M125 ->  | L129: =L125 -> 0 | M129: =K125 ->  | N129: =J125 ->  | O129: =I125 ->  | P129: =H125 ->  | Q129: =G125 ->  | R129: =F125 ->  | S129: =E125 ->  | T129: =D125 ->  | U129: =C125 ->  | V129: =B125 -> 
A130: S-Curve 1 Low 2 | B130: =V126 -> 1 | C130: =U126 ->  | D130: =T126 ->  | E130: =S126 ->  | F130: =R126 ->  | G130: =Q126 ->  | H130: =P126 ->  | I130: =O126 ->  | J130: =N126 ->  | K130: =M126 ->  | L130: =L126 -> 0 | M130: =K126 ->  | N130: =J126 ->  | O130: =I126 ->  | P130: =H126 ->  | Q130: =G126 ->  | R130: =F126 ->  | S130: =E126 ->  | T130: =D126 ->  | U130: =C126 ->  | V130: =B126 -> -1 | AA130: Metric | AB130: Metric data | AD130: Data Set 4 | AW130: Units | AX130: Utility curve | BT130: Polarity | BU130: Data Type | BV130: S-Curve # | BW130: Qualitative Text | CR130: Score as: | CS130: Definitions: | DP130: Utility curve x values
A131: S-Curve 1 Low 3 | B131: =V127 -> 1 | C131: =U127 ->  | D131: =T127 ->  | E131: =S127 ->  | F131: =R127 ->  | G131: =Q127 ->  | H131: =P127 ->  | I131: =O127 ->  | J131: =N127 ->  | K131: =M127 ->  | L131: =L127 -> 0 | M131: =K127 ->  | N131: =J127 ->  | O131: =I127 ->  | P131: =H127 ->  | Q131: =G127 ->  | R131: =F127 ->  | S131: =E127 ->  | T131: =D127 ->  | U131: =C127 ->  | V131: =B127 -> -1 | AA131: 1 | AB131: -1 | AC131: -0.9 | AD131: -0.8 | AE131: -0.7 | AF131: -0.6 | AG131: -0.5 | AH131: -0.4 | AI131: -0.3 | AJ131: -0.2 | AK131: -0.1 | AL131: 0 | AM131: 0.1 | AN131: 0.2 | AO131: 0.3 | AP131: 0.4 | AQ131: 0.5 | AR131: 0.6 | AS131: 0.7 | AT131: 0.8 | AU131: 0.9 | AV131: 1 | AX131: Linear High | AY131: 0 | AZ131: 0 | BA131: 0 | BB131: 0.5 | BC131: 0.5 | BD131: 0.5 | BE131: 0.77 | BF131: 0.77 | BG131: 0.77 | BH131: 0.9 | BI131: 0.9 | BJ131: 0.9 | BK131: 0.97 | BL131: 0.97 | BM131: 0.97 | BN131: 1 | BO131: 1 | BP131: 1 | BQ131: 1 | BR131: 1 | BS131: 1 | BT131: 1 | BU131: 2 | BW131: >50 yrs | BZ131: 25 - 50 yrs | CC131: 10 - 25 yrs | CF131: 5 - 10 yrs | CI131: < 5yrs | CL131: No Development Needed | CR131: 1 | CS131: Very significant R&D required that may require significant technical breakthroughs, new discoveries or extended research, development of long-lead time laboratory experiments before engineering/pilot demonstration. Estimated development time is greater than 50 years | CV131: Significant R&D required that may require more fundamental development at laboratory scale before developing capabilities that can be demonstrated at engineering/pilot scale. Estimated development time is 25-50 years | CY131: R&D required that requires extended development time to arrive at a workable capability and demonstration at the engineering/pilot scale. Estimated development time is 10-25 years | DB131: R&D required, but many of the required capabilities are either already demonstrated or nearly demonstrated. Additional engineering/pilot scale in the near term likely using existing facilities or based on historical experience. Example may be the qualification of a well-established fuel. Estimated development time is 5-10 years | DE131: R&D required, but most of the required capabilities already demonstrated and any additional R&D is limited in scope and can be supported with existing facilities with little or no modifications. Estimated development time is less than 5 years | DH131: No R&D needed. Technology is already at TRL 6 or beyond. Development time is 0 years. | DP131: -1 | DQ131: -0.9 | DR131: -0.75 | DS131: -0.74 | DT131: -0.6 | DU131: -0.45 | DV131: -0.44 | DW131: -0.3 | DX131: -0.15 | DY131: -0.14 | DZ131: 0 | EA131: 0.15 | EB131: 0.16 | EC131: 0.3 | ED131: 0.45 | EE131: 0.46 | EF131: 0.6 | EG131: 0.7 | EH131: 0.8 | EI131: 0.9 | EJ131: 1
A132: S-Curve 1 Low 4 | B132: =V128 ->  | C132: =U128 ->  | D132: =T128 ->  | E132: =S128 ->  | F132: =R128 ->  | G132: =Q128 ->  | H132: =P128 ->  | I132: =O128 ->  | J132: =N128 ->  | K132: =M128 ->  | L132: =L128 -> 0 | M132: =K128 ->  | N132: =J128 ->  | O132: =I128 ->  | P132: =H128 ->  | Q132: =G128 ->  | R132: =F128 ->  | S132: =E128 ->  | T132: =D128 ->  | U132: =C128 ->  | V132: =B128 -> -1 | AA132: 2 | AB132: -1 | AC132: -0.9 | AD132: -0.8 | AE132: -0.7 | AF132: -0.6 | AG132: -0.5 | AH132: -0.4 | AI132: -0.3 | AJ132: -0.2 | AK132: -0.1 | AL132: 0 | AM132: 0.1 | AN132: 0.2 | AO132: 0.3 | AP132: 0.4 | AQ132: 0.5 | AR132: 0.6 | AS132: 0.7 | AT132: 0.8 | AU132: 0.9 | AV132: 1 | AX132: Custom | AY132: 0 | AZ132: 0 | BA132: 0 | BB132: 0.53 | BC132: 0.53 | BD132: 0.53 | BE132: 0.84 | BF132: 0.84 | BG132: 0.84 | BH132: 0.97 | BI132: 0.97 | BJ132: 0.97 | BK132: 0.997 | BL132: 0.997 | BM132: 0.997 | BN132: 1 | BO132: 1 | BP132: 1 | BQ132: 1 | BR132: 1 | BS132: 1 | BT132: 1 | BU132: 2 | BW132: > $25B | BZ132: $10B - $25B | CC132: $2B - $10B | CF132: $200M - $2B | CI132: < $200M | CL132: No Development Needed | CR132: 1 | CS132: Very significant R&D required including construction of many new facilities to provide an engineering/pilot scale demonstration of several components of the fuel cycle. May require more than one scale of facility development for particular fuel cycle components. Development cost expected to be greater than $25 billion | CV132: Significant R&D required including construction of several nuclear facilities to provide a engineering/pilot scale demonstration of several components of a fuel cycle. Alternatively, the scale of the facilities required for engineering/pilot scale demonstration is large and results in significantly increased cost. Development costs expected to be between $10 billion and $25 billion | CY132: R&D required including construction of a major nuclear facility to provide a engineering/pilot scale demonstration of one component of a fuel cycle. Development costs expected to be between $2 billion and $10 billion | DB132: R&D required, but can primarily be performed without significant investment in new major nuclear facilities for engineering/pilot scale demonstration. May, for example, just require modification of existing facilities. Development costs expected to be between $200 million and $2 billion. | DE132: R&D required but is limited in scope and can be supported with existing facilities with little or no modifications. Development costs expected to be less than $200 million | DH132: No R&D needed. Technology is already at TRL 6 or beyond. Development cost is $0. | DP132: -1 | DQ132: -0.9 | DR132: -0.75 | DS132: -0.74 | DT132: -0.6 | DU132: -0.45 | DV132: -0.44 | DW132: -0.3 | DX132: -0.15 | DY132: -0.14 | DZ132: 0 | EA132: 0.15 | EB132: 0.16 | EC132: 0.3 | ED132: 0.45 | EE132: 0.46 | EF132: 0.6 | EG132: 0.7 | EH132: 0.8 | EI132: 0.9 | EJ132: 1
AA133: 3 | AB133: 0 | AC133: 0 | AD133: 0.2666666667 | AE133: 0.4088888889 | AF133: 0.42 | AG133: 0.48 | AH133: 0.4853333333 | AI133: 0.4986666667 | AJ133: 0.5155555556 | AK133: 0.644 | AL133: 0.7441777778 | AM133: 0.756 | AN133: 0.7646222222 | AO133: 0.812 | AP133: 0.8736 | AQ133: 0.8976 | AR133: 0.9383111111 | AS133: 0.9640888889 | AT133: 0.9666666667 | AU133: 0.9973333333 | AV133: 1 | AW133: t/GWe-yr | AX133: Custom | AY133: 0 | AZ133: 0 | BA133: 0.2666666667 | BB133: 0.4088888889 | BC133: 0.42 | BD133: 0.48 | BE133: 0.4853333333 | BF133: 0.4986666667 | BG133: 0.5155555556 | BH133: 0.644 | BI133: 0.7441777778 | BJ133: 0.756 | BK133: 0.7646222222 | BL133: 0.812 | BM133: 0.8736 | BN133: 0.8976 | BO133: 0.9383111111 | BP133: 0.9640888889 | BQ133: 0.9666666667 | BR133: 0.9973333333 | BS133: 1 | BT133: 1 | BU133: 1 | BW133: Much Worse than Reference | BZ133: Worse than Reference | CC133: Slightly Worse than Reference | CF133: Similar to Reference | CI133: Slightly Better than Reference | CL133: Better than Reference | CO133: Much Better than Reference | CS133: This means that… test test test | CV133: 2 | CY133: 3 | DB133: 4 | DE133: 5 | DH133: 6 | DK133: 7 | DP133: -1 | DQ133: -0.9 | DR133: -0.8 | DS133: -0.7 | DT133: -0.6 | DU133: -0.5 | DV133: -0.4 | DW133: -0.3 | DX133: -0.2 | DY133: -0.1 | DZ133: 0 | EA133: 0.1 | EB133: 0.2 | EC133: 0.3 | ED133: 0.4 | EE133: 0.5 | EF133: 0.6 | EG133: 0.7 | EH133: 0.8 | EI133: 0.9 | EJ133: 1
AA134: 4 | AB134: -1 | AC134: -0.9 | AD134: -0.8 | AE134: -0.7 | AF134: -0.6 | AG134: -0.5 | AH134: -0.4 | AI134: -0.3 | AJ134: -0.2 | AK134: -0.1 | AL134: 0 | AM134: 0.1 | AN134: 0.2 | AO134: 0.3 | AP134: 0.4 | AQ134: 0.5 | AR134: 0.6 | AS134: 0.7 | AT134: 0.8 | AU134: 0.9 | AV134: 1 | AX134: Custom | AY134: 0 | AZ134: 0 | BA134: 0 | BB134: 0.5 | BC134: 0.5 | BD134: 0.5 | BE134: 0.77 | BF134: 0.77 | BG134: 0.77 | BH134: 0.92 | BI134: 0.92 | BJ134: 0.92 | BK134: 0.99 | BL134: 0.99 | BM134: 0.99 | BN134: 1 | BO134: 1 | BP134: 1 | BQ134: 1 | BR134: 1 | BS134: 1 | BT134: 1 | BU134: 2 | BW134: > $50B | BZ134: $25B to $50B | CC134: $10B to $25B | CF134: $2B to $10B | CI134: <$2B | CL134: No FOAK Needed | CR134: 1 | CS134: Deployment of a first-of-a-kind (FOAK) commercial system represents a very significant effort to move from engineering/pilot scale to FOAK system that may include several large-scale nuclear facilities that require several stages of deployment representing additional scales of facilities needed to achieve FOAK. Estimated cost to go from an engineering/pilot scale system to FOAK is over $50 billion | CV134: Deployment of a first-of-a-kind (FOAK) commercial system represents a significant effort to move from engineering/pilot scale to first-of-a-kind commercial system (FOAK) that may include several large-scale nuclear facilities. Estimated cost to go from an engineering/pilot scale system to FOAK is between $25 billion and $50 billion | CY134: Deployment of FOAK represents a single large-scale nuclear facility or several medium-scale nuclear facilities. Estimated cost to go from an engineering/pilot scale system to FOAK is between $10 billion and $25 billion | DB134: Deployment of FOAK represents a single nuclear facility or a few small-scale nuclear facilities. Estimated costs to go from an engineering/pilot scale system to FOAK is between $2 billion and $10 billion | DE134: Deployment of FOAK may, for example, require small-scale nuclear facility or modifications to existing nuclear facility. Estimated cost to go from an engineering/pilot scale system to FOAK is less than $2 billion | DH134: Technology already has a FOAK (or beyond) deployment. FOAK deployment cost is $0. | DP134: -1 | DQ134: -0.9 | DR134: -0.75 | DS134: -0.74 | DT134: -0.6 | DU134: -0.45 | DV134: -0.44 | DW134: -0.3 | DX134: -0.15 | DY134: -0.14 | DZ134: 0 | EA134: 0.15 | EB134: 0.16 | EC134: 0.3 | ED134: 0.45 | EE134: 0.46 | EF134: 0.6 | EG134: 0.7 | EH134: 0.8 | EI134: 0.9 | EJ134: 1
A135: S-Curve 2 value: | B135: =B50 -> 2 | AA135: 5 | AB135: -1 | AC135: -0.9 | AD135: -0.8 | AE135: -0.7 | AF135: -0.6 | AG135: -0.5 | AH135: -0.4 | AI135: -0.3 | AJ135: -0.2 | AK135: -0.1 | AL135: 0 | AM135: 0.1 | AN135: 0.2 | AO135: 0.3 | AP135: 0.4 | AQ135: 0.5 | AR135: 0.6 | AS135: 0.7 | AT135: 0.8 | AU135: 0.9 | AV135: 1 | AX135: Custom | AY135: 0 | AZ135: 0 | BA135: 0 | BB135: 0.33 | BC135: 0.33 | BD135: 0.33 | BE135: 0.67 | BF135: 0.67 | BG135: 0.67 | BH135: 1 | BI135: 1 | BJ135: 1 | BK135: 1 | BL135: 1 | BM135: 1 | BN135: 1 | BO135: 1 | BP135: 1 | BQ135: 1 | BR135: 1 | BS135: 1 | BT135: 1 | BU135: 2 | BW135: Incompatible - <10% | BZ135: Partly Compatible - < 50% but > 10% | CC135: Mostly Compatible - > 50% but < 90% | CF135: Compatible - >90% | CR135: 1 | CS135: The fuel cycle option utilizes few or none of the components of the existing infrastructure and requires mostly new infrastructure components for deployment. Estimate is that less than 10% of the required infrastructure can be based on existing infrastructure | CV135: The fuel cycle option utilizes some components of the existing infrastructure and requires mostly additional infrastructure components. Estimate is that less than 50% (but more than 10%) of the required infrastructure will be based on existing infrastructure | CY135: The fuel cycle option utilizes most components of the existing infrastructure and may require some additional infrastructure components. The fuel cycle option utilizes mostly components of the existing infrastructure and may require some additional infrastructure components. Estimate is that more than 50% (but less than 90%) of the required infrastructure can be based on existing infrastructure | DB135: The fuel cycle option fully utilizes the existing infrastructure as represented by the fuel cycle basis for comparison, needing very little additional infrastructure to deploy the fuel cycle. Estimate is that 90% or more of the required infrastructure can be based on existing infrastructure | DP135: -1 | DQ135: -0.9 | DR135: -0.75 | DS135: -0.74 | DT135: -0.6 | DU135: -0.45 | DV135: -0.44 | DW135: -0.3 | DX135: -0.15 | DY135: -0.14 | DZ135: 0 | EA135: 0.15 | EB135: 0.16 | EC135: 0.3 | ED135: 0.4 | EE135: 0.5 | EF135: 0.6 | EG135: 0.7 | EH135: 0.8 | EI135: 0.9 | EJ135: 1
A136: S-Curve 2 High 1 | B136: =-1*Flags!$C$23 -> -1 | C136: =-Exp_Func2_1Neg(-C$22)*Flags!$C$23 ->  | D136: =-Exp_Func2_1Neg(-D$22)*Flags!$C$23 ->  | E136: =-Exp_Func2_1Neg(-E$22)*Flags!$C$23 ->  | F136: =-Exp_Func2_1Neg(-F$22)*Flags!$C$23 ->  | G136: =-Exp_Func2_1Neg(-G$22)*Flags!$C$23 ->  | H136: =-Exp_Func2_1Neg(-H$22)*Flags!$C$23 ->  | I136: =-Exp_Func2_1Neg(-I$22)*Flags!$C$23 ->  | J136: =-Exp_Func2_1Neg(-J$22)*Flags!$C$23 ->  | K136: =-Exp_Func2_1Neg(-K$22)*Flags!$C$23 ->  | L136: 0 | M136: =Exp_Func2_1Neg(M$22)*Flags!$C$23 ->  | N136: =Exp_Func2_1Neg(N$22)*Flags!$C$23 ->  | O136: =Exp_Func2_1Neg(O$22)*Flags!$C$23 ->  | P136: =Exp_Func2_1Neg(P$22)*Flags!$C$23 ->  | Q136: =Exp_Func2_1Neg(Q$22)*Flags!$C$23 ->  | R136: =Exp_Func2_1Neg(R$22)*Flags!$C$23 ->  | S136: =Exp_Func2_1Neg(S$22)*Flags!$C$23 ->  | T136: =Exp_Func2_1Neg(T$22)*Flags!$C$23 ->  | U136: =Exp_Func2_1Neg(U$22)*Flags!$C$23 ->  | V136: =1*Flags!$C$23 -> 1 | AA136: 6 | AB136: -1 | AC136: -0.9 | AD136: -0.8 | AE136: -0.7 | AF136: -0.6 | AG136: -0.5 | AH136: -0.4 | AI136: -0.3 | AJ136: -0.2 | AK136: -0.1 | AL136: 0 | AM136: 0.1 | AN136: 0.2 | AO136: 0.3 | AP136: 0.4 | AQ136: 0.5 | AR136: 0.6 | AS136: 0.7 | AT136: 0.8 | AU136: 0.9 | AV136: 1 | AX136: Custom | AY136: 0 | AZ136: 0 | BA136: 0 | BB136: 0.3 | BC136: 0.3 | BD136: 0.3 | BE136: 0.8 | BF136: 0.8 | BG136: 0.8 | BH136: 1 | BI136: 1 | BJ136: 1 | BK136: 1 | BL136: 1 | BM136: 1 | BN136: 1 | BO136: 1 | BP136: 1 | BQ136: 1 | BR136: 1 | BS136: 1 | BT136: 1 | BU136: 2 | BW136: No regulations/ familiarity | BZ136: Non-U.S. Regulations/ Familiarity exists | CC136: U.S. Regulations/ Familiarity exist but not applied | CF136: U.S. Regulations/ Familiarity exists and applied | CR136: 1 | CS136: No regulatory experience exists for key fuel cycle facility types and use | CV136: No U.S. regulatory experience for fuel cycle facility types and use, but international regulatory experience exists through licensing of operating facilities | CY136: U.S. Regulations and regulatory experience exists for fuel cycle facility types but have not been demonstrated through issuing operating licenses. Regulatory authorities have some previous experience with key fuel cycle components, but may not have licensed these facility types | DB136: U.S. Regulations and regulatory experience exists for fuel cycle facility types that have been demonstrated through issuing operating licenses | DP136: -1 | DQ136: -0.9 | DR136: -0.75 | DS136: -0.74 | DT136: -0.6 | DU136: -0.45 | DV136: -0.44 | DW136: -0.3 | DX136: -0.15 | DY136: -0.14 | DZ136: 0 | EA136: 0.15 | EB136: 0.16 | EC136: 0.3 | ED136: 0.4 | EE136: 0.5 | EF136: 0.6 | EG136: 0.7 | EH136: 0.8 | EI136: 0.9 | EJ136: 1
A137: S-Curve 2 High 2 | B137: =-1*Flags!$C$23 -> -1 | C137: =-Exp_Func2_2Neg(-C$22)*Flags!$C$23 ->  | D137: =-Exp_Func2_2Neg(-D$22)*Flags!$C$23 ->  | E137: =-Exp_Func2_2Neg(-E$22)*Flags!$C$23 ->  | F137: =-Exp_Func2_2Neg(-F$22)*Flags!$C$23 ->  | G137: =-Exp_Func2_2Neg(-G$22)*Flags!$C$23 ->  | H137: =-Exp_Func2_2Neg(-H$22)*Flags!$C$23 ->  | I137: =-Exp_Func2_2Neg(-I$22)*Flags!$C$23 ->  | J137: =-Exp_Func2_2Neg(-J$22)*Flags!$C$23 ->  | K137: =-Exp_Func2_2Neg(-K$22)*Flags!$C$23 ->  | L137: 0 | M137: =Exp_Func2_2Neg(M$22)*Flags!$C$23 ->  | N137: =Exp_Func2_2Neg(N$22)*Flags!$C$23 ->  | O137: =Exp_Func2_2Neg(O$22)*Flags!$C$23 ->  | P137: =Exp_Func2_2Neg(P$22)*Flags!$C$23 ->  | Q137: =Exp_Func2_2Neg(Q$22)*Flags!$C$23 ->  | R137: =Exp_Func2_2Neg(R$22)*Flags!$C$23 ->  | S137: =Exp_Func2_2Neg(S$22)*Flags!$C$23 ->  | T137: =Exp_Func2_2Neg(T$22)*Flags!$C$23 ->  | U137: =Exp_Func2_2Neg(U$22)*Flags!$C$23 ->  | V137: =1*Flags!$C$23 -> 1 | AA137: 7 | AB137: -1 | AC137: -0.9 | AD137: -0.8 | AE137: -0.7 | AF137: -0.6 | AG137: -0.5 | AH137: -0.4 | AI137: -0.3 | AJ137: -0.2 | AK137: -0.1 | AL137: 0 | AM137: 0.1 | AN137: 0.2 | AO137: 0.3 | AP137: 0.4 | AQ137: 0.5 | AR137: 0.6 | AS137: 0.7 | AT137: 0.8 | AU137: 0.9 | AV137: 1 | AX137: Custom | AY137: 0 | AZ137: 0 | BA137: 0 | BB137: 0 | BC137: 0 | BD137: 0 | BE137: 0.1 | BF137: 0.1 | BG137: 0.1 | BH137: 0.5 | BI137: 0.5 | BJ137: 0.5 | BK137: 0.9 | BL137: 0.9 | BM137: 0.9 | BN137: 1 | BO137: 1 | BP137: 1 | BQ137: 1 | BR137: 1 | BS137: 1 | BT137: 1 | BU137: 2 | BZ137: Markets weak; Significant capital risk; Requires significant government investment | CC137: Markets weak; Low capital risk; Requires government investment | CF137: Markets weak; Low capital risk; Requires government investment | CI137: Markets exist; Some capital risk | CL137: Markets exist; Low capital risk; Incentives in place | CR137: 1 | CV137: The fuel cycle type exhibits challenges with respect to the magnitude of capital investment required and payback prospects and is weakened significantly from disincentives related to capital at risk. | CY137: The fuel cycle type exhibits challenges with respect to the magnitude of capital investment required and payback prospects. While incentives exist, the fuel cycle type, on balance, is weakened from disincentives related to capital at risk. | DB137: The fuel cycle type is neutral with respect to the magnitude of capital investment required and payback prospects, exhibiting off-setting incentives and disincentives. | DE137: The fuel cycle type exhibits promise with respect to the magnitude of capital investment required and payback prospects. Although disincentives exist, the fuel cycle type, on balance, benefits from incentives related to capital at risk. | DH137: The fuel cycle type exhibits promise with respect to the magnitude of capital investment required and payback prospects and benefits significantly from incentives related to capital at risk. | DP137: -1 | DQ137: -0.9 | DR137: -0.8 | DS137: -0.7 | DT137: -0.6 | DU137: -0.45 | DV137: -0.44 | DW137: -0.3 | DX137: -0.15 | DY137: -0.14 | DZ137: 0 | EA137: 0.15 | EB137: 0.16 | EC137: 0.3 | ED137: 0.45 | EE137: 0.46 | EF137: 0.6 | EG137: 0.7 | EH137: 0.8 | EI137: 0.9 | EJ137: 1
A138: S-Curve 2 High 3 | B138: =-1*Flags!$C$23 -> -1 | C138: =-Exp_Func2_3Neg(-C$22)*Flags!$C$23 ->  | D138: =-Exp_Func2_3Neg(-D$22)*Flags!$C$23 ->  | E138: =-Exp_Func2_3Neg(-E$22)*Flags!$C$23 ->  | F138: =-Exp_Func2_3Neg(-F$22)*Flags!$C$23 ->  | G138: =-Exp_Func2_3Neg(-G$22)*Flags!$C$23 ->  | H138: =-Exp_Func2_3Neg(-H$22)*Flags!$C$23 ->  | I138: =-Exp_Func2_3Neg(-I$22)*Flags!$C$23 ->  | J138: =-Exp_Func2_3Neg(-J$22)*Flags!$C$23 ->  | K138: =-Exp_Func2_3Neg(-K$22)*Flags!$C$23 ->  | L138: 0 | M138: =Exp_Func2_3Neg(M$22)*Flags!$C$23 ->  | N138: =Exp_Func2_3Neg(N$22)*Flags!$C$23 ->  | O138: =Exp_Func2_3Neg(O$22)*Flags!$C$23 ->  | P138: =Exp_Func2_3Neg(P$22)*Flags!$C$23 ->  | Q138: =Exp_Func2_3Neg(Q$22)*Flags!$C$23 ->  | R138: =Exp_Func2_3Neg(R$22)*Flags!$C$23 ->  | S138: =Exp_Func2_3Neg(S$22)*Flags!$C$23 ->  | T138: =Exp_Func2_3Neg(T$22)*Flags!$C$23 ->  | U138: =Exp_Func2_3Neg(U$22)*Flags!$C$23 ->  | V138: =1*Flags!$C$23 -> 1 | AA138: 8 | AB138: -1 | AC138: -0.9 | AD138: -0.8 | AE138: -0.7 | AF138: -0.6 | AG138: -0.5 | AH138: -0.4 | AI138: -0.3 | AJ138: -0.2 | AK138: -0.1 | AL138: 0 | AM138: 0.1 | AN138: 0.2 | AO138: 0.3 | AP138: 0.4 | AQ138: 0.5 | AR138: 0.6 | AS138: 0.7 | AT138: 0.8 | AU138: 0.9 | AV138: 1 | AX138: Custom | AY138: 0 | AZ138: 0 | BA138: 0 | BB138: 0.33 | BC138: 0.33 | BD138: 0.33 | BE138: 0.67 | BF138: 0.67 | BG138: 0.67 | BH138: 1 | BI138: 1 | BJ138: 1 | BK138: 1 | BL138: 1 | BM138: 1 | BN138: 1 | BO138: 1 | BP138: 1 | BQ138: 1 | BR138: 1 | BS138: 1 | BT138: 1 | BU138: 2 | BW138: Incompatible - <10% | BZ138: Partly Compatible - < 50% but > 10% | CC138: Mostly Compatible - > 50% but < 90% | CF138: Compatible - >90% | CR138: 1 | CS138: The fuel cycle option utilizes few or none of the components of the existing infrastructure and requires mostly new infrastructure components for deployment. Estimate is that less than 10% of the required infrastructure can be based on existing infrastructure | CV138: The fuel cycle option utilizes some components of the existing infrastructure and requires mostly additional infrastructure components. Estimate is that less than 50% (but more than 10%) of the required infrastructure will be based on existing infrastructure | CY138: The fuel cycle option utilizes most components of the existing infrastructure and may require some additional infrastructure components. The fuel cycle option utilizes mostly components of the existing infrastructure and may require some additional infrastructure components. Estimate is that more than 50% (but less than 90%) of the required infrastructure can be based on existing infrastructure | DB138: The fuel cycle option fully utilizes the existing infrastructure as represented by the fuel cycle basis for comparison, needing very little additional infrastructure to deploy the fuel cycle. Estimate is that 90% or more of the required infrastructure can be based on existing infrastructure | DP138: -1 | DQ138: -0.9 | DR138: -0.75 | DS138: -0.74 | DT138: -0.6 | DU138: -0.45 | DV138: -0.44 | DW138: -0.3 | DX138: -0.15 | DY138: -0.14 | DZ138: 0 | EA138: 0.15 | EB138: 0.16 | EC138: 0.3 | ED138: 0.4 | EE138: 0.5 | EF138: 0.6 | EG138: 0.7 | EH138: 0.8 | EI138: 0.9 | EJ138: 1
A139: S-Curve 2 Low 1 | B139: =V136 -> 1 | C139: =U136 ->  | D139: =T136 ->  | E139: =S136 ->  | F139: =R136 ->  | G139: =Q136 ->  | H139: =P136 ->  | I139: =O136 ->  | J139: =N136 ->  | K139: =M136 ->  | L139: =L136 -> 0 | M139: =K136 ->  | N139: =J136 ->  | O139: =I136 ->  | P139: =H136 ->  | Q139: =G136 ->  | R139: =F136 ->  | S139: =E136 ->  | T139: =D136 ->  | U139: =C136 ->  | V139: =B136 -> -1 | AA139: 9 | AB139: -1 | AC139: -0.9 | AD139: -0.8 | AE139: -0.7 | AF139: -0.6 | AG139: -0.5 | AH139: -0.4 | AI139: -0.3 | AJ139: -0.2 | AK139: -0.1 | AL139: 0 | AM139: 0.1 | AN139: 0.2 | AO139: 0.3 | AP139: 0.4 | AQ139: 0.5 | AR139: 0.6 | AS139: 0.7 | AT139: 0.8 | AU139: 0.9 | AV139: 1 | AX139: Custom | AY139: 0 | AZ139: 0 | BA139: 0 | BB139: 0.3 | BC139: 0.3 | BD139: 0.3 | BE139: 0.8 | BF139: 0.8 | BG139: 0.8 | BH139: 1 | BI139: 1 | BJ139: 1 | BK139: 1 | BL139: 1 | BM139: 1 | BN139: 1 | BO139: 1 | BP139: 1 | BQ139: 1 | BR139: 1 | BS139: 1 | BT139: 1 | BU139: 2 | BW139: No regulations/ familiarity | BZ139: Non-U.S. Regulations/ Familiarity exists | CC139: U.S. Regulations/ Familiarity exist but not applied | CF139: U.S. Regulations/ Familiarity exists and applied | CR139: 1 | CS139: No regulatory experience exists for key fuel cycle facility types and use | CV139: No U.S. regulatory experience for fuel cycle facility types and use, but international regulatory experience exists through licensing of operating facilities | CY139: U.S. Regulations and regulatory experience exists for fuel cycle facility types but have not been demonstrated through issuing operating licenses. Regulatory authorities have some previous experience with key fuel cycle components, but may not have licensed these facility types | DB139: U.S. Regulations and regulatory experience exists for fuel cycle facility types that have been demonstrated through issuing operating licenses | DP139: -1 | DQ139: -0.9 | DR139: -0.75 | DS139: -0.74 | DT139: -0.6 | DU139: -0.45 | DV139: -0.44 | DW139: -0.3 | DX139: -0.15 | DY139: -0.14 | DZ139: 0 | EA139: 0.15 | EB139: 0.16 | EC139: 0.3 | ED139: 0.4 | EE139: 0.5 | EF139: 0.6 | EG139: 0.7 | EH139: 0.8 | EI139: 0.9 | EJ139: 1
A140: S-Curve 2 Low 2 | B140: =V137 -> 1 | C140: =U137 ->  | D140: =T137 ->  | E140: =S137 ->  | F140: =R137 ->  | G140: =Q137 ->  | H140: =P137 ->  | I140: =O137 ->  | J140: =N137 ->  | K140: =M137 ->  | L140: =L137 -> 0 | M140: =K137 ->  | N140: =J137 ->  | O140: =I137 ->  | P140: =H137 ->  | Q140: =G137 ->  | R140: =F137 ->  | S140: =E137 ->  | T140: =D137 ->  | U140: =C137 ->  | V140: =B137 -> -1 | AA140: 10 | AB140: -1 | AC140: -0.9 | AD140: -0.8 | AE140: -0.7 | AF140: -0.6 | AG140: -0.5 | AH140: -0.4 | AI140: -0.3 | AJ140: -0.2 | AK140: -0.1 | AL140: 0 | AM140: 0.1 | AN140: 0.2 | AO140: 0.3 | AP140: 0.4 | AQ140: 0.5 | AR140: 0.6 | AS140: 0.7 | AT140: 0.8 | AU140: 0.9 | AV140: 1 | AX140: Custom | AY140: 0 | AZ140: 0 | BA140: 0 | BB140: 0 | BC140: 0 | BD140: 0 | BE140: 0.1 | BF140: 0.1 | BG140: 0.1 | BH140: 0.5 | BI140: 0.5 | BJ140: 0.5 | BK140: 0.9 | BL140: 0.9 | BM140: 0.9 | BN140: 1 | BO140: 1 | BP140: 1 | BQ140: 1 | BR140: 1 | BS140: 1 | BT140: 1 | BU140: 2 | BZ140: Markets weak; Significant capital risk; Requires significant government investment | CC140: Markets weak; Low capital risk; Requires government investment | CF140: Markets weak; Low capital risk; Requires government investment | CI140: Markets exist; Some capital risk | CL140: Markets exist; Low capital risk; Incentives in place | CR140: 1 | CV140: The fuel cycle type exhibits challenges with respect to the magnitude of capital investment required and payback prospects and is weakened significantly from disincentives related to capital at risk. | CY140: The fuel cycle type exhibits challenges with respect to the magnitude of capital investment required and payback prospects. While incentives exist, the fuel cycle type, on balance, is weakened from disincentives related to capital at risk. | DB140: The fuel cycle type is neutral with respect to the magnitude of capital investment required and payback prospects, exhibiting off-setting incentives and disincentives. | DE140: The fuel cycle type exhibits promise with respect to the magnitude of capital investment required and payback prospects. Although disincentives exist, the fuel cycle type, on balance, benefits from incentives related to capital at risk. | DH140: The fuel cycle type exhibits promise with respect to the magnitude of capital investment required and payback prospects and benefits significantly from incentives related to capital at risk. | DP140: -1 | DQ140: -0.9 | DR140: -0.8 | DS140: -0.7 | DT140: -0.6 | DU140: -0.45 | DV140: -0.44 | DW140: -0.3 | DX140: -0.15 | DY140: -0.14 | DZ140: 0 | EA140: 0.15 | EB140: 0.16 | EC140: 0.3 | ED140: 0.45 | EE140: 0.46 | EF140: 0.6 | EG140: 0.7 | EH140: 0.8 | EI140: 0.9 | EJ140: 1
A141: S-Curve 2 Low 3 | B141: =V138 -> 1 | C141: =U138 ->  | D141: =T138 ->  | E141: =S138 ->  | F141: =R138 ->  | G141: =Q138 ->  | H141: =P138 ->  | I141: =O138 ->  | J141: =N138 ->  | K141: =M138 ->  | L141: =L138 -> 0 | M141: =K138 ->  | N141: =J138 ->  | O141: =I138 ->  | P141: =H138 ->  | Q141: =G138 ->  | R141: =F138 ->  | S141: =E138 ->  | T141: =D138 ->  | U141: =C138 ->  | V141: =B138 -> -1 | AA141: 11 | AB141: -1 | AC141: -0.9 | AD141: -0.8 | AE141: -0.7 | AF141: -0.6 | AG141: -0.5 | AH141: -0.4 | AI141: -0.3 | AJ141: -0.2 | AK141: -0.1 | AL141: 0 | AM141: 0.1 | AN141: 0.2 | AO141: 0.3 | AP141: 0.4 | AQ141: 0.5 | AR141: 0.6 | AS141: 0.7 | AT141: 0.8 | AU141: 0.9 | AV141: 1 | AX141: Custom | AY141: 0 | AZ141: 0 | BA141: 0 | BB141: 0 | BC141: 0 | BD141: 0 | BE141: 0.25 | BF141: 0.25 | BG141: 0.25 | BH141: 0.5 | BI141: 0.5 | BJ141: 0.5 | BK141: 0.75 | BL141: 0.75 | BM141: 0.75 | BN141: 1 | BO141: 1 | BP141: 1 | BQ141: 1 | BR141: 1 | BS141: 1 | BU141: 2 | BZ141: E. Likely to be Much Higher | CC141: D. Likely to be Higher | CF141: C. Likely to be "Similar" | CI141: B. Likely to be Comparable to Current U.S. Fuel Cycle | CL141: A. Likely to be Lower | CR141: 1 | DP141: -1 | DQ141: -0.9 | DR141: -0.8 | DS141: -0.7 | DT141: -0.6 | DU141: -0.45 | DV141: -0.44 | DW141: -0.3 | DX141: -0.15 | DY141: -0.14 | DZ141: 0 | EA141: 0.14 | EB141: 0.15 | EC141: 0.3 | ED141: 0.45 | EE141: 0.46 | EF141: 0.6 | EG141: 0.7 | EH141: 0.8 | EI141: 0.9 | EJ141: 1
AA142: 12 | AB142: 6 | AC142: 5 | AD142: 4 | AE142: 3 | AF142: 2 | AG142: 1 | AH142: 1 | AI142: 0.75 | AJ142: 0.5 | AK142: 0.5 | AL142: 0.35 | AM142: 0.2 | AN142: 0.2 | AO142: 0.15 | AP142: 0.1 | AQ142: 0.1 | AR142: 0.05 | AS142: 0 | AT142: 0 | AU142: 0 | AV142: 0 | AW142: km2/GWe-yr | AX142: Custom | AY142: 0 | AZ142: 0 | BA142: 0 | BB142: 0 | BC142: 0 | BD142: 0 | BE142: 0.52 | BF142: 0.52 | BG142: 0.52 | BH142: 0.79 | BI142: 0.79 | BJ142: 0.79 | BK142: 0.93 | BL142: 0.93 | BM142: 0.93 | BN142: 1 | BO142: 1 | BP142: 1 | BQ142: 1 | BR142: 1 | BS142: 1 | BT142: 1 | BU142: 2 | BV142: 2 | BZ142: > 1.0 km2/GWe-yr | CC142: 0.5 - 1.0 km2/GWe-yr | CF142: 0.2 - 0.5 km2/GWe-yr | CI142: 0.1 - 0.2 km2/GWe-yr | CL142: < 0.1 km2/GWe-yr | CR142: 1 | DP142: -1 | DQ142: -0.9 | DR142: -0.8 | DS142: -0.7 | DT142: -0.6 | DU142: -0.45 | DV142: -0.44 | DW142: -0.3 | DX142: -0.15 | DY142: -0.14 | DZ142: 0 | EA142: 0.14 | EB142: 0.15 | EC142: 0.3 | ED142: 0.45 | EE142: 0.46 | EF142: 0.6 | EG142: 0.7 | EH142: 0.8 | EI142: 0.9 | EJ142: 1
AA143: 13 | AB143: 45000 | AC143: 45000 | AD143: 45000 | AE143: 45000 | AF143: 45000 | AG143: 45000 | AH143: 45000 | AI143: 37500 | AJ143: 30000 | AK143: 30000 | AL143: 22500 | AM143: 15000 | AN143: 15000 | AO143: 7500 | AP143: 0 | AQ143: 0 | AR143: 0 | AS143: 0 | AT143: 0 | AU143: 0 | AV143: 0 | AW143: ML/GWe-yr | AX143: Custom | AY143: 0 | AZ143: 0 | BA143: 0 | BB143: 0 | BC143: 0 | BD143: 0 | BE143: 0 | BF143: 0 | BG143: 0 | BH143: 0.5 | BI143: 0.5 | BJ143: 0.5 | BK143: 1 | BL143: 1 | BM143: 1 | BN143: 1 | BO143: 1 | BP143: 1 | BQ143: 1 | BR143: 1 | BS143: 1 | BT143: 1 | BU143: 2 | BV143: 2 | CC143: > 30,000 ML/GWe-yr | CF143: 15,000 - 30,000 ML/GWe-yr | CI143: < 15,000 ML/GWe-yr | CR143: 1 | DP143: -1 | DQ143: -0.9 | DR143: -0.8 | DS143: -0.7 | DT143: -0.6 | DU143: -0.5 | DV143: -0.4 | DW143: -0.3 | DX143: -0.15 | DY143: -0.14 | DZ143: 0 | EA143: 0.15 | EB143: 0.16 | EC143: 0.3 | ED143: 0.4 | EE143: 0.5 | EF143: 0.6 | EG143: 0.7 | EH143: 0.8 | EI143: 0.9 | EJ143: 1
AA144: 14 | AB144: 360 | AC144: 360 | AD144: 360 | AE144: 360 | AF144: 300 | AG144: 240 | AH144: 240 | AI144: 180 | AJ144: 120 | AK144: 120 | AL144: 90 | AM144: 60 | AN144: 60 | AO144: 45 | AP144: 30 | AQ144: 30 | AR144: 15 | AS144: 0 | AT144: 0 | AU144: 0 | AV144: 0 | AW144: kt/GWe-yr | AX144: Custom | AY144: 0 | AZ144: 0 | BA144: 0 | BB144: 0 | BC144: 0 | BD144: 0 | BE144: 0.52 | BF144: 0.52 | BG144: 0.52 | BH144: 0.78 | BI144: 0.78 | BJ144: 0.78 | BK144: 0.91 | BL144: 0.91 | BM144: 0.91 | BN144: 1 | BO144: 1 | BP144: 1 | BQ144: 1 | BR144: 1 | BS144: 1 | BT144: 1 | BU144: 2 | BV144: 2 | BZ144: > 240 kt/GWe-yr | CC144: 120 - 240 kt/GWe-yr | CF144: 60 - 120 kt/GWe-yr | CI144: 30 - 60 kt/GWe-yr | CL144: <30 kt/GWe-yr | CR144: 1 | DP144: -1 | DQ144: -0.9 | DR144: -0.8 | DS144: -0.7 | DT144: -0.6 | DU144: -0.45 | DV144: -0.44 | DW144: -0.3 | DX144: -0.15 | DY144: -0.14 | DZ144: 0 | EA144: 0.14 | EB144: 0.15 | EC144: 0.3 | ED144: 0.45 | EE144: 0.46 | EF144: 0.6 | EG144: 0.7 | EH144: 0.8 | EI144: 0.9 | EJ144: 1
AA145: 15 | AB145: 85 | AC145: 75 | AD145: 65 | AE145: 55 | AF145: 45 | AG145: 35 | AH145: 25 | AI145: 15 | AJ145: 5.0000001 | AK145: 5 | AL145: 2.75 | AM145: 0.5 | AN145: 0.49999 | AO145: 0.4 | AP145: 0.3 | AQ145: 0.2 | AR145: 0.1 | AS145: 0 | AT145: 0 | AU145: 0 | AV145: 0 | AW145: Person-Sv/GWe-yr | AX145: Custom | AY145: 0 | AZ145: 0 | BA145: 0 | BB145: 0 | BC145: 0 | BD145: 0 | BE145: 0 | BF145: 0 | BG145: 0 | BH145: 0.9 | BI145: 0.9 | BJ145: 0.9 | BK145: 1 | BL145: 1 | BM145: 1 | BN145: 1 | BO145: 1 | BP145: 1 | BQ145: 1 | BR145: 1 | BS145: 1 | BT145: 1 | BU145: 2 | BV145: 2 | CC145: Total worker dose of > 5.0 person-Sv/Gwe-yr | CF145: Total worker dose of 0.5 – 5.0 person-Sv/Gwe-yr | CI145: Total worker dose of <0.5 person-Sv/Gwe-yr | CR145: 1 | CY145: Total worker dose of > 5.0 person-Sv/Gwe-yr | DB145: Total worker dose of 0.5 – 5.0 person-Sv/Gwe-yr | DE145: Total worker dose of <0.5 person-Sv/Gwe-yr | DP145: -1 | DQ145: -0.9 | DR145: -0.8 | DS145: -0.7 | DT145: -0.6 | DU145: -0.5 | DV145: -0.4 | DW145: -0.3 | DX145: -0.15 | DY145: -0.14 | DZ145: 0 | EA145: 0.15 | EB145: 0.16 | EC145: 0.3 | ED145: 0.4 | EE145: 0.5 | EF145: 0.6 | EG145: 0.7 | EH145: 0.8 | EI145: 0.9 | EJ145: 1
AA146: 16 | AB146: 150 | AC146: 93 | AD146: 36.0001 | AE146: 36 | AF146: 24 | AG146: 12.00001 | AH146: 12 | AI146: 9 | AJ146: 6.00001 | AK146: 6 | AL146: 4.5 | AM146: 3.00001 | AN146: 3 | AO146: 2.3 | AP146: 1.650001 | AQ146: 1.65 | AR146: 0.825 | AS146: 0 | AT146: 0 | AU146: 0 | AV146: 0 | AW146: t/GWe-yr | AX146: Custom | AY146: 0 | AZ146: 0 | BA146: 0 | BB146: 0.19 | BC146: 0.19 | BD146: 0.19 | BE146: 0.43 | BF146: 0.43 | BG146: 0.43 | BH146: 0.59 | BI146: 0.59 | BJ146: 0.59 | BK146: 0.75 | BL146: 0.75 | BM146: 0.75 | BN146: 1 | BO146: 1 | BP146: 1 | BQ146: 1 | BR146: 1 | BS146: 1 | BT146: 1 | BU146: 2 | BW146: > 36 t/GWe-yr | BZ146: 12 to 36 t/GWe-yr | CC146: 6 to 12 t/GWe-yr | CF146: 3 to 6 t/GWe-yr | CI146: 1.65 to 3 t/GWe-yr | CL146: < 1.65 t/GWe-yr | CR146: 1 | CS146: SNF+HLW mass ≥ 36 t/GWe-yr | CV146: SNF+HLW mass ≥ 12 t/GWe-yr and < 36 t/GWe-yr; contains the basis of comparison | CY146: SNF+HLW mass ≥ 6 t/GWe-yr and < 12 t/GWe-yr | DB146: SNF+HLW mass ≥ 3 t/GWe-yr and < 6 t/GWe-yr | DE146: SNF+HLW mass ≥ 1.65 t/GWe-yr and < 3 t/GWe-yr | DH146: SNF+HLW mass < 1.65 t/GWe-yr; similar to the HLW mass from processing of LWR SNF to recover all U | DP146: -1 | DQ146: -0.9 | DR146: -0.75 | DS146: -0.74 | DT146: -0.6 | DU146: -0.45 | DV146: -0.44 | DW146: -0.3 | DX146: -0.15 | DY146: -0.14 | DZ146: 0 | EA146: 0.14 | EB146: 0.15 | EC146: 0.3 | ED146: 0.45 | EE146: 0.46 | EF146: 0.6 | EG146: 0.7 | EH146: 0.8 | EI146: 0.9 | EJ146: 1
AA147: 17 | AB147: 2.4 | AC147: 2.4 | AD147: 2.4 | AE147: 2.4 | AF147: 2.2 | AG147: 2 | AH147: 2 | AI147: 1.8 | AJ147: 1.6 | AK147: 1.6 | AL147: 1.375 | AM147: 1.05 | AN147: 1.05 | AO147: 0.86 | AP147: 0.67 | AQ147: 0.67 | AR147: 0.48 | AS147: 0.29 | AT147: 0 | AU147: 0 | AV147: 0 | AW147: MCi/GWe-yr | AX147: Custom | AY147: 0 | AZ147: 0 | BA147: 0 | BB147: 0 | BC147: 0 | BD147: 0 | BE147: 0.45 | BF147: 0.45 | BG147: 0.45 | BH147: 0.63 | BI147: 0.63 | BJ147: 0.63 | BK147: 0.8 | BL147: 0.8 | BM147: 0.8 | BN147: 1 | BO147: 1 | BP147: 1 | BQ147: 1 | BR147: 1 | BS147: 1 | BT147: 1 | BU147: 2 | BZ147: > 2.0 MCi/GWe-yr | CC147: 1.6 to 2.0 MCi/GWe-yr | CF147: 1.05 to 1.6 MCi/GWe-yr | CI147: 0.67 to 1.05 MCi/GWe-yr | CL147: <0.67 MCi/GWe-yr | CR147: 1 | DP147: -1 | DQ147: -0.9 | DR147: -0.8 | DS147: -0.7 | DT147: -0.6 | DU147: -0.45 | DV147: -0.44 | DW147: -0.3 | DX147: -0.15 | DY147: -0.14 | DZ147: 0 | EA147: 0.14 | EB147: 0.15 | EC147: 0.3 | ED147: 0.45 | EE147: 0.46 | EF147: 0.6 | EG147: 0.7 | EH147: 0.8 | EI147: 0.9 | EJ147: 1
AA148: 18 | AB148: 0.015 | AC148: 0.0125 | AD148: 0.01 | AE148: 0.01 | AF148: 0.0075 | AG148: 0.005 | AH148: 0.005 | AI148: 0.00365 | AJ148: 0.0023 | AK148: 0.0023 | AL148: 0.00165 | AM148: 0.001 | AN148: 0.001 | AO148: 0.00075 | AP148: 0.0005 | AQ148: 0.0005 | AR148: 0.00025 | AS148: 0 | AT148: 0 | AU148: 0 | AV148: 0 | AW148: MCi/GWe-yr | AX148: Custom | AY148: 0 | AZ148: 0 | BA148: 0 | BB148: 0.17 | BC148: 0.17 | BD148: 0.17 | BE148: 0.35 | BF148: 0.35 | BG148: 0.35 | BH148: 0.54 | BI148: 0.54 | BJ148: 0.54 | BK148: 0.73 | BL148: 0.73 | BM148: 0.73 | BN148: 1 | BO148: 1 | BP148: 1 | BQ148: 1 | BR148: 1 | BS148: 1 | BT148: 1 | BU148: 2 | BV148: 2 | BW148: > 1.0E-2 MCi/GWe-yr | BZ148: 5.0E-3 to 1.0E-2 MCi/GWe-yr | CC148: 2.3E-3 to 5.0E-3 MCi/GWe-yr | CF148: 1.0E-3 to 2.3E-3 MCi/GWe-yr | CI148: 5.0E-4 to 1.0E-3 MCi/GWe-yr | CL148: < 5.0E-4 MCi/GWe-yr | CR148: 1 | DP148: -1 | DQ148: -0.9 | DR148: -0.75 | DS148: -0.74 | DT148: -0.6 | DU148: -0.45 | DV148: -0.44 | DW148: -0.3 | DX148: -0.15 | DY148: -0.14 | DZ148: 0 | EA148: 0.14 | EB148: 0.15 | EC148: 0.3 | ED148: 0.45 | EE148: 0.46 | EF148: 0.6 | EG148: 0.7 | EH148: 0.8 | EI148: 0.9 | EJ148: 1
AA149: 19 | AB149: 400 | AC149: 300 | AD149: 200 | AE149: 200 | AF149: 160 | AG149: 120 | AH149: 120 | AI149: 100 | AJ149: 80 | AK149: 80 | AL149: 60 | AM149: 40 | AN149: 40 | AO149: 20.5 | AP149: 1 | AQ149: 1 | AR149: 0.5 | AS149: 0 | AT149: 0 | AU149: 0 | AV149: 0 | AW149: t/GWe-yr | AX149: Custom | AY149: 0 | AZ149: 0 | BA149: 0 | BB149: 0.11 | BC149: 0.11 | BD149: 0.11 | BE149: 0.19 | BF149: 0.19 | BG149: 0.19 | BH149: 0.28 | BI149: 0.28 | BJ149: 0.28 | BK149: 0.47 | BL149: 0.47 | BM149: 0.47 | BN149: 1 | BO149: 1 | BP149: 1 | BQ149: 1 | BR149: 1 | BS149: 1 | BT149: 1 | BU149: 2 | BV149: 2 | BW149: > 200 t/GWe-yr | BZ149: 120 to 200 t/GWe-yr | CC149: 80 to 120 t/GWe-yr | CF149: 40 to 80 t/GWe-yr | CI149: 1 to 40 t/GWe-yr | CL149: < 1 t/GWe-yr | CR149: 1 | DP149: -1 | DQ149: -0.9 | DR149: -0.75 | DS149: -0.74 | DT149: -0.6 | DU149: -0.45 | DV149: -0.44 | DW149: -0.3 | DX149: -0.15 | DY149: -0.14 | DZ149: 0 | EA149: 0.14 | EB149: 0.15 | EC149: 0.3 | ED149: 0.45 | EE149: 0.46 | EF149: 0.6 | EG149: 0.7 | EH149: 0.8 | EI149: 0.9 | EJ149: 1
A150: 5-Point scale x | B150: -1 | C150: -0.9 | D150: -0.8 | E150: -0.7 | F150: -0.6 | G150: -0.45 | H150: -0.44 | I150: -0.3 | J150: -0.15 | K150: -0.14 | L150: 0 | M150: 0.14 | N150: 0.16 | O150: 0.3 | P150: 0.45 | Q150: 0.46 | R150: 0.6 | S150: 0.7 | T150: 0.8 | U150: 0.9 | V150: 1 | AA150: 20 | AB150: 4000 | AC150: 4000 | AD150: 4000 | AE150: 4000 | AF150: 2796 | AG150: 1592 | AH150: 1592 | AI150: 1113 | AJ150: 634 | AK150: 634 | AL150: 443 | AM150: 252 | AN150: 252 | AO150: 176 | AP150: 100 | AQ150: 100 | AR150: 70 | AS150: 40 | AT150: 40 | AU150: 40 | AV150: 40 | AW150: m3/GWe-yr | AX150: Custom | AY150: 0 | AZ150: 0 | BA150: 0 | BB150: 0 | BC150: 0 | BD150: 0 | BE150: 0.25 | BF150: 0.25 | BG150: 0.25 | BH150: 0.5 | BI150: 0.5 | BJ150: 0.5 | BK150: 0.75 | BL150: 0.75 | BM150: 0.75 | BN150: 1 | BO150: 1 | BP150: 1 | BQ150: 1 | BR150: 1 | BS150: 1 | BT150: 1 | BU150: 2 | BV150: 2 | BZ150: Greater than 1592 m^3/GWe-yr | CC150: 634 to 1592 m^3/GWe-yr | CF150: 252 to 634 m^3/GWe-yr | CI150: 100 to 252 m^3/GWe-yr | CL150: Less than 100 m^3/GWe-yr | CR150: 1 | DP150: -1 | DQ150: -0.9 | DR150: -0.8 | DS150: -0.7 | DT150: -0.6 | DU150: -0.45 | DV150: -0.44 | DW150: -0.3 | DX150: -0.15 | DY150: -0.14 | DZ150: 0 | EA150: 0.14 | EB150: 0.15 | EC150: 0.3 | ED150: 0.45 | EE150: 0.46 | EF150: 0.6 | EG150: 0.7 | EH150: 0.8 | EI150: 0.9 | EJ150: 1
A151: 5-Point scale y | B151: =-1*Flags!$C$23 -> -1 | C151: =-1*Flags!$C$23 -> -1 | D151: =-1*Flags!$C$23 -> -1 | E151: =-1*Flags!$C$23 -> -1 | F151: =-1*Flags!$C$23 -> -1 | G151: =-1*Flags!$C$23 -> -1 | H151: =-0.5*Flags!$C$23 -> -0.5 | I151: =-0.5*Flags!$C$23 -> -0.5 | J151: =-0.5*Flags!$C$23 -> -0.5 | K151: 0 | L151: 0 | M151: 0 | N151: =0.5*Flags!$C$23 -> 0.5 | O151: =0.5*Flags!$C$23 -> 0.5 | P151: =0.5*Flags!$C$23 -> 0.5 | Q151: =1*Flags!$C$23 -> 1 | R151: =1*Flags!$C$23 -> 1 | S151: =1*Flags!$C$23 -> 1 | T151: =1*Flags!$C$23 -> 1 | U151: =1*Flags!$C$23 -> 1 | V151: =1*Flags!$C$23 -> 1 | AA151: 21 | AB151: 3 | AC151: 2.5 | AD151: 2 | AE151: 1.999 | AF151: 1.5 | AG151: 1 | AH151: 0.999 | AI151: 0.5 | AJ151: 0 | AK151: -0.001 | AL151: -0.5 | AM151: -1 | AN151: -1 | AO151: -1 | AP151: -1 | AQ151: -1 | AR151: -1 | AS151: -1 | AT151: -1 | AU151: -1 | AV151: -1 | AX151: Custom | AY151: 0 | AZ151: 0 | BA151: 0 | BB151: 0 | BC151: 0 | BD151: 0 | BE151: 1 | BF151: 1 | BG151: 1 | BH151: 1 | BI151: 1 | BJ151: 1 | BK151: 1 | BL151: 1 | BM151: 1 | BN151: 1 | BO151: 1 | BP151: 1 | BQ151: 1 | BR151: 1 | BS151: 1 | BT151: 1 | BU151: 2 | BV151: 2 | BW151: Max FOM1 is > 2 | BZ151: Max FOM1 is between 1 and 2 | CC151: Max FOM1 is between 0 and 1 | CF151: Max FOM1 is < 0 | CR151: 1 | DP151: -1 | DQ151: -0.9 | DR151: -0.8 | DS151: -0.7 | DT151: -0.6 | DU151: -0.46 | DV151: -0.45 | DW151: -0.3 | DX151: -0.15 | DY151: -0.14 | DZ151: 0 | EA151: 0.15 | EB151: 0.16 | EC151: 0.3 | ED151: 0.4 | EE151: 0.5 | EF151: 0.6 | EG151: 0.7 | EH151: 0.8 | EI151: 0.9 | EJ151: 1
AA152: 22 | AB152: 3 | AC152: 2.5 | AD152: 2 | AE152: 1.999 | AF152: 1.5 | AG152: 1 | AH152: 0.999 | AI152: 0.5 | AJ152: 0 | AK152: -0.001 | AL152: -0.5 | AM152: -1 | AN152: -1 | AO152: -1 | AP152: -1 | AQ152: -1 | AR152: -1 | AS152: -1 | AT152: -1 | AU152: -1 | AV152: -1 | AX152: Linear High | AY152: 0 | AZ152: 0 | BA152: 0 | BB152: 0 | BC152: 0 | BD152: 0 | BE152: 1 | BF152: 1 | BG152: 1 | BH152: 1 | BI152: 1 | BJ152: 1 | BK152: 1 | BL152: 1 | BM152: 1 | BN152: 1 | BO152: 1 | BP152: 1 | BQ152: 1 | BR152: 1 | BS152: 1 | BT152: 1 | BU152: 2 | BW152: Max FOM1 is > 2 | BZ152: Max FOM1 is between 1 and 2 | CC152: Max FOM1 is between 0 and 1 | CF152: Max FOM1 is < 0 | CR152: 1 | DP152: -1 | DQ152: -0.9 | DR152: -0.8 | DS152: -0.7 | DT152: -0.6 | DU152: -0.46 | DV152: -0.45 | DW152: -0.3 | DX152: -0.15 | DY152: -0.14 | DZ152: 0 | EA152: 0.15 | EB152: 0.16 | EC152: 0.3 | ED152: 0.4 | EE152: 0.5 | EF152: 0.6 | EG152: 0.7 | EH152: 0.8 | EI152: 0.9 | EJ152: 1
A153: 3-Point scale x | B153: -1 | C153: -0.9 | D153: -0.8 | E153: -0.7 | F153: -0.6 | G153: -0.5 | H153: -0.4 | I153: -0.3 | J153: -0.15 | K153: -0.14 | L153: 0 | M153: 0.15 | N153: 0.16 | O153: 0.3 | P153: 0.4 | Q153: 0.5 | R153: 0.6 | S153: 0.7 | T153: 0.8 | U153: 0.9 | V153: 1 | AA153: 23 | AB153: 23 | AC153: 23 | AD153: 23 | AE153: 23 | AF153: 21 | AG153: 19 | AH153: 19 | AI153: 17.15 | AJ153: 15.3 | AK153: 15.3 | AL153: 12.65 | AM153: 10 | AN153: 10 | AO153: 8.2 | AP153: 6.4 | AQ153: 6.4 | AR153: 3.2 | AS153: 0 | AT153: 0 | AU153: 0 | AV153: 0 | AW153: MCi/MWe-yr | AX153: Custom | AY153: 0 | AZ153: 0 | BA153: 0 | BB153: 0 | BC153: 0 | BD153: 0 | BE153: 0.45 | BF153: 0.45 | BG153: 0.45 | BH153: 0.63 | BI153: 0.63 | BJ153: 0.63 | BK153: 0.8 | BL153: 0.8 | BM153: 0.8 | BN153: 1 | BO153: 1 | BP153: 1 | BQ153: 1 | BR153: 1 | BS153: 1 | BT153: 1 | BU153: 2 | BV153: 1 | BZ153: > 19.0 MCi/GWe-yr | CC153: 15.3 to 19.0 MCi/GWe-yr | CF153: 10.0 to 15.3 MCi/GWe-yr | CI153: 6.4 to 10.0 MCi/GWe-yr | CL153: <6.4 MCi/GWe-yr | CR153: 1 | DP153: -1 | DQ153: -0.9 | DR153: -0.8 | DS153: -0.7 | DT153: -0.6 | DU153: -0.45 | DV153: -0.44 | DW153: -0.3 | DX153: -0.15 | DY153: -0.14 | DZ153: 0 | EA153: 0.14 | EB153: 0.15 | EC153: 0.3 | ED153: 0.45 | EE153: 0.46 | EF153: 0.6 | EG153: 0.7 | EH153: 0.8 | EI153: 0.9 | EJ153: 1
A154: 3-Point scale y | B154: =-1*Flags!$C$23 -> -1 | C154: =-1*Flags!$C$23 -> -1 | D154: =-1*Flags!$C$23 -> -1 | E154: =-1*Flags!$C$23 -> -1 | F154: =-1*Flags!$C$23 -> -1 | G154: =-1*Flags!$C$23 -> -1 | H154: =-1*Flags!$C$23 -> -1 | I154: =-1*Flags!$C$23 -> -1 | J154: =-1*Flags!$C$23 -> -1 | K154: 0 | L154: 0 | M154: 0 | N154: =1*Flags!$C$23 -> 1 | O154: =1*Flags!$C$23 -> 1 | P154: =1*Flags!$C$23 -> 1 | Q154: =1*Flags!$C$23 -> 1 | R154: =1*Flags!$C$23 -> 1 | S154: =1*Flags!$C$23 -> 1 | T154: =1*Flags!$C$23 -> 1 | U154: =1*Flags!$C$23 -> 1 | V154: =1*Flags!$C$23 -> 1 | AA154: 24 | AB154: 310 | AC154: 310 | AD154: 310 | AE154: 255 | AF154: 200 | AG154: 145 | AH154: 145 | AI154: 90 | AJ154: 35 | AK154: 35 | AL154: 19.4 | AM154: 3.8 | AN154: 3.8 | AO154: 1.9 | AP154: 0 | AQ154: 0 | AR154: 0 | AS154: 0 | AT154: 0 | AU154: 0 | AV154: 0 | AW154: kt/GWe-yr | AX154: Custom | AY154: 0 | AZ154: 0 | BA154: 0 | BB154: 0 | BC154: 0 | BD154: 0 | BE154: 0.19 | BF154: 0.19 | BG154: 0.19 | BH154: 0.51 | BI154: 0.51 | BJ154: 0.51 | BK154: 1 | BL154: 1 | BM154: 1 | BN154: 1 | BO154: 1 | BP154: 1 | BQ154: 1 | BR154: 1 | BS154: 1 | BT154: 1 | BU154: 2 | BZ154: > 145 t/GWe-yr | CC154: 35 to 145 t/GWe-yr | CF154: 3.8 to 35 t/GWe-yr | CI154: <3.8 t/GWe-yr | CR154: 1 | DP154: -1 | DQ154: -0.9 | DR154: -0.8 | DS154: -0.7 | DT154: -0.6 | DU154: -0.45 | DV154: -0.44 | DW154: -0.3 | DX154: -0.15 | DY154: -0.14 | DZ154: 0 | EA154: 0.14 | EB154: 0.15 | EC154: 0.3 | ED154: 0.45 | EE154: 0.46 | EF154: 0.6 | EG154: 0.7 | EH154: 0.8 | EI154: 0.9 | EJ154: 1
AA155: 25 | AB155: 310 | AC155: 310 | AD155: 310 | AE155: 255 | AF155: 200 | AG155: 145 | AH155: 145 | AI155: 90 | AJ155: 35 | AK155: 35 | AL155: 19.4 | AM155: 3.8 | AN155: 3.8 | AO155: 1.9 | AP155: 0 | AQ155: 0 | AR155: 0 | AS155: 0 | AT155: 0 | AU155: 0 | AV155: 0 | AW155: t/GWe-yr | AX155: Custom | AY155: 0 | AZ155: 0 | BA155: 0 | BB155: 0 | BC155: 0 | BD155: 0 | BE155: 0.19 | BF155: 0.19 | BG155: 0.19 | BH155: 0.51 | BI155: 0.51 | BJ155: 0.51 | BK155: 1 | BL155: 1 | BM155: 1 | BN155: 1 | BO155: 1 | BP155: 1 | BQ155: 1 | BR155: 1 | BS155: 1 | BT155: 1 | BU155: 2 | BZ155: > 145 t/GWe-yr | CC155: 35 to 145 t/GWe-yr | CF155: 3.8 to 35 t/GWe-yr | CI155: <3.8 t/GWe-yr | CR155: 1 | DP155: -1 | DQ155: -0.9 | DR155: -0.8 | DS155: -0.7 | DT155: -0.6 | DU155: -0.45 | DV155: -0.44 | DW155: -0.3 | DX155: -0.15 | DY155: -0.14 | DZ155: 0 | EA155: 0.14 | EB155: 0.15 | EC155: 0.3 | ED155: 0.45 | EE155: 0.46 | EF155: 0.6 | EG155: 0.7 | EH155: 0.8 | EI155: 0.9 | EJ155: 1
AA156: 26 | AB156: -1 | AC156: -0.9 | AD156: -0.8 | AE156: -0.7 | AF156: -0.6 | AG156: -0.5 | AH156: -0.4 | AI156: -0.3 | AJ156: -0.2 | AK156: -0.1 | AL156: 0 | AM156: 0.1 | AN156: 0.2 | AO156: 0.3 | AP156: 0.4 | AQ156: 0.5 | AR156: 0.6 | AS156: 0.7 | AT156: 0.8 | AU156: 0.9 | AV156: 1 | AX156: Custom | AY156: 0 | AZ156: 0 | BA156: 0 | BB156: 0 | BC156: 0 | BD156: 0 | BE156: 0.25 | BF156: 0.25 | BG156: 0.25 | BH156: 0.5 | BI156: 0.5 | BJ156: 0.5 | BK156: 0.75 | BL156: 0.75 | BM156: 0.75 | BN156: 1 | BO156: 1 | BP156: 1 | BQ156: 1 | BR156: 1 | BS156: 1 | BT156: 1 | BU156: 2 | BZ156: Potenitally Significantly more challenging | CC156: Potentially More Challenging | CF156: Potentially Similar in Challenge | CI156: Potentially Less Challenging | CL156: Potentially Much Less Challenging | CR156: 1 | CV156: Identified hazards that are significantly more challenging to address than the hazards that exist in the fuel cycle basis for comparison | CY156: Identified hazards that are more challenging to address than those hazards that exist in the fuel cycle basis for comparison | DB156: Identified hazards that are similar in challenges to address than those hazards that exist in the fuel cycle basis for comparison | DE156: Identified hazards are less challenging to address than those hazards that exist in the fuel cycle basis for comparison | DH156: Identified hazards are much less challenging to address than those hazards that exist in the fuel cycle basis for comparison | DP156: -1 | DQ156: -0.9 | DR156: -0.8 | DS156: -0.7 | DT156: -0.6 | DU156: -0.45 | DV156: -0.44 | DW156: -0.3 | DX156: -0.15 | DY156: -0.14 | DZ156: 0 | EA156: 0.14 | EB156: 0.15 | EC156: 0.3 | ED156: 0.45 | EE156: 0.46 | EF156: 0.6 | EG156: 0.7 | EH156: 0.8 | EI156: 0.9 | EJ156: 1
AA157: 27 | AB157: -1 | AC157: -0.9 | AD157: -0.8 | AE157: -0.7 | AF157: -0.6 | AG157: -0.5 | AH157: -0.4 | AI157: -0.3 | AJ157: -0.2 | AK157: -0.1 | AL157: 0 | AM157: 0.1 | AN157: 0.2 | AO157: 0.3 | AP157: 0.4 | AQ157: 0.5 | AR157: 0.6 | AS157: 0.7 | AT157: 0.8 | AU157: 0.9 | AV157: 1 | AX157: Linear High | AY157: 0 | AZ157: 0 | BA157: 0 | BB157: 0 | BC157: 0 | BD157: 0 | BE157: 0 | BF157: 0 | BG157: 0 | BH157: 1 | BI157: 1 | BJ157: 1 | BK157: 1 | BL157: 1 | BM157: 1 | BN157: 1 | BO157: 1 | BP157: 1 | BQ157: 1 | BR157: 1 | BS157: 1 | BT157: 1 | BU157: 2 | CC157: No | CF157: Yes | CR157: 1 | CY157: At least one of the safety hazards poses a challenge that is unable to be addressed, and the corresponding facility or process is not successful in addressing all hazards | DB157: All of the safety hazards can be addressed and the entire fuel cycle can be deployed safely, with all facilities and processes addressing all safety hazards | DP157: -1 | DQ157: -0.9 | DR157: -0.8 | DS157: -0.7 | DT157: -0.6 | DU157: -0.5 | DV157: -0.4 | DW157: -0.3 | DX157: -0.15 | DY157: -0.14 | DZ157: 0 | EA157: 0.15 | EB157: 0.16 | EC157: 0.3 | ED157: 0.4 | EE157: 0.5 | EF157: 0.6 | EG157: 0.7 | EH157: 0.8 | EI157: 0.9 | EJ157: 1
AA158: 28
AA159: 29
AA160: 30
AA161: 31
AA162: 32
AA163: 33
AA164: 34
AA165: 35
AA166: 36
AA167: 37
AA168: 38
AA169: 39
AA170: 40

Sheet Score_Data (hidden)
A1: =Y9 -> 1 | H1: Data value: | I1: 0.6 | N1: Utility: | O1: 1 | X1: Hidden Columns | KW1: 1 | KX1: 1 | KZ1: 6 | LA1: 1 | LB1: 0.05 | LC1: =INDEX(LA1:LB11,MATCH(KZ1,LA1:LA11,0),2) -> 0.5 | LE1: TRUE | LG1: 0.03 | LH1: 2 | LL1: LCAE Cost data for plotting
A2: =Y7 -> 1 | AB2: 28 | AC2: 29 | AD2: 30 | AE2: 31 | AF2: 32 | AG2: 33 | AH2: 34 | AI2: 35 | AJ2: 36 | AK2: 37 | AL2: 38 | AM2: 39 | AN2: 40 | AO2: 41 | AP2: 42 | AQ2: 43 | AR2: 44 | AS2: 45 | AT2: 46 | AU2: 47 | AV2: 48 | AW2: 49 | AX2: 50 | AY2: 51 | AZ2: 52 | BA2: 53 | BB2: 54 | BC2: 55 | BD2: 56 | BE2: 57 | BF2: 58 | BG2: 59 | BH2: 60 | BI2: 61 | BJ2: 62 | BK2: 63 | BL2: 64 | BM2: 65 | BN2: 66 | BO2: 67 | BP2: 68 | BQ2: 69 | BR2: 70 | BS2: 71 | BT2: 72 | BU2: 73 | BV2: 74 | BW2: 75 | BX2: 76 | BY2: 77 | BZ2: 78 | CA2: 79 | CB2: 80 | CC2: 81 | CD2: 82 | CE2: 83 | CF2: 84 | CG2: 85 | CH2: 86 | CI2: 87 | CJ2: 88 | CK2: 89 | CL2: 90 | CM2: 91 | CN2: 92 | CO2: 93 | CP2: 94 | CQ2: 95 | CR2: 96 | CS2: 97 | CT2: 98 | CU2: 99 | CV2: 100 | CW2: 101 | CX2: 102 | CY2: 103 | CZ2: 104 | DA2: 105 | DB2: 106 | DC2: 107 | DD2: 108 | DE2: 109 | DF2: 110 | DG2: 111 | DH2: 112 | DI2: 113 | DJ2: 114 | DK2: 115 | KX2: 2 | LA2: 2 | LB2: 0.1 | LG2: 0.05 | LK2: x values | LL2: 0 | LM2: 1 | LN2: 2 | LO2: 3 | LP2: 4 | LQ2: 5 | LR2: 6 | LS2: 7 | LT2: 8 | LU2: 9 | LV2: 10 | LW2: 11 | LX2: 12 | LY2: 13 | LZ2: 14 | MA2: 15 | MB2: 16 | MC2: 17 | MD2: 18 | ME2: 19 | MF2: 20 | MG2: 21 | MH2: 22 | MI2: 23 | MJ2: 24 | MK2: 25 | ML2: 26 | MM2: 27 | MN2: 28 | MO2: 29 | MP2: 30 | MQ2: 31 | MR2: 32 | MS2: 33 | MT2: 34 | MU2: 35 | MV2: 36 | MW2: 37 | MX2: 38 | MY2: 39 | MZ2: 40 | NA2: 41 | NB2: 42 | NC2: 43 | ND2: 44 | NE2: 45 | NF2: 46 | NG2: 47 | NH2: 48 | NI2: 49 | NJ2: 50 | NK2: 51 | NL2: 52 | NM2: 53 | NN2: 54 | NO2: 55 | NP2: 56 | NQ2: 57 | NR2: 58 | NS2: 59 | NT2: 60 | NU2: 61 | NV2: 62 | NW2: 63 | NX2: 64 | NY2: 65 | NZ2: 66 | OA2: 67 | OB2: 68 | OC2: 69 | OD2: 70 | OE2: 71 | OF2: 72 | OG2: 73 | OH2: 74 | OI2: 75 | OJ2: 76 | OK2: 77 | OL2: 78 | OM2: 79 | ON2: 80 | OO2: 81 | OP2: 82 | OQ2: 83 | OR2: 84 | OS2: 85 | OT2: 86 | OU2: 87 | OV2: 88 | OW2: 89 | OX2: 90 | OY2: 91 | OZ2: 92 | PA2: 93 | PB2: 94 | PC2: 95 | PD2: 96 | PE2: 97 | PF2: 98 | PG2: 99 | PH2: 100 | PI2: 101 | PJ2: 102 | PK2: 103 | PL2: 104 | PM2: 105 | PN2: 106 | PO2: 107 | PP2: 108 | PQ2: 109 | PR2: 110 | PS2: 111 | PT2: 112 | PU2: 113 | PV2: 114 | PW2: 115 | PX2: 116 | PY2: 117 | PZ2: 118 | QA2: 119 | QB2: 120 | QC2: 121 | QD2: 122 | QE2: 123 | QF2: 124 | QG2: 125 | QH2: 126 | QI2: 127 | QJ2: 128 | QK2: 129 | QL2: 130 | QM2: 131 | QN2: 132 | QO2: 133 | QP2: 134 | QQ2: 135 | QR2: 136 | QS2: 137 | QT2: 138 | QU2: 139 | QV2: 140 | QW2: 141 | QX2: 142 | QY2: 143 | QZ2: 144 | RA2: 145 | RB2: 146 | RC2: 147 | RD2: 148 | RE2: 149 | RF2: 150 | RG2: 151 | RH2: 152 | RI2: 153 | RJ2: 154 | RK2: 155 | RL2: 156 | RM2: 157 | RN2: 158 | RO2: 159 | RP2: 160 | RQ2: 161 | RR2: 162 | RS2: 163 | RT2: 164 | RU2: 165 | RV2: 166 | RW2: 167 | RX2: 168 | RY2: 169 | RZ2: 170 | SA2: 171 | SB2: 172 | SC2: 173 | SD2: 174 | SE2: 175 | SF2: 176 | SG2: 177 | SH2: 178 | SI2: 179 | SJ2: 180 | SK2: 181 | SL2: 182 | SM2: 183 | SN2: 184 | SO2: 185 | SP2: 186 | SQ2: 187 | SR2: 188 | SS2: 189 | ST2: 190 | SU2: 191 | SV2: 192 | SW2: 193 | SX2: 194 | SY2: 195 | SZ2: 196 | TA2: 197 | TB2: 198 | TC2: 199 | TD2: 200 | TE2: 201 | TF2: 202 | TG2: 203 | TH2: 204 | TI2: 205 | TJ2: 206 | TK2: 207 | TL2: 208 | TM2: 209 | TN2: 210 | TO2: 211 | TP2: 212 | TQ2: 213 | TR2: 214 | TS2: 215 | TT2: 216 | TU2: 217 | TV2: 218 | TW2: 219 | TX2: 220 | TY2: 221 | TZ2: 222 | UA2: 223 | UB2: 224 | UC2: 225 | UD2: 226 | UE2: 227 | UF2: 228 | UG2: 229 | UH2: 230 | UI2: 231 | UJ2: 232 | UK2: 233 | UL2: 234 | UM2: 235 | UN2: 236 | UO2: 237 | UP2: 238 | UQ2: 239 | UR2: 240 | US2: 241 | UT2: 242 | UU2: 243 | UV2: 244 | UW2: 245 | UX2: 246 | UY2: 247 | UZ2: 248 | VA2: 249 | VB2: 250 | VC2: 251 | VD2: 252 | VE2: 253 | VF2: 254 | VG2: 255 | VH2: 256 | VI2: 257 | VJ2: 258 | VK2: 259 | VL2: 260 | VM2: 261 | VN2: 262 | VO2: 263 | VP2: 264 | VQ2: 265 | VR2: 266 | VS2: 267 | VT2: 268 | VU2: 269 | VV2: 270 | VW2: 271 | VX2: 272 | VY2: 273 | VZ2: 274 | WA2: 275 | WB2: 276 | WC2: 277 | WD2: 278 | WE2: 279 | WF2: 280 | WG2: 281 | WH2: 282 | WI2: 283 | WJ2: 284 | WK2: 285 | WL2: 286 | WM2: 287 | WN2: 288 | WO2: 289 | WP2: 290 | WQ2: 291 | WR2: 292 | WS2: 293 | WT2: 294 | WU2: 295 | WV2: 296 | WW2: 297 | WX2: 298 | WY2: 299 | WZ2: 300 | XA2: 301 | XB2: 302 | XC2: 303 | XD2: 304 | XE2: 305 | XF2: 306 | XG2: 307 | XH2: 308 | XI2: 309 | XJ2: 310 | XK2: 311 | XL2: 312 | XM2: 313 | XN2: 314 | XO2: 315 | XP2: 316 | XQ2: 317 | XR2: 318 | XS2: 319 | XT2: 320 | XU2: 321 | XV2: 322 | XW2: 323 | XX2: 324 | XY2: 325 | XZ2: 326 | YA2: 327 | YB2: 328 | YC2: 329 | YD2: 330 | YE2: 331 | YF2: 332 | YG2: 333 | YH2: 334 | YI2: 335 | YJ2: 336 | YK2: 337 | YL2: 338 | YM2: 339 | YN2: 340 | YO2: 341 | YP2: 342 | YQ2: 343 | YR2: 344 | YS2: 345 | YT2: 346 | YU2: 347 | YV2: 348 | YW2: 349 | YX2: 350 | YY2: 351 | YZ2: 352 | ZA2: 353 | ZB2: 354 | ZC2: 355 | ZD2: 356 | ZE2: 357 | ZF2: 358 | ZG2: 359 | ZH2: 360 | ZI2: 361 | ZJ2: 362 | ZK2: 363 | ZL2: 364 | ZM2: 365 | ZN2: 366 | ZO2: 367 | ZP2: 368 | ZQ2: 369 | ZR2: 370 | ZS2: 371 | ZT2: 372 | ZU2: 373 | ZV2: 374 | ZW2: 375 | ZX2: 376 | ZY2: 377 | ZZ2: 378 | AAA2: 379 | AAB2: 380 | AAC2: 381 | AAD2: 382 | AAE2: 383 | AAF2: 384 | AAG2: 385 | AAH2: 386 | AAI2: 387 | AAJ2: 388 | AAK2: 389 | AAL2: 390 | AAM2: 391 | AAN2: 392 | AAO2: 393 | AAP2: 394 | AAQ2: 395 | AAR2: 396 | AAS2: 397 | AAT2: 398 | AAU2: 399 | AAV2: 400 | AAW2: 401 | AAX2: 402 | AAY2: 403 | AAZ2: 404 | ABA2: 405 | ABB2: 406 | ABC2: 407 | ABD2: 408 | ABE2: 409 | ABF2: 410 | ABG2: 411 | ABH2: 412 | ABI2: 413 | ABJ2: 414 | ABK2: 415 | ABL2: 416 | ABM2: 417 | ABN2: 418 | ABO2: 419 | ABP2: 420 | ABQ2: 421 | ABR2: 422 | ABS2: 423 | ABT2: 424 | ABU2: 425 | ABV2: 426 | ABW2: 427 | ABX2: 428 | ABY2: 429 | ABZ2: 430 | ACA2: 431 | ACB2: 432 | ACC2: 433 | ACD2: 434 | ACE2: 435 | ACF2: 436 | ACG2: 437 | ACH2: 438 | ACI2: 439 | ACJ2: 440 | ACK2: 441 | ACL2: 442 | ACM2: 443 | ACN2: 444 | ACO2: 445 | ACP2: 446 | ACQ2: 447 | ACR2: 448 | ACS2: 449 | ACT2: 450 | ACU2: 451 | ACV2: 452 | ACW2: 453 | ACX2: 454 | ACY2: 455 | ACZ2: 456 | ADA2: 457 | ADB2: 458 | ADC2: 459 | ADD2: 460 | ADE2: 461 | ADF2: 462 | ADG2: 463 | ADH2: 464 | ADI2: 465 | ADJ2: 466 | ADK2: 467 | ADL2: 468 | ADM2: 469 | ADN2: 470 | ADO2: 471 | ADP2: 472 | ADQ2: 473 | ADR2: 474 | ADS2: 475 | ADT2: 476 | ADU2: 477 | ADV2: 478 | ADW2: 479 | ADX2: 480 | ADY2: 481 | ADZ2: 482 | AEA2: 483 | AEB2: 484 | AEC2: 485 | AED2: 486 | AEE2: 487 | AEF2: 488 | AEG2: 489 | AEH2: 490 | AEI2: 491 | AEJ2: 492 | AEK2: 493 | AEL2: 494 | AEM2: 495 | AEN2: 496 | AEO2: 497 | AEP2: 498 | AEQ2: 499 | AER2: 500
A3: Metric Index: | B3: =Y7 -> 1 | C3: =INDEX('2-Goals_Criteria'!E2:F41,MATCH(B3,'2-Goals_Criteria'!E2:E41,0),2) -> Development time (not used by itself, but in combination with dev cost) | AB3: Metric data | AE3: The table below pulls in the raw data (via a formula) according to what is selected in cells Y11 and Y12 | BX3: Metric Utility Scores | CA3: The table below stores the calculated Utility scores for each alternative and metric (Update_Util macro) | KX3: 3 | LA3: 3 | LB3: 0.25 | LG3: 0.1 | LK3: selected case: | LL3: =IF($LH$1=1,Raw_Data!EK2,IF($LH$1=2,Raw_Data!YD2,Raw_Data!ASD2)) -> 0 | LM3: =IF($LH$1=1,Raw_Data!EL2,IF($LH$1=2,Raw_Data!YE2,Raw_Data!ASE2)) -> 0 | LN3: =IF($LH$1=1,Raw_Data!EM2,IF($LH$1=2,Raw_Data!YF2,Raw_Data!ASF2)) -> 0 | LO3: =IF($LH$1=1,Raw_Data!EN2,IF($LH$1=2,Raw_Data!YG2,Raw_Data!ASG2)) -> 0 | LP3: =IF($LH$1=1,Raw_Data!EO2,IF($LH$1=2,Raw_Data!YH2,Raw_Data!ASH2)) -> 0 | LQ3: =IF($LH$1=1,Raw_Data!EP2,IF($LH$1=2,Raw_Data!YI2,Raw_Data!ASI2)) -> 0 | LR3: =IF($LH$1=1,Raw_Data!EQ2,IF($LH$1=2,Raw_Data!YJ2,Raw_Data!ASJ2)) -> 0 | LS3: =IF($LH$1=1,Raw_Data!ER2,IF($LH$1=2,Raw_Data!YK2,Raw_Data!ASK2)) -> 0 | LT3: =IF($LH$1=1,Raw_Data!ES2,IF($LH$1=2,Raw_Data!YL2,Raw_Data!ASL2)) -> 0 | LU3: =IF($LH$1=1,Raw_Data!ET2,IF($LH$1=2,Raw_Data!YM2,Raw_Data!ASM2)) -> 0 | LV3: =IF($LH$1=1,Raw_Data!EU2,IF($LH$1=2,Raw_Data!YN2,Raw_Data!ASN2)) -> 0 | LW3: =IF($LH$1=1,Raw_Data!EV2,IF($LH$1=2,Raw_Data!YO2,Raw_Data!ASO2)) -> 0 | LX3: =IF($LH$1=1,Raw_Data!EW2,IF($LH$1=2,Raw_Data!YP2,Raw_Data!ASP2)) -> 0 | LY3: =IF($LH$1=1,Raw_Data!EX2,IF($LH$1=2,Raw_Data!YQ2,Raw_Data!ASQ2)) -> 0 | LZ3: =IF($LH$1=1,Raw_Data!EY2,IF($LH$1=2,Raw_Data!YR2,Raw_Data!ASR2)) -> 0 | MA3: =IF($LH$1=1,Raw_Data!EZ2,IF($LH$1=2,Raw_Data!YS2,Raw_Data!ASS2)) -> 0 | MB3: =IF($LH$1=1,Raw_Data!FA2,IF($LH$1=2,Raw_Data!YT2,Raw_Data!AST2)) -> 0 | MC3: =IF($LH$1=1,Raw_Data!FB2,IF($LH$1=2,Raw_Data!YU2,Raw_Data!ASU2)) -> 0 | MD3: =IF($LH$1=1,Raw_Data!FC2,IF($LH$1=2,Raw_Data!YV2,Raw_Data!ASV2)) -> 0 | ME3: =IF($LH$1=1,Raw_Data!FD2,IF($LH$1=2,Raw_Data!YW2,Raw_Data!ASW2)) -> 0 | MF3: =IF($LH$1=1,Raw_Data!FE2,IF($LH$1=2,Raw_Data!YX2,Raw_Data!ASX2)) -> 0 | MG3: =IF($LH$1=1,Raw_Data!FF2,IF($LH$1=2,Raw_Data!YY2,Raw_Data!ASY2)) -> 0 | MH3: =IF($LH$1=1,Raw_Data!FG2,IF($LH$1=2,Raw_Data!YZ2,Raw_Data!ASZ2)) -> 0 | MI3: =IF($LH$1=1,Raw_Data!FH2,IF($LH$1=2,Raw_Data!ZA2,Raw_Data!ATA2)) -> 0 | MJ3: =IF($LH$1=1,Raw_Data!FI2,IF($LH$1=2,Raw_Data!ZB2,Raw_Data!ATB2)) -> 0 | MK3: =IF($LH$1=1,Raw_Data!FJ2,IF($LH$1=2,Raw_Data!ZC2,Raw_Data!ATC2)) -> 0 | ML3: =IF($LH$1=1,Raw_Data!FK2,IF($LH$1=2,Raw_Data!ZD2,Raw_Data!ATD2)) -> 0 | MM3: =IF($LH$1=1,Raw_Data!FL2,IF($LH$1=2,Raw_Data!ZE2,Raw_Data!ATE2)) -> 0 | MN3: =IF($LH$1=1,Raw_Data!FM2,IF($LH$1=2,Raw_Data!ZF2,Raw_Data!ATF2)) -> 0 | MO3: =IF($LH$1=1,Raw_Data!FN2,IF($LH$1=2,Raw_Data!ZG2,Raw_Data!ATG2)) -> 0 | MP3: =IF($LH$1=1,Raw_Data!FO2,IF($LH$1=2,Raw_Data!ZH2,Raw_Data!ATH2)) -> 0 | MQ3: =IF($LH$1=1,Raw_Data!FP2,IF($LH$1=2,Raw_Data!ZI2,Raw_Data!ATI2)) -> 0 | MR3: =IF($LH$1=1,Raw_Data!FQ2,IF($LH$1=2,Raw_Data!ZJ2,Raw_Data!ATJ2)) -> 0 | MS3: =IF($LH$1=1,Raw_Data!FR2,IF($LH$1=2,Raw_Data!ZK2,Raw_Data!ATK2)) -> 4e-05 | MT3: =IF($LH$1=1,Raw_Data!FS2,IF($LH$1=2,Raw_Data!ZL2,Raw_Data!ATL2)) -> 0.00014 | MU3: =IF($LH$1=1,Raw_Data!FT2,IF($LH$1=2,Raw_Data!ZM2,Raw_Data!ATM2)) -> 0.00048 | MV3: =IF($LH$1=1,Raw_Data!FU2,IF($LH$1=2,Raw_Data!ZN2,Raw_Data!ATN2)) -> 0.0023 | MW3: =IF($LH$1=1,Raw_Data!FV2,IF($LH$1=2,Raw_Data!ZO2,Raw_Data!ATO2)) -> 0.0058 | MX3: =IF($LH$1=1,Raw_Data!FW2,IF($LH$1=2,Raw_Data!ZP2,Raw_Data!ATP2)) -> 0.01064 | MY3: =IF($LH$1=1,Raw_Data!FX2,IF($LH$1=2,Raw_Data!ZQ2,Raw_Data!ATQ2)) -> 0.01686 | MZ3: =IF($LH$1=1,Raw_Data!FY2,IF($LH$1=2,Raw_Data!ZR2,Raw_Data!ATR2)) -> 0.02192 | NA3: =IF($LH$1=1,Raw_Data!FZ2,IF($LH$1=2,Raw_Data!ZS2,Raw_Data!ATS2)) -> 0.0278 | NB3: =IF($LH$1=1,Raw_Data!GA2,IF($LH$1=2,Raw_Data!ZT2,Raw_Data!ATT2)) -> 0.03376 | NC3: =IF($LH$1=1,Raw_Data!GB2,IF($LH$1=2,Raw_Data!ZU2,Raw_Data!ATU2)) -> 0.03894 | ND3: =IF($LH$1=1,Raw_Data!GC2,IF($LH$1=2,Raw_Data!ZV2,Raw_Data!ATV2)) -> 0.04566 | NE3: =IF($LH$1=1,Raw_Data!GD2,IF($LH$1=2,Raw_Data!ZW2,Raw_Data!ATW2)) -> 0.05056 | NF3: =IF($LH$1=1,Raw_Data!GE2,IF($LH$1=2,Raw_Data!ZX2,Raw_Data!ATX2)) -> 0.05708 | NG3: =IF($LH$1=1,Raw_Data!GF2,IF($LH$1=2,Raw_Data!ZY2,Raw_Data!ATY2)) -> 0.06346 | NH3: =IF($LH$1=1,Raw_Data!GG2,IF($LH$1=2,Raw_Data!ZZ2,Raw_Data!ATZ2)) -> 0.06714 | NI3: =IF($LH$1=1,Raw_Data!GH2,IF($LH$1=2,Raw_Data!AAA2,Raw_Data!AUA2)) -> 0.06874 | NJ3: =IF($LH$1=1,Raw_Data!GI2,IF($LH$1=2,Raw_Data!AAB2,Raw_Data!AUB2)) -> 0.06986 | NK3: =IF($LH$1=1,Raw_Data!GJ2,IF($LH$1=2,Raw_Data!AAC2,Raw_Data!AUC2)) -> 0.06716 | NL3: =IF($LH$1=1,Raw_Data!GK2,IF($LH$1=2,Raw_Data!AAD2,Raw_Data!AUD2)) -> 0.05856 | NM3: =IF($LH$1=1,Raw_Data!GL2,IF($LH$1=2,Raw_Data!AAE2,Raw_Data!AUE2)) -> 0.05228 | NN3: =IF($LH$1=1,Raw_Data!GM2,IF($LH$1=2,Raw_Data!AAF2,Raw_Data!AUF2)) -> 0.04916 | NO3: =IF($LH$1=1,Raw_Data!GN2,IF($LH$1=2,Raw_Data!AAG2,Raw_Data!AUG2)) -> 0.04202 | NP3: =IF($LH$1=1,Raw_Data!GO2,IF($LH$1=2,Raw_Data!AAH2,Raw_Data!AUH2)) -> 0.03832 | NQ3: =IF($LH$1=1,Raw_Data!GP2,IF($LH$1=2,Raw_Data!AAI2,Raw_Data!AUI2)) -> 0.03058 | NR3: =IF($LH$1=1,Raw_Data!GQ2,IF($LH$1=2,Raw_Data!AAJ2,Raw_Data!AUJ2)) -> 0.02584 | NS3: =IF($LH$1=1,Raw_Data!GR2,IF($LH$1=2,Raw_Data!AAK2,Raw_Data!AUK2)) -> 0.02066 | NT3: =IF($LH$1=1,Raw_Data!GS2,IF($LH$1=2,Raw_Data!AAL2,Raw_Data!AUL2)) -> 0.01568 | NU3: =IF($LH$1=1,Raw_Data!GT2,IF($LH$1=2,Raw_Data!AAM2,Raw_Data!AUM2)) -> 0.01004 | NV3: =IF($LH$1=1,Raw_Data!GU2,IF($LH$1=2,Raw_Data!AAN2,Raw_Data!AUN2)) -> 0.00588 | NW3: =IF($LH$1=1,Raw_Data!GV2,IF($LH$1=2,Raw_Data!AAO2,Raw_Data!AUO2)) -> 0.00186 | NX3: =IF($LH$1=1,Raw_Data!GW2,IF($LH$1=2,Raw_Data!AAP2,Raw_Data!AUP2)) -> 0.00064 | NY3: =IF($LH$1=1,Raw_Data!GX2,IF($LH$1=2,Raw_Data!AAQ2,Raw_Data!AUQ2)) -> 0.00014 | NZ3: =IF($LH$1=1,Raw_Data!GY2,IF($LH$1=2,Raw_Data!AAR2,Raw_Data!AUR2)) -> 0 | OA3: =IF($LH$1=1,Raw_Data!GZ2,IF($LH$1=2,Raw_Data!AAS2,Raw_Data!AUS2)) -> 0 | OB3: =IF($LH$1=1,Raw_Data!HA2,IF($LH$1=2,Raw_Data!AAT2,Raw_Data!AUT2)) -> 0 | OC3: =IF($LH$1=1,Raw_Data!HB2,IF($LH$1=2,Raw_Data!AAU2,Raw_Data!AUU2)) -> 0 | OD3: =IF($LH$1=1,Raw_Data!HC2,IF($LH$1=2,Raw_Data!AAV2,Raw_Data!AUV2)) -> 0 | OE3: =IF($LH$1=1,Raw_Data!HD2,IF($LH$1=2,Raw_Data!AAW2,Raw_Data!AUW2)) -> 0 | OF3: =IF($LH$1=1,Raw_Data!HE2,IF($LH$1=2,Raw_Data!AAX2,Raw_Data!AUX2)) -> 0 | OG3: =IF($LH$1=1,Raw_Data!HF2,IF($LH$1=2,Raw_Data!AAY2,Raw_Data!AUY2)) -> 0 | OH3: =IF($LH$1=1,Raw_Data!HG2,IF($LH$1=2,Raw_Data!AAZ2,Raw_Data!AUZ2)) -> 0 | OI3: =IF($LH$1=1,Raw_Data!HH2,IF($LH$1=2,Raw_Data!ABA2,Raw_Data!AVA2)) -> 0 | OJ3: =IF($LH$1=1,Raw_Data!HI2,IF($LH$1=2,Raw_Data!ABB2,Raw_Data!AVB2)) -> 0 | OK3: =IF($LH$1=1,Raw_Data!HJ2,IF($LH$1=2,Raw_Data!ABC2,Raw_Data!AVC2)) -> 0 | OL3: =IF($LH$1=1,Raw_Data!HK2,IF($LH$1=2,Raw_Data!ABD2,Raw_Data!AVD2)) -> 0 | OM3: =IF($LH$1=1,Raw_Data!HL2,IF($LH$1=2,Raw_Data!ABE2,Raw_Data!AVE2)) -> 0 | ON3: =IF($LH$1=1,Raw_Data!HM2,IF($LH$1=2,Raw_Data!ABF2,Raw_Data!AVF2)) -> 0 | OO3: =IF($LH$1=1,Raw_Data!HN2,IF($LH$1=2,Raw_Data!ABG2,Raw_Data!AVG2)) -> 0 | OP3: =IF($LH$1=1,Raw_Data!HO2,IF($LH$1=2,Raw_Data!ABH2,Raw_Data!AVH2)) -> 0 | OQ3: =IF($LH$1=1,Raw_Data!HP2,IF($LH$1=2,Raw_Data!ABI2,Raw_Data!AVI2)) -> 0 | OR3: =IF($LH$1=1,Raw_Data!HQ2,IF($LH$1=2,Raw_Data!ABJ2,Raw_Data!AVJ2)) -> 0 | OS3: =IF($LH$1=1,Raw_Data!HR2,IF($LH$1=2,Raw_Data!ABK2,Raw_Data!AVK2)) -> 0 | OT3: =IF($LH$1=1,Raw_Data!HS2,IF($LH$1=2,Raw_Data!ABL2,Raw_Data!AVL2)) -> 0 | OU3: =IF($LH$1=1,Raw_Data!HT2,IF($LH$1=2,Raw_Data!ABM2,Raw_Data!AVM2)) -> 0 | OV3: =IF($LH$1=1,Raw_Data!HU2,IF($LH$1=2,Raw_Data!ABN2,Raw_Data!AVN2)) -> 0 | OW3: =IF($LH$1=1,Raw_Data!HV2,IF($LH$1=2,Raw_Data!ABO2,Raw_Data!AVO2)) -> 0 | OX3: =IF($LH$1=1,Raw_Data!HW2,IF($LH$1=2,Raw_Data!ABP2,Raw_Data!AVP2)) -> 0 | OY3: =IF($LH$1=1,Raw_Data!HX2,IF($LH$1=2,Raw_Data!ABQ2,Raw_Data!AVQ2)) -> 0 | OZ3: =IF($LH$1=1,Raw_Data!HY2,IF($LH$1=2,Raw_Data!ABR2,Raw_Data!AVR2)) -> 0 | PA3: =IF($LH$1=1,Raw_Data!HZ2,IF($LH$1=2,Raw_Data!ABS2,Raw_Data!AVS2)) -> 0 | PB3: =IF($LH$1=1,Raw_Data!IA2,IF($LH$1=2,Raw_Data!ABT2,Raw_Data!AVT2)) -> 0 | PC3: =IF($LH$1=1,Raw_Data!IB2,IF($LH$1=2,Raw_Data!ABU2,Raw_Data!AVU2)) -> 0 | PD3: =IF($LH$1=1,Raw_Data!IC2,IF($LH$1=2,Raw_Data!ABV2,Raw_Data!AVV2)) -> 0 | PE3: =IF($LH$1=1,Raw_Data!ID2,IF($LH$1=2,Raw_Data!ABW2,Raw_Data!AVW2)) -> 0 | PF3: =IF($LH$1=1,Raw_Data!IE2,IF($LH$1=2,Raw_Data!ABX2,Raw_Data!AVX2)) -> 0 | PG3: =IF($LH$1=1,Raw_Data!IF2,IF($LH$1=2,Raw_Data!ABY2,Raw_Data!AVY2)) -> 0 | PH3: =IF($LH$1=1,Raw_Data!IG2,IF($LH$1=2,Raw_Data!ABZ2,Raw_Data!AVZ2)) -> 0 | PI3: =IF($LH$1=1,Raw_Data!IH2,IF($LH$1=2,Raw_Data!ACA2,Raw_Data!AWA2)) -> 0 | PJ3: =IF($LH$1=1,Raw_Data!II2,IF($LH$1=2,Raw_Data!ACB2,Raw_Data!AWB2)) -> 0 | PK3: =IF($LH$1=1,Raw_Data!IJ2,IF($LH$1=2,Raw_Data!ACC2,Raw_Data!AWC2)) -> 0 | PL3: =IF($LH$1=1,Raw_Data!IK2,IF($LH$1=2,Raw_Data!ACD2,Raw_Data!AWD2)) -> 0 | PM3: =IF($LH$1=1,Raw_Data!IL2,IF($LH$1=2,Raw_Data!ACE2,Raw_Data!AWE2)) -> 0 | PN3: =IF($LH$1=1,Raw_Data!IM2,IF($LH$1=2,Raw_Data!ACF2,Raw_Data!AWF2)) -> 0 | PO3: =IF($LH$1=1,Raw_Data!IN2,IF($LH$1=2,Raw_Data!ACG2,Raw_Data!AWG2)) -> 0 | PP3: =IF($LH$1=1,Raw_Data!IO2,IF($LH$1=2,Raw_Data!ACH2,Raw_Data!AWH2)) -> 0 | PQ3: =IF($LH$1=1,Raw_Data!IP2,IF($LH$1=2,Raw_Data!ACI2,Raw_Data!AWI2)) -> 0 | PR3: =IF($LH$1=1,Raw_Data!IQ2,IF($LH$1=2,Raw_Data!ACJ2,Raw_Data!AWJ2)) -> 0 | PS3: =IF($LH$1=1,Raw_Data!IR2,IF($LH$1=2,Raw_Data!ACK2,Raw_Data!AWK2)) -> 0 | PT3: =IF($LH$1=1,Raw_Data!IS2,IF($LH$1=2,Raw_Data!ACL2,Raw_Data!AWL2)) -> 0 | PU3: =IF($LH$1=1,Raw_Data!IT2,IF($LH$1=2,Raw_Data!ACM2,Raw_Data!AWM2)) -> 0 | PV3: =IF($LH$1=1,Raw_Data!IU2,IF($LH$1=2,Raw_Data!ACN2,Raw_Data!AWN2)) -> 0 | PW3: =IF($LH$1=1,Raw_Data!IV2,IF($LH$1=2,Raw_Data!ACO2,Raw_Data!AWO2)) -> 0 | PX3: =IF($LH$1=1,Raw_Data!IW2,IF($LH$1=2,Raw_Data!ACP2,Raw_Data!AWP2)) -> 0 | PY3: =IF($LH$1=1,Raw_Data!IX2,IF($LH$1=2,Raw_Data!ACQ2,Raw_Data!AWQ2)) -> 0 | PZ3: =IF($LH$1=1,Raw_Data!IY2,IF($LH$1=2,Raw_Data!ACR2,Raw_Data!AWR2)) -> 0 | QA3: =IF($LH$1=1,Raw_Data!IZ2,IF($LH$1=2,Raw_Data!ACS2,Raw_Data!AWS2)) -> 0 | QB3: =IF($LH$1=1,Raw_Data!JA2,IF($LH$1=2,Raw_Data!ACT2,Raw_Data!AWT2)) -> 0 | QC3: =IF($LH$1=1,Raw_Data!JB2,IF($LH$1=2,Raw_Data!ACU2,Raw_Data!AWU2)) -> 0 | QD3: =IF($LH$1=1,Raw_Data!JC2,IF($LH$1=2,Raw_Data!ACV2,Raw_Data!AWV2)) -> 0 | QE3: =IF($LH$1=1,Raw_Data!JD2,IF($LH$1=2,Raw_Data!ACW2,Raw_Data!AWW2)) -> 0 | QF3: =IF($LH$1=1,Raw_Data!JE2,IF($LH$1=2,Raw_Data!ACX2,Raw_Data!AWX2)) -> 0 | QG3: =IF($LH$1=1,Raw_Data!JF2,IF($LH$1=2,Raw_Data!ACY2,Raw_Data!AWY2)) -> 0 | QH3: =IF($LH$1=1,Raw_Data!JG2,IF($LH$1=2,Raw_Data!ACZ2,Raw_Data!AWZ2)) -> 0 | QI3: =IF($LH$1=1,Raw_Data!JH2,IF($LH$1=2,Raw_Data!ADA2,Raw_Data!AXA2)) -> 0 | QJ3: =IF($LH$1=1,Raw_Data!JI2,IF($LH$1=2,Raw_Data!ADB2,Raw_Data!AXB2)) -> 0 | QK3: =IF($LH$1=1,Raw_Data!JJ2,IF($LH$1=2,Raw_Data!ADC2,Raw_Data!AXC2)) -> 0 | QL3: =IF($LH$1=1,Raw_Data!JK2,IF($LH$1=2,Raw_Data!ADD2,Raw_Data!AXD2)) -> 0 | QM3: =IF($LH$1=1,Raw_Data!JL2,IF($LH$1=2,Raw_Data!ADE2,Raw_Data!AXE2)) -> 0 | QN3: =IF($LH$1=1,Raw_Data!JM2,IF($LH$1=2,Raw_Data!ADF2,Raw_Data!AXF2)) -> 0 | QO3: =IF($LH$1=1,Raw_Data!JN2,IF($LH$1=2,Raw_Data!ADG2,Raw_Data!AXG2)) -> 0 | QP3: =IF($LH$1=1,Raw_Data!JO2,IF($LH$1=2,Raw_Data!ADH2,Raw_Data!AXH2)) -> 0 | QQ3: =IF($LH$1=1,Raw_Data!JP2,IF($LH$1=2,Raw_Data!ADI2,Raw_Data!AXI2)) -> 0 | QR3: =IF($LH$1=1,Raw_Data!JQ2,IF($LH$1=2,Raw_Data!ADJ2,Raw_Data!AXJ2)) -> 0 | QS3: =IF($LH$1=1,Raw_Data!JR2,IF($LH$1=2,Raw_Data!ADK2,Raw_Data!AXK2)) -> 0 | QT3: =IF($LH$1=1,Raw_Data!JS2,IF($LH$1=2,Raw_Data!ADL2,Raw_Data!AXL2)) -> 0 | QU3: =IF($LH$1=1,Raw_Data!JT2,IF($LH$1=2,Raw_Data!ADM2,Raw_Data!AXM2)) -> 0 | QV3: =IF($LH$1=1,Raw_Data!JU2,IF($LH$1=2,Raw_Data!ADN2,Raw_Data!AXN2)) -> 0 | QW3: =IF($LH$1=1,Raw_Data!JV2,IF($LH$1=2,Raw_Data!ADO2,Raw_Data!AXO2)) -> 0 | QX3: =IF($LH$1=1,Raw_Data!JW2,IF($LH$1=2,Raw_Data!ADP2,Raw_Data!AXP2)) -> 0 | QY3: =IF($LH$1=1,Raw_Data!JX2,IF($LH$1=2,Raw_Data!ADQ2,Raw_Data!AXQ2)) -> 0 | QZ3: =IF($LH$1=1,Raw_Data!JY2,IF($LH$1=2,Raw_Data!ADR2,Raw_Data!AXR2)) -> 0 | RA3: =IF($LH$1=1,Raw_Data!JZ2,IF($LH$1=2,Raw_Data!ADS2,Raw_Data!AXS2)) -> 0 | RB3: =IF($LH$1=1,Raw_Data!KA2,IF($LH$1=2,Raw_Data!ADT2,Raw_Data!AXT2)) -> 0 | RC3: =IF($LH$1=1,Raw_Data!KB2,IF($LH$1=2,Raw_Data!ADU2,Raw_Data!AXU2)) -> 0 | RD3: =IF($LH$1=1,Raw_Data!KC2,IF($LH$1=2,Raw_Data!ADV2,Raw_Data!AXV2)) -> 0 | RE3: =IF($LH$1=1,Raw_Data!KD2,IF($LH$1=2,Raw_Data!ADW2,Raw_Data!AXW2)) -> 0 | RF3: =IF($LH$1=1,Raw_Data!KE2,IF($LH$1=2,Raw_Data!ADX2,Raw_Data!AXX2)) -> 0 | RG3: =IF($LH$1=1,Raw_Data!KF2,IF($LH$1=2,Raw_Data!ADY2,Raw_Data!AXY2)) -> 0 | RH3: =IF($LH$1=1,Raw_Data!KG2,IF($LH$1=2,Raw_Data!ADZ2,Raw_Data!AXZ2)) -> 0 | RI3: =IF($LH$1=1,Raw_Data!KH2,IF($LH$1=2,Raw_Data!AEA2,Raw_Data!AYA2)) -> 0 | RJ3: =IF($LH$1=1,Raw_Data!KI2,IF($LH$1=2,Raw_Data!AEB2,Raw_Data!AYB2)) -> 0 | RK3: =IF($LH$1=1,Raw_Data!KJ2,IF($LH$1=2,Raw_Data!AEC2,Raw_Data!AYC2)) -> 0 | RL3: =IF($LH$1=1,Raw_Data!KK2,IF($LH$1=2,Raw_Data!AED2,Raw_Data!AYD2)) -> 0 | RM3: =IF($LH$1=1,Raw_Data!KL2,IF($LH$1=2,Raw_Data!AEE2,Raw_Data!AYE2)) -> 0 | RN3: =IF($LH$1=1,Raw_Data!KM2,IF($LH$1=2,Raw_Data!AEF2,Raw_Data!AYF2)) -> 0 | RO3: =IF($LH$1=1,Raw_Data!KN2,IF($LH$1=2,Raw_Data!AEG2,Raw_Data!AYG2)) -> 0 | RP3: =IF($LH$1=1,Raw_Data!KO2,IF($LH$1=2,Raw_Data!AEH2,Raw_Data!AYH2)) -> 0 | RQ3: =IF($LH$1=1,Raw_Data!KP2,IF($LH$1=2,Raw_Data!AEI2,Raw_Data!AYI2)) -> 0 | RR3: =IF($LH$1=1,Raw_Data!KQ2,IF($LH$1=2,Raw_Data!AEJ2,Raw_Data!AYJ2)) -> 0 | RS3: =IF($LH$1=1,Raw_Data!KR2,IF($LH$1=2,Raw_Data!AEK2,Raw_Data!AYK2)) -> 0 | RT3: =IF($LH$1=1,Raw_Data!KS2,IF($LH$1=2,Raw_Data!AEL2,Raw_Data!AYL2)) -> 0 | RU3: =IF($LH$1=1,Raw_Data!KT2,IF($LH$1=2,Raw_Data!AEM2,Raw_Data!AYM2)) -> 0 | RV3: =IF($LH$1=1,Raw_Data!KU2,IF($LH$1=2,Raw_Data!AEN2,Raw_Data!AYN2)) -> 0 | RW3: =IF($LH$1=1,Raw_Data!KV2,IF($LH$1=2,Raw_Data!AEO2,Raw_Data!AYO2)) -> 0 | RX3: =IF($LH$1=1,Raw_Data!KW2,IF($LH$1=2,Raw_Data!AEP2,Raw_Data!AYP2)) -> 0 | RY3: =IF($LH$1=1,Raw_Data!KX2,IF($LH$1=2,Raw_Data!AEQ2,Raw_Data!AYQ2)) -> 0 | RZ3: =IF($LH$1=1,Raw_Data!KY2,IF($LH$1=2,Raw_Data!AER2,Raw_Data!AYR2)) -> 0 | SA3: =IF($LH$1=1,Raw_Data!KZ2,IF($LH$1=2,Raw_Data!AES2,Raw_Data!AYS2)) -> 0 | SB3: =IF($LH$1=1,Raw_Data!LA2,IF($LH$1=2,Raw_Data!AET2,Raw_Data!AYT2)) -> 0 | SC3: =IF($LH$1=1,Raw_Data!LB2,IF($LH$1=2,Raw_Data!AEU2,Raw_Data!AYU2)) -> 0 | SD3: =IF($LH$1=1,Raw_Data!LC2,IF($LH$1=2,Raw_Data!AEV2,Raw_Data!AYV2)) -> 0 | SE3: =IF($LH$1=1,Raw_Data!LD2,IF($LH$1=2,Raw_Data!AEW2,Raw_Data!AYW2)) -> 0 | SF3: =IF($LH$1=1,Raw_Data!LE2,IF($LH$1=2,Raw_Data!AEX2,Raw_Data!AYX2)) -> 0 | SG3: =IF($LH$1=1,Raw_Data!LF2,IF($LH$1=2,Raw_Data!AEY2,Raw_Data!AYY2)) -> 0 | SH3: =IF($LH$1=1,Raw_Data!LG2,IF($LH$1=2,Raw_Data!AEZ2,Raw_Data!AYZ2)) -> 0 | SI3: =IF($LH$1=1,Raw_Data!LH2,IF($LH$1=2,Raw_Data!AFA2,Raw_Data!AZA2)) -> 0 | SJ3: =IF($LH$1=1,Raw_Data!LI2,IF($LH$1=2,Raw_Data!AFB2,Raw_Data!AZB2)) -> 0 | SK3: =IF($LH$1=1,Raw_Data!LJ2,IF($LH$1=2,Raw_Data!AFC2,Raw_Data!AZC2)) -> 0 | SL3: =IF($LH$1=1,Raw_Data!LK2,IF($LH$1=2,Raw_Data!AFD2,Raw_Data!AZD2)) -> 0 | SM3: =IF($LH$1=1,Raw_Data!LL2,IF($LH$1=2,Raw_Data!AFE2,Raw_Data!AZE2)) -> 0 | SN3: =IF($LH$1=1,Raw_Data!LM2,IF($LH$1=2,Raw_Data!AFF2,Raw_Data!AZF2)) -> 0 | SO3: =IF($LH$1=1,Raw_Data!LN2,IF($LH$1=2,Raw_Data!AFG2,Raw_Data!AZG2)) -> 0 | SP3: =IF($LH$1=1,Raw_Data!LO2,IF($LH$1=2,Raw_Data!AFH2,Raw_Data!AZH2)) -> 0 | SQ3: =IF($LH$1=1,Raw_Data!LP2,IF($LH$1=2,Raw_Data!AFI2,Raw_Data!AZI2)) -> 0 | SR3: =IF($LH$1=1,Raw_Data!LQ2,IF($LH$1=2,Raw_Data!AFJ2,Raw_Data!AZJ2)) -> 0 | SS3: =IF($LH$1=1,Raw_Data!LR2,IF($LH$1=2,Raw_Data!AFK2,Raw_Data!AZK2)) -> 0 | ST3: =IF($LH$1=1,Raw_Data!LS2,IF($LH$1=2,Raw_Data!AFL2,Raw_Data!AZL2)) -> 0 | SU3: =IF($LH$1=1,Raw_Data!LT2,IF($LH$1=2,Raw_Data!AFM2,Raw_Data!AZM2)) -> 0 | SV3: =IF($LH$1=1,Raw_Data!LU2,IF($LH$1=2,Raw_Data!AFN2,Raw_Data!AZN2)) -> 0 | SW3: =IF($LH$1=1,Raw_Data!LV2,IF($LH$1=2,Raw_Data!AFO2,Raw_Data!AZO2)) -> 0 | SX3: =IF($LH$1=1,Raw_Data!LW2,IF($LH$1=2,Raw_Data!AFP2,Raw_Data!AZP2)) -> 0 | SY3: =IF($LH$1=1,Raw_Data!LX2,IF($LH$1=2,Raw_Data!AFQ2,Raw_Data!AZQ2)) -> 0 | SZ3: =IF($LH$1=1,Raw_Data!LY2,IF($LH$1=2,Raw_Data!AFR2,Raw_Data!AZR2)) -> 0 | TA3: =IF($LH$1=1,Raw_Data!LZ2,IF($LH$1=2,Raw_Data!AFS2,Raw_Data!AZS2)) -> 0 | TB3: =IF($LH$1=1,Raw_Data!MA2,IF($LH$1=2,Raw_Data!AFT2,Raw_Data!AZT2)) -> 0 | TC3: =IF($LH$1=1,Raw_Data!MB2,IF($LH$1=2,Raw_Data!AFU2,Raw_Data!AZU2)) -> 0 | TD3: =IF($LH$1=1,Raw_Data!MC2,IF($LH$1=2,Raw_Data!AFV2,Raw_Data!AZV2)) -> 0 | TE3: =IF($LH$1=1,Raw_Data!MD2,IF($LH$1=2,Raw_Data!AFW2,Raw_Data!AZW2)) -> 0 | TF3: =IF($LH$1=1,Raw_Data!ME2,IF($LH$1=2,Raw_Data!AFX2,Raw_Data!AZX2)) -> 0 | TG3: =IF($LH$1=1,Raw_Data!MF2,IF($LH$1=2,Raw_Data!AFY2,Raw_Data!AZY2)) -> 0 | TH3: =IF($LH$1=1,Raw_Data!MG2,IF($LH$1=2,Raw_Data!AFZ2,Raw_Data!AZZ2)) -> 0 | TI3: =IF($LH$1=1,Raw_Data!MH2,IF($LH$1=2,Raw_Data!AGA2,Raw_Data!BAA2)) -> 0 | TJ3: =IF($LH$1=1,Raw_Data!MI2,IF($LH$1=2,Raw_Data!AGB2,Raw_Data!BAB2)) -> 0 | TK3: =IF($LH$1=1,Raw_Data!MJ2,IF($LH$1=2,Raw_Data!AGC2,Raw_Data!BAC2)) -> 0 | TL3: =IF($LH$1=1,Raw_Data!MK2,IF($LH$1=2,Raw_Data!AGD2,Raw_Data!BAD2)) -> 0 | TM3: =IF($LH$1=1,Raw_Data!ML2,IF($LH$1=2,Raw_Data!AGE2,Raw_Data!BAE2)) -> 0 | TN3: =IF($LH$1=1,Raw_Data!MM2,IF($LH$1=2,Raw_Data!AGF2,Raw_Data!BAF2)) -> 0 | TO3: =IF($LH$1=1,Raw_Data!MN2,IF($LH$1=2,Raw_Data!AGG2,Raw_Data!BAG2)) -> 0 | TP3: =IF($LH$1=1,Raw_Data!MO2,IF($LH$1=2,Raw_Data!AGH2,Raw_Data!BAH2)) -> 0 | TQ3: =IF($LH$1=1,Raw_Data!MP2,IF($LH$1=2,Raw_Data!AGI2,Raw_Data!BAI2)) -> 0 | TR3: =IF($LH$1=1,Raw_Data!MQ2,IF($LH$1=2,Raw_Data!AGJ2,Raw_Data!BAJ2)) -> 0 | TS3: =IF($LH$1=1,Raw_Data!MR2,IF($LH$1=2,Raw_Data!AGK2,Raw_Data!BAK2)) -> 0 | TT3: =IF($LH$1=1,Raw_Data!MS2,IF($LH$1=2,Raw_Data!AGL2,Raw_Data!BAL2)) -> 0 | TU3: =IF($LH$1=1,Raw_Data!MT2,IF($LH$1=2,Raw_Data!AGM2,Raw_Data!BAM2)) -> 0 | TV3: =IF($LH$1=1,Raw_Data!MU2,IF($LH$1=2,Raw_Data!AGN2,Raw_Data!BAN2)) -> 0 | TW3: =IF($LH$1=1,Raw_Data!MV2,IF($LH$1=2,Raw_Data!AGO2,Raw_Data!BAO2)) -> 0 | TX3: =IF($LH$1=1,Raw_Data!MW2,IF($LH$1=2,Raw_Data!AGP2,Raw_Data!BAP2)) -> 0 | TY3: =IF($LH$1=1,Raw_Data!MX2,IF($LH$1=2,Raw_Data!AGQ2,Raw_Data!BAQ2)) -> 0 | TZ3: =IF($LH$1=1,Raw_Data!MY2,IF($LH$1=2,Raw_Data!AGR2,Raw_Data!BAR2)) -> 0 | UA3: =IF($LH$1=1,Raw_Data!MZ2,IF($LH$1=2,Raw_Data!AGS2,Raw_Data!BAS2)) -> 0 | UB3: =IF($LH$1=1,Raw_Data!NA2,IF($LH$1=2,Raw_Data!AGT2,Raw_Data!BAT2)) -> 0 | UC3: =IF($LH$1=1,Raw_Data!NB2,IF($LH$1=2,Raw_Data!AGU2,Raw_Data!BAU2)) -> 0 | UD3: =IF($LH$1=1,Raw_Data!NC2,IF($LH$1=2,Raw_Data!AGV2,Raw_Data!BAV2)) -> 0 | UE3: =IF($LH$1=1,Raw_Data!ND2,IF($LH$1=2,Raw_Data!AGW2,Raw_Data!BAW2)) -> 0 | UF3: =IF($LH$1=1,Raw_Data!NE2,IF($LH$1=2,Raw_Data!AGX2,Raw_Data!BAX2)) -> 0 | UG3: =IF($LH$1=1,Raw_Data!NF2,IF($LH$1=2,Raw_Data!AGY2,Raw_Data!BAY2)) -> 0 | UH3: =IF($LH$1=1,Raw_Data!NG2,IF($LH$1=2,Raw_Data!AGZ2,Raw_Data!BAZ2)) -> 0 | UI3: =IF($LH$1=1,Raw_Data!NH2,IF($LH$1=2,Raw_Data!AHA2,Raw_Data!BBA2)) -> 0 | UJ3: =IF($LH$1=1,Raw_Data!NI2,IF($LH$1=2,Raw_Data!AHB2,Raw_Data!BBB2)) -> 0 | UK3: =IF($LH$1=1,Raw_Data!NJ2,IF($LH$1=2,Raw_Data!AHC2,Raw_Data!BBC2)) -> 0 | UL3: =IF($LH$1=1,Raw_Data!NK2,IF($LH$1=2,Raw_Data!AHD2,Raw_Data!BBD2)) -> 0 | UM3: =IF($LH$1=1,Raw_Data!NL2,IF($LH$1=2,Raw_Data!AHE2,Raw_Data!BBE2)) -> 0 | UN3: =IF($LH$1=1,Raw_Data!NM2,IF($LH$1=2,Raw_Data!AHF2,Raw_Data!BBF2)) -> 0 | UO3: =IF($LH$1=1,Raw_Data!NN2,IF($LH$1=2,Raw_Data!AHG2,Raw_Data!BBG2)) -> 0 | UP3: =IF($LH$1=1,Raw_Data!NO2,IF($LH$1=2,Raw_Data!AHH2,Raw_Data!BBH2)) -> 0 | UQ3: =IF($LH$1=1,Raw_Data!NP2,IF($LH$1=2,Raw_Data!AHI2,Raw_Data!BBI2)) -> 0 | UR3: =IF($LH$1=1,Raw_Data!NQ2,IF($LH$1=2,Raw_Data!AHJ2,Raw_Data!BBJ2)) -> 0 | US3: =IF($LH$1=1,Raw_Data!NR2,IF($LH$1=2,Raw_Data!AHK2,Raw_Data!BBK2)) -> 0 | UT3: =IF($LH$1=1,Raw_Data!NS2,IF($LH$1=2,Raw_Data!AHL2,Raw_Data!BBL2)) -> 0 | UU3: =IF($LH$1=1,Raw_Data!NT2,IF($LH$1=2,Raw_Data!AHM2,Raw_Data!BBM2)) -> 0 | UV3: =IF($LH$1=1,Raw_Data!NU2,IF($LH$1=2,Raw_Data!AHN2,Raw_Data!BBN2)) -> 0 | UW3: =IF($LH$1=1,Raw_Data!NV2,IF($LH$1=2,Raw_Data!AHO2,Raw_Data!BBO2)) -> 0 | UX3: =IF($LH$1=1,Raw_Data!NW2,IF($LH$1=2,Raw_Data!AHP2,Raw_Data!BBP2)) -> 0 | UY3: =IF($LH$1=1,Raw_Data!NX2,IF($LH$1=2,Raw_Data!AHQ2,Raw_Data!BBQ2)) -> 0 | UZ3: =IF($LH$1=1,Raw_Data!NY2,IF($LH$1=2,Raw_Data!AHR2,Raw_Data!BBR2)) -> 0 | VA3: =IF($LH$1=1,Raw_Data!NZ2,IF($LH$1=2,Raw_Data!AHS2,Raw_Data!BBS2)) -> 0 | VB3: =IF($LH$1=1,Raw_Data!OA2,IF($LH$1=2,Raw_Data!AHT2,Raw_Data!BBT2)) -> 0 | VC3: =IF($LH$1=1,Raw_Data!OB2,IF($LH$1=2,Raw_Data!AHU2,Raw_Data!BBU2)) -> 0 | VD3: =IF($LH$1=1,Raw_Data!OC2,IF($LH$1=2,Raw_Data!AHV2,Raw_Data!BBV2)) -> 0 | VE3: =IF($LH$1=1,Raw_Data!OD2,IF($LH$1=2,Raw_Data!AHW2,Raw_Data!BBW2)) -> 0 | VF3: =IF($LH$1=1,Raw_Data!OE2,IF($LH$1=2,Raw_Data!AHX2,Raw_Data!BBX2)) -> 0 | VG3: =IF($LH$1=1,Raw_Data!OF2,IF($LH$1=2,Raw_Data!AHY2,Raw_Data!BBY2)) -> 0 | VH3: =IF($LH$1=1,Raw_Data!OG2,IF($LH$1=2,Raw_Data!AHZ2,Raw_Data!BBZ2)) -> 0 | VI3: =IF($LH$1=1,Raw_Data!OH2,IF($LH$1=2,Raw_Data!AIA2,Raw_Data!BCA2)) -> 0 | VJ3: =IF($LH$1=1,Raw_Data!OI2,IF($LH$1=2,Raw_Data!AIB2,Raw_Data!BCB2)) -> 0 | VK3: =IF($LH$1=1,Raw_Data!OJ2,IF($LH$1=2,Raw_Data!AIC2,Raw_Data!BCC2)) -> 0 | VL3: =IF($LH$1=1,Raw_Data!OK2,IF($LH$1=2,Raw_Data!AID2,Raw_Data!BCD2)) -> 0 | VM3: =IF($LH$1=1,Raw_Data!OL2,IF($LH$1=2,Raw_Data!AIE2,Raw_Data!BCE2)) -> 0 | VN3: =IF($LH$1=1,Raw_Data!OM2,IF($LH$1=2,Raw_Data!AIF2,Raw_Data!BCF2)) -> 0 | VO3: =IF($LH$1=1,Raw_Data!ON2,IF($LH$1=2,Raw_Data!AIG2,Raw_Data!BCG2)) -> 0 | VP3: =IF($LH$1=1,Raw_Data!OO2,IF($LH$1=2,Raw_Data!AIH2,Raw_Data!BCH2)) -> 0 | VQ3: =IF($LH$1=1,Raw_Data!OP2,IF($LH$1=2,Raw_Data!AII2,Raw_Data!BCI2)) -> 0 | VR3: =IF($LH$1=1,Raw_Data!OQ2,IF($LH$1=2,Raw_Data!AIJ2,Raw_Data!BCJ2)) -> 0 | VS3: =IF($LH$1=1,Raw_Data!OR2,IF($LH$1=2,Raw_Data!AIK2,Raw_Data!BCK2)) -> 0 | VT3: =IF($LH$1=1,Raw_Data!OS2,IF($LH$1=2,Raw_Data!AIL2,Raw_Data!BCL2)) -> 0 | VU3: =IF($LH$1=1,Raw_Data!OT2,IF($LH$1=2,Raw_Data!AIM2,Raw_Data!BCM2)) -> 0 | VV3: =IF($LH$1=1,Raw_Data!OU2,IF($LH$1=2,Raw_Data!AIN2,Raw_Data!BCN2)) -> 0 | VW3: =IF($LH$1=1,Raw_Data!OV2,IF($LH$1=2,Raw_Data!AIO2,Raw_Data!BCO2)) -> 0 | VX3: =IF($LH$1=1,Raw_Data!OW2,IF($LH$1=2,Raw_Data!AIP2,Raw_Data!BCP2)) -> 0 | VY3: =IF($LH$1=1,Raw_Data!OX2,IF($LH$1=2,Raw_Data!AIQ2,Raw_Data!BCQ2)) -> 0 | VZ3: =IF($LH$1=1,Raw_Data!OY2,IF($LH$1=2,Raw_Data!AIR2,Raw_Data!BCR2)) -> 0 | WA3: =IF($LH$1=1,Raw_Data!OZ2,IF($LH$1=2,Raw_Data!AIS2,Raw_Data!BCS2)) -> 0 | WB3: =IF($LH$1=1,Raw_Data!PA2,IF($LH$1=2,Raw_Data!AIT2,Raw_Data!BCT2)) -> 0 | WC3: =IF($LH$1=1,Raw_Data!PB2,IF($LH$1=2,Raw_Data!AIU2,Raw_Data!BCU2)) -> 0 | WD3: =IF($LH$1=1,Raw_Data!PC2,IF($LH$1=2,Raw_Data!AIV2,Raw_Data!BCV2)) -> 0 | WE3: =IF($LH$1=1,Raw_Data!PD2,IF($LH$1=2,Raw_Data!AIW2,Raw_Data!BCW2)) -> 0 | WF3: =IF($LH$1=1,Raw_Data!PE2,IF($LH$1=2,Raw_Data!AIX2,Raw_Data!BCX2)) -> 0 | WG3: =IF($LH$1=1,Raw_Data!PF2,IF($LH$1=2,Raw_Data!AIY2,Raw_Data!BCY2)) -> 0 | WH3: =IF($LH$1=1,Raw_Data!PG2,IF($LH$1=2,Raw_Data!AIZ2,Raw_Data!BCZ2)) -> 0 | WI3: =IF($LH$1=1,Raw_Data!PH2,IF($LH$1=2,Raw_Data!AJA2,Raw_Data!BDA2)) -> 0 | WJ3: =IF($LH$1=1,Raw_Data!PI2,IF($LH$1=2,Raw_Data!AJB2,Raw_Data!BDB2)) -> 0 | WK3: =IF($LH$1=1,Raw_Data!PJ2,IF($LH$1=2,Raw_Data!AJC2,Raw_Data!BDC2)) -> 0 | WL3: =IF($LH$1=1,Raw_Data!PK2,IF($LH$1=2,Raw_Data!AJD2,Raw_Data!BDD2)) -> 0 | WM3: =IF($LH$1=1,Raw_Data!PL2,IF($LH$1=2,Raw_Data!AJE2,Raw_Data!BDE2)) -> 0 | WN3: =IF($LH$1=1,Raw_Data!PM2,IF($LH$1=2,Raw_Data!AJF2,Raw_Data!BDF2)) -> 0 | WO3: =IF($LH$1=1,Raw_Data!PN2,IF($LH$1=2,Raw_Data!AJG2,Raw_Data!BDG2)) -> 0 | WP3: =IF($LH$1=1,Raw_Data!PO2,IF($LH$1=2,Raw_Data!AJH2,Raw_Data!BDH2)) -> 0 | WQ3: =IF($LH$1=1,Raw_Data!PP2,IF($LH$1=2,Raw_Data!AJI2,Raw_Data!BDI2)) -> 0 | WR3: =IF($LH$1=1,Raw_Data!PQ2,IF($LH$1=2,Raw_Data!AJJ2,Raw_Data!BDJ2)) -> 0 | WS3: =IF($LH$1=1,Raw_Data!PR2,IF($LH$1=2,Raw_Data!AJK2,Raw_Data!BDK2)) -> 0 | WT3: =IF($LH$1=1,Raw_Data!PS2,IF($LH$1=2,Raw_Data!AJL2,Raw_Data!BDL2)) -> 0 | WU3: =IF($LH$1=1,Raw_Data!PT2,IF($LH$1=2,Raw_Data!AJM2,Raw_Data!BDM2)) -> 0 | WV3: =IF($LH$1=1,Raw_Data!PU2,IF($LH$1=2,Raw_Data!AJN2,Raw_Data!BDN2)) -> 0 | WW3: =IF($LH$1=1,Raw_Data!PV2,IF($LH$1=2,Raw_Data!AJO2,Raw_Data!BDO2)) -> 0 | WX3: =IF($LH$1=1,Raw_Data!PW2,IF($LH$1=2,Raw_Data!AJP2,Raw_Data!BDP2)) -> 0 | WY3: =IF($LH$1=1,Raw_Data!PX2,IF($LH$1=2,Raw_Data!AJQ2,Raw_Data!BDQ2)) -> 0 | WZ3: =IF($LH$1=1,Raw_Data!PY2,IF($LH$1=2,Raw_Data!AJR2,Raw_Data!BDR2)) -> 0 | XA3: =IF($LH$1=1,Raw_Data!PZ2,IF($LH$1=2,Raw_Data!AJS2,Raw_Data!BDS2)) -> 0 | XB3: =IF($LH$1=1,Raw_Data!QA2,IF($LH$1=2,Raw_Data!AJT2,Raw_Data!BDT2)) -> 0 | XC3: =IF($LH$1=1,Raw_Data!QB2,IF($LH$1=2,Raw_Data!AJU2,Raw_Data!BDU2)) -> 0 | XD3: =IF($LH$1=1,Raw_Data!QC2,IF($LH$1=2,Raw_Data!AJV2,Raw_Data!BDV2)) -> 0 | XE3: =IF($LH$1=1,Raw_Data!QD2,IF($LH$1=2,Raw_Data!AJW2,Raw_Data!BDW2)) -> 0 | XF3: =IF($LH$1=1,Raw_Data!QE2,IF($LH$1=2,Raw_Data!AJX2,Raw_Data!BDX2)) -> 0 | XG3: =IF($LH$1=1,Raw_Data!QF2,IF($LH$1=2,Raw_Data!AJY2,Raw_Data!BDY2)) -> 0 | XH3: =IF($LH$1=1,Raw_Data!QG2,IF($LH$1=2,Raw_Data!AJZ2,Raw_Data!BDZ2)) -> 0 | XI3: =IF($LH$1=1,Raw_Data!QH2,IF($LH$1=2,Raw_Data!AKA2,Raw_Data!BEA2)) -> 0 | XJ3: =IF($LH$1=1,Raw_Data!QI2,IF($LH$1=2,Raw_Data!AKB2,Raw_Data!BEB2)) -> 0 | XK3: =IF($LH$1=1,Raw_Data!QJ2,IF($LH$1=2,Raw_Data!AKC2,Raw_Data!BEC2)) -> 0 | XL3: =IF($LH$1=1,Raw_Data!QK2,IF($LH$1=2,Raw_Data!AKD2,Raw_Data!BED2)) -> 0 | XM3: =IF($LH$1=1,Raw_Data!QL2,IF($LH$1=2,Raw_Data!AKE2,Raw_Data!BEE2)) -> 0 | XN3: =IF($LH$1=1,Raw_Data!QM2,IF($LH$1=2,Raw_Data!AKF2,Raw_Data!BEF2)) -> 0 | XO3: =IF($LH$1=1,Raw_Data!QN2,IF($LH$1=2,Raw_Data!AKG2,Raw_Data!BEG2)) -> 0 | XP3: =IF($LH$1=1,Raw_Data!QO2,IF($LH$1=2,Raw_Data!AKH2,Raw_Data!BEH2)) -> 0 | XQ3: =IF($LH$1=1,Raw_Data!QP2,IF($LH$1=2,Raw_Data!AKI2,Raw_Data!BEI2)) -> 0 | XR3: =IF($LH$1=1,Raw_Data!QQ2,IF($LH$1=2,Raw_Data!AKJ2,Raw_Data!BEJ2)) -> 0 | XS3: =IF($LH$1=1,Raw_Data!QR2,IF($LH$1=2,Raw_Data!AKK2,Raw_Data!BEK2)) -> 0 | XT3: =IF($LH$1=1,Raw_Data!QS2,IF($LH$1=2,Raw_Data!AKL2,Raw_Data!BEL2)) -> 0 | XU3: =IF($LH$1=1,Raw_Data!QT2,IF($LH$1=2,Raw_Data!AKM2,Raw_Data!BEM2)) -> 0 | XV3: =IF($LH$1=1,Raw_Data!QU2,IF($LH$1=2,Raw_Data!AKN2,Raw_Data!BEN2)) -> 0 | XW3: =IF($LH$1=1,Raw_Data!QV2,IF($LH$1=2,Raw_Data!AKO2,Raw_Data!BEO2)) -> 0 | XX3: =IF($LH$1=1,Raw_Data!QW2,IF($LH$1=2,Raw_Data!AKP2,Raw_Data!BEP2)) -> 0 | XY3: =IF($LH$1=1,Raw_Data!QX2,IF($LH$1=2,Raw_Data!AKQ2,Raw_Data!BEQ2)) -> 0 | XZ3: =IF($LH$1=1,Raw_Data!QY2,IF($LH$1=2,Raw_Data!AKR2,Raw_Data!BER2)) -> 0 | YA3: =IF($LH$1=1,Raw_Data!QZ2,IF($LH$1=2,Raw_Data!AKS2,Raw_Data!BES2)) -> 0 | YB3: =IF($LH$1=1,Raw_Data!RA2,IF($LH$1=2,Raw_Data!AKT2,Raw_Data!BET2)) -> 0 | YC3: =IF($LH$1=1,Raw_Data!RB2,IF($LH$1=2,Raw_Data!AKU2,Raw_Data!BEU2)) -> 0 | YD3: =IF($LH$1=1,Raw_Data!RC2,IF($LH$1=2,Raw_Data!AKV2,Raw_Data!BEV2)) -> 0 | YE3: =IF($LH$1=1,Raw_Data!RD2,IF($LH$1=2,Raw_Data!AKW2,Raw_Data!BEW2)) -> 0 | YF3: =IF($LH$1=1,Raw_Data!RE2,IF($LH$1=2,Raw_Data!AKX2,Raw_Data!BEX2)) -> 0 | YG3: =IF($LH$1=1,Raw_Data!RF2,IF($LH$1=2,Raw_Data!AKY2,Raw_Data!BEY2)) -> 0 | YH3: =IF($LH$1=1,Raw_Data!RG2,IF($LH$1=2,Raw_Data!AKZ2,Raw_Data!BEZ2)) -> 0 | YI3: =IF($LH$1=1,Raw_Data!RH2,IF($LH$1=2,Raw_Data!ALA2,Raw_Data!BFA2)) -> 0 | YJ3: =IF($LH$1=1,Raw_Data!RI2,IF($LH$1=2,Raw_Data!ALB2,Raw_Data!BFB2)) -> 0 | YK3: =IF($LH$1=1,Raw_Data!RJ2,IF($LH$1=2,Raw_Data!ALC2,Raw_Data!BFC2)) -> 0 | YL3: =IF($LH$1=1,Raw_Data!RK2,IF($LH$1=2,Raw_Data!ALD2,Raw_Data!BFD2)) -> 0 | YM3: =IF($LH$1=1,Raw_Data!RL2,IF($LH$1=2,Raw_Data!ALE2,Raw_Data!BFE2)) -> 0 | YN3: =IF($LH$1=1,Raw_Data!RM2,IF($LH$1=2,Raw_Data!ALF2,Raw_Data!BFF2)) -> 0 | YO3: =IF($LH$1=1,Raw_Data!RN2,IF($LH$1=2,Raw_Data!ALG2,Raw_Data!BFG2)) -> 0 | YP3: =IF($LH$1=1,Raw_Data!RO2,IF($LH$1=2,Raw_Data!ALH2,Raw_Data!BFH2)) -> 0 | YQ3: =IF($LH$1=1,Raw_Data!RP2,IF($LH$1=2,Raw_Data!ALI2,Raw_Data!BFI2)) -> 0 | YR3: =IF($LH$1=1,Raw_Data!RQ2,IF($LH$1=2,Raw_Data!ALJ2,Raw_Data!BFJ2)) -> 0 | YS3: =IF($LH$1=1,Raw_Data!RR2,IF($LH$1=2,Raw_Data!ALK2,Raw_Data!BFK2)) -> 0 | YT3: =IF($LH$1=1,Raw_Data!RS2,IF($LH$1=2,Raw_Data!ALL2,Raw_Data!BFL2)) -> 0 | YU3: =IF($LH$1=1,Raw_Data!RT2,IF($LH$1=2,Raw_Data!ALM2,Raw_Data!BFM2)) -> 0 | YV3: =IF($LH$1=1,Raw_Data!RU2,IF($LH$1=2,Raw_Data!ALN2,Raw_Data!BFN2)) -> 0 | YW3: =IF($LH$1=1,Raw_Data!RV2,IF($LH$1=2,Raw_Data!ALO2,Raw_Data!BFO2)) -> 0 | YX3: =IF($LH$1=1,Raw_Data!RW2,IF($LH$1=2,Raw_Data!ALP2,Raw_Data!BFP2)) -> 0 | YY3: =IF($LH$1=1,Raw_Data!RX2,IF($LH$1=2,Raw_Data!ALQ2,Raw_Data!BFQ2)) -> 0 | YZ3: =IF($LH$1=1,Raw_Data!RY2,IF($LH$1=2,Raw_Data!ALR2,Raw_Data!BFR2)) -> 0 | ZA3: =IF($LH$1=1,Raw_Data!RZ2,IF($LH$1=2,Raw_Data!ALS2,Raw_Data!BFS2)) -> 0 | ZB3: =IF($LH$1=1,Raw_Data!SA2,IF($LH$1=2,Raw_Data!ALT2,Raw_Data!BFT2)) -> 0 | ZC3: =IF($LH$1=1,Raw_Data!SB2,IF($LH$1=2,Raw_Data!ALU2,Raw_Data!BFU2)) -> 0 | ZD3: =IF($LH$1=1,Raw_Data!SC2,IF($LH$1=2,Raw_Data!ALV2,Raw_Data!BFV2)) -> 0 | ZE3: =IF($LH$1=1,Raw_Data!SD2,IF($LH$1=2,Raw_Data!ALW2,Raw_Data!BFW2)) -> 0 | ZF3: =IF($LH$1=1,Raw_Data!SE2,IF($LH$1=2,Raw_Data!ALX2,Raw_Data!BFX2)) -> 0 | ZG3: =IF($LH$1=1,Raw_Data!SF2,IF($LH$1=2,Raw_Data!ALY2,Raw_Data!BFY2)) -> 0 | ZH3: =IF($LH$1=1,Raw_Data!SG2,IF($LH$1=2,Raw_Data!ALZ2,Raw_Data!BFZ2)) -> 0 | ZI3: =IF($LH$1=1,Raw_Data!SH2,IF($LH$1=2,Raw_Data!AMA2,Raw_Data!BGA2)) -> 0 | ZJ3: =IF($LH$1=1,Raw_Data!SI2,IF($LH$1=2,Raw_Data!AMB2,Raw_Data!BGB2)) -> 0 | ZK3: =IF($LH$1=1,Raw_Data!SJ2,IF($LH$1=2,Raw_Data!AMC2,Raw_Data!BGC2)) -> 0 | ZL3: =IF($LH$1=1,Raw_Data!SK2,IF($LH$1=2,Raw_Data!AMD2,Raw_Data!BGD2)) -> 0 | ZM3: =IF($LH$1=1,Raw_Data!SL2,IF($LH$1=2,Raw_Data!AME2,Raw_Data!BGE2)) -> 0 | ZN3: =IF($LH$1=1,Raw_Data!SM2,IF($LH$1=2,Raw_Data!AMF2,Raw_Data!BGF2)) -> 0 | ZO3: =IF($LH$1=1,Raw_Data!SN2,IF($LH$1=2,Raw_Data!AMG2,Raw_Data!BGG2)) -> 0 | ZP3: =IF($LH$1=1,Raw_Data!SO2,IF($LH$1=2,Raw_Data!AMH2,Raw_Data!BGH2)) -> 0 | ZQ3: =IF($LH$1=1,Raw_Data!SP2,IF($LH$1=2,Raw_Data!AMI2,Raw_Data!BGI2)) -> 0 | ZR3: =IF($LH$1=1,Raw_Data!SQ2,IF($LH$1=2,Raw_Data!AMJ2,Raw_Data!BGJ2)) -> 0 | ZS3: =IF($LH$1=1,Raw_Data!SR2,IF($LH$1=2,Raw_Data!AMK2,Raw_Data!BGK2)) -> 0 | ZT3: =IF($LH$1=1,Raw_Data!SS2,IF($LH$1=2,Raw_Data!AML2,Raw_Data!BGL2)) -> 0 | ZU3: =IF($LH$1=1,Raw_Data!ST2,IF($LH$1=2,Raw_Data!AMM2,Raw_Data!BGM2)) -> 0 | ZV3: =IF($LH$1=1,Raw_Data!SU2,IF($LH$1=2,Raw_Data!AMN2,Raw_Data!BGN2)) -> 0 | ZW3: =IF($LH$1=1,Raw_Data!SV2,IF($LH$1=2,Raw_Data!AMO2,Raw_Data!BGO2)) -> 0 | ZX3: =IF($LH$1=1,Raw_Data!SW2,IF($LH$1=2,Raw_Data!AMP2,Raw_Data!BGP2)) -> 0 | ZY3: =IF($LH$1=1,Raw_Data!SX2,IF($LH$1=2,Raw_Data!AMQ2,Raw_Data!BGQ2)) -> 0 | ZZ3: =IF($LH$1=1,Raw_Data!SY2,IF($LH$1=2,Raw_Data!AMR2,Raw_Data!BGR2)) -> 0 | AAA3: =IF($LH$1=1,Raw_Data!SZ2,IF($LH$1=2,Raw_Data!AMS2,Raw_Data!BGS2)) -> 0 | AAB3: =IF($LH$1=1,Raw_Data!TA2,IF($LH$1=2,Raw_Data!AMT2,Raw_Data!BGT2)) -> 0 | AAC3: =IF($LH$1=1,Raw_Data!TB2,IF($LH$1=2,Raw_Data!AMU2,Raw_Data!BGU2)) -> 0 | AAD3: =IF($LH$1=1,Raw_Data!TC2,IF($LH$1=2,Raw_Data!AMV2,Raw_Data!BGV2)) -> 0 | AAE3: =IF($LH$1=1,Raw_Data!TD2,IF($LH$1=2,Raw_Data!AMW2,Raw_Data!BGW2)) -> 0 | AAF3: =IF($LH$1=1,Raw_Data!TE2,IF($LH$1=2,Raw_Data!AMX2,Raw_Data!BGX2)) -> 0 | AAG3: =IF($LH$1=1,Raw_Data!TF2,IF($LH$1=2,Raw_Data!AMY2,Raw_Data!BGY2)) -> 0 | AAH3: =IF($LH$1=1,Raw_Data!TG2,IF($LH$1=2,Raw_Data!AMZ2,Raw_Data!BGZ2)) -> 0 | AAI3: =IF($LH$1=1,Raw_Data!TH2,IF($LH$1=2,Raw_Data!ANA2,Raw_Data!BHA2)) -> 0 | AAJ3: =IF($LH$1=1,Raw_Data!TI2,IF($LH$1=2,Raw_Data!ANB2,Raw_Data!BHB2)) -> 0 | AAK3: =IF($LH$1=1,Raw_Data!TJ2,IF($LH$1=2,Raw_Data!ANC2,Raw_Data!BHC2)) -> 0 | AAL3: =IF($LH$1=1,Raw_Data!TK2,IF($LH$1=2,Raw_Data!AND2,Raw_Data!BHD2)) -> 0 | AAM3: =IF($LH$1=1,Raw_Data!TL2,IF($LH$1=2,Raw_Data!ANE2,Raw_Data!BHE2)) -> 0 | AAN3: =IF($LH$1=1,Raw_Data!TM2,IF($LH$1=2,Raw_Data!ANF2,Raw_Data!BHF2)) -> 0 | AAO3: =IF($LH$1=1,Raw_Data!TN2,IF($LH$1=2,Raw_Data!ANG2,Raw_Data!BHG2)) -> 0 | AAP3: =IF($LH$1=1,Raw_Data!TO2,IF($LH$1=2,Raw_Data!ANH2,Raw_Data!BHH2)) -> 0 | AAQ3: =IF($LH$1=1,Raw_Data!TP2,IF($LH$1=2,Raw_Data!ANI2,Raw_Data!BHI2)) -> 0 | AAR3: =IF($LH$1=1,Raw_Data!TQ2,IF($LH$1=2,Raw_Data!ANJ2,Raw_Data!BHJ2)) -> 0 | AAS3: =IF($LH$1=1,Raw_Data!TR2,IF($LH$1=2,Raw_Data!ANK2,Raw_Data!BHK2)) -> 0 | AAT3: =IF($LH$1=1,Raw_Data!TS2,IF($LH$1=2,Raw_Data!ANL2,Raw_Data!BHL2)) -> 0 | AAU3: =IF($LH$1=1,Raw_Data!TT2,IF($LH$1=2,Raw_Data!ANM2,Raw_Data!BHM2)) -> 0 | AAV3: =IF($LH$1=1,Raw_Data!TU2,IF($LH$1=2,Raw_Data!ANN2,Raw_Data!BHN2)) -> 0 | AAW3: =IF($LH$1=1,Raw_Data!TV2,IF($LH$1=2,Raw_Data!ANO2,Raw_Data!BHO2)) -> 0 | AAX3: =IF($LH$1=1,Raw_Data!TW2,IF($LH$1=2,Raw_Data!ANP2,Raw_Data!BHP2)) -> 0 | AAY3: =IF($LH$1=1,Raw_Data!TX2,IF($LH$1=2,Raw_Data!ANQ2,Raw_Data!BHQ2)) -> 0 | AAZ3: =IF($LH$1=1,Raw_Data!TY2,IF($LH$1=2,Raw_Data!ANR2,Raw_Data!BHR2)) -> 0 | ABA3: =IF($LH$1=1,Raw_Data!TZ2,IF($LH$1=2,Raw_Data!ANS2,Raw_Data!BHS2)) -> 0 | ABB3: =IF($LH$1=1,Raw_Data!UA2,IF($LH$1=2,Raw_Data!ANT2,Raw_Data!BHT2)) -> 0 | ABC3: =IF($LH$1=1,Raw_Data!UB2,IF($LH$1=2,Raw_Data!ANU2,Raw_Data!BHU2)) -> 0 | ABD3: =IF($LH$1=1,Raw_Data!UC2,IF($LH$1=2,Raw_Data!ANV2,Raw_Data!BHV2)) -> 0 | ABE3: =IF($LH$1=1,Raw_Data!UD2,IF($LH$1=2,Raw_Data!ANW2,Raw_Data!BHW2)) -> 0 | ABF3: =IF($LH$1=1,Raw_Data!UE2,IF($LH$1=2,Raw_Data!ANX2,Raw_Data!BHX2)) -> 0 | ABG3: =IF($LH$1=1,Raw_Data!UF2,IF($LH$1=2,Raw_Data!ANY2,Raw_Data!BHY2)) -> 0 | ABH3: =IF($LH$1=1,Raw_Data!UG2,IF($LH$1=2,Raw_Data!ANZ2,Raw_Data!BHZ2)) -> 0 | ABI3: =IF($LH$1=1,Raw_Data!UH2,IF($LH$1=2,Raw_Data!AOA2,Raw_Data!BIA2)) -> 0 | ABJ3: =IF($LH$1=1,Raw_Data!UI2,IF($LH$1=2,Raw_Data!AOB2,Raw_Data!BIB2)) -> 0 | ABK3: =IF($LH$1=1,Raw_Data!UJ2,IF($LH$1=2,Raw_Data!AOC2,Raw_Data!BIC2)) -> 0 | ABL3: =IF($LH$1=1,Raw_Data!UK2,IF($LH$1=2,Raw_Data!AOD2,Raw_Data!BID2)) -> 0 | ABM3: =IF($LH$1=1,Raw_Data!UL2,IF($LH$1=2,Raw_Data!AOE2,Raw_Data!BIE2)) -> 0 | ABN3: =IF($LH$1=1,Raw_Data!UM2,IF($LH$1=2,Raw_Data!AOF2,Raw_Data!BIF2)) -> 0 | ABO3: =IF($LH$1=1,Raw_Data!UN2,IF($LH$1=2,Raw_Data!AOG2,Raw_Data!BIG2)) -> 0 | ABP3: =IF($LH$1=1,Raw_Data!UO2,IF($LH$1=2,Raw_Data!AOH2,Raw_Data!BIH2)) -> 0 | ABQ3: =IF($LH$1=1,Raw_Data!UP2,IF($LH$1=2,Raw_Data!AOI2,Raw_Data!BII2)) -> 0 | ABR3: =IF($LH$1=1,Raw_Data!UQ2,IF($LH$1=2,Raw_Data!AOJ2,Raw_Data!BIJ2)) -> 0 | ABS3: =IF($LH$1=1,Raw_Data!UR2,IF($LH$1=2,Raw_Data!AOK2,Raw_Data!BIK2)) -> 0 | ABT3: =IF($LH$1=1,Raw_Data!US2,IF($LH$1=2,Raw_Data!AOL2,Raw_Data!BIL2)) -> 0 | ABU3: =IF($LH$1=1,Raw_Data!UT2,IF($LH$1=2,Raw_Data!AOM2,Raw_Data!BIM2)) -> 0 | ABV3: =IF($LH$1=1,Raw_Data!UU2,IF($LH$1=2,Raw_Data!AON2,Raw_Data!BIN2)) -> 0 | ABW3: =IF($LH$1=1,Raw_Data!UV2,IF($LH$1=2,Raw_Data!AOO2,Raw_Data!BIO2)) -> 0 | ABX3: =IF($LH$1=1,Raw_Data!UW2,IF($LH$1=2,Raw_Data!AOP2,Raw_Data!BIP2)) -> 0 | ABY3: =IF($LH$1=1,Raw_Data!UX2,IF($LH$1=2,Raw_Data!AOQ2,Raw_Data!BIQ2)) -> 0 | ABZ3: =IF($LH$1=1,Raw_Data!UY2,IF($LH$1=2,Raw_Data!AOR2,Raw_Data!BIR2)) -> 0 | ACA3: =IF($LH$1=1,Raw_Data!UZ2,IF($LH$1=2,Raw_Data!AOS2,Raw_Data!BIS2)) -> 0 | ACB3: =IF($LH$1=1,Raw_Data!VA2,IF($LH$1=2,Raw_Data!AOT2,Raw_Data!BIT2)) -> 0 | ACC3: =IF($LH$1=1,Raw_Data!VB2,IF($LH$1=2,Raw_Data!AOU2,Raw_Data!BIU2)) -> 0 | ACD3: =IF($LH$1=1,Raw_Data!VC2,IF($LH$1=2,Raw_Data!AOV2,Raw_Data!BIV2)) -> 0 | ACE3: =IF($LH$1=1,Raw_Data!VD2,IF($LH$1=2,Raw_Data!AOW2,Raw_Data!BIW2)) -> 0 | ACF3: =IF($LH$1=1,Raw_Data!VE2,IF($LH$1=2,Raw_Data!AOX2,Raw_Data!BIX2)) -> 0 | ACG3: =IF($LH$1=1,Raw_Data!VF2,IF($LH$1=2,Raw_Data!AOY2,Raw_Data!BIY2)) -> 0 | ACH3: =IF($LH$1=1,Raw_Data!VG2,IF($LH$1=2,Raw_Data!AOZ2,Raw_Data!BIZ2)) -> 0 | ACI3: =IF($LH$1=1,Raw_Data!VH2,IF($LH$1=2,Raw_Data!APA2,Raw_Data!BJA2)) -> 0 | ACJ3: =IF($LH$1=1,Raw_Data!VI2,IF($LH$1=2,Raw_Data!APB2,Raw_Data!BJB2)) -> 0 | ACK3: =IF($LH$1=1,Raw_Data!VJ2,IF($LH$1=2,Raw_Data!APC2,Raw_Data!BJC2)) -> 0 | ACL3: =IF($LH$1=1,Raw_Data!VK2,IF($LH$1=2,Raw_Data!APD2,Raw_Data!BJD2)) -> 0 | ACM3: =IF($LH$1=1,Raw_Data!VL2,IF($LH$1=2,Raw_Data!APE2,Raw_Data!BJE2)) -> 0 | ACN3: =IF($LH$1=1,Raw_Data!VM2,IF($LH$1=2,Raw_Data!APF2,Raw_Data!BJF2)) -> 0 | ACO3: =IF($LH$1=1,Raw_Data!VN2,IF($LH$1=2,Raw_Data!APG2,Raw_Data!BJG2)) -> 0 | ACP3: =IF($LH$1=1,Raw_Data!VO2,IF($LH$1=2,Raw_Data!APH2,Raw_Data!BJH2)) -> 0 | ACQ3: =IF($LH$1=1,Raw_Data!VP2,IF($LH$1=2,Raw_Data!API2,Raw_Data!BJI2)) -> 0 | ACR3: =IF($LH$1=1,Raw_Data!VQ2,IF($LH$1=2,Raw_Data!APJ2,Raw_Data!BJJ2)) -> 0 | ACS3: =IF($LH$1=1,Raw_Data!VR2,IF($LH$1=2,Raw_Data!APK2,Raw_Data!BJK2)) -> 0 | ACT3: =IF($LH$1=1,Raw_Data!VS2,IF($LH$1=2,Raw_Data!APL2,Raw_Data!BJL2)) -> 0 | ACU3: =IF($LH$1=1,Raw_Data!VT2,IF($LH$1=2,Raw_Data!APM2,Raw_Data!BJM2)) -> 0 | ACV3: =IF($LH$1=1,Raw_Data!VU2,IF($LH$1=2,Raw_Data!APN2,Raw_Data!BJN2)) -> 0 | ACW3: =IF($LH$1=1,Raw_Data!VV2,IF($LH$1=2,Raw_Data!APO2,Raw_Data!BJO2)) -> 0 | ACX3: =IF($LH$1=1,Raw_Data!VW2,IF($LH$1=2,Raw_Data!APP2,Raw_Data!BJP2)) -> 0 | ACY3: =IF($LH$1=1,Raw_Data!VX2,IF($LH$1=2,Raw_Data!APQ2,Raw_Data!BJQ2)) -> 0 | ACZ3: =IF($LH$1=1,Raw_Data!VY2,IF($LH$1=2,Raw_Data!APR2,Raw_Data!BJR2)) -> 0 | ADA3: =IF($LH$1=1,Raw_Data!VZ2,IF($LH$1=2,Raw_Data!APS2,Raw_Data!BJS2)) -> 0 | ADB3: =IF($LH$1=1,Raw_Data!WA2,IF($LH$1=2,Raw_Data!APT2,Raw_Data!BJT2)) -> 0 | ADC3: =IF($LH$1=1,Raw_Data!WB2,IF($LH$1=2,Raw_Data!APU2,Raw_Data!BJU2)) -> 0 | ADD3: =IF($LH$1=1,Raw_Data!WC2,IF($LH$1=2,Raw_Data!APV2,Raw_Data!BJV2)) -> 0 | ADE3: =IF($LH$1=1,Raw_Data!WD2,IF($LH$1=2,Raw_Data!APW2,Raw_Data!BJW2)) -> 0 | ADF3: =IF($LH$1=1,Raw_Data!WE2,IF($LH$1=2,Raw_Data!APX2,Raw_Data!BJX2)) -> 0 | ADG3: =IF($LH$1=1,Raw_Data!WF2,IF($LH$1=2,Raw_Data!APY2,Raw_Data!BJY2)) -> 0 | ADH3: =IF($LH$1=1,Raw_Data!WG2,IF($LH$1=2,Raw_Data!APZ2,Raw_Data!BJZ2)) -> 0 | ADI3: =IF($LH$1=1,Raw_Data!WH2,IF($LH$1=2,Raw_Data!AQA2,Raw_Data!BKA2)) -> 0 | ADJ3: =IF($LH$1=1,Raw_Data!WI2,IF($LH$1=2,Raw_Data!AQB2,Raw_Data!BKB2)) -> 0 | ADK3: =IF($LH$1=1,Raw_Data!WJ2,IF($LH$1=2,Raw_Data!AQC2,Raw_Data!BKC2)) -> 0 | ADL3: =IF($LH$1=1,Raw_Data!WK2,IF($LH$1=2,Raw_Data!AQD2,Raw_Data!BKD2)) -> 0 | ADM3: =IF($LH$1=1,Raw_Data!WL2,IF($LH$1=2,Raw_Data!AQE2,Raw_Data!BKE2)) -> 0 | ADN3: =IF($LH$1=1,Raw_Data!WM2,IF($LH$1=2,Raw_Data!AQF2,Raw_Data!BKF2)) -> 0 | ADO3: =IF($LH$1=1,Raw_Data!WN2,IF($LH$1=2,Raw_Data!AQG2,Raw_Data!BKG2)) -> 0 | ADP3: =IF($LH$1=1,Raw_Data!WO2,IF($LH$1=2,Raw_Data!AQH2,Raw_Data!BKH2)) -> 0 | ADQ3: =IF($LH$1=1,Raw_Data!WP2,IF($LH$1=2,Raw_Data!AQI2,Raw_Data!BKI2)) -> 0 | ADR3: =IF($LH$1=1,Raw_Data!WQ2,IF($LH$1=2,Raw_Data!AQJ2,Raw_Data!BKJ2)) -> 0 | ADS3: =IF($LH$1=1,Raw_Data!WR2,IF($LH$1=2,Raw_Data!AQK2,Raw_Data!BKK2)) -> 0 | ADT3: =IF($LH$1=1,Raw_Data!WS2,IF($LH$1=2,Raw_Data!AQL2,Raw_Data!BKL2)) -> 0 | ADU3: =IF($LH$1=1,Raw_Data!WT2,IF($LH$1=2,Raw_Data!AQM2,Raw_Data!BKM2)) -> 0 | ADV3: =IF($LH$1=1,Raw_Data!WU2,IF($LH$1=2,Raw_Data!AQN2,Raw_Data!BKN2)) -> 0 | ADW3: =IF($LH$1=1,Raw_Data!WV2,IF($LH$1=2,Raw_Data!AQO2,Raw_Data!BKO2)) -> 0 | ADX3: =IF($LH$1=1,Raw_Data!WW2,IF($LH$1=2,Raw_Data!AQP2,Raw_Data!BKP2)) -> 0 | ADY3: =IF($LH$1=1,Raw_Data!WX2,IF($LH$1=2,Raw_Data!AQQ2,Raw_Data!BKQ2)) -> 0 | ADZ3: =IF($LH$1=1,Raw_Data!WY2,IF($LH$1=2,Raw_Data!AQR2,Raw_Data!BKR2)) -> 0 | AEA3: =IF($LH$1=1,Raw_Data!WZ2,IF($LH$1=2,Raw_Data!AQS2,Raw_Data!BKS2)) -> 0 | AEB3: =IF($LH$1=1,Raw_Data!XA2,IF($LH$1=2,Raw_Data!AQT2,Raw_Data!BKT2)) -> 0 | AEC3: =IF($LH$1=1,Raw_Data!XB2,IF($LH$1=2,Raw_Data!AQU2,Raw_Data!BKU2)) -> 0 | AED3: =IF($LH$1=1,Raw_Data!XC2,IF($LH$1=2,Raw_Data!AQV2,Raw_Data!BKV2)) -> 0 | AEE3: =IF($LH$1=1,Raw_Data!XD2,IF($LH$1=2,Raw_Data!AQW2,Raw_Data!BKW2)) -> 0 | AEF3: =IF($LH$1=1,Raw_Data!XE2,IF($LH$1=2,Raw_Data!AQX2,Raw_Data!BKX2)) -> 0 | AEG3: =IF($LH$1=1,Raw_Data!XF2,IF($LH$1=2,Raw_Data!AQY2,Raw_Data!BKY2)) -> 0 | AEH3: =IF($LH$1=1,Raw_Data!XG2,IF($LH$1=2,Raw_Data!AQZ2,Raw_Data!BKZ2)) -> 0 | AEI3: =IF($LH$1=1,Raw_Data!XH2,IF($LH$1=2,Raw_Data!ARA2,Raw_Data!BLA2)) -> 0 | AEJ3: =IF($LH$1=1,Raw_Data!XI2,IF($LH$1=2,Raw_Data!ARB2,Raw_Data!BLB2)) -> 0 | AEK3: =IF($LH$1=1,Raw_Data!XJ2,IF($LH$1=2,Raw_Data!ARC2,Raw_Data!BLC2)) -> 0 | AEL3: =IF($LH$1=1,Raw_Data!XK2,IF($LH$1=2,Raw_Data!ARD2,Raw_Data!BLD2)) -> 0 | AEM3: =IF($LH$1=1,Raw_Data!XL2,IF($LH$1=2,Raw_Data!ARE2,Raw_Data!BLE2)) -> 0 | AEN3: =IF($LH$1=1,Raw_Data!XM2,IF($LH$1=2,Raw_Data!ARF2,Raw_Data!BLF2)) -> 0 | AEO3: =IF($LH$1=1,Raw_Data!XN2,IF($LH$1=2,Raw_Data!ARG2,Raw_Data!BLG2)) -> 0 | AEP3: =IF($LH$1=1,Raw_Data!XO2,IF($LH$1=2,Raw_Data!ARH2,Raw_Data!BLH2)) -> 0 | AEQ3: =IF($LH$1=1,Raw_Data!XP2,IF($LH$1=2,Raw_Data!ARI2,Raw_Data!BLI2)) -> 0 | AER3: =IF($LH$1=1,Raw_Data!XQ2,IF($LH$1=2,Raw_Data!ARJ2,Raw_Data!BLJ2)) -> 0
AA4: Alt | AB4: 1 | AC4: 2 | AD4: 3 | AE4: 4 | AF4: 5 | AG4: 6 | AH4: 7 | AI4: 8 | AJ4: 9 | AK4: 10 | AL4: 11 | AM4: 12 | AN4: 13 | AO4: 14 | AP4: 15 | AQ4: 16 | AR4: 17 | AS4: 18 | AT4: 19 | AU4: 20 | AV4: 21 | AW4: 22 | AX4: 23 | AY4: 24 | AZ4: 25 | BA4: 26 | BB4: 27 | BC4: 28 | BD4: 29 | BE4: 30 | BF4: 31 | BG4: 32 | BH4: 33 | BI4: 34 | BJ4: 35 | BK4: 36 | BL4: 37 | BM4: 38 | BN4: 39 | BO4: 40 | BW4: Alt | BX4: 1 | BY4: 2 | BZ4: 3 | CA4: 4 | CB4: 5 | CC4: 6 | CD4: 7 | CE4: 8 | CF4: 9 | CG4: 10 | CH4: 11 | CI4: 12 | CJ4: 13 | CK4: 14 | CL4: 15 | CM4: 16 | CN4: 17 | CO4: 18 | CP4: 19 | CQ4: 20 | CR4: 21 | CS4: 22 | CT4: 23 | CU4: 24 | CV4: 25 | CW4: 26 | CX4: 27 | CY4: 28 | CZ4: 29 | DA4: 30 | DB4: 31 | DC4: 32 | DD4: 33 | DE4: 34 | DF4: 35 | DG4: 36 | DH4: 37 | DI4: 38 | DJ4: 39 | DK4: 40 | KR4: mean | KS4: STD | KX4: 4 | LA4: 4 | LB4: 0.3 | LK4: comparative case is calculated below on row 160
X5: current column | Y5: 9 | AA5: 1 | AB5: =IF($Y$11=1,IF($Y$12=2,Raw_Data!C5,IF($Y$12=1,Raw_Data!AW5,Raw_Data!AW170)),IF(Raw_Data!AW5<=Raw_Data!AW170,Raw_Data!C5,IF(AB$156=FALSE,IF(Raw_Data!AW330<(Raw_Data!C5-Raw_Data!AW170)/(Raw_Data!AW5-Raw_Data!AW170),Raw_Data!AW170+SQRT(Raw_Data!AW330*(Raw_Data!AW5-Raw_Data!AW170)*(Raw_Data!C5-Raw_Data!AW170)),Raw_Data!AW5-SQRT((1-Raw_Data!AW330)*(Raw_Data!AW5-Raw_Data!AW170)*(Raw_Data!AW5-Raw_Data!C5))),NORMINV(Raw_Data!AW330,$KR5,$KS5)))) -> 0.6 | AC5: =IF($Y$11=1,IF($Y$12=2,Raw_Data!D5,IF($Y$12=1,Raw_Data!AX5,Raw_Data!AX170)),IF(Raw_Data!AX5<=Raw_Data!AX170,Raw_Data!D5,IF(AC$156=FALSE,IF(Raw_Data!AX330<(Raw_Data!D5-Raw_Data!AX170)/(Raw_Data!AX5-Raw_Data!AX170),Raw_Data!AX170+SQRT(Raw_Data!AX330*(Raw_Data!AX5-Raw_Data!AX170)*(Raw_Data!D5-Raw_Data!AX170)),Raw_Data!AX5-SQRT((1-Raw_Data!AX330)*(Raw_Data!AX5-Raw_Data!AX170)*(Raw_Data!AX5-Raw_Data!D5))),NORMINV(Raw_Data!AX330,$KR5,$KS5)))) -> 0.6 | AD5: =IF($Y$11=1,IF($Y$12=2,Raw_Data!E5,IF($Y$12=1,Raw_Data!AY5,Raw_Data!AY170)),IF(Raw_Data!AY5<=Raw_Data!AY170,Raw_Data!E5,IF(AD$156=FALSE,IF(Raw_Data!AY330<(Raw_Data!E5-Raw_Data!AY170)/(Raw_Data!AY5-Raw_Data!AY170),Raw_Data!AY170+SQRT(Raw_Data!AY330*(Raw_Data!AY5-Raw_Data!AY170)*(Raw_Data!E5-Raw_Data!AY170)),Raw_Data!AY5-SQRT((1-Raw_Data!AY330)*(Raw_Data!AY5-Raw_Data!AY170)*(Raw_Data!AY5-Raw_Data!E5))),NORMINV(Raw_Data!AY330,$KR5,$KS5)))) -> 1 | AE5: =IF($Y$11=1,IF($Y$12=2,Raw_Data!F5,IF($Y$12=1,Raw_Data!AZ5,Raw_Data!AZ170)),IF(Raw_Data!AZ5<=Raw_Data!AZ170,Raw_Data!F5,IF(AE$156=FALSE,IF(Raw_Data!AZ330<(Raw_Data!F5-Raw_Data!AZ170)/(Raw_Data!AZ5-Raw_Data!AZ170),Raw_Data!AZ170+SQRT(Raw_Data!AZ330*(Raw_Data!AZ5-Raw_Data!AZ170)*(Raw_Data!F5-Raw_Data!AZ170)),Raw_Data!AZ5-SQRT((1-Raw_Data!AZ330)*(Raw_Data!AZ5-Raw_Data!AZ170)*(Raw_Data!AZ5-Raw_Data!F5))),NORMINV(Raw_Data!AZ330,$KR5,$KS5)))) -> 0.6 | AF5: =IF($Y$11=1,IF($Y$12=2,Raw_Data!G5,IF($Y$12=1,Raw_Data!BA5,Raw_Data!BA170)),IF(Raw_Data!BA5<=Raw_Data!BA170,Raw_Data!G5,IF(AF$156=FALSE,IF(Raw_Data!BA330<(Raw_Data!G5-Raw_Data!BA170)/(Raw_Data!BA5-Raw_Data!BA170),Raw_Data!BA170+SQRT(Raw_Data!BA330*(Raw_Data!BA5-Raw_Data!BA170)*(Raw_Data!G5-Raw_Data!BA170)),Raw_Data!BA5-SQRT((1-Raw_Data!BA330)*(Raw_Data!BA5-Raw_Data!BA170)*(Raw_Data!BA5-Raw_Data!G5))),NORMINV(Raw_Data!BA330,$KR5,$KS5)))) -> 0 | AG5: =IF($Y$11=1,IF($Y$12=2,Raw_Data!H5,IF($Y$12=1,Raw_Data!BB5,Raw_Data!BB170)),IF(Raw_Data!BB5<=Raw_Data!BB170,Raw_Data!H5,IF(AG$156=FALSE,IF(Raw_Data!BB330<(Raw_Data!H5-Raw_Data!BB170)/(Raw_Data!BB5-Raw_Data!BB170),Raw_Data!BB170+SQRT(Raw_Data!BB330*(Raw_Data!BB5-Raw_Data!BB170)*(Raw_Data!H5-Raw_Data!BB170)),Raw_Data!BB5-SQRT((1-Raw_Data!BB330)*(Raw_Data!BB5-Raw_Data!BB170)*(Raw_Data!BB5-Raw_Data!H5))),NORMINV(Raw_Data!BB330,$KR5,$KS5)))) -> 0 | AH5: =IF($Y$11=1,IF($Y$12=2,Raw_Data!I5,IF($Y$12=1,Raw_Data!BC5,Raw_Data!BC170)),IF(Raw_Data!BC5<=Raw_Data!BC170,Raw_Data!I5,IF(AH$156=FALSE,IF(Raw_Data!BC330<(Raw_Data!I5-Raw_Data!BC170)/(Raw_Data!BC5-Raw_Data!BC170),Raw_Data!BC170+SQRT(Raw_Data!BC330*(Raw_Data!BC5-Raw_Data!BC170)*(Raw_Data!I5-Raw_Data!BC170)),Raw_Data!BC5-SQRT((1-Raw_Data!BC330)*(Raw_Data!BC5-Raw_Data!BC170)*(Raw_Data!BC5-Raw_Data!I5))),NORMINV(Raw_Data!BC330,$KR5,$KS5)))) -> 0.6 | AI5: =IF($Y$11=1,IF($Y$12=2,Raw_Data!J5,IF($Y$12=1,Raw_Data!BD5,Raw_Data!BD170)),IF(Raw_Data!BD5<=Raw_Data!BD170,Raw_Data!J5,IF(AI$156=FALSE,IF(Raw_Data!BD330<(Raw_Data!J5-Raw_Data!BD170)/(Raw_Data!BD5-Raw_Data!BD170),Raw_Data!BD170+SQRT(Raw_Data!BD330*(Raw_Data!BD5-Raw_Data!BD170)*(Raw_Data!J5-Raw_Data!BD170)),Raw_Data!BD5-SQRT((1-Raw_Data!BD330)*(Raw_Data!BD5-Raw_Data!BD170)*(Raw_Data!BD5-Raw_Data!J5))),NORMINV(Raw_Data!BD330,$KR5,$KS5)))) -> 0 | AJ5: =IF($Y$11=1,IF($Y$12=2,Raw_Data!K5,IF($Y$12=1,Raw_Data!BE5,Raw_Data!BE170)),IF(Raw_Data!BE5<=Raw_Data!BE170,Raw_Data!K5,IF(AJ$156=FALSE,IF(Raw_Data!BE330<(Raw_Data!K5-Raw_Data!BE170)/(Raw_Data!BE5-Raw_Data!BE170),Raw_Data!BE170+SQRT(Raw_Data!BE330*(Raw_Data!BE5-Raw_Data!BE170)*(Raw_Data!K5-Raw_Data!BE170)),Raw_Data!BE5-SQRT((1-Raw_Data!BE330)*(Raw_Data!BE5-Raw_Data!BE170)*(Raw_Data!BE5-Raw_Data!K5))),NORMINV(Raw_Data!BE330,$KR5,$KS5)))) -> 0 | AK5: =IF($Y$11=1,IF($Y$12=2,Raw_Data!L5,IF($Y$12=1,Raw_Data!BF5,Raw_Data!BF170)),IF(Raw_Data!BF5<=Raw_Data!BF170,Raw_Data!L5,IF(AK$156=FALSE,IF(Raw_Data!BF330<(Raw_Data!L5-Raw_Data!BF170)/(Raw_Data!BF5-Raw_Data!BF170),Raw_Data!BF170+SQRT(Raw_Data!BF330*(Raw_Data!BF5-Raw_Data!BF170)*(Raw_Data!L5-Raw_Data!BF170)),Raw_Data!BF5-SQRT((1-Raw_Data!BF330)*(Raw_Data!BF5-Raw_Data!BF170)*(Raw_Data!BF5-Raw_Data!L5))),NORMINV(Raw_Data!BF330,$KR5,$KS5)))) -> 0.6 | AL5: =IF($Y$11=1,IF($Y$12=2,Raw_Data!M5,IF($Y$12=1,Raw_Data!BG5,Raw_Data!BG170)),IF(Raw_Data!BG5<=Raw_Data!BG170,Raw_Data!M5,IF(AL$156=FALSE,IF(Raw_Data!BG330<(Raw_Data!M5-Raw_Data!BG170)/(Raw_Data!BG5-Raw_Data!BG170),Raw_Data!BG170+SQRT(Raw_Data!BG330*(Raw_Data!BG5-Raw_Data!BG170)*(Raw_Data!M5-Raw_Data!BG170)),Raw_Data!BG5-SQRT((1-Raw_Data!BG330)*(Raw_Data!BG5-Raw_Data!BG170)*(Raw_Data!BG5-Raw_Data!M5))),NORMINV(Raw_Data!BG330,$KR5,$KS5)))) -> 0.3 | AM5: =IF($Y$11=1,IF($Y$12=2,Raw_Data!N5,IF($Y$12=1,Raw_Data!BH5,Raw_Data!BH170)),IF(Raw_Data!BH5<=Raw_Data!BH170,Raw_Data!N5,IF(AM$156=FALSE,IF(Raw_Data!BH330<(Raw_Data!N5-Raw_Data!BH170)/(Raw_Data!BH5-Raw_Data!BH170),Raw_Data!BH170+SQRT(Raw_Data!BH330*(Raw_Data!BH5-Raw_Data!BH170)*(Raw_Data!N5-Raw_Data!BH170)),Raw_Data!BH5-SQRT((1-Raw_Data!BH330)*(Raw_Data!BH5-Raw_Data!BH170)*(Raw_Data!BH5-Raw_Data!N5))),NORMINV(Raw_Data!BH330,$KR5,$KS5)))) -> 0.15 | AN5: =IF($Y$11=1,IF($Y$12=2,Raw_Data!O5,IF($Y$12=1,Raw_Data!BI5,Raw_Data!BI170)),IF(Raw_Data!BI5<=Raw_Data!BI170,Raw_Data!O5,IF(AN$156=FALSE,IF(Raw_Data!BI330<(Raw_Data!O5-Raw_Data!BI170)/(Raw_Data!BI5-Raw_Data!BI170),Raw_Data!BI170+SQRT(Raw_Data!BI330*(Raw_Data!BI5-Raw_Data!BI170)*(Raw_Data!O5-Raw_Data!BI170)),Raw_Data!BI5-SQRT((1-Raw_Data!BI330)*(Raw_Data!BI5-Raw_Data!BI170)*(Raw_Data!BI5-Raw_Data!O5))),NORMINV(Raw_Data!BI330,$KR5,$KS5)))) -> 22500 | AO5: =IF($Y$11=1,IF($Y$12=2,Raw_Data!P5,IF($Y$12=1,Raw_Data!BJ5,Raw_Data!BJ170)),IF(Raw_Data!BJ5<=Raw_Data!BJ170,Raw_Data!P5,IF(AO$156=FALSE,IF(Raw_Data!BJ330<(Raw_Data!P5-Raw_Data!BJ170)/(Raw_Data!BJ5-Raw_Data!BJ170),Raw_Data!BJ170+SQRT(Raw_Data!BJ330*(Raw_Data!BJ5-Raw_Data!BJ170)*(Raw_Data!P5-Raw_Data!BJ170)),Raw_Data!BJ5-SQRT((1-Raw_Data!BJ330)*(Raw_Data!BJ5-Raw_Data!BJ170)*(Raw_Data!BJ5-Raw_Data!P5))),NORMINV(Raw_Data!BJ330,$KR5,$KS5)))) -> 45 | AP5: =IF($Y$11=1,IF($Y$12=2,Raw_Data!Q5,IF($Y$12=1,Raw_Data!BK5,Raw_Data!BK170)),IF(Raw_Data!BK5<=Raw_Data!BK170,Raw_Data!Q5,IF(AP$156=FALSE,IF(Raw_Data!BK330<(Raw_Data!Q5-Raw_Data!BK170)/(Raw_Data!BK5-Raw_Data!BK170),Raw_Data!BK170+SQRT(Raw_Data!BK330*(Raw_Data!BK5-Raw_Data!BK170)*(Raw_Data!Q5-Raw_Data!BK170)),Raw_Data!BK5-SQRT((1-Raw_Data!BK330)*(Raw_Data!BK5-Raw_Data!BK170)*(Raw_Data!BK5-Raw_Data!Q5))),NORMINV(Raw_Data!BK330,$KR5,$KS5)))) -> 2.75 | AQ5: =IF($Y$11=1,IF($Y$12=2,Raw_Data!R5,IF($Y$12=1,Raw_Data!BL5,Raw_Data!BL170)),IF(Raw_Data!BL5<=Raw_Data!BL170,Raw_Data!R5,IF(AQ$156=FALSE,IF(Raw_Data!BL330<(Raw_Data!R5-Raw_Data!BL170)/(Raw_Data!BL5-Raw_Data!BL170),Raw_Data!BL170+SQRT(Raw_Data!BL330*(Raw_Data!BL5-Raw_Data!BL170)*(Raw_Data!R5-Raw_Data!BL170)),Raw_Data!BL5-SQRT((1-Raw_Data!BL330)*(Raw_Data!BL5-Raw_Data!BL170)*(Raw_Data!BL5-Raw_Data!R5))),NORMINV(Raw_Data!BL330,$KR5,$KS5)))) -> 24 | AR5: =IF($Y$11=1,IF($Y$12=2,Raw_Data!S5,IF($Y$12=1,Raw_Data!BM5,Raw_Data!BM170)),IF(Raw_Data!BM5<=Raw_Data!BM170,Raw_Data!S5,IF(AR$156=FALSE,IF(Raw_Data!BM330<(Raw_Data!S5-Raw_Data!BM170)/(Raw_Data!BM5-Raw_Data!BM170),Raw_Data!BM170+SQRT(Raw_Data!BM330*(Raw_Data!BM5-Raw_Data!BM170)*(Raw_Data!S5-Raw_Data!BM170)),Raw_Data!BM5-SQRT((1-Raw_Data!BM330)*(Raw_Data!BM5-Raw_Data!BM170)*(Raw_Data!BM5-Raw_Data!S5))),NORMINV(Raw_Data!BM330,$KR5,$KS5)))) -> 1.375 | AS5: =IF($Y$11=1,IF($Y$12=2,Raw_Data!T5,IF($Y$12=1,Raw_Data!BN5,Raw_Data!BN170)),IF(Raw_Data!BN5<=Raw_Data!BN170,Raw_Data!T5,IF(AS$156=FALSE,IF(Raw_Data!BN330<(Raw_Data!T5-Raw_Data!BN170)/(Raw_Data!BN5-Raw_Data!BN170),Raw_Data!BN170+SQRT(Raw_Data!BN330*(Raw_Data!BN5-Raw_Data!BN170)*(Raw_Data!T5-Raw_Data!BN170)),Raw_Data!BN5-SQRT((1-Raw_Data!BN330)*(Raw_Data!BN5-Raw_Data!BN170)*(Raw_Data!BN5-Raw_Data!T5))),NORMINV(Raw_Data!BN330,$KR5,$KS5)))) -> 0.00165 | AT5: =IF($Y$11=1,IF($Y$12=2,Raw_Data!U5,IF($Y$12=1,Raw_Data!BO5,Raw_Data!BO170)),IF(Raw_Data!BO5<=Raw_Data!BO170,Raw_Data!U5,IF(AT$156=FALSE,IF(Raw_Data!BO330<(Raw_Data!U5-Raw_Data!BO170)/(Raw_Data!BO5-Raw_Data!BO170),Raw_Data!BO170+SQRT(Raw_Data!BO330*(Raw_Data!BO5-Raw_Data!BO170)*(Raw_Data!U5-Raw_Data!BO170)),Raw_Data!BO5-SQRT((1-Raw_Data!BO330)*(Raw_Data!BO5-Raw_Data!BO170)*(Raw_Data!BO5-Raw_Data!U5))),NORMINV(Raw_Data!BO330,$KR5,$KS5)))) -> 160 | AU5: =IF($Y$11=1,IF($Y$12=2,Raw_Data!V5,IF($Y$12=1,Raw_Data!BP5,Raw_Data!BP170)),IF(Raw_Data!BP5<=Raw_Data!BP170,Raw_Data!V5,IF(AU$156=FALSE,IF(Raw_Data!BP330<(Raw_Data!V5-Raw_Data!BP170)/(Raw_Data!BP5-Raw_Data!BP170),Raw_Data!BP170+SQRT(Raw_Data!BP330*(Raw_Data!BP5-Raw_Data!BP170)*(Raw_Data!V5-Raw_Data!BP170)),Raw_Data!BP5-SQRT((1-Raw_Data!BP330)*(Raw_Data!BP5-Raw_Data!BP170)*(Raw_Data!BP5-Raw_Data!V5))),NORMINV(Raw_Data!BP330,$KR5,$KS5)))) -> 443 | AV5: =IF($Y$11=1,IF($Y$12=2,Raw_Data!W5,IF($Y$12=1,Raw_Data!BQ5,Raw_Data!BQ170)),IF(Raw_Data!BQ5<=Raw_Data!BQ170,Raw_Data!W5,IF(AV$156=FALSE,IF(Raw_Data!BQ330<(Raw_Data!W5-Raw_Data!BQ170)/(Raw_Data!BQ5-Raw_Data!BQ170),Raw_Data!BQ170+SQRT(Raw_Data!BQ330*(Raw_Data!BQ5-Raw_Data!BQ170)*(Raw_Data!W5-Raw_Data!BQ170)),Raw_Data!BQ5-SQRT((1-Raw_Data!BQ330)*(Raw_Data!BQ5-Raw_Data!BQ170)*(Raw_Data!BQ5-Raw_Data!W5))),NORMINV(Raw_Data!BQ330,$KR5,$KS5)))) -> 2.5 | AW5: =IF($Y$11=1,IF($Y$12=2,Raw_Data!X5,IF($Y$12=1,Raw_Data!BR5,Raw_Data!BR170)),IF(Raw_Data!BR5<=Raw_Data!BR170,Raw_Data!X5,IF(AW$156=FALSE,IF(Raw_Data!BR330<(Raw_Data!X5-Raw_Data!BR170)/(Raw_Data!BR5-Raw_Data!BR170),Raw_Data!BR170+SQRT(Raw_Data!BR330*(Raw_Data!BR5-Raw_Data!BR170)*(Raw_Data!X5-Raw_Data!BR170)),Raw_Data!BR5-SQRT((1-Raw_Data!BR330)*(Raw_Data!BR5-Raw_Data!BR170)*(Raw_Data!BR5-Raw_Data!X5))),NORMINV(Raw_Data!BR330,$KR5,$KS5)))) -> 2.5 | AX5: =IF($Y$11=1,IF($Y$12=2,Raw_Data!Y5,IF($Y$12=1,Raw_Data!BS5,Raw_Data!BS170)),IF(Raw_Data!BS5<=Raw_Data!BS170,Raw_Data!Y5,IF(AX$156=FALSE,IF(Raw_Data!BS330<(Raw_Data!Y5-Raw_Data!BS170)/(Raw_Data!BS5-Raw_Data!BS170),Raw_Data!BS170+SQRT(Raw_Data!BS330*(Raw_Data!BS5-Raw_Data!BS170)*(Raw_Data!Y5-Raw_Data!BS170)),Raw_Data!BS5-SQRT((1-Raw_Data!BS330)*(Raw_Data!BS5-Raw_Data!BS170)*(Raw_Data!BS5-Raw_Data!Y5))),NORMINV(Raw_Data!BS330,$KR5,$KS5)))) -> 21 | AY5: =IF($Y$11=1,IF($Y$12=2,Raw_Data!Z5,IF($Y$12=1,Raw_Data!BT5,Raw_Data!BT170)),IF(Raw_Data!BT5<=Raw_Data!BT170,Raw_Data!Z5,IF(AY$156=FALSE,IF(Raw_Data!BT330<(Raw_Data!Z5-Raw_Data!BT170)/(Raw_Data!BT5-Raw_Data!BT170),Raw_Data!BT170+SQRT(Raw_Data!BT330*(Raw_Data!BT5-Raw_Data!BT170)*(Raw_Data!Z5-Raw_Data!BT170)),Raw_Data!BT5-SQRT((1-Raw_Data!BT330)*(Raw_Data!BT5-Raw_Data!BT170)*(Raw_Data!BT5-Raw_Data!Z5))),NORMINV(Raw_Data!BT330,$KR5,$KS5)))) -> 200 | AZ5: =IF($Y$11=1,IF($Y$12=2,Raw_Data!AA5,IF($Y$12=1,Raw_Data!BU5,Raw_Data!BU170)),IF(Raw_Data!BU5<=Raw_Data!BU170,Raw_Data!AA5,IF(AZ$156=FALSE,IF(Raw_Data!BU330<(Raw_Data!AA5-Raw_Data!BU170)/(Raw_Data!BU5-Raw_Data!BU170),Raw_Data!BU170+SQRT(Raw_Data!BU330*(Raw_Data!BU5-Raw_Data!BU170)*(Raw_Data!AA5-Raw_Data!BU170)),Raw_Data!BU5-SQRT((1-Raw_Data!BU330)*(Raw_Data!BU5-Raw_Data!BU170)*(Raw_Data!BU5-Raw_Data!AA5))),NORMINV(Raw_Data!BU330,$KR5,$KS5)))) -> 1.9 | BA5: =IF($Y$11=1,IF($Y$12=2,Raw_Data!AB5,IF($Y$12=1,Raw_Data!BV5,Raw_Data!BV170)),IF(Raw_Data!BV5<=Raw_Data!BV170,Raw_Data!AB5,IF(BA$156=FALSE,IF(Raw_Data!BV330<(Raw_Data!AB5-Raw_Data!BV170)/(Raw_Data!BV5-Raw_Data!BV170),Raw_Data!BV170+SQRT(Raw_Data!BV330*(Raw_Data!BV5-Raw_Data!BV170)*(Raw_Data!AB5-Raw_Data!BV170)),Raw_Data!BV5-SQRT((1-Raw_Data!BV330)*(Raw_Data!BV5-Raw_Data!BV170)*(Raw_Data!BV5-Raw_Data!AB5))),NORMINV(Raw_Data!BV330,$KR5,$KS5)))) -> 0 | BB5: =IF($Y$11=1,IF($Y$12=2,Raw_Data!AC5,IF($Y$12=1,Raw_Data!BW5,Raw_Data!BW170)),IF(Raw_Data!BW5<=Raw_Data!BW170,Raw_Data!AC5,IF(BB$156=FALSE,IF(Raw_Data!BW330<(Raw_Data!AC5-Raw_Data!BW170)/(Raw_Data!BW5-Raw_Data!BW170),Raw_Data!BW170+SQRT(Raw_Data!BW330*(Raw_Data!BW5-Raw_Data!BW170)*(Raw_Data!AC5-Raw_Data!BW170)),Raw_Data!BW5-SQRT((1-Raw_Data!BW330)*(Raw_Data!BW5-Raw_Data!BW170)*(Raw_Data!BW5-Raw_Data!AC5))),NORMINV(Raw_Data!BW330,$KR5,$KS5)))) -> 0 | BC5: =IF($Y$11=1,IF($Y$12=2,Raw_Data!AD5,IF($Y$12=1,Raw_Data!BX5,Raw_Data!BX170)),IF(Raw_Data!BX5<=Raw_Data!BX170,Raw_Data!AD5,IF(BC$156=FALSE,IF(Raw_Data!BX330<(Raw_Data!AD5-Raw_Data!BX170)/(Raw_Data!BX5-Raw_Data!BX170),Raw_Data!BX170+SQRT(Raw_Data!BX330*(Raw_Data!BX5-Raw_Data!BX170)*(Raw_Data!AD5-Raw_Data!BX170)),Raw_Data!BX5-SQRT((1-Raw_Data!BX330)*(Raw_Data!BX5-Raw_Data!BX170)*(Raw_Data!BX5-Raw_Data!AD5))),NORMINV(Raw_Data!BX330,$KR5,$KS5)))) -> 0 | BD5: =IF($Y$11=1,IF($Y$12=2,Raw_Data!AE5,IF($Y$12=1,Raw_Data!BY5,Raw_Data!BY170)),IF(Raw_Data!BY5<=Raw_Data!BY170,Raw_Data!AE5,IF(BD$156=FALSE,IF(Raw_Data!BY330<(Raw_Data!AE5-Raw_Data!BY170)/(Raw_Data!BY5-Raw_Data!BY170),Raw_Data!BY170+SQRT(Raw_Data!BY330*(Raw_Data!BY5-Raw_Data!BY170)*(Raw_Data!AE5-Raw_Data!BY170)),Raw_Data!BY5-SQRT((1-Raw_Data!BY330)*(Raw_Data!BY5-Raw_Data!BY170)*(Raw_Data!BY5-Raw_Data!AE5))),NORMINV(Raw_Data!BY330,$KR5,$KS5)))) -> 0 | BE5: =IF($Y$11=1,IF($Y$12=2,Raw_Data!AF5,IF($Y$12=1,Raw_Data!BZ5,Raw_Data!BZ170)),IF(Raw_Data!BZ5<=Raw_Data!BZ170,Raw_Data!AF5,IF(BE$156=FALSE,IF(Raw_Data!BZ330<(Raw_Data!AF5-Raw_Data!BZ170)/(Raw_Data!BZ5-Raw_Data!BZ170),Raw_Data!BZ170+SQRT(Raw_Data!BZ330*(Raw_Data!BZ5-Raw_Data!BZ170)*(Raw_Data!AF5-Raw_Data!BZ170)),Raw_Data!BZ5-SQRT((1-Raw_Data!BZ330)*(Raw_Data!BZ5-Raw_Data!BZ170)*(Raw_Data!BZ5-Raw_Data!AF5))),NORMINV(Raw_Data!BZ330,$KR5,$KS5)))) -> 0 | BF5: =IF($Y$11=1,IF($Y$12=2,Raw_Data!AG5,IF($Y$12=1,Raw_Data!CA5,Raw_Data!CA170)),IF(Raw_Data!CA5<=Raw_Data!CA170,Raw_Data!AG5,IF(BF$156=FALSE,IF(Raw_Data!CA330<(Raw_Data!AG5-Raw_Data!CA170)/(Raw_Data!CA5-Raw_Data!CA170),Raw_Data!CA170+SQRT(Raw_Data!CA330*(Raw_Data!CA5-Raw_Data!CA170)*(Raw_Data!AG5-Raw_Data!CA170)),Raw_Data!CA5-SQRT((1-Raw_Data!CA330)*(Raw_Data!CA5-Raw_Data!CA170)*(Raw_Data!CA5-Raw_Data!AG5))),NORMINV(Raw_Data!CA330,$KR5,$KS5)))) -> 0 | BG5: =IF($Y$11=1,IF($Y$12=2,Raw_Data!AH5,IF($Y$12=1,Raw_Data!CB5,Raw_Data!CB170)),IF(Raw_Data!CB5<=Raw_Data!CB170,Raw_Data!AH5,IF(BG$156=FALSE,IF(Raw_Data!CB330<(Raw_Data!AH5-Raw_Data!CB170)/(Raw_Data!CB5-Raw_Data!CB170),Raw_Data!CB170+SQRT(Raw_Data!CB330*(Raw_Data!CB5-Raw_Data!CB170)*(Raw_Data!AH5-Raw_Data!CB170)),Raw_Data!CB5-SQRT((1-Raw_Data!CB330)*(Raw_Data!CB5-Raw_Data!CB170)*(Raw_Data!CB5-Raw_Data!AH5))),NORMINV(Raw_Data!CB330,$KR5,$KS5)))) -> 0 | BH5: =IF($Y$11=1,IF($Y$12=2,Raw_Data!AI5,IF($Y$12=1,Raw_Data!CC5,Raw_Data!CC170)),IF(Raw_Data!CC5<=Raw_Data!CC170,Raw_Data!AI5,IF(BH$156=FALSE,IF(Raw_Data!CC330<(Raw_Data!AI5-Raw_Data!CC170)/(Raw_Data!CC5-Raw_Data!CC170),Raw_Data!CC170+SQRT(Raw_Data!CC330*(Raw_Data!CC5-Raw_Data!CC170)*(Raw_Data!AI5-Raw_Data!CC170)),Raw_Data!CC5-SQRT((1-Raw_Data!CC330)*(Raw_Data!CC5-Raw_Data!CC170)*(Raw_Data!CC5-Raw_Data!AI5))),NORMINV(Raw_Data!CC330,$KR5,$KS5)))) -> 0 | BI5: =IF($Y$11=1,IF($Y$12=2,Raw_Data!AJ5,IF($Y$12=1,Raw_Data!CD5,Raw_Data!CD170)),IF(Raw_Data!CD5<=Raw_Data!CD170,Raw_Data!AJ5,IF(BI$156=FALSE,IF(Raw_Data!CD330<(Raw_Data!AJ5-Raw_Data!CD170)/(Raw_Data!CD5-Raw_Data!CD170),Raw_Data!CD170+SQRT(Raw_Data!CD330*(Raw_Data!CD5-Raw_Data!CD170)*(Raw_Data!AJ5-Raw_Data!CD170)),Raw_Data!CD5-SQRT((1-Raw_Data!CD330)*(Raw_Data!CD5-Raw_Data!CD170)*(Raw_Data!CD5-Raw_Data!AJ5))),NORMINV(Raw_Data!CD330,$KR5,$KS5)))) -> 0 | BJ5: =IF($Y$11=1,IF($Y$12=2,Raw_Data!AK5,IF($Y$12=1,Raw_Data!CE5,Raw_Data!CE170)),IF(Raw_Data!CE5<=Raw_Data!CE170,Raw_Data!AK5,IF(BJ$156=FALSE,IF(Raw_Data!CE330<(Raw_Data!AK5-Raw_Data!CE170)/(Raw_Data!CE5-Raw_Data!CE170),Raw_Data!CE170+SQRT(Raw_Data!CE330*(Raw_Data!CE5-Raw_Data!CE170)*(Raw_Data!AK5-Raw_Data!CE170)),Raw_Data!CE5-SQRT((1-Raw_Data!CE330)*(Raw_Data!CE5-Raw_Data!CE170)*(Raw_Data!CE5-Raw_Data!AK5))),NORMINV(Raw_Data!CE330,$KR5,$KS5)))) -> 0 | BK5: =IF($Y$11=1,IF($Y$12=2,Raw_Data!AL5,IF($Y$12=1,Raw_Data!CF5,Raw_Data!CF170)),IF(Raw_Data!CF5<=Raw_Data!CF170,Raw_Data!AL5,IF(BK$156=FALSE,IF(Raw_Data!CF330<(Raw_Data!AL5-Raw_Data!CF170)/(Raw_Data!CF5-Raw_Data!CF170),Raw_Data!CF170+SQRT(Raw_Data!CF330*(Raw_Data!CF5-Raw_Data!CF170)*(Raw_Data!AL5-Raw_Data!CF170)),Raw_Data!CF5-SQRT((1-Raw_Data!CF330)*(Raw_Data!CF5-Raw_Data!CF170)*(Raw_Data!CF5-Raw_Data!AL5))),NORMINV(Raw_Data!CF330,$KR5,$KS5)))) -> 0 | BL5: =IF($Y$11=1,IF($Y$12=2,Raw_Data!AM5,IF($Y$12=1,Raw_Data!CG5,Raw_Data!CG170)),IF(Raw_Data!CG5<=Raw_Data!CG170,Raw_Data!AM5,IF(BL$156=FALSE,IF(Raw_Data!CG330<(Raw_Data!AM5-Raw_Data!CG170)/(Raw_Data!CG5-Raw_Data!CG170),Raw_Data!CG170+SQRT(Raw_Data!CG330*(Raw_Data!CG5-Raw_Data!CG170)*(Raw_Data!AM5-Raw_Data!CG170)),Raw_Data!CG5-SQRT((1-Raw_Data!CG330)*(Raw_Data!CG5-Raw_Data!CG170)*(Raw_Data!CG5-Raw_Data!AM5))),NORMINV(Raw_Data!CG330,$KR5,$KS5)))) -> 0 | BM5: =IF($Y$11=1,IF($Y$12=2,Raw_Data!AN5,IF($Y$12=1,Raw_Data!CH5,Raw_Data!CH170)),IF(Raw_Data!CH5<=Raw_Data!CH170,Raw_Data!AN5,IF(BM$156=FALSE,IF(Raw_Data!CH330<(Raw_Data!AN5-Raw_Data!CH170)/(Raw_Data!CH5-Raw_Data!CH170),Raw_Data!CH170+SQRT(Raw_Data!CH330*(Raw_Data!CH5-Raw_Data!CH170)*(Raw_Data!AN5-Raw_Data!CH170)),Raw_Data!CH5-SQRT((1-Raw_Data!CH330)*(Raw_Data!CH5-Raw_Data!CH170)*(Raw_Data!CH5-Raw_Data!AN5))),NORMINV(Raw_Data!CH330,$KR5,$KS5)))) -> 0 | BN5: =IF($Y$11=1,IF($Y$12=2,Raw_Data!AO5,IF($Y$12=1,Raw_Data!CI5,Raw_Data!CI170)),IF(Raw_Data!CI5<=Raw_Data!CI170,Raw_Data!AO5,IF(BN$156=FALSE,IF(Raw_Data!CI330<(Raw_Data!AO5-Raw_Data!CI170)/(Raw_Data!CI5-Raw_Data!CI170),Raw_Data!CI170+SQRT(Raw_Data!CI330*(Raw_Data!CI5-Raw_Data!CI170)*(Raw_Data!AO5-Raw_Data!CI170)),Raw_Data!CI5-SQRT((1-Raw_Data!CI330)*(Raw_Data!CI5-Raw_Data!CI170)*(Raw_Data!CI5-Raw_Data!AO5))),NORMINV(Raw_Data!CI330,$KR5,$KS5)))) -> 0 | BO5: =IF($Y$11=1,IF($Y$12=2,Raw_Data!AP5,IF($Y$12=1,Raw_Data!CJ5,Raw_Data!CJ170)),IF(Raw_Data!CJ5<=Raw_Data!CJ170,Raw_Data!AP5,IF(BO$156=FALSE,IF(Raw_Data!CJ330<(Raw_Data!AP5-Raw_Data!CJ170)/(Raw_Data!CJ5-Raw_Data!CJ170),Raw_Data!CJ170+SQRT(Raw_Data!CJ330*(Raw_Data!CJ5-Raw_Data!CJ170)*(Raw_Data!AP5-Raw_Data!CJ170)),Raw_Data!CJ5-SQRT((1-Raw_Data!CJ330)*(Raw_Data!CJ5-Raw_Data!CJ170)*(Raw_Data!CJ5-Raw_Data!AP5))),NORMINV(Raw_Data!CJ330,$KR5,$KS5)))) -> 0 | BW5: 1 | BX5: 1 | BY5: 1 | BZ5: 1 | CA5: 1 | CB5: 1 | CC5: 1 | CD5: 1 | CE5: 1 | CF5: 1 | CG5: 1 | CH5: 0.75 | CI5: 0.93 | CJ5: 0.5 | CK5: 0.91 | CL5: 0.9 | CM5: 0.19 | CN5: 0.63 | CO5: 0.54 | CP5: 0.11 | CQ5: 0.5 | CR5: 0 | CS5: 0 | CT5: 0 | CU5: 0 | CV5: 1 | CW5: 0.5 | CX5: 1 | KR5: =IF($LH$1=1,Raw_Data!XT5,IF($LH$1=2,Raw_Data!ARM5,Raw_Data!BLM5)) -> 49.36638644 | KS5: =IF($LH$1=1,Raw_Data!XU5,IF($LH$1=2,Raw_Data!ARN5,Raw_Data!BLN5)) -> 5.552269245 | KX5: 5 | LA5: 5 | LB5: 0.4
X6: Polarity | Y6: 1 | AA6: 2 | AB6: =IF($Y$11=1,IF($Y$12=2,Raw_Data!C6,IF($Y$12=1,Raw_Data!AW6,Raw_Data!AW171)),IF(Raw_Data!AW6<=Raw_Data!AW171,Raw_Data!C6,IF(AB$156=FALSE,IF(Raw_Data!AW331<(Raw_Data!C6-Raw_Data!AW171)/(Raw_Data!AW6-Raw_Data!AW171),Raw_Data!AW171+SQRT(Raw_Data!AW331*(Raw_Data!AW6-Raw_Data!AW171)*(Raw_Data!C6-Raw_Data!AW171)),Raw_Data!AW6-SQRT((1-Raw_Data!AW331)*(Raw_Data!AW6-Raw_Data!AW171)*(Raw_Data!AW6-Raw_Data!C6))),NORMINV(Raw_Data!AW331,$KR6,$KS6)))) -> 0.3 | AC6: =IF($Y$11=1,IF($Y$12=2,Raw_Data!D6,IF($Y$12=1,Raw_Data!AX6,Raw_Data!AX171)),IF(Raw_Data!AX6<=Raw_Data!AX171,Raw_Data!D6,IF(AC$156=FALSE,IF(Raw_Data!AX331<(Raw_Data!D6-Raw_Data!AX171)/(Raw_Data!AX6-Raw_Data!AX171),Raw_Data!AX171+SQRT(Raw_Data!AX331*(Raw_Data!AX6-Raw_Data!AX171)*(Raw_Data!D6-Raw_Data!AX171)),Raw_Data!AX6-SQRT((1-Raw_Data!AX331)*(Raw_Data!AX6-Raw_Data!AX171)*(Raw_Data!AX6-Raw_Data!D6))),NORMINV(Raw_Data!AX331,$KR6,$KS6)))) -> 0.3 | AD6: =IF($Y$11=1,IF($Y$12=2,Raw_Data!E6,IF($Y$12=1,Raw_Data!AY6,Raw_Data!AY171)),IF(Raw_Data!AY6<=Raw_Data!AY171,Raw_Data!E6,IF(AD$156=FALSE,IF(Raw_Data!AY331<(Raw_Data!E6-Raw_Data!AY171)/(Raw_Data!AY6-Raw_Data!AY171),Raw_Data!AY171+SQRT(Raw_Data!AY331*(Raw_Data!AY6-Raw_Data!AY171)*(Raw_Data!E6-Raw_Data!AY171)),Raw_Data!AY6-SQRT((1-Raw_Data!AY331)*(Raw_Data!AY6-Raw_Data!AY171)*(Raw_Data!AY6-Raw_Data!E6))),NORMINV(Raw_Data!AY331,$KR6,$KS6)))) -> 0.9640888889 | AE6: =IF($Y$11=1,IF($Y$12=2,Raw_Data!F6,IF($Y$12=1,Raw_Data!AZ6,Raw_Data!AZ171)),IF(Raw_Data!AZ6<=Raw_Data!AZ171,Raw_Data!F6,IF(AE$156=FALSE,IF(Raw_Data!AZ331<(Raw_Data!F6-Raw_Data!AZ171)/(Raw_Data!AZ6-Raw_Data!AZ171),Raw_Data!AZ171+SQRT(Raw_Data!AZ331*(Raw_Data!AZ6-Raw_Data!AZ171)*(Raw_Data!F6-Raw_Data!AZ171)),Raw_Data!AZ6-SQRT((1-Raw_Data!AZ331)*(Raw_Data!AZ6-Raw_Data!AZ171)*(Raw_Data!AZ6-Raw_Data!F6))),NORMINV(Raw_Data!AZ331,$KR6,$KS6)))) -> 0.3 | AF6: =IF($Y$11=1,IF($Y$12=2,Raw_Data!G6,IF($Y$12=1,Raw_Data!BA6,Raw_Data!BA171)),IF(Raw_Data!BA6<=Raw_Data!BA171,Raw_Data!G6,IF(AF$156=FALSE,IF(Raw_Data!BA331<(Raw_Data!G6-Raw_Data!BA171)/(Raw_Data!BA6-Raw_Data!BA171),Raw_Data!BA171+SQRT(Raw_Data!BA331*(Raw_Data!BA6-Raw_Data!BA171)*(Raw_Data!G6-Raw_Data!BA171)),Raw_Data!BA6-SQRT((1-Raw_Data!BA331)*(Raw_Data!BA6-Raw_Data!BA171)*(Raw_Data!BA6-Raw_Data!G6))),NORMINV(Raw_Data!BA331,$KR6,$KS6)))) -> 0 | AG6: =IF($Y$11=1,IF($Y$12=2,Raw_Data!H6,IF($Y$12=1,Raw_Data!BB6,Raw_Data!BB171)),IF(Raw_Data!BB6<=Raw_Data!BB171,Raw_Data!H6,IF(AG$156=FALSE,IF(Raw_Data!BB331<(Raw_Data!H6-Raw_Data!BB171)/(Raw_Data!BB6-Raw_Data!BB171),Raw_Data!BB171+SQRT(Raw_Data!BB331*(Raw_Data!BB6-Raw_Data!BB171)*(Raw_Data!H6-Raw_Data!BB171)),Raw_Data!BB6-SQRT((1-Raw_Data!BB331)*(Raw_Data!BB6-Raw_Data!BB171)*(Raw_Data!BB6-Raw_Data!H6))),NORMINV(Raw_Data!BB331,$KR6,$KS6)))) -> 0 | AH6: =IF($Y$11=1,IF($Y$12=2,Raw_Data!I6,IF($Y$12=1,Raw_Data!BC6,Raw_Data!BC171)),IF(Raw_Data!BC6<=Raw_Data!BC171,Raw_Data!I6,IF(AH$156=FALSE,IF(Raw_Data!BC331<(Raw_Data!I6-Raw_Data!BC171)/(Raw_Data!BC6-Raw_Data!BC171),Raw_Data!BC171+SQRT(Raw_Data!BC331*(Raw_Data!BC6-Raw_Data!BC171)*(Raw_Data!I6-Raw_Data!BC171)),Raw_Data!BC6-SQRT((1-Raw_Data!BC331)*(Raw_Data!BC6-Raw_Data!BC171)*(Raw_Data!BC6-Raw_Data!I6))),NORMINV(Raw_Data!BC331,$KR6,$KS6)))) -> 0.3 | AI6: =IF($Y$11=1,IF($Y$12=2,Raw_Data!J6,IF($Y$12=1,Raw_Data!BD6,Raw_Data!BD171)),IF(Raw_Data!BD6<=Raw_Data!BD171,Raw_Data!J6,IF(AI$156=FALSE,IF(Raw_Data!BD331<(Raw_Data!J6-Raw_Data!BD171)/(Raw_Data!BD6-Raw_Data!BD171),Raw_Data!BD171+SQRT(Raw_Data!BD331*(Raw_Data!BD6-Raw_Data!BD171)*(Raw_Data!J6-Raw_Data!BD171)),Raw_Data!BD6-SQRT((1-Raw_Data!BD331)*(Raw_Data!BD6-Raw_Data!BD171)*(Raw_Data!BD6-Raw_Data!J6))),NORMINV(Raw_Data!BD331,$KR6,$KS6)))) -> 0 | AJ6: =IF($Y$11=1,IF($Y$12=2,Raw_Data!K6,IF($Y$12=1,Raw_Data!BE6,Raw_Data!BE171)),IF(Raw_Data!BE6<=Raw_Data!BE171,Raw_Data!K6,IF(AJ$156=FALSE,IF(Raw_Data!BE331<(Raw_Data!K6-Raw_Data!BE171)/(Raw_Data!BE6-Raw_Data!BE171),Raw_Data!BE171+SQRT(Raw_Data!BE331*(Raw_Data!BE6-Raw_Data!BE171)*(Raw_Data!K6-Raw_Data!BE171)),Raw_Data!BE6-SQRT((1-Raw_Data!BE331)*(Raw_Data!BE6-Raw_Data!BE171)*(Raw_Data!BE6-Raw_Data!K6))),NORMINV(Raw_Data!BE331,$KR6,$KS6)))) -> 0 | AK6: =IF($Y$11=1,IF($Y$12=2,Raw_Data!L6,IF($Y$12=1,Raw_Data!BF6,Raw_Data!BF171)),IF(Raw_Data!BF6<=Raw_Data!BF171,Raw_Data!L6,IF(AK$156=FALSE,IF(Raw_Data!BF331<(Raw_Data!L6-Raw_Data!BF171)/(Raw_Data!BF6-Raw_Data!BF171),Raw_Data!BF171+SQRT(Raw_Data!BF331*(Raw_Data!BF6-Raw_Data!BF171)*(Raw_Data!L6-Raw_Data!BF171)),Raw_Data!BF6-SQRT((1-Raw_Data!BF331)*(Raw_Data!BF6-Raw_Data!BF171)*(Raw_Data!BF6-Raw_Data!L6))),NORMINV(Raw_Data!BF331,$KR6,$KS6)))) -> 0.3 | AL6: =IF($Y$11=1,IF($Y$12=2,Raw_Data!M6,IF($Y$12=1,Raw_Data!BG6,Raw_Data!BG171)),IF(Raw_Data!BG6<=Raw_Data!BG171,Raw_Data!M6,IF(AL$156=FALSE,IF(Raw_Data!BG331<(Raw_Data!M6-Raw_Data!BG171)/(Raw_Data!BG6-Raw_Data!BG171),Raw_Data!BG171+SQRT(Raw_Data!BG331*(Raw_Data!BG6-Raw_Data!BG171)*(Raw_Data!M6-Raw_Data!BG171)),Raw_Data!BG6-SQRT((1-Raw_Data!BG331)*(Raw_Data!BG6-Raw_Data!BG171)*(Raw_Data!BG6-Raw_Data!M6))),NORMINV(Raw_Data!BG331,$KR6,$KS6)))) -> 0.3 | AM6: =IF($Y$11=1,IF($Y$12=2,Raw_Data!N6,IF($Y$12=1,Raw_Data!BH6,Raw_Data!BH171)),IF(Raw_Data!BH6<=Raw_Data!BH171,Raw_Data!N6,IF(AM$156=FALSE,IF(Raw_Data!BH331<(Raw_Data!N6-Raw_Data!BH171)/(Raw_Data!BH6-Raw_Data!BH171),Raw_Data!BH171+SQRT(Raw_Data!BH331*(Raw_Data!BH6-Raw_Data!BH171)*(Raw_Data!N6-Raw_Data!BH171)),Raw_Data!BH6-SQRT((1-Raw_Data!BH331)*(Raw_Data!BH6-Raw_Data!BH171)*(Raw_Data!BH6-Raw_Data!N6))),NORMINV(Raw_Data!BH331,$KR6,$KS6)))) -> 0.35 | AN6: =IF($Y$11=1,IF($Y$12=2,Raw_Data!O6,IF($Y$12=1,Raw_Data!BI6,Raw_Data!BI171)),IF(Raw_Data!BI6<=Raw_Data!BI171,Raw_Data!O6,IF(AN$156=FALSE,IF(Raw_Data!BI331<(Raw_Data!O6-Raw_Data!BI171)/(Raw_Data!BI6-Raw_Data!BI171),Raw_Data!BI171+SQRT(Raw_Data!BI331*(Raw_Data!BI6-Raw_Data!BI171)*(Raw_Data!O6-Raw_Data!BI171)),Raw_Data!BI6-SQRT((1-Raw_Data!BI331)*(Raw_Data!BI6-Raw_Data!BI171)*(Raw_Data!BI6-Raw_Data!O6))),NORMINV(Raw_Data!BI331,$KR6,$KS6)))) -> 22500 | AO6: =IF($Y$11=1,IF($Y$12=2,Raw_Data!P6,IF($Y$12=1,Raw_Data!BJ6,Raw_Data!BJ171)),IF(Raw_Data!BJ6<=Raw_Data!BJ171,Raw_Data!P6,IF(AO$156=FALSE,IF(Raw_Data!BJ331<(Raw_Data!P6-Raw_Data!BJ171)/(Raw_Data!BJ6-Raw_Data!BJ171),Raw_Data!BJ171+SQRT(Raw_Data!BJ331*(Raw_Data!BJ6-Raw_Data!BJ171)*(Raw_Data!P6-Raw_Data!BJ171)),Raw_Data!BJ6-SQRT((1-Raw_Data!BJ331)*(Raw_Data!BJ6-Raw_Data!BJ171)*(Raw_Data!BJ6-Raw_Data!P6))),NORMINV(Raw_Data!BJ331,$KR6,$KS6)))) -> 45 | AP6: =IF($Y$11=1,IF($Y$12=2,Raw_Data!Q6,IF($Y$12=1,Raw_Data!BK6,Raw_Data!BK171)),IF(Raw_Data!BK6<=Raw_Data!BK171,Raw_Data!Q6,IF(AP$156=FALSE,IF(Raw_Data!BK331<(Raw_Data!Q6-Raw_Data!BK171)/(Raw_Data!BK6-Raw_Data!BK171),Raw_Data!BK171+SQRT(Raw_Data!BK331*(Raw_Data!BK6-Raw_Data!BK171)*(Raw_Data!Q6-Raw_Data!BK171)),Raw_Data!BK6-SQRT((1-Raw_Data!BK331)*(Raw_Data!BK6-Raw_Data!BK171)*(Raw_Data!BK6-Raw_Data!Q6))),NORMINV(Raw_Data!BK331,$KR6,$KS6)))) -> 2.75 | AQ6: =IF($Y$11=1,IF($Y$12=2,Raw_Data!R6,IF($Y$12=1,Raw_Data!BL6,Raw_Data!BL171)),IF(Raw_Data!BL6<=Raw_Data!BL171,Raw_Data!R6,IF(AQ$156=FALSE,IF(Raw_Data!BL331<(Raw_Data!R6-Raw_Data!BL171)/(Raw_Data!BL6-Raw_Data!BL171),Raw_Data!BL171+SQRT(Raw_Data!BL331*(Raw_Data!BL6-Raw_Data!BL171)*(Raw_Data!R6-Raw_Data!BL171)),Raw_Data!BL6-SQRT((1-Raw_Data!BL331)*(Raw_Data!BL6-Raw_Data!BL171)*(Raw_Data!BL6-Raw_Data!R6))),NORMINV(Raw_Data!BL331,$KR6,$KS6)))) -> 9 | AR6: =IF($Y$11=1,IF($Y$12=2,Raw_Data!S6,IF($Y$12=1,Raw_Data!BM6,Raw_Data!BM171)),IF(Raw_Data!BM6<=Raw_Data!BM171,Raw_Data!S6,IF(AR$156=FALSE,IF(Raw_Data!BM331<(Raw_Data!S6-Raw_Data!BM171)/(Raw_Data!BM6-Raw_Data!BM171),Raw_Data!BM171+SQRT(Raw_Data!BM331*(Raw_Data!BM6-Raw_Data!BM171)*(Raw_Data!S6-Raw_Data!BM171)),Raw_Data!BM6-SQRT((1-Raw_Data!BM331)*(Raw_Data!BM6-Raw_Data!BM171)*(Raw_Data!BM6-Raw_Data!S6))),NORMINV(Raw_Data!BM331,$KR6,$KS6)))) -> 1.375 | AS6: =IF($Y$11=1,IF($Y$12=2,Raw_Data!T6,IF($Y$12=1,Raw_Data!BN6,Raw_Data!BN171)),IF(Raw_Data!BN6<=Raw_Data!BN171,Raw_Data!T6,IF(AS$156=FALSE,IF(Raw_Data!BN331<(Raw_Data!T6-Raw_Data!BN171)/(Raw_Data!BN6-Raw_Data!BN171),Raw_Data!BN171+SQRT(Raw_Data!BN331*(Raw_Data!BN6-Raw_Data!BN171)*(Raw_Data!T6-Raw_Data!BN171)),Raw_Data!BN6-SQRT((1-Raw_Data!BN331)*(Raw_Data!BN6-Raw_Data!BN171)*(Raw_Data!BN6-Raw_Data!T6))),NORMINV(Raw_Data!BN331,$KR6,$KS6)))) -> 0.00165 | AT6: =IF($Y$11=1,IF($Y$12=2,Raw_Data!U6,IF($Y$12=1,Raw_Data!BO6,Raw_Data!BO171)),IF(Raw_Data!BO6<=Raw_Data!BO171,Raw_Data!U6,IF(AT$156=FALSE,IF(Raw_Data!BO331<(Raw_Data!U6-Raw_Data!BO171)/(Raw_Data!BO6-Raw_Data!BO171),Raw_Data!BO171+SQRT(Raw_Data!BO331*(Raw_Data!BO6-Raw_Data!BO171)*(Raw_Data!U6-Raw_Data!BO171)),Raw_Data!BO6-SQRT((1-Raw_Data!BO331)*(Raw_Data!BO6-Raw_Data!BO171)*(Raw_Data!BO6-Raw_Data!U6))),NORMINV(Raw_Data!BO331,$KR6,$KS6)))) -> 160 | AU6: =IF($Y$11=1,IF($Y$12=2,Raw_Data!V6,IF($Y$12=1,Raw_Data!BP6,Raw_Data!BP171)),IF(Raw_Data!BP6<=Raw_Data!BP171,Raw_Data!V6,IF(AU$156=FALSE,IF(Raw_Data!BP331<(Raw_Data!V6-Raw_Data!BP171)/(Raw_Data!BP6-Raw_Data!BP171),Raw_Data!BP171+SQRT(Raw_Data!BP331*(Raw_Data!BP6-Raw_Data!BP171)*(Raw_Data!V6-Raw_Data!BP171)),Raw_Data!BP6-SQRT((1-Raw_Data!BP331)*(Raw_Data!BP6-Raw_Data!BP171)*(Raw_Data!BP6-Raw_Data!V6))),NORMINV(Raw_Data!BP331,$KR6,$KS6)))) -> 443 | AV6: =IF($Y$11=1,IF($Y$12=2,Raw_Data!W6,IF($Y$12=1,Raw_Data!BQ6,Raw_Data!BQ171)),IF(Raw_Data!BQ6<=Raw_Data!BQ171,Raw_Data!W6,IF(AV$156=FALSE,IF(Raw_Data!BQ331<(Raw_Data!W6-Raw_Data!BQ171)/(Raw_Data!BQ6-Raw_Data!BQ171),Raw_Data!BQ171+SQRT(Raw_Data!BQ331*(Raw_Data!BQ6-Raw_Data!BQ171)*(Raw_Data!W6-Raw_Data!BQ171)),Raw_Data!BQ6-SQRT((1-Raw_Data!BQ331)*(Raw_Data!BQ6-Raw_Data!BQ171)*(Raw_Data!BQ6-Raw_Data!W6))),NORMINV(Raw_Data!BQ331,$KR6,$KS6)))) -> 2.5 | AW6: =IF($Y$11=1,IF($Y$12=2,Raw_Data!X6,IF($Y$12=1,Raw_Data!BR6,Raw_Data!BR171)),IF(Raw_Data!BR6<=Raw_Data!BR171,Raw_Data!X6,IF(AW$156=FALSE,IF(Raw_Data!BR331<(Raw_Data!X6-Raw_Data!BR171)/(Raw_Data!BR6-Raw_Data!BR171),Raw_Data!BR171+SQRT(Raw_Data!BR331*(Raw_Data!BR6-Raw_Data!BR171)*(Raw_Data!X6-Raw_Data!BR171)),Raw_Data!BR6-SQRT((1-Raw_Data!BR331)*(Raw_Data!BR6-Raw_Data!BR171)*(Raw_Data!BR6-Raw_Data!X6))),NORMINV(Raw_Data!BR331,$KR6,$KS6)))) -> 2.5 | AX6: =IF($Y$11=1,IF($Y$12=2,Raw_Data!Y6,IF($Y$12=1,Raw_Data!BS6,Raw_Data!BS171)),IF(Raw_Data!BS6<=Raw_Data!BS171,Raw_Data!Y6,IF(AX$156=FALSE,IF(Raw_Data!BS331<(Raw_Data!Y6-Raw_Data!BS171)/(Raw_Data!BS6-Raw_Data!BS171),Raw_Data!BS171+SQRT(Raw_Data!BS331*(Raw_Data!BS6-Raw_Data!BS171)*(Raw_Data!Y6-Raw_Data!BS171)),Raw_Data!BS6-SQRT((1-Raw_Data!BS331)*(Raw_Data!BS6-Raw_Data!BS171)*(Raw_Data!BS6-Raw_Data!Y6))),NORMINV(Raw_Data!BS331,$KR6,$KS6)))) -> 21 | AY6: =IF($Y$11=1,IF($Y$12=2,Raw_Data!Z6,IF($Y$12=1,Raw_Data!BT6,Raw_Data!BT171)),IF(Raw_Data!BT6<=Raw_Data!BT171,Raw_Data!Z6,IF(AY$156=FALSE,IF(Raw_Data!BT331<(Raw_Data!Z6-Raw_Data!BT171)/(Raw_Data!BT6-Raw_Data!BT171),Raw_Data!BT171+SQRT(Raw_Data!BT331*(Raw_Data!BT6-Raw_Data!BT171)*(Raw_Data!Z6-Raw_Data!BT171)),Raw_Data!BT6-SQRT((1-Raw_Data!BT331)*(Raw_Data!BT6-Raw_Data!BT171)*(Raw_Data!BT6-Raw_Data!Z6))),NORMINV(Raw_Data!BT331,$KR6,$KS6)))) -> 200 | AZ6: =IF($Y$11=1,IF($Y$12=2,Raw_Data!AA6,IF($Y$12=1,Raw_Data!BU6,Raw_Data!BU171)),IF(Raw_Data!BU6<=Raw_Data!BU171,Raw_Data!AA6,IF(AZ$156=FALSE,IF(Raw_Data!BU331<(Raw_Data!AA6-Raw_Data!BU171)/(Raw_Data!BU6-Raw_Data!BU171),Raw_Data!BU171+SQRT(Raw_Data!BU331*(Raw_Data!BU6-Raw_Data!BU171)*(Raw_Data!AA6-Raw_Data!BU171)),Raw_Data!BU6-SQRT((1-Raw_Data!BU331)*(Raw_Data!BU6-Raw_Data!BU171)*(Raw_Data!BU6-Raw_Data!AA6))),NORMINV(Raw_Data!BU331,$KR6,$KS6)))) -> 1.9 | BA6: =IF($Y$11=1,IF($Y$12=2,Raw_Data!AB6,IF($Y$12=1,Raw_Data!BV6,Raw_Data!BV171)),IF(Raw_Data!BV6<=Raw_Data!BV171,Raw_Data!AB6,IF(BA$156=FALSE,IF(Raw_Data!BV331<(Raw_Data!AB6-Raw_Data!BV171)/(Raw_Data!BV6-Raw_Data!BV171),Raw_Data!BV171+SQRT(Raw_Data!BV331*(Raw_Data!BV6-Raw_Data!BV171)*(Raw_Data!AB6-Raw_Data!BV171)),Raw_Data!BV6-SQRT((1-Raw_Data!BV331)*(Raw_Data!BV6-Raw_Data!BV171)*(Raw_Data!BV6-Raw_Data!AB6))),NORMINV(Raw_Data!BV331,$KR6,$KS6)))) -> 0 | BB6: =IF($Y$11=1,IF($Y$12=2,Raw_Data!AC6,IF($Y$12=1,Raw_Data!BW6,Raw_Data!BW171)),IF(Raw_Data!BW6<=Raw_Data!BW171,Raw_Data!AC6,IF(BB$156=FALSE,IF(Raw_Data!BW331<(Raw_Data!AC6-Raw_Data!BW171)/(Raw_Data!BW6-Raw_Data!BW171),Raw_Data!BW171+SQRT(Raw_Data!BW331*(Raw_Data!BW6-Raw_Data!BW171)*(Raw_Data!AC6-Raw_Data!BW171)),Raw_Data!BW6-SQRT((1-Raw_Data!BW331)*(Raw_Data!BW6-Raw_Data!BW171)*(Raw_Data!BW6-Raw_Data!AC6))),NORMINV(Raw_Data!BW331,$KR6,$KS6)))) -> 0 | BC6: =IF($Y$11=1,IF($Y$12=2,Raw_Data!AD6,IF($Y$12=1,Raw_Data!BX6,Raw_Data!BX171)),IF(Raw_Data!BX6<=Raw_Data!BX171,Raw_Data!AD6,IF(BC$156=FALSE,IF(Raw_Data!BX331<(Raw_Data!AD6-Raw_Data!BX171)/(Raw_Data!BX6-Raw_Data!BX171),Raw_Data!BX171+SQRT(Raw_Data!BX331*(Raw_Data!BX6-Raw_Data!BX171)*(Raw_Data!AD6-Raw_Data!BX171)),Raw_Data!BX6-SQRT((1-Raw_Data!BX331)*(Raw_Data!BX6-Raw_Data!BX171)*(Raw_Data!BX6-Raw_Data!AD6))),NORMINV(Raw_Data!BX331,$KR6,$KS6)))) -> 0 | BD6: =IF($Y$11=1,IF($Y$12=2,Raw_Data!AE6,IF($Y$12=1,Raw_Data!BY6,Raw_Data!BY171)),IF(Raw_Data!BY6<=Raw_Data!BY171,Raw_Data!AE6,IF(BD$156=FALSE,IF(Raw_Data!BY331<(Raw_Data!AE6-Raw_Data!BY171)/(Raw_Data!BY6-Raw_Data!BY171),Raw_Data!BY171+SQRT(Raw_Data!BY331*(Raw_Data!BY6-Raw_Data!BY171)*(Raw_Data!AE6-Raw_Data!BY171)),Raw_Data!BY6-SQRT((1-Raw_Data!BY331)*(Raw_Data!BY6-Raw_Data!BY171)*(Raw_Data!BY6-Raw_Data!AE6))),NORMINV(Raw_Data!BY331,$KR6,$KS6)))) -> 0 | BE6: =IF($Y$11=1,IF($Y$12=2,Raw_Data!AF6,IF($Y$12=1,Raw_Data!BZ6,Raw_Data!BZ171)),IF(Raw_Data!BZ6<=Raw_Data!BZ171,Raw_Data!AF6,IF(BE$156=FALSE,IF(Raw_Data!BZ331<(Raw_Data!AF6-Raw_Data!BZ171)/(Raw_Data!BZ6-Raw_Data!BZ171),Raw_Data!BZ171+SQRT(Raw_Data!BZ331*(Raw_Data!BZ6-Raw_Data!BZ171)*(Raw_Data!AF6-Raw_Data!BZ171)),Raw_Data!BZ6-SQRT((1-Raw_Data!BZ331)*(Raw_Data!BZ6-Raw_Data!BZ171)*(Raw_Data!BZ6-Raw_Data!AF6))),NORMINV(Raw_Data!BZ331,$KR6,$KS6)))) -> 0 | BF6: =IF($Y$11=1,IF($Y$12=2,Raw_Data!AG6,IF($Y$12=1,Raw_Data!CA6,Raw_Data!CA171)),IF(Raw_Data!CA6<=Raw_Data!CA171,Raw_Data!AG6,IF(BF$156=FALSE,IF(Raw_Data!CA331<(Raw_Data!AG6-Raw_Data!CA171)/(Raw_Data!CA6-Raw_Data!CA171),Raw_Data!CA171+SQRT(Raw_Data!CA331*(Raw_Data!CA6-Raw_Data!CA171)*(Raw_Data!AG6-Raw_Data!CA171)),Raw_Data!CA6-SQRT((1-Raw_Data!CA331)*(Raw_Data!CA6-Raw_Data!CA171)*(Raw_Data!CA6-Raw_Data!AG6))),NORMINV(Raw_Data!CA331,$KR6,$KS6)))) -> 0 | BG6: =IF($Y$11=1,IF($Y$12=2,Raw_Data!AH6,IF($Y$12=1,Raw_Data!CB6,Raw_Data!CB171)),IF(Raw_Data!CB6<=Raw_Data!CB171,Raw_Data!AH6,IF(BG$156=FALSE,IF(Raw_Data!CB331<(Raw_Data!AH6-Raw_Data!CB171)/(Raw_Data!CB6-Raw_Data!CB171),Raw_Data!CB171+SQRT(Raw_Data!CB331*(Raw_Data!CB6-Raw_Data!CB171)*(Raw_Data!AH6-Raw_Data!CB171)),Raw_Data!CB6-SQRT((1-Raw_Data!CB331)*(Raw_Data!CB6-Raw_Data!CB171)*(Raw_Data!CB6-Raw_Data!AH6))),NORMINV(Raw_Data!CB331,$KR6,$KS6)))) -> 0 | BH6: =IF($Y$11=1,IF($Y$12=2,Raw_Data!AI6,IF($Y$12=1,Raw_Data!CC6,Raw_Data!CC171)),IF(Raw_Data!CC6<=Raw_Data!CC171,Raw_Data!AI6,IF(BH$156=FALSE,IF(Raw_Data!CC331<(Raw_Data!AI6-Raw_Data!CC171)/(Raw_Data!CC6-Raw_Data!CC171),Raw_Data!CC171+SQRT(Raw_Data!CC331*(Raw_Data!CC6-Raw_Data!CC171)*(Raw_Data!AI6-Raw_Data!CC171)),Raw_Data!CC6-SQRT((1-Raw_Data!CC331)*(Raw_Data!CC6-Raw_Data!CC171)*(Raw_Data!CC6-Raw_Data!AI6))),NORMINV(Raw_Data!CC331,$KR6,$KS6)))) -> 0 | BI6: =IF($Y$11=1,IF($Y$12=2,Raw_Data!AJ6,IF($Y$12=1,Raw_Data!CD6,Raw_Data!CD171)),IF(Raw_Data!CD6<=Raw_Data!CD171,Raw_Data!AJ6,IF(BI$156=FALSE,IF(Raw_Data!CD331<(Raw_Data!AJ6-Raw_Data!CD171)/(Raw_Data!CD6-Raw_Data!CD171),Raw_Data!CD171+SQRT(Raw_Data!CD331*(Raw_Data!CD6-Raw_Data!CD171)*(Raw_Data!AJ6-Raw_Data!CD171)),Raw_Data!CD6-SQRT((1-Raw_Data!CD331)*(Raw_Data!CD6-Raw_Data!CD171)*(Raw_Data!CD6-Raw_Data!AJ6))),NORMINV(Raw_Data!CD331,$KR6,$KS6)))) -> 0 | BJ6: =IF($Y$11=1,IF($Y$12=2,Raw_Data!AK6,IF($Y$12=1,Raw_Data!CE6,Raw_Data!CE171)),IF(Raw_Data!CE6<=Raw_Data!CE171,Raw_Data!AK6,IF(BJ$156=FALSE,IF(Raw_Data!CE331<(Raw_Data!AK6-Raw_Data!CE171)/(Raw_Data!CE6-Raw_Data!CE171),Raw_Data!CE171+SQRT(Raw_Data!CE331*(Raw_Data!CE6-Raw_Data!CE171)*(Raw_Data!AK6-Raw_Data!CE171)),Raw_Data!CE6-SQRT((1-Raw_Data!CE331)*(Raw_Data!CE6-Raw_Data!CE171)*(Raw_Data!CE6-Raw_Data!AK6))),NORMINV(Raw_Data!CE331,$KR6,$KS6)))) -> 0 | BK6: =IF($Y$11=1,IF($Y$12=2,Raw_Data!AL6,IF($Y$12=1,Raw_Data!CF6,Raw_Data!CF171)),IF(Raw_Data!CF6<=Raw_Data!CF171,Raw_Data!AL6,IF(BK$156=FALSE,IF(Raw_Data!CF331<(Raw_Data!AL6-Raw_Data!CF171)/(Raw_Data!CF6-Raw_Data!CF171),Raw_Data!CF171+SQRT(Raw_Data!CF331*(Raw_Data!CF6-Raw_Data!CF171)*(Raw_Data!AL6-Raw_Data!CF171)),Raw_Data!CF6-SQRT((1-Raw_Data!CF331)*(Raw_Data!CF6-Raw_Data!CF171)*(Raw_Data!CF6-Raw_Data!AL6))),NORMINV(Raw_Data!CF331,$KR6,$KS6)))) -> 0 | BL6: =IF($Y$11=1,IF($Y$12=2,Raw_Data!AM6,IF($Y$12=1,Raw_Data!CG6,Raw_Data!CG171)),IF(Raw_Data!CG6<=Raw_Data!CG171,Raw_Data!AM6,IF(BL$156=FALSE,IF(Raw_Data!CG331<(Raw_Data!AM6-Raw_Data!CG171)/(Raw_Data!CG6-Raw_Data!CG171),Raw_Data!CG171+SQRT(Raw_Data!CG331*(Raw_Data!CG6-Raw_Data!CG171)*(Raw_Data!AM6-Raw_Data!CG171)),Raw_Data!CG6-SQRT((1-Raw_Data!CG331)*(Raw_Data!CG6-Raw_Data!CG171)*(Raw_Data!CG6-Raw_Data!AM6))),NORMINV(Raw_Data!CG331,$KR6,$KS6)))) -> 0 | BM6: =IF($Y$11=1,IF($Y$12=2,Raw_Data!AN6,IF($Y$12=1,Raw_Data!CH6,Raw_Data!CH171)),IF(Raw_Data!CH6<=Raw_Data!CH171,Raw_Data!AN6,IF(BM$156=FALSE,IF(Raw_Data!CH331<(Raw_Data!AN6-Raw_Data!CH171)/(Raw_Data!CH6-Raw_Data!CH171),Raw_Data!CH171+SQRT(Raw_Data!CH331*(Raw_Data!CH6-Raw_Data!CH171)*(Raw_Data!AN6-Raw_Data!CH171)),Raw_Data!CH6-SQRT((1-Raw_Data!CH331)*(Raw_Data!CH6-Raw_Data!CH171)*(Raw_Data!CH6-Raw_Data!AN6))),NORMINV(Raw_Data!CH331,$KR6,$KS6)))) -> 0 | BN6: =IF($Y$11=1,IF($Y$12=2,Raw_Data!AO6,IF($Y$12=1,Raw_Data!CI6,Raw_Data!CI171)),IF(Raw_Data!CI6<=Raw_Data!CI171,Raw_Data!AO6,IF(BN$156=FALSE,IF(Raw_Data!CI331<(Raw_Data!AO6-Raw_Data!CI171)/(Raw_Data!CI6-Raw_Data!CI171),Raw_Data!CI171+SQRT(Raw_Data!CI331*(Raw_Data!CI6-Raw_Data!CI171)*(Raw_Data!AO6-Raw_Data!CI171)),Raw_Data!CI6-SQRT((1-Raw_Data!CI331)*(Raw_Data!CI6-Raw_Data!CI171)*(Raw_Data!CI6-Raw_Data!AO6))),NORMINV(Raw_Data!CI331,$KR6,$KS6)))) -> 0 | BO6: =IF($Y$11=1,IF($Y$12=2,Raw_Data!AP6,IF($Y$12=1,Raw_Data!CJ6,Raw_Data!CJ171)),IF(Raw_Data!CJ6<=Raw_Data!CJ171,Raw_Data!AP6,IF(BO$156=FALSE,IF(Raw_Data!CJ331<(Raw_Data!AP6-Raw_Data!CJ171)/(Raw_Data!CJ6-Raw_Data!CJ171),Raw_Data!CJ171+SQRT(Raw_Data!CJ331*(Raw_Data!CJ6-Raw_Data!CJ171)*(Raw_Data!AP6-Raw_Data!CJ171)),Raw_Data!CJ6-SQRT((1-Raw_Data!CJ331)*(Raw_Data!CJ6-Raw_Data!CJ171)*(Raw_Data!CJ6-Raw_Data!AP6))),NORMINV(Raw_Data!CJ331,$KR6,$KS6)))) -> 0 | BW6: 2 | BX6: 0.9667 | BY6: 0.997 | BZ6: 0.9640888889 | CA6: 0.99 | CB6: 1 | CC6: 1 | CD6: 0.9 | CE6: 1 | CF6: 1 | CG6: 0.9 | CH6: 0.75 | CI6: 0.79 | CJ6: 0.5 | CK6: 0.91 | CL6: 0.9 | CM6: 0.43 | CN6: 0.63 | CO6: 0.54 | CP6: 0.11 | CQ6: 0.5 | CR6: 0 | CS6: 0 | CT6: 0 | CU6: 0 | CV6: 1 | CW6: 0.5 | CX6: 1 | KR6: =IF($LH$1=1,Raw_Data!XT6,IF($LH$1=2,Raw_Data!ARM6,Raw_Data!BLM6)) -> 67.59843101 | KS6: =IF($LH$1=1,Raw_Data!XU6,IF($LH$1=2,Raw_Data!ARN6,Raw_Data!BLN6)) -> 9.516363006 | KX6: 6 | LA6: 6 | LB6: 0.5
